Workbook

Sheet Cover Sheet
D6: Section 251 budget 2019-20
D7: XML generator
B13: Local Authority Name: | C13: =VLOOKUP(C15, PrevYrData, 2, FALSE) -> Sheffield
B15: Local Authority Number: | C15: 373
B17: Contact Name: | C17: Martyn Keller
B19: Contact Email: | C19: martyn.keller@sheffield.gov.uk
B21: Contact Telephone: | C21: 0114 2735647

Sheet Instructions
B2: Completing the Return
B4: You can view guidance by hovering over cells with a red triangle in the top-right corner. If you need to resize a comment, you can do so by going to Review>Edit Comment. You are also advised to read the full guidance at: https://www.gov.uk/guidance/section-251-2019-to-2020.
B6: LA Table
B8: This table is for local authorities to provide an overall picture of the funding being allocated direct to schools, the amount being spent on education centrally and the amount being spent on children’s and young people’s services.
B10: Values should be entered in all red cells. If the value entered does not match the data validation restrictions for the cell, an error message will be displayed. You will still be able to submit your return, but you will be prompted to enter an explanation within COLLECT.
B12: Queries will be displayed in column O if the gross value is outside the expected range when compared with the previous year’s data.
B14: Schools Table
B16: This table is for local authorities to enter details of the high needs places and funding in the schools that they maintain.
B18: The table has been pre-populated with the schools listed on the authority’s 2018-19 budget return. Schools may be added or removed as required.
B20: Error messages will be displayed in column S if the data entered does not match the validation restrictions applied to the table.
B22: Early Years Table
B24: This table is to record the total local authority DSG spending on early years entitlements for disadvantaged two year olds and three and four year olds for both the universal 15 hours and the additional 15 hours for eligible working parents of three and four year olds. This section should also include any budget allocated for the early years special education needs inclusion fund and any other DSG expenditure on early years, including the early years pupil premium and disability access fund.
B26: Additional rows may be added using the ‘Add’ button for the relevant line. Similarly, the ‘Delete’ button can be used to delete unused rows.
B28: Error messages will be displayed in column U if the data entered does not match the validation restrictions applied to the table.
B31: Uploading the return to COLLECT
B33: When you have finished entering your data, click the ‘Convert to XML’ button on the Cover Sheet. This will create an XML file within the same folder as the XML converter for uploading to COLLECT.
B35: Log into COLLECT.
B37: On the Source page click on 'Upload Return from file…'
B57: To upload the return, click on the ‘Browse…’ button to navigate to the required XML file. You then need to select ‘Upload’ to load the data.
B69: If data is already loaded you will be asked if you want to overwrite it. Answering no will stop the data load, answering yes will delete the existing data and load the new data.
B71: Important: If a new version of the data is loaded, all error-level notes will be deleted.
B73: Once the file has been successfully loaded the following message will appear.
B91: The data return has now been placed in a queue to be validated. When COLLECT is busy this process may take some time and users may come back later to view any validation errors present within the return.
B93: When you click on ‘OK’ you will return to the ‘Source page’ and the status will be ‘Waiting_for_validation’. When the return reaches the front of the queue, the status on the ‘Source page’ will change to ‘Validation_in_progess’ and then ‘Loaded’ when it is finished.
B96: Addressing any errors/queries
B98: When a return has been uploaded, a number of validation checks are run against the data in that return and will trigger errors or queries.
B100: All errors and queries are highlighted in red against the relevant data item.
B102: To view all errors and queries on the return
B104: Click on ‘All Errors’ at the top of the screen.
B111: You will then be shown a list of all errors and queries relating to your return. You may also find it helpful to download an error report.
B121: Correcting errors
B123: Click on the 'Details' button to see which data items the validation is checking, these will show to the right of the screen. If you click on one of the underlined fields you will be directed to the corresponding data item in the return.
B125: Change the mode of the form to ‘edit’ and then click on the data item that needs to be changed and update it.
B127: Providing clarification/ supplementary information
B129: If you are satisfied that the value is correct, please enter a brief but meaningful note next to the error/query (rather than ‘OK’ or ‘Correct’ etc.).
B131: To enter a note, first click on the pen icon next to the error/query.
B143: Then click ‘Add New Note’.
B154: Type your note in the box provided and click ‘Create’.
B174: You must enter a note for all errors/queries, except year-on-year queries (3.1.1 and 1007).
B176: For year-on-year queries you may either enter a note or choose an option from the drop-down menu at the bottom of the screen which will clear the query.
B182: If you select ‘Other - please provide explanation’, this will not clear the query and you must enter a note next to the query.
B184: To return to the list of errors, click on the 'Error' button.
B190: Editing data within your return
B192: LA Table
B194: Use the blue hyperlinks at the bottom of the screen to navigate to the part of your return you wish to edit. Warning: Using the hyperlinks on the left-hand side may result in unexpected behaviour.
B215: Change the mode of the form to ‘edit’ and then click on the data item that needs to be changed and update it.
B217: Click on 'View' followed by 'Drill Up' to return to the previous screen.
B219: Schools Table
B221: Click on the appropriate hyperlink to take you to the Schools Table.
B223: Use the 'Edit' button to edit the data or the 'Add' or 'Delete' buttons to add or remove schools from the table.
B230: Click on 'View' followed by 'Drill Up' to return to the previous screen.
B232: EY Table
B234: Click on the appropriate hyperlink to take you to the required section of the EY Table.
B236: Click on 'Click to view individual column descriptors'. This will allow you to view the data entered for this line.
B244: Use the 'Edit' button to edit the data or the 'Add' or 'Delete' buttons to add or remove rows.
B250: Click on 'View' followed by 'Drill Up' to return to the previous screen.
B253: Submitting the Return
B255: Return to the ‘Source Page’ by clicking on ‘Back to My COLLECT page’ located at the top of the form.
B265: Then select ‘Submit Return’.

Sheet LA Table
C2: LA Table: Local Authority Information
C4: Description | E4: Early Years | F4: Primary | G4: Secondary | H4: SEN/ Special schools | I4: AP/ PRUs | J4: Post school (e.g. Sixth Form & FE Colleges) | K4: Gross | L4: Income | M4: Net | O4: Error | Q4: Err_311 | R4: Err_1001 | S4: Err_1007 | T4: Err_Misc
E6: =IF(COUNTA(E10:L221)<456,"PLEASE ENTER VALUES IN ALL CELLS","") -> PLEASE ENTER VALUES IN ALL CELLS
B7: 1 | C7: SCHOOLS BUDGET
O9: =IF(M11<(SUM(TotalPlaceFundingNet) - SUM(TotalDeductionsESG)), "LA Table line 1.0.2 gross value must be greater than or equal to total place funding on Schools Table (net of any deductions).", "") -> 
B10: 1.0.1 | C10: Individual Schools Budget (i.e. school budget shares, before Academy recoupment), including 6th form grant for maintained schools, but excluding all high needs place funding | E10: 31687252 | F10: 183386140 | G10: 146863741 | K10: =SUM(E10,F10,G10,H10,I10) -> 361937133 | M10: =SUM(E10,F10,G10,H10,I10) -> 361937133 | N10: =IsRed(E10)+2*IsRed(F10)+4*IsRed(G10)+8*IsRed(H10)+16*IsRed(I10)+32*IsRed(J10)+64*IsRed(K10)+ 128*IsRed(L10) -> 7 | O10: =ValErrMsg(0,R10,0,0) ->  | P10: =Prev_LA_Table!H10 -> 350433391 | Q10: =ValSP311(K10,P10) -> 0 | R10: =ValSP1001(K10,P10) -> 0 | S10: =ValSP1007(K10,P10) -> 0
B11: 1.0.2 | C11: High needs place funding within Individual Schools Budget (i.e. within school budget shares, before Academy recoupment), including all pre- and post-16 place funding for maintained schools and academies | E11: 0 | F11: 792000 | G11: 486000 | H11: 12475000 | I11: 1800000 | K11: =SUM(E11,F11,G11,H11,I11) -> 15553000 | M11: =SUM(E11,F11,G11,H11,I11) -> 15553000 | N11: =IsRed(E11)+2*IsRed(F11)+4*IsRed(G11)+8*IsRed(H11)+16*IsRed(I11)+32*IsRed(J11)+64*IsRed(K11)+ 128*IsRed(L11) -> 31 | O11: =ValErrMsg(0,R11,0,T11) -> 1001: Check - Value in 2019-20 is between 10% greater or 30% less than in 2018-19 | P11: =Prev_LA_Table!H11 -> 14127417 | Q11: =ValSP311(K11,P11) -> 0 | R11: =ValSP1001(K11,P11) -> 1 | S11: =ValSP1007(K11,P11) -> 0 | T11: =IF(K11<SUM(TotalPlaceFundingNet)-SUM(TotalDeductionsESG), 1022, 0) -> 0
C13: DEDELEGATED ITEMS
B14: 1.1.1 | C14: Contingencies | F14: 245291 | G14: 8835 | K14: =SUM(F14,G14) -> 254126 | L14: 0 | M14: =K14-L14 -> 254126 | N14: =IsRed(E14)+2*IsRed(F14)+4*IsRed(G14)+8*IsRed(H14)+16*IsRed(I14)+32*IsRed(J14)+64*IsRed(K14)+ 128*IsRed(L14) -> 134 | O14: =ValErrMsg(Q14,0, S14) ->  | P14: =Prev_LA_Table!H15 -> 287828 | Q14: =ValSP311(K14,P14) -> 0 | S14: =ValSP1007(K14,P14) -> 0
B15: 1.1.2 | C15: Behaviour support services | F15: 0 | G15: 0 | K15: 0 | L15: 0 | M15: 0 | N15: 134 | O15: =ValErrMsg(Q15,0, S15) ->  | P15: =Prev_LA_Table!H16 -> 0 | Q15: 0 | S15: 0
B16: 1.1.3 | C16: Support to UPEG and bilingual learners | F16: 106748 | G16: 3845 | K16: 110593 | L16: 59400 | M16: 51193 | N16: 134 | P16: =Prev_LA_Table!H17 -> 104078 | Q16: 0 | S16: 0
B17: 1.1.4 | C17: Free school meals eligibility | F17: 32769 | G17: 1180 | K17: 33949 | L17: 0 | M17: 33949 | N17: 134 | P17: =Prev_LA_Table!H18 -> 34271 | Q17: 0 | S17: 0
B18: 1.1.5 | C18: Insurance | F18: 0 | G18: 0 | K18: 0 | L18: 0 | M18: 0 | N18: 134 | O18: 1007: Zero reported in 2019-20 but spend was reported in 2018-19 | P18: =Prev_LA_Table!H19 -> 50319 | Q18: 0 | S18: 1
B19: 1.1.6 | C19: Museum and Library services | F19: 29099 | G19: 1048 | K19: 30147 | L19: 0 | M19: 30147 | N19: 134 | P19: =Prev_LA_Table!H20 -> 28018 | Q19: 0 | S19: 0
B20: 1.1.7 | C20: Licences/subscriptions | F20: 213261 | G20: 7681 | K20: 220942 | L20: 0 | M20: 220942 | N20: 134 | P20: =Prev_LA_Table!H21 -> 223034 | Q20: 0 | S20: 0
B21: 1.1.8 | C21: Staff costs – supply cover excluding cover for facility time | F21: 92990 | G21: 3349 | K21: 96339 | L21: 0 | M21: 96339 | N21: 134 | P21: =Prev_LA_Table!H22 -> 91123 | Q21: 0 | S21: 0
B22: 1.1.9 | C22: Staff costs – supply cover for facility time | F22: 88802 | G22: 3198 | K22: 92000 | L22: 0 | M22: 92000 | N22: 134 | P22: =Prev_LA_Table!H23 -> 99000 | Q22: 0 | S22: 0
B23: 1.1.10 | C23: School improvement | F23: 0 | G23: 0 | K23: 0 | L23: 0 | M23: 0 | N23: 134 | P23: =Prev_LA_Table!H24 -> 0 | Q23: 0 | S23: 0
C25: HIGH NEEDS BUDGET
B26: 1.2.1 | C26: Top-up funding – maintained schools | E26: 287131 | F26: 1785485 | G26: 1428458 | H26: 11187702 | I26: 33311 | K26: =SUM(E26,F26,G26,H26,I26) -> 14722087 | L26: 120000 | M26: =K26-L26 -> 14602087 | N26: =IsRed(E26)+2*IsRed(F26)+4*IsRed(G26)+8*IsRed(H26)+16*IsRed(I26)+32*IsRed(J26)+64*IsRed(K26)+ 128*IsRed(L26) -> 159 | O26: =ValErrMsg(Q26,0, S26) ->  | P26: =Prev_LA_Table!H28 -> 16965136 | Q26: =ValSP311(K26,P26) -> 0 | S26: =ValSP1007(K26,P26) -> 0
B27: 1.2.2 | C27: Top-up funding – academies, free schools and colleges | E27: 0 | F27: 967861 | G27: 595942 | H27: 0 | I27: 0 | J27: 2792500 | K27: =SUM(E27,F27,G27,H27,I27,J27) -> 4356303 | L27: 0 | M27: 4356303 | N27: 191 | P27: =Prev_LA_Table!H29 -> 4346243 | Q27: 0 | S27: 0
B28: 1.2.3 | C28: Top-up and other funding – non-maintained and independent providers | E28: 0 | F28: 0 | G28: 0 | H28: 3180000 | I28: 0 | J28: 1120000 | K28: =SUM(E28,F28,G28,H28,I28,J28) -> 4300000 | L28: 0 | M28: 4300000 | N28: 191 | P28: =Prev_LA_Table!H30 -> 4038000 | Q28: 0 | S28: 0
B29: 1.2.4 | C29: Additional high needs targeted funding for mainstream schools and academies | E29: 0 | F29: 0 | G29: 0 | K29: =SUM(E29,F29,G29) -> 0 | L29: 0 | M29: 0 | N29: 135 | P29: =Prev_LA_Table!H31 -> 0 | Q29: 0 | S29: 0
B30: 1.2.5 | C30: SEN support services | E30: 512659 | F30: 2979766 | G30: 2383929 | H30: 201829 | I30: 29122 | J30: 0 | K30: =SUM(E30,F30,G30,H30,I30,J30) -> 6107305 | L30: 7600 | M30: 6099705 | N30: 191 | O30: 3.1.1: Please check your entry for this line. The change from 2018-19 is outside the expected range (expected range between 15% and -15%) or the value is greater than 0 in 2019-20 and was 0 in 2018-19. | P30: =Prev_LA_Table!H32 -> 4997840 | Q30: 1 | S30: 0
B31: 1.2.6 | C31: Hospital education services | H31: 0 | I31: 714300 | K31: =SUM(H31,I31) -> 714300 | L31: 0 | M31: 714300 | N31: 152 | O31: =ValErrMsg(Q31,0,S31,T31) -> 1013: Please check your entry. The gross figure for 1.2.6 should not include Table 2 hospital education place funding. The expenditure amounts in line 1.2.6 and Table 2 are mutually exclusive. | P31: =Prev_LA_Table!H33 -> 924835 | Q31: 0 | S31: 0 | T31: =IF(AND(SUM('Schools Table'!O10:O210)>0, K31>SUM('Schools Table'!O10:O210)), 1013, 0) -> 1013
B32: 1.2.7 | C32: Other alternative provision services | E32: 68887 | F32: 400400 | G32: 320335 | H32: 27120 | I32: 3913 | J32: 0 | K32: =SUM(E32,F32,G32,H32,I32,J32) -> 820655 | L32: 156900 | M32: 663755 | N32: 191 | O32: =ValErrMsg(Q32,0, S32) ->  | P32: =Prev_LA_Table!H34 -> 996902 | Q32: 0 | S32: 0
B33: 1.2.8 | C33: Support for inclusion | E33: 646174 | F33: 3755804 | G33: 3004790 | H33: 254393 | I33: 36706 | J33: 0 | K33: =SUM(E33,F33,G33,H33,I33,J33) -> 7697867 | L33: 2500 | M33: 7695367 | N33: 191 | O33: 3.1.1: Please check your entry for this line. The change from 2018-19 is outside the expected range (expected range between 15% and -15%) or the value is greater than 0 in 2019-20 and was 0 in 2018-19. | P33: =Prev_LA_Table!H35 -> 5743398 | Q33: 1 | S33: 0
B34: 1.2.9 | C34: Special schools and PRUs in financial difficulty | H34: 500000 | I34: 0 | K34: =SUM(H34,I34) -> 500000 | L34: 0 | M34: 500000 | N34: 152 | P34: =Prev_LA_Table!H36 -> 500000 | Q34: 0 | S34: 0
B35: 1.2.10 | C35: PFI/ BSF costs at special schools, AP/ PRUs and Post 16 institutions only | H35: 0 | I35: 0 | J35: 0 | K35: =SUM(H35,I35,J35) -> 0 | L35: 0 | M35: 0 | N35: 184 | P35: =Prev_LA_Table!H37 -> 0 | Q35: 0 | S35: 0
B36: 1.2.11 | C36: Direct payments (SEN and disability) | E36: 0 | F36: 0 | G36: 0 | H36: 0 | I36: 0 | J36: 0 | K36: =SUM(E36,F36,G36,H36,I36,J36) -> 0 | L36: 0 | M36: 0 | N36: 191 | P36: =Prev_LA_Table!H38 -> 0 | Q36: 0 | S36: 0
B37: 1.2.12 | C37: Carbon reduction commitment allowances (PRUs) | I37: 0 | K37: =SUM(E37,F37,G37,H37,I37,J37) -> 0 | L37: 0 | M37: 0 | N37: 144 | P37: =Prev_LA_Table!H39 -> 0 | Q37: 0 | S37: 0
B38: 1.2.13 | C38: Therapies and other health related services | E38: 9198 | F38: 53462 | G38: 42771 | H38: 3621 | I38: 522 | J38: 0 | K38: =SUM(E38,F38,G38,H38,I38,J38) -> 109574 | L38: 0 | M38: 109574 | N38: 191 | P38: =Prev_LA_Table!H40 -> 112755 | Q38: 0 | S38: 0
Q39: 0 | S39: 0
C40: EARLY YEARS BUDGET | Q40: 0 | S40: 0
B41: 1.3.1 | C41: Central expenditure on early years entitlement | E41: 1989530 | K41: =E41 -> 1989530 | L41: 0 | M41: =K41-L41 -> 1989530 | N41: =IsRed(E41)+2*IsRed(F41)+4*IsRed(G41)+8*IsRed(H41)+16*IsRed(I41)+32*IsRed(J41)+64*IsRed(K41)+ 128*IsRed(L41) -> 129 | O41: =ValErrMsg(Q41,0, S41, T41) ->  | P41: =Prev_LA_Table!H44 -> 2100144 | Q41: 0 | S41: 0 | T41: =ValSP509(K41) -> 0
C44: CENTRAL PROVISION WITHIN SCHOOLS BUDGET
B45: 1.4.1 | C45: Contribution to combined budgets | E45: 499629 | F45: 2904031 | G45: 2323340 | H45: 196700 | I45: 28382 | K45: =SUM(E45,F45,G45,H45,I45) -> 5952082 | L45: 23200 | M45: =K45-L45 -> 5928882 | N45: =IsRed(E45)+2*IsRed(F45)+4*IsRed(G45)+8*IsRed(H45)+16*IsRed(I45)+32*IsRed(J45)+64*IsRed(K45)+ 128*IsRed(L45) -> 159 | O45: =ValErrMsg(Q45,0, S45) ->  | P45: =Prev_LA_Table!H48 -> 5952054 | Q45: =ValSP311(K45,P45) -> 0 | S45: =ValSP1007(K45,P45) -> 0
B46: 1.4.2 | C46: School admissions | E46: 27084 | F46: 157420 | G46: 125943 | H46: 10663 | I46: 1538 | K46: 322648 | L46: 0 | M46: 322648 | N46: 159 | P46: =Prev_LA_Table!H49 -> 322698 | Q46: 0 | S46: 0
B47: 1.4.3 | C47: Servicing of schools forums | E47: 14937 | F47: 86817 | G47: 69457 | H47: 5880 | I47: 848 | K47: 177939 | L47: 0 | M47: 177939 | N47: 159 | P47: =Prev_LA_Table!H50 -> 177955 | Q47: 0 | S47: 0
B48: 1.4.4 | C48: Termination of employment costs | E48: 0 | F48: 0 | G48: 0 | H48: 0 | I48: 0 | K48: 0 | L48: 0 | M48: 0 | N48: 159 | P48: =Prev_LA_Table!H51 -> 0 | Q48: 0 | S48: 0
B49: 1.4.5 | C49: Falling Rolls Fund | E49: 0 | F49: 0 | G49: 0 | H49: 0 | I49: 0 | K49: 0 | L49: 0 | M49: 0 | N49: 159 | P49: =Prev_LA_Table!H52 -> 0 | Q49: 0 | S49: 0
B50: 1.4.6 | C50: Capital expenditure from revenue (CERA) | E50: 0 | F50: 0 | G50: 0 | H50: 0 | I50: 0 | K50: 0 | L50: 0 | M50: 0 | N50: 159 | P50: =Prev_LA_Table!H53 -> 0 | Q50: 0 | S50: 0
B51: 1.4.7 | C51: Prudential borrowing costs | E51: 0 | F51: 0 | G51: 0 | H51: 0 | I51: 0 | K51: 0 | L51: 0 | M51: 0 | N51: 159 | P51: =Prev_LA_Table!H54 -> 0 | Q51: 0 | S51: 0
B52: 1.4.8 | C52: Fees to independent schools without SEN | E52: 0 | F52: 0 | G52: 0 | H52: 0 | I52: 0 | K52: 0 | L52: 0 | M52: 0 | N52: 159 | P52: =Prev_LA_Table!H55 -> 0 | Q52: 0 | S52: 0
B53: 1.4.9 | C53: Equal pay - back pay | E53: 0 | F53: 0 | G53: 0 | H53: 0 | I53: 0 | K53: 0 | L53: 0 | M53: 0 | N53: 159 | P53: =Prev_LA_Table!H56 -> 0 | Q53: 0 | S53: 0
B54: 1.4.10 | C54: Pupil growth | E54: 0 | F54: 1372192 | G54: 1097808 | H54: 737576 | I54: 106424 | K54: 3314000 | L54: 0 | M54: 3314000 | N54: 159 | P54: =Prev_LA_Table!H57 -> 3820000 | Q54: 0 | S54: 0
B55: 1.4.11 | C55: SEN transport | E55: 0 | F55: 0 | G55: 0 | H55: 4066759 | I55: 0 | J55: 0 | K55: =SUM(E55,F55,G55,H55,I55,J55) -> 4066759 | L55: 0 | M55: 4066759 | N55: 191 | P55: =Prev_LA_Table!H58 -> 4066762 | Q55: 0 | S55: 0
B56: 1.4.12 | C56: Exceptions agreed by Secretary of State | E56: 0 | F56: 0 | G56: 0 | H56: 0 | I56: 0 | J56: 0 | K56: =SUM(E56,F56,G56,H56,I56,J56) -> 0 | L56: 0 | M56: 0 | N56: 191 | P56: =Prev_LA_Table!H59 -> 0 | Q56: 0 | S56: 0
B57: 1.4.13 | C57: Infant class sizes | F57: 180000 | K57: =F57 -> 180000 | L57: 0 | M57: 180000 | N57: 130 | P57: =Prev_LA_Table!H60 -> 180000 | Q57: 0 | S57: 0
B58: 1.4.14 | C58: Other Items | E58: 30471 | F58: 177108 | G58: 141694 | H58: 11996 | I58: 1731 | J58: 0 | K58: =SUM(E58,F58,G58,H58,I58,J58) -> 363000 | M58: 363000 | N58: 63 | P58: =Prev_LA_Table!H61 -> 348000 | Q58: 0 | S58: 0
C60: CENTRAL PROVISION WITHIN SCHOOLS BUDGET (FORMER ESG RETAINED DUTIES)
B61: 1.5.1 | C61: Education welfare service | K61: 400000 | L61: 0 | M61: =K61-L61 -> 400000 | N61: =IsRed(E61)+2*IsRed(F61)+4*IsRed(G61)+8*IsRed(H61)+16*IsRed(I61)+32*IsRed(J61)+64*IsRed(K61)+ 128*IsRed(L61) -> 192 | O61: =ValErrMsg(Q61,0) ->  | P61: =Prev_LA_Table!H65 -> 400000 | Q61: =ValSP311(K61,P61) -> 0
B62: 1.5.2 | C62: Asset management | K62: 450000 | L62: 0 | M62: =K62-L62 -> 450000 | N62: =IsRed(E62)+2*IsRed(F62)+4*IsRed(G62)+8*IsRed(H62)+16*IsRed(I62)+32*IsRed(J62)+64*IsRed(K62)+ 128*IsRed(L62) -> 192 | O62: =ValErrMsg(Q62,0) ->  | P62: =Prev_LA_Table!H66 -> 450000 | Q62: =ValSP311(K62,P62) -> 0
B63: 1.5.3 | C63: Statutory/ Regulatory duties | K63: 300000 | L63: 0 | M63: =K63-L63 -> 300000 | N63: =IsRed(E63)+2*IsRed(F63)+4*IsRed(G63)+8*IsRed(H63)+16*IsRed(I63)+32*IsRed(J63)+64*IsRed(K63)+ 128*IsRed(L63) -> 192 | P63: =Prev_LA_Table!H67 -> 300000 | Q63: =ValSP311(K63,P63) -> 0
C66: CENTRAL PROVISION FUNDED THROUGH MAINTAINED SCHOOLS BUDGET
B67: 1.6.1 | C67: Central support services | K67: 0 | L67: 0 | M67: =K67-L67 -> 0 | N67: =IsRed(E67)+2*IsRed(F67)+4*IsRed(G67)+8*IsRed(H67)+16*IsRed(I67)+32*IsRed(J67)+64*IsRed(K67)+ 128*IsRed(L67) -> 192 | O67: =ValErrMsg(Q67,0) ->  | P67: =Prev_LA_Table!H71 -> 0 | Q67: =ValSP311(K67,P67) -> 0 | S67: =ValSP1007(K67,P67) -> 0
B68: 1.6.2 | C68: Education welfare service | K68: 0 | L68: 0 | M68: 0 | N68: 192 | P68: =Prev_LA_Table!H72 -> 0 | Q68: 0 | S68: 0
B69: 1.6.3 | C69: Asset management | K69: 0 | L69: 0 | M69: 0 | N69: 192 | P69: =Prev_LA_Table!H73 -> 0 | Q69: 0 | S69: 0
B70: 1.6.4 | C70: Statutory/ Regulatory duties | K70: 0 | L70: 0 | M70: 0 | N70: 192 | P70: =Prev_LA_Table!H74 -> 0 | Q70: 0 | S70: 0
B71: 1.6.5 | C71: Premature retirement cost/ Redundancy costs (new provisions) | K71: 0 | L71: 0 | M71: 0 | N71: 192 | P71: =Prev_LA_Table!H75 -> 0 | Q71: 0 | S71: 0
B72: 1.6.6 | C72: Monitoring national curriculum assessment | K72: 0 | L72: 0 | M72: 0 | N72: 192 | P72: =Prev_LA_Table!H76 -> 0 | Q72: 0 | S72: 0
B76: 1.7.1 | C76: Other Specific Grants | E76: 51801 | F76: 301084 | G76: 240879 | H76: 20393 | I76: 2943 | J76: 0 | K76: =SUM(E76,F76,G76,H76,I76,J76) -> 617100 | L76: 617100 | M76: =K76-L76 -> 0 | N76: =IsRed(E76)+2*IsRed(F76)+4*IsRed(G76)+8*IsRed(H76)+16*IsRed(I76)+32*IsRed(J76)+64*IsRed(K76)+ 128*IsRed(L76) -> 191 | O76: =ValErrMsg(Q76,S76,R76,T76) ->  | P76: =Prev_LA_Table!H78 -> 583693 | Q76: =ValSP311(K76,P76) -> 0 | S76: =ValSP1007(K76,P76) -> 0 | T76: =IF(M76<>0, 1021, 0) -> 0
B78: 1.8.1 | C78: TOTAL SCHOOLS BUDGET (before Academy recoupment) | E78: =SUM(E10,E26:E30,E32:E33,E36:E38,E41,E45:E56,E58,E76) -> 35824753 | F78: =SUM(F10:F11,F14:F23,F26:F30,F32:F33,F36:F38,F45:F58,F76) -> 200108530 | G78: =SUM(G10:G11,G14:G23,G26:G30,G32:G33,G36:G38,G45:G56,G58,G76) -> 159154223 | H78: =SUM(H10:H11,H26:H28,H30:H38,H45:H56,H58,H76) -> 32879632 | I78: =SUM(I10:I11,I26:I28,I30:I38,I45:I56,I58,I76) -> 2759740 | J78: =SUM(J27:J28,J30,J32:J33,J35:J38,J55:J56,J58,J76) -> 3912500 | K78: =SUM(K10:K11,K14:K23,K26:K38,K41,K45:K58,K61:K63,K67:K72,K76) -> 435789378 | L78: =SUM(L14:L23,L26:L38,L41,L45:L58,L61:L63,L67:L72,L76) -> 986700 | M78: =SUM(M10:M11,M14:M23,M26:M38,M41,M45:M58,M61:M63,M67:M72,M76) -> 434802678 | O78: =ValErrMsg(Q78,S78,R78,T78) ->  | P78: =Prev_LA_Table!H80 -> 422804894 | Q78: =ValSP311(K78,P78) -> 0 | S78: =ValSP1007(K78,P78) -> 0
C80: Block | E80: Allocated DSG funding | G80: Planned spend
B81: 1.8.1a | C81: Schools | E81: 332465631 | G81: 331595016
B82: 1.8.1b | C82: High Needs | E82: 54383315 | G82: 58660850
B83: 1.8.1c | C83: Central School Services | E83: 8052074 | G83: 7942469
B84: 1.8.1d | C84: Early Years | E84: 33676782 | G84: 33676782
C85: TOTAL | E85: =IF(AND(E81="",E82="",E83="",E84=""),"",SUM(E81:E84)) -> 428577802 | G85: =IF(AND(G81="",G82="",G83="",G84=""),"",SUM(G81:G84)) -> 431875117
C87: RECONCILIATION OF SCHOOLS BUDGET
B89: 1.9.1 | C89: Estimated Dedicated Schools Grant for 2019-20 (after deductions for post school high needs place funding, but including school and academy post-16 high needs place funding) | K89: 428577802 | N89: =IsRed(E89)+2*IsRed(F89)+4*IsRed(G89)+8*IsRed(H89)+16*IsRed(I89)+32*IsRed(J89)+64*IsRed(K89)+ 128*IsRed(L89) -> 64 | O89: =ValErrMsg(Q89,0) ->  | P89: =Prev_LA_Table!H84 -> 414324858 | Q89: =ValSP311(K89,P89) -> 0
B90: 1.9.2 | C90: Dedicated Schools Grant brought forward from 2018-19 (please show a deficit as a negative) | K90: 8416002 | N90: =IsRed(E90)+2*IsRed(F90)+4*IsRed(G90)+8*IsRed(H90)+16*IsRed(I90)+32*IsRed(J90)+64*IsRed(K90)+ 128*IsRed(L90) -> 64 | O90: =ValErrMsg(Q90,0) -> 3.1.1: Please check your entry for this line. The change from 2018-19 is outside the expected range (expected range between 15% and -15%) or the value is greater than 0 in 2019-20 and was 0 in 2018-19. | P90: =Prev_LA_Table!H85 -> 3602312 | Q90: =ValSP311(K90,P90) -> 1
B91: 1.9.3 | C91: Dedicated Schools Grant carry forward to 2020-21 (please show a deficit as a positive) | K91: -5118687 | N91: =IsRed(E91)+2*IsRed(F91)+4*IsRed(G91)+8*IsRed(H91)+16*IsRed(I91)+32*IsRed(J91)+64*IsRed(K91)+ 128*IsRed(L91) -> 64 | P91: =Prev_LA_Table!H86 -> 0
B92: 1.9.4 | C92: ESFA Sixth Form Grant for maintained school 6th forms (excluding post-16 high needs place funding) | K92: 2927561 | N92: =IsRed(E92)+2*IsRed(F92)+4*IsRed(G92)+8*IsRed(H92)+16*IsRed(I92)+32*IsRed(J92)+64*IsRed(K92)+ 128*IsRed(L92) -> 64 | O92: =ValErrMsg(Q92,0) ->  | P92: =Prev_LA_Table!H87 -> 3453551 | Q92: =ValSP311(K92,P92) -> 0
B93: 1.9.5 | C93: Local Authority additional contribution | K93: 0 | N93: =IsRed(E93)+2*IsRed(F93)+4*IsRed(G93)+8*IsRed(H93)+16*IsRed(I93)+32*IsRed(J93)+64*IsRed(K93)+ 128*IsRed(L93) -> 64 | O93: =ValErrMsg(Q93,0) ->  | P93: =Prev_LA_Table!H88 -> 0 | Q93: =ValSP311(K93,P93) -> 0
B94: 1.9.6 | C94: Total funding supporting the Schools Budget (lines 1.9.1 to 1.9.5) | K94: =SUM(K89:K90,K92,K93)+K91 -> 434802678 | P94: =Prev_LA_Table!H89 -> 421380721
B96: 1.10.1 | C96: Academy: recoupment from the Dedicated Schools Grant, excluding the recoupment of high needs place funding shown in line 1.0.2 above (please show any recoupment from the DSG as a negative in the cell) | K96: -220260509 | N96: =IsRed(E96)+2*IsRed(F96)+4*IsRed(G96)+8*IsRed(H96)+16*IsRed(I96)+32*IsRed(J96)+64*IsRed(K96)+ 128*IsRed(L96) -> 64 | P96: =Prev_LA_Table!H90 -> -210653251 | T96: Not validated
B97: 1.10.2 | C97: Academy: recoupment from the Dedicated Schools Grant of high needs place funding shown under line 1.0.2 above (please show any recoupment from the DSG as a negative in the cell) | K97: -786000 | N97: =IsRed(E97)+2*IsRed(F97)+4*IsRed(G97)+8*IsRed(H97)+16*IsRed(I97)+32*IsRed(J97)+64*IsRed(K97)+ 128*IsRed(L97) -> 64 | P97: =Prev_LA_Table!H91 -> -736500 | T97: Not validated
B99: 2 | C99: OTHER EDUCATION AND COMMUNITY BUDGET
B101: 2.0.1 | C101: Central support services | K101: 2372528 | L101: 1913140 | M101: =K101-L101 -> 459388 | N101: =IsRed(E101)+2*IsRed(F101)+4*IsRed(G101)+8*IsRed(H101)+16*IsRed(I101)+32*IsRed(J101)+64*IsRed(K101)+ 128*IsRed(L101) -> 192 | O101: =ValErrMsg(Q101,0, S101) ->  | P101: =Prev_LA_Table!H95 -> 2282985 | Q101: =ValSP311(K101,P101) -> 0 | S101: =ValSP1007(K101,P101) -> 0
B102: 2.0.2 | C102: Education welfare service | K102: 0 | L102: 0 | M102: 0 | N102: 192 | P102: =Prev_LA_Table!H96 -> 0 | Q102: 0 | S102: 0
B103: 2.0.3 | C103: School improvement | K103: 321440 | L103: 66200 | M103: 255240 | N103: 192 | P103: =Prev_LA_Table!H97 -> 515307 | Q103: 0 | S103: 0
B104: 2.0.4 | C104: Asset management - education | K104: 386000 | L104: 0 | M104: 386000 | N104: 192 | P104: =Prev_LA_Table!H98 -> 386000 | Q104: 0 | S104: 0
B105: 2.0.5 | C105: Statutory/ Regulatory duties - education | K105: 2338274 | L105: 760100 | M105: 1578174 | N105: 192 | O105: 3.1.1: Please check your entry for this line. The change from 2018-19 is outside the expected range (expected range between 15% and -15%) or the value is greater than 0 in 2019-20 and was 0 in 2018-19. | P105: =Prev_LA_Table!H99 -> 1687184 | Q105: 1 | S105: 0
B106: 2.0.6 | C106: Premature retirement cost/ Redundancy costs (new provisions) | K106: 181300 | L106: 0 | M106: 181300 | N106: 192 | P106: =Prev_LA_Table!H100 -> 181300 | Q106: 0 | S106: 0
B107: 2.0.7 | C107: Monitoring national curriculum assessment | K107: 0 | L107: 0 | M107: 0 | N107: 192 | P107: =Prev_LA_Table!H101 -> 0 | Q107: 0 | S107: 0
B110: 2.1.1 | C110: Educational psychology service | K110: 0 | L110: 0 | M110: =K110-L110 -> 0 | N110: =IsRed(E110)+2*IsRed(F110)+4*IsRed(G110)+8*IsRed(H110)+16*IsRed(I110)+32*IsRed(J110)+64*IsRed(K110)+ 128*IsRed(L110) -> 192 | O110: =ValErrMsg(Q110,0, S110) ->  | P110: =Prev_LA_Table!H103 -> 0 | Q110: =ValSP311(K110,P110) -> 0 | S110: =ValSP1007(K110,P110) -> 0
B111: 2.1.2 | C111: SEN administration, assessment and coordination and monitoring | K111: 1043191 | L111: 0 | M111: 1043191 | N111: 192 | P111: =Prev_LA_Table!H104 -> 1037477 | Q111: 0 | S111: 0
B112: 2.1.3 | C112: Independent Advice and Support Services (Parent partnership), guidance and information | K112: 179569 | L112: 0 | M112: 179569 | N112: 192 | P112: =Prev_LA_Table!H105 -> 144051 | Q112: 0 | S112: 0
B113: 2.1.4 | C113: Home to school transport (pre 16): SEN transport expenditure | E113: 0 | F113: 0 | G113: 0 | H113: 2616781 | I113: 0 | K113: =SUM(E113,F113,G113,H113,I113,J113) -> 2616781 | L113: 30000 | M113: 2586781 | N113: 159 | P113: =Prev_LA_Table!H106 -> 2580332 | Q113: 0 | S113: 0
B114: 2.1.5 | C114: Home to school transport (pre 16): mainstream home to school transport expenditure: | E114: 89961 | F114: 522891 | G114: 418332 | H114: 35417 | I114: 5110 | K114: =SUM(E114,F114,G114,H114,I114,J114) -> 1071711 | L114: 0 | M114: 1071711 | N114: 159 | P114: =Prev_LA_Table!H107 -> 1056784 | Q114: 0 | S114: 0
B115: 2.1.6 | C115: Home to post-16 provision: SEN/ LLDD transport expenditure (aged 16-18) | G115: 0 | H115: 0 | I115: 0 | J115: 37452 | K115: =SUM(E115,F115,G115,H115,I115,J115) -> 37452 | L115: 0 | M115: 37452 | N115: 188 | P115: =Prev_LA_Table!H108 -> 70498 | Q115: 0 | S115: 0
B116: 2.1.7 | C116: Home to post-16 provision: SEN/ LLDD transport expenditure (aged 19-25) | G116: 0 | H116: 0 | I116: 0 | J116: 37452 | K116: =SUM(E116,F116,G116,H116,I116,J116) -> 37452 | L116: 0 | M116: 37452 | N116: 188 | P116: =Prev_LA_Table!H109 -> 70498 | Q116: 0 | S116: 0
B117: 2.1.8 | C117: Home to post-16 provision transport: mainstream home to post-16 transport expenditure. | G117: 0 | H117: 0 | I117: 0 | J117: 319702 | K117: =SUM(E117,F117,G117,H117,I117,J117) -> 319702 | L117: 87800 | M117: 231902 | N117: 188 | P117: =Prev_LA_Table!H110 -> 293729 | Q117: 0 | S117: 0
B118: 2.1.9 | C118: Supply of school places | K118: 450000 | L118: 450000 | M118: 0 | N118: 192 | P118: =Prev_LA_Table!H111 -> 450000 | Q118: 0 | S118: 0
B120: 2.2.1 | C120: Other spend not funded from the Schools Budget | K120: 0 | L120: 0 | M120: =K120-L120 -> 0 | N120: =IsRed(E120)+2*IsRed(F120)+4*IsRed(G120)+8*IsRed(H120)+16*IsRed(I120)+32*IsRed(J120)+64*IsRed(K120)+ 128*IsRed(L120) -> 192 | O120: =ValErrMsg(Q120,0, S120) ->  | P120: =Prev_LA_Table!H113 -> 0 | Q120: =ValSP311(K120,P120) -> 0 | S120: =ValSP1007(K120,P120) -> 0
B123: 2.3.1 | C123: Young people's learning and development | G123: 3846782 | H123: 325678 | I123: 46992 | K123: =SUM(G123,H123,I123) -> 4219452 | L123: 1087250 | M123: =K123-L123 -> 3132202 | N123: =IsRed(E123)+2*IsRed(F123)+4*IsRed(G123)+8*IsRed(H123)+16*IsRed(I123)+32*IsRed(J123)+64*IsRed(K123)+ 128*IsRed(L123) -> 156 | O123: =ValErrMsg(Q123,0, S123) ->  | P123: =Prev_LA_Table!H114 -> 4375412 | Q123: =ValSP311(K123,P123) -> 0 | S123: =ValSP1007(K123,P123) -> 0
B124: 2.3.2 | C124: Adult and Community learning | K124: 3777100 | L124: 2548250 | M124: =K124-L124 -> 1228850 | N124: =IsRed(E124)+2*IsRed(F124)+4*IsRed(G124)+8*IsRed(H124)+16*IsRed(I124)+32*IsRed(J124)+64*IsRed(K124)+ 128*IsRed(L124) -> 192 | O124: =ValErrMsg(Q124,0, S124) ->  | P124: =Prev_LA_Table!H115 -> 3847142 | Q124: 0 | S124: 0
B125: 2.3.3 | C125: Pension costs | K125: 4203500 | L125: 655000 | M125: =K125-L125 -> 3548500 | N125: =IsRed(E125)+2*IsRed(F125)+4*IsRed(G125)+8*IsRed(H125)+16*IsRed(I125)+32*IsRed(J125)+64*IsRed(K125)+ 128*IsRed(L125) -> 192 | P125: =Prev_LA_Table!H116 -> 4375500 | Q125: 0 | S125: 0
B126: 2.3.4 | C126: Joint use arrangements | K126: 0 | L126: 0 | M126: =K126-L126 -> 0 | N126: =IsRed(E126)+2*IsRed(F126)+4*IsRed(G126)+8*IsRed(H126)+16*IsRed(I126)+32*IsRed(J126)+64*IsRed(K126)+ 128*IsRed(L126) -> 192 | P126: =Prev_LA_Table!H117 -> 0 | Q126: 0 | S126: 0
B127: 2.3.5 | C127: Insurance | K127: 0 | L127: 0 | M127: =K127-L127 -> 0 | N127: =IsRed(E127)+2*IsRed(F127)+4*IsRed(G127)+8*IsRed(H127)+16*IsRed(I127)+32*IsRed(J127)+64*IsRed(K127)+ 128*IsRed(L127) -> 192 | P127: =Prev_LA_Table!H118 -> 0 | Q127: 0 | S127: 0
Q128: 0 | S128: 0
B129: 2.4.1 | C129: Other Specific Grant | K129: 3272700 | L129: 3272700 | M129: =K129-L129 -> 0 | N129: =IsRed(E129)+2*IsRed(F129)+4*IsRed(G129)+8*IsRed(H129)+16*IsRed(I129)+32*IsRed(J129)+64*IsRed(K129)+ 128*IsRed(L129) -> 192 | O129: =ValErrMsg(Q129,0, S129, T129) ->  | P129: =Prev_LA_Table!H120 -> 3228300 | Q129: 0 | S129: 0 | T129: =IF(M129<>0, 1021, 0) -> 0
B131: 2.5.1 | C131: Total Other education and community budget | K131: =SUM(K101:K107,K110:K118,K120,K123:K127,K129) -> 26828152 | L131: =SUM(L101:L107,L110:L118,L120,L123:L127,L129) -> 10870440 | M131: =K131-L131 -> 15957712 | P131: =Prev_LA_Table!H122 -> 26582499 | T131: Not validated
B137: 3 | C137: CHILDREN'S AND YOUNG PEOPLE'S SERVICES
C140: SURE START CHILDREN'S CENTRES AND OTHER SPEND ON CHILDREN UNDER 5
B142: 3.0.1 | C142: Funding for individual Sure Start Children's Centres | K142: 1121600 | L142: 36000 | M142: =K142-L142 -> 1085600 | N142: =IsRed(E142)+2*IsRed(F142)+4*IsRed(G142)+8*IsRed(H142)+16*IsRed(I142)+32*IsRed(J142)+64*IsRed(K142)+ 128*IsRed(L142) -> 192 | O142: =ValErrMsg(Q142,0, S142) ->  | P142: =Prev_LA_Table!H128 -> 1042621 | Q142: =ValSP311(K142,P142) -> 0 | S142: =ValSP1007(K142,P142) -> 0
B143: 3.0.2 | C143: Funding for local authority provided or commissioned area wide services delivered through Sure Start Children's Centres | K143: 0 | L143: 0 | M143: =K143-L143 -> 0 | N143: =IsRed(E143)+2*IsRed(F143)+4*IsRed(G143)+8*IsRed(H143)+16*IsRed(I143)+32*IsRed(J143)+64*IsRed(K143)+ 128*IsRed(L143) -> 192 | P143: =Prev_LA_Table!H129 -> 0 | Q143: =ValSP311(K143,P143) -> 0 | S143: =ValSP1007(K143,P143) -> 0
B144: 3.0.3 | C144: Funding on local authority management costs relating to Sure Start Children's Centres | K144: 0 | L144: 0 | M144: =K144-L144 -> 0 | N144: =IsRed(E144)+2*IsRed(F144)+4*IsRed(G144)+8*IsRed(H144)+16*IsRed(I144)+32*IsRed(J144)+64*IsRed(K144)+ 128*IsRed(L144) -> 192 | P144: =Prev_LA_Table!H130 -> 0 | Q144: =ValSP311(K144,P144) -> 0 | S144: =ValSP1007(K144,P144) -> 0
B145: 3.0.4 | C145: Other spend on children under 5 | K145: 3012400 | L145: 17500 | M145: =K145-L145 -> 2994900 | N145: =IsRed(E145)+2*IsRed(F145)+4*IsRed(G145)+8*IsRed(H145)+16*IsRed(I145)+32*IsRed(J145)+64*IsRed(K145)+ 128*IsRed(L145) -> 192 | O145: 3.1.1: Please check your entry for this line. The change from 2018-19 is outside the expected range (expected range between 15% and -15%) or the value is greater than 0 in 2019-20 and was 0 in 2018-19. | P145: =Prev_LA_Table!H131 -> 1923313 | Q145: =ValSP311(K145,P145) -> 1 | S145: =ValSP1007(K145,P145) -> 0
B146: 3.0.5 | C146: Total Sure Start children's centres and other spend on children under 5 | K146: =SUM(K142:K145) -> 4134000 | L146: =SUM(L142:L145) -> 53500 | M146: =SUM(M142:M145) -> 4080500 | P146: =Prev_LA_Table!H132 -> 2965934 | T146: Not validated
C148: CHILDREN LOOKED AFTER
B150: 3.1.1 | C150: Residential care | K150: 12455931 | L150: 596758 | M150: =K150-L150 -> 11859173 | N150: =IsRed(E150)+2*IsRed(F150)+4*IsRed(G150)+8*IsRed(H150)+16*IsRed(I150)+32*IsRed(J150)+64*IsRed(K150)+ 128*IsRed(L150) -> 192 | O150: =ValErrMsg(Q150,0, S150) ->  | P150: =Prev_LA_Table!H136 -> 11872528 | Q150: =ValSP311(K150,P150) -> 0 | S150: =ValSP1007(K150,P150) -> 0
B151: 3.1.2a | C151: Fostering services (excluding fees and allowances for LA foster carers) | K151: 6709744 | L151: 0 | M151: 6709744 | N151: 192 | P151: =Prev_LA_Table!H137 -> 7400934 | Q151: 0 | S151: 0
B152: 3.1.2b | C152: Fostering services (fees and allowances for LA foster carers) | K152: 6842787 | L152: 176987 | M152: 6665800 | N152: 192 | O152: 3.1.1: Please check your entry for this line. The change from 2018-19 is outside the expected range (expected range between 15% and -15%) or the value is greater than 0 in 2019-20 and was 0 in 2018-19. | P152: =Prev_LA_Table!H138 -> 5484567 | Q152: 1 | S152: 0
B153: 3.1.3 | C153: Adoption services | K153: 3582552 | L153: 434000 | M153: 3148552 | N153: 192 | P153: =Prev_LA_Table!H139 -> 3951939 | Q153: 0 | S153: 0
B154: 3.1.4 | C154: Special guardianship support | K154: 3029556 | L154: 0 | M154: 3029556 | N154: 192 | P154: =Prev_LA_Table!H140 -> 2650344 | Q154: 0 | S154: 0
B155: 3.1.5 | C155: Other children looked after services | K155: 1157723 | L155: 125856 | M155: 1031867 | N155: 192 | O155: 3.1.1: Please check your entry for this line. The change from 2018-19 is outside the expected range (expected range between 15% and -15%) or the value is greater than 0 in 2019-20 and was 0 in 2018-19. | P155: =Prev_LA_Table!H141 -> 508683 | Q155: 1 | S155: 0
B156: 3.1.6 | C156: Short breaks (respite) for looked after disabled children | K156: 529358 | L156: 0 | M156: 529358 | N156: 192 | P156: =Prev_LA_Table!H142 -> 484042 | Q156: 0 | S156: 0
B157: 3.1.7 | C157: Children placed with family and friends | K157: 0 | L157: 0 | M157: 0 | N157: 192 | P157: =Prev_LA_Table!H143 -> 0 | Q157: 0 | S157: 0
B158: 3.1.8 | C158: Education of looked after children | E158: 0 | F158: 0 | G158: 0 | H158: 0 | I158: 0 | K158: =SUM(E158,F158,G158,H158,I158) -> 0 | L158: 0 | M158: 0 | N158: 159 | P158: =Prev_LA_Table!H144 -> 0 | Q158: 0 | S158: 0
B159: 3.1.9 | C159: Leaving care support services | K159: 6037489 | L159: 0 | M159: 6037489 | N159: 192 | O159: 3.1.1: Please check your entry for this line. The change from 2018-19 is outside the expected range (expected range between 15% and -15%) or the value is greater than 0 in 2019-20 and was 0 in 2018-19. | P159: =Prev_LA_Table!H145 -> 3016070 | Q159: 1 | S159: 0
B160: 3.1.10 | C160: Asylum seeker services children | K160: 1616584 | L160: 795909 | M160: 820675 | N160: 192 | O160: 3.1.1: Please check your entry for this line. The change from 2018-19 is outside the expected range (expected range between 15% and -15%) or the value is greater than 0 in 2019-20 and was 0 in 2018-19. | P160: =Prev_LA_Table!H146 -> 851325 | Q160: 1 | S160: 0
B161: 3.1.11 | C161: Total Children Looked After | E161: =SUM(E158) -> 0 | F161: =SUM(F158) -> 0 | G161: =SUM(G158) -> 0 | H161: =SUM(H158) -> 0 | I161: =SUM(I158) -> 0 | K161: =SUM(K150:K160) -> 41961724 | L161: =SUM(L150:L160) -> 2129510 | M161: =SUM(M150:M160) -> 39832214 | P161: =Prev_LA_Table!H147 -> 36220432 | T161: Not validated
C165: OTHER CHILDREN AND FAMILY SERVICES
B167: 3.2.1 | C167: Other children and families services | K167: 864089 | L167: 0 | M167: =K167-L167 -> 864089 | N167: =IsRed(E167)+2*IsRed(F167)+4*IsRed(G167)+8*IsRed(H167)+16*IsRed(I167)+32*IsRed(J167)+64*IsRed(K167)+ 128*IsRed(L167) -> 192 | O167: =ValErrMsg(Q167,0, S167) ->  | P167: =Prev_LA_Table!H151 -> 762718 | Q167: =ValSP311(K167,P167) -> 0 | S167: =ValSP1007(K167,P167) -> 0
Q168: 0 | S168: 0
Q169: 0 | S169: 0
Q170: 0 | S170: 0
C171: SAFEGUARDING CHILDREN AND YOUNG PEOPLE'S SERVICES | Q171: 0 | S171: 0
Q172: 0 | S172: 0
B173: 3.3.1 | C173: Social work (including LA functions in relation to child protection) | K173: 13197620 | L173: 947054 | M173: =K173-L173 -> 12250566 | N173: =IsRed(E173)+2*IsRed(F173)+4*IsRed(G173)+8*IsRed(H173)+16*IsRed(I173)+32*IsRed(J173)+64*IsRed(K173)+ 128*IsRed(L173) -> 192 | O173: =ValErrMsg(Q173,0, S173) ->  | P173: =Prev_LA_Table!H155 -> 13359859 | Q173: 0 | S173: 0
B174: 3.3.2 | C174: Commissioning and Children's Services Strategy | K174: 5912548 | L174: 193737 | M174: =K174-L174 -> 5718811 | N174: =IsRed(E174)+2*IsRed(F174)+4*IsRed(G174)+8*IsRed(H174)+16*IsRed(I174)+32*IsRed(J174)+64*IsRed(K174)+ 128*IsRed(L174) -> 192 | P174: =Prev_LA_Table!H156 -> 6395339 | Q174: 0 | S174: 0
B175: 3.3.3 | C175: Local Safeguarding Children Board | K175: 623912 | L175: 136300 | M175: =K175-L175 -> 487612 | N175: =IsRed(E175)+2*IsRed(F175)+4*IsRed(G175)+8*IsRed(H175)+16*IsRed(I175)+32*IsRed(J175)+64*IsRed(K175)+ 128*IsRed(L175) -> 192 | P175: =Prev_LA_Table!H157 -> 706663 | Q175: 0 | S175: 0
B176: 3.3.4 | C176: Total Safeguarding Children and Young People's Services | K176: =SUM(K173:K175) -> 19734080 | L176: =SUM(L173:L175) -> 1277091 | M176: =SUM(M173:M175) -> 18456989 | P176: =Prev_LA_Table!H158 -> 20461861 | T176: Not validated
C180: FAMILY SUPPORT SERVICES
B182: 3.4.1 | C182: Direct payments | K182: 1087482 | L182: 0 | M182: =K182-L182 -> 1087482 | N182: =IsRed(E182)+2*IsRed(F182)+4*IsRed(G182)+8*IsRed(H182)+16*IsRed(I182)+32*IsRed(J182)+64*IsRed(K182)+ 128*IsRed(L182) -> 192 | O182: =ValErrMsg(Q182,0, S182) ->  | P182: =Prev_LA_Table!H162 -> 1087482 | Q182: =ValSP311(K182,P182) -> 0 | S182: =ValSP1007(K182,P182) -> 0
B183: 3.4.2 | C183: Short breaks (respite) for disabled children | K183: 2317107 | L183: 0 | M183: =K183-L183 -> 2317107 | N183: 192 | O183: 3.1.1: Please check your entry for this line. The change from 2018-19 is outside the expected range (expected range between 15% and -15%) or the value is greater than 0 in 2019-20 and was 0 in 2018-19. | P183: =Prev_LA_Table!H163 -> 1845849 | Q183: =ValSP311(K183,P183) -> 1 | S183: =ValSP1007(K183,P183) -> 0
B184: 3.4.3 | C184: Other support for disabled children | K184: 0 | L184: 0 | M184: =K184-L184 -> 0 | N184: 192 | P184: =Prev_LA_Table!H164 -> 0 | Q184: =ValSP311(K184,P184) -> 0 | S184: =ValSP1007(K184,P184) -> 0
B185: 3.4.4 | C185: Targeted family support | K185: 8144876 | L185: 3792322 | M185: =K185-L185 -> 4352554 | N185: 192 | P185: =Prev_LA_Table!H165 -> 8606183 | Q185: =ValSP311(K185,P185) -> 0 | S185: =ValSP1007(K185,P185) -> 0
B186: 3.4.5 | C186: Universal family support | K186: 3161262 | L186: 0 | M186: =K186-L186 -> 3161262 | N186: 192 | P186: =Prev_LA_Table!H166 -> 2995123 | Q186: =ValSP311(K186,P186) -> 0 | S186: =ValSP1007(K186,P186) -> 0
B187: 3.4.6 | C187: Total Family Support Services | K187: =SUM(K182:K186) -> 14710727 | L187: =SUM(L182:L186) -> 3792322 | M187: =SUM(M182:M186) -> 10918405 | N187: 0 | P187: =Prev_LA_Table!H167 -> 14534637 | T187: Not validated
C191: SERVICES FOR YOUNG PEOPLE
B193: 3.5.1 | C193: Universal services for young people | K193: 3121478 | L193: 109090 | M193: =K193-L193 -> 3012388 | N193: =IsRed(E193)+2*IsRed(F193)+4*IsRed(G193)+8*IsRed(H193)+16*IsRed(I193)+32*IsRed(J193)+64*IsRed(K193)+ 128*IsRed(L193) -> 192 | O193: =ValErrMsg(Q193,0, S193) ->  | P193: =Prev_LA_Table!H171 -> 2863956 | Q193: =ValSP311(K193,P193) -> 0 | S193: =ValSP1007(K193,P193) -> 0
B194: 3.5.2 | C194: Targeted services for young people | K194: 1598760 | L194: 158900 | M194: =K194-L194 -> 1439860 | N194: =IsRed(E194)+2*IsRed(F194)+4*IsRed(G194)+8*IsRed(H194)+16*IsRed(I194)+32*IsRed(J194)+64*IsRed(K194)+ 128*IsRed(L194) -> 192 | P194: =Prev_LA_Table!H172 -> 1798704 | Q194: =ValSP311(K194,P194) -> 0 | S194: =ValSP1007(K194,P194) -> 0
B195: 3.5.3 | C195: Total Services for young people | K195: =SUM(K193:K194) -> 4720238 | L195: =SUM(L193:L194) -> 267990 | M195: =SUM(M193:M194) -> 4452248 | O195: =IF(T195, "Value must be greater than or equal to zero", "") ->  | P195: =Prev_LA_Table!H173 -> 4662660 | T195: =Valsp13(M195) -> FALSE
C198: YOUTH JUSTICE
B200: 3.6.1 | C200: Youth justice | K200: 4984289 | L200: 3368346 | M200: =K200-L200 -> 1615943 | N200: =IsRed(E200)+2*IsRed(F200)+4*IsRed(G200)+8*IsRed(H200)+16*IsRed(I200)+32*IsRed(J200)+64*IsRed(K200)+ 128*IsRed(L200) -> 192 | O200: =ValErrMsg(Q200,0, S200) ->  | P200: =Prev_LA_Table!H177 -> 5743378 | Q200: =ValSP311(K200,P200) -> 0 | S200: =ValSP1007(K200,P200) -> 0
B203: 4.0.1 | C203: Capital Expenditure from Revenue (CERA) (Non-schools budget functions and Children's and young people services) | K203: 28200 | L203: 0 | M203: =K203-L203 -> 28200 | N203: =IsRed(E203)+2*IsRed(F203)+4*IsRed(G203)+8*IsRed(H203)+16*IsRed(I203)+32*IsRed(J203)+64*IsRed(K203)+ 128*IsRed(L203) -> 192 | O203: =ValErrMsg(Q203,0, S203) ->  | P203: =Prev_LA_Table!H179 -> 27400 | Q203: =ValSP311(K203,P203) -> 0 | S203: =ValSP1007(K203,P203) -> 0
B205: 5.0.1 | C205: Total Schools Budget and Other education and community budget (excluding CERA) (lines 1.8.1 and 2.5.1) | K205: =SUM(K78,K131) -> 462617530 | L205: =SUM(L78,L131) -> 11857140 | M205: =SUM(M78,M131) -> 450760390 | P205: =Prev_LA_Table!H181 -> 449387393 | T205: Not validated
B207: 5.0.2 | C207: Total Children and Young People's Services and Youth Justice Budget (excluding CERA)(lines 3.0.5 + 3.1.11 + 3.2.1 + 3.3.4 + 3.4.6 + 3.5.3 + 3.6.1) | K207: =SUM(K146,K161,K167,K176,K187,K195,K200) -> 91109147 | L207: =SUM(L146,L161,L167,L176,L187,L195,L200) -> 10888759 | M207: =SUM(M146,M161,M167,M176,M187,M195,M200) -> 80220388 | P207: =Prev_LA_Table!H183 -> 85351620 | T207: Not validated
B209: 6 | C209: Total Schools Budget, Other education and community budget, Children and Young People's Services and Youth Justice Budget (excluding CERA) (lines 5.0.1 + 5.0.2) | K209: =SUM(K205,K207) -> 553726677 | L209: =SUM(L205,L207) -> 22745899 | M209: =SUM(M205,M207) -> 530980778 | P209: =Prev_LA_Table!H185 -> 534739013 | T209: Not validated
B211: 7 | C211: Capital Expenditure (excluding CERA) | E211: 71129 | F211: 1952258 | G211: 3874129 | H211: 115610 | I211: 0 | K211: =SUM(E211,F211,G211,H211,I211) -> 6013126 | L211: 6013126 | M211: =K211-L211 -> 0 | N211: =IsRed(E211)+2*IsRed(F211)+4*IsRed(G211)+8*IsRed(H211)+16*IsRed(I211)+32*IsRed(J211)+64*IsRed(K211)+ 128*IsRed(L211) -> 159 | O211: =ValErrMsg(Q211,0, S211) ->  | P211: =Prev_LA_Table!H187 -> 36592752 | Q211: =ValSP311(K211,P211) -> 0 | S211: =ValSP1007(K211,P211) -> 0
C214: MEMORANDUM ITEMS
B216: 8 | C216: Services for young people | P216: =Prev_LA_Table!H191 -> 0
B218: 8a.1 | C218: Substance misuse services (Drugs, Alcohol and Volatile substances) (included in 3.5.1 and 3.5.2 above) | K218: 84506 | L218: 72090 | M218: =K218-L218 -> 12416 | N218: =IsRed(E218)+2*IsRed(F218)+4*IsRed(G218)+8*IsRed(H218)+16*IsRed(I218)+32*IsRed(J218)+64*IsRed(K218)+ 128*IsRed(L218) -> 192 | O218: =ValErrMsg(Q218,0, S218) ->  | P218: =Prev_LA_Table!H193 -> 37733 | Q218: =ValSP311(K218,P218) -> 0 | S218: =ValSP1007(K218,P218) -> 0
O219: =IF(T219=61,"Please Check: LA Table Line 8a.1 must be less than or equal to the sum of LA Table Lines 3.5.1 and 3.5.2.","") ->  | T219: =IF(OR(K218>K193+K194,L218>L$193+L$194), 61, 0) -> 0
B221: 8a.2 | C221: Teenage pregnancy services (included in 3.5.1 and 3.5.2 above) | K221: 0 | L221: 0 | M221: =K221-L221 -> 0 | N221: =IsRed(E221)+2*IsRed(F221)+4*IsRed(G221)+8*IsRed(H221)+16*IsRed(I221)+32*IsRed(J221)+64*IsRed(K221)+ 128*IsRed(L221) -> 192 | O221: =ValErrMsg(Q221,0, S221) ->  | P221: =Prev_LA_Table!H195 -> 0 | Q221: =ValSP311(K221,P221) -> 0 | S221: =ValSP1007(K221,P221) -> 0
O222: =IF(T222=62,"Please Check: LA Table Line 8a.2 must be less than or equal to the sum of LA Table Lines 3.5.1 and 3.5.2.","") ->  | T222: =IF(OR(K221>K193+K194,L221>L$193+L$194), 62, 0) -> 0
C224: LA Table Notes: | E224: LA TABLE NOTES GO HERE | O224: =IF(LEN(E224) >4000,"You have entered too many characters for this field. The maximum is 4000. You have entered " &LEN(E224),"") -> 

Sheet Schools Table
Q2: Schools Table: High Needs Places in Maintained Schools
B4: Schools Table Notes: | T4: =IF(U4="error","You have entered too many characters for this field. The maximum is 4000. You have entered " &V4,"") ->  | U4: =IF(V4>4000,"error","") -> 
B7: Special Schools / Pupil Referral Units / Hospital Schools / Special units and resourced provision in mainstream schools | E7: SCHOOL / UNIT OPENING / CLOSING | F7: DATE OPENING / CLOSING | G7: Special educational needs (SEN) places | I7: SEN place funding | J7: Alternative provision (AP) places | L7: AP place funding | M7: Hospital education places | O7: Hospital education place funding | P7: Total Place funding net | Q7: Total deduction for services to maintained schools formerly funded through the ESG | R7: Comments | T7: Error(s) - copy/paste the cell into another document to view all
G8: April 2019 to August 2019 | H8: September 2019 to March 2020 | I8: April 2019 To March 2020 | J8: April 2019 to August 2019 | K8: September 2019 to March 2020 | L8: April 2019 To March 2020 | M8: April 2019 to August 2019 | N8: September 2019 to March 2020 | O8: April 2019 To March 2020 | P8: April 2019 To March 2020 | Q8: April 2019 To March 2020 | U8: Error Number | Z8: * Need clarification on 'Total budget share'
B9: School Name | C9: DfE Number | D9: School Type | I9: £ | L9: £ | O9: £ | Q9: £ | V9: Data Entry | W9: 1.1 | X9: 1.2 | Y9: 1.3 | Z9: 2.11 | AA9: 2.12 | AB9: 2.5 | AC9: 2.10.1 | AD9: 2.9.1 | AE9: 1002 | AF9: 1003 | AG9: 1004 | AH9: 1005 | AI9: 1011 | AJ9: 1012 | AK9: 1013 | AL9: 1020 | AM9: 1022 | AN9: 1024
B10: Seven Hills School | C10: 7043 | D10: Special | G10: 165 | H10: 165 | I10: 1650000 | J10: 0 | K10: 0 | L10: 0 | M10: 0 | N10: 0 | O10: 0 | P10: =IF(OR(I10<>"",L10<>"",O10<>""),SUM(I10,L10,O10),"") -> 1650000 | Q10: 0 | T10: =ValSP_SchoolErrorMessage(V10,W10,X10,Y10,Z10,AA10,AB10,AC10,AD10,AE10,AF10,AG10,AH10,AI10,AJ10,AK10,AL10,AM10,AN10) ->  | V10: =NonNull(B10:Q10) -> 1 | W10: =IF($V10<>0,OR(Valsp11(C10),Valsp11(Q10))) -> FALSE | X10: =AND(V10=1,COUNTIF($C$10:$C$210,C10) > 1) -> FALSE | Y10: =IF($V10<>0, OR(Valsp13(G10), Valsp13(H10), Valsp13(J10), Valsp13(K10), Valsp13(M10), Valsp13(N10), Valsp13(Q10))) -> FALSE | Z10: =IF($V10<>0, Valsp211(C10,0)) -> FALSE | AA10: =IF($V10<>0, Valsp212(B10, G10+H10+J10+K10+M10+N10)) -> FALSE | AB10: =IF($V10<>0, Valsp25(C10)) -> FALSE | AC10: =IF($V10<>0,Valsp2101(F10)) -> FALSE | AD10: =IF($V10<>0,Valsp291(E10,F10)) -> FALSE | AE10: =IF($V10<>0, Valsp1002(G10+H10+J10+K10+M10+N10)) -> FALSE | AF10: =IF($V10<>0, Valsp1003(D10,G10,H10,I10)) -> FALSE | AG10: =IF($V10<>0, Valsp1004(J10,K10,L10)) -> FALSE | AH10: =IF($V10<>0, Valsp1005(M10,N10,O10)) -> FALSE | AI10: =IF($V10<>0, Valsp1011(C10,E10,P10)) -> FALSE | AJ10: =IF($V10<>0, OR(Valsp1012(G10+H10,I10), Valsp1012(J10+K10,L10), Valsp1012(M10+N10,O10))) -> FALSE | AK10: 0 | AL10: =IF($V10<>0, Valsp1020(D10,Q10)) -> FALSE | AM10: 0 | AN10: =IF($V10<>0,Valsp1024(D10,G10,H10,I10)) -> FALSE
B11: Holgate Meadows School | C11: 7041 | D11: Special | G11: 101 | H11: 101 | I11: 1010000 | J11: 0 | K11: 0 | L11: 0 | M11: 0 | N11: 0 | O11: 0 | P11: 1010000 | Q11: 0 | T11: =ValSP_SchoolErrorMessage(V11,W11,X11,Y11,Z11,AA11,AB11,AC11,AD11,AE11,AF11,AG11,AH11,AI11,AJ11,AK11,AL11,AM11,AN11) ->  | V11: =NonNull(B11:Q11) -> 1 | W11: =IF($V11<>0,OR(Valsp11(C11),Valsp11(Q11))) -> FALSE | X11: =AND(V11=1,COUNTIF($C$10:$C$210,C11) > 1) -> FALSE | Y11: FALSE | Z11: =IF($V11<>0, Valsp211(C11,0)) -> FALSE | AA11: =IF($V11<>0, Valsp212(B11, G11+H11+J11+K11+M11+N11)) -> FALSE | AB11: =IF($V11<>0, Valsp25(C11)) -> FALSE | AC11: =IF($V11<>0,Valsp2101(F11)) -> FALSE | AD11: =IF($V11<>0,Valsp291(E11,F11)) -> FALSE | AE11: =IF($V11<>0, Valsp1002(G11+H11+J11+K11+M11+N11)) -> FALSE | AF11: =IF($V11<>0, Valsp1003(D11,G11,H11,I11)) -> FALSE | AG11: =IF($V11<>0, Valsp1004(J11,K11,L11)) -> FALSE | AH11: =IF($V11<>0, Valsp1005(M11,N11,O11)) -> FALSE | AI11: =IF($V11<>0, Valsp1011(C11,E11,P11)) -> FALSE | AJ11: =IF($V11<>0, OR(Valsp1012(G11+H11,I11), Valsp1012(J11+K11,L11), Valsp1012(M11+N11,O11))) -> FALSE | AK11: 0 | AL11: =IF($V11<>0, Valsp1020(D11,Q11)) -> FALSE | AM11: 0 | AN11: =IF($V11<>0,Valsp1024(D11,G11,H11,I11)) -> FALSE
B12: Heritage Park School | C12: 7040 | D12: Special | G12: 102 | H12: 102 | I12: 1020000 | J12: 0 | K12: 0 | L12: 0 | M12: 0 | N12: 0 | O12: 0 | P12: 1020000 | Q12: 0 | V12: 1 | W12: =IF($V12<>0,OR(Valsp11(C12),Valsp11(Q12))) -> FALSE | X12: FALSE | Y12: FALSE | Z12: =IF($V12<>0, Valsp211(C12,0)) -> FALSE | AA12: =IF($V12<>0, Valsp212(B12, G12+H12+J12+K12+M12+N12)) -> FALSE | AB12: =IF($V12<>0, Valsp25(C12)) -> FALSE | AC12: =IF($V12<>0,Valsp2101(F12)) -> FALSE | AD12: =IF($V12<>0,Valsp291(E12,F12)) -> FALSE | AE12: =IF($V12<>0, Valsp1002(G12+H12+J12+K12+M12+N12)) -> FALSE | AF12: =IF($V12<>0, Valsp1003(D12,G12,H12,I12)) -> FALSE | AG12: =IF($V12<>0, Valsp1004(J12,K12,L12)) -> FALSE | AH12: =IF($V12<>0, Valsp1005(M12,N12,O12)) -> FALSE | AI12: =IF($V12<>0, Valsp1011(C12,E12,P12)) -> FALSE | AJ12: =IF($V12<>0, OR(Valsp1012(G12+H12,I12), Valsp1012(J12+K12,L12), Valsp1012(M12+N12,O12))) -> FALSE | AK12: 0 | AL12: =IF($V12<>0, Valsp1020(D12,Q12)) -> FALSE | AM12: 0 | AN12: =IF($V12<>0,Valsp1024(D12,G12,H12,I12)) -> FALSE
B13: Becton School | C13: 7038 | D13: HSP | G13: 33 | H13: 33 | I13: 330000 | J13: 0 | K13: 0 | L13: 0 | M13: 42 | N13: 42 | O13: 420000 | P13: 750000 | Q13: 0 | V13: 1 | W13: =IF($V13<>0,OR(Valsp11(C13),Valsp11(Q13))) -> FALSE | X13: FALSE | Y13: FALSE | Z13: =IF($V13<>0, Valsp211(C13,0)) -> FALSE | AA13: =IF($V13<>0, Valsp212(B13, G13+H13+J13+K13+M13+N13)) -> FALSE | AB13: =IF($V13<>0, Valsp25(C13)) -> FALSE | AC13: =IF($V13<>0,Valsp2101(F13)) -> FALSE | AD13: =IF($V13<>0,Valsp291(E13,F13)) -> FALSE | AE13: =IF($V13<>0, Valsp1002(G13+H13+J13+K13+M13+N13)) -> FALSE | AF13: =IF($V13<>0, Valsp1003(D13,G13,H13,I13)) -> FALSE | AG13: =IF($V13<>0, Valsp1004(J13,K13,L13)) -> FALSE | AH13: =IF($V13<>0, Valsp1005(M13,N13,O13)) -> FALSE | AI13: =IF($V13<>0, Valsp1011(C13,E13,P13)) -> FALSE | AJ13: =IF($V13<>0, OR(Valsp1012(G13+H13,I13), Valsp1012(J13+K13,L13), Valsp1012(M13+N13,O13))) -> FALSE | AK13: 0 | AL13: =IF($V13<>0, Valsp1020(D13,Q13)) -> FALSE | AM13: 0 | AN13: =IF($V13<>0,Valsp1024(D13,G13,H13,I13)) -> FALSE
B14: Mossbrook School | C14: 7036 | D14: Special | G14: 126 | H14: 136 | I14: 1318333.33 | J14: 0 | K14: 0 | L14: 0 | M14: 0 | N14: 0 | O14: 0 | P14: 1318333.33 | Q14: 0 | T14: 1003: You have entered an amount which is outside the expected tolerance. Please check your SEN place funding. | V14: 1 | W14: =IF($V14<>0,OR(Valsp11(C14),Valsp11(Q14))) -> FALSE | X14: FALSE | Y14: FALSE | Z14: =IF($V14<>0, Valsp211(C14,0)) -> FALSE | AA14: =IF($V14<>0, Valsp212(B14, G14+H14+J14+K14+M14+N14)) -> FALSE | AB14: =IF($V14<>0, Valsp25(C14)) -> FALSE | AC14: =IF($V14<>0,Valsp2101(F14)) -> FALSE | AD14: =IF($V14<>0,Valsp291(E14,F14)) -> FALSE | AE14: =IF($V14<>0, Valsp1002(G14+H14+J14+K14+M14+N14)) -> FALSE | AF14: =IF($V14<>0, Valsp1003(D14,G14,H14,I14)) -> TRUE | AG14: =IF($V14<>0, Valsp1004(J14,K14,L14)) -> FALSE | AH14: =IF($V14<>0, Valsp1005(M14,N14,O14)) -> FALSE | AI14: =IF($V14<>0, Valsp1011(C14,E14,P14)) -> FALSE | AJ14: =IF($V14<>0, OR(Valsp1012(G14+H14,I14), Valsp1012(J14+K14,L14), Valsp1012(M14+N14,O14))) -> FALSE | AK14: 0 | AL14: =IF($V14<>0, Valsp1020(D14,Q14)) -> FALSE | AM14: 0 | AN14: =IF($V14<>0,Valsp1024(D14,G14,H14,I14)) -> FALSE
B15: Woolley Wood School | C15: 7026 | D15: Special | G15: 101.5 | H15: 101.5 | I15: 1015000 | J15: 0 | K15: 0 | L15: 0 | M15: 0 | N15: 0 | O15: 0 | P15: 1015000 | Q15: 0 | V15: 1 | W15: =IF($V15<>0,OR(Valsp11(C15),Valsp11(Q15))) -> FALSE | X15: FALSE | Y15: FALSE | Z15: =IF($V15<>0, Valsp211(C15,0)) -> FALSE | AA15: =IF($V15<>0, Valsp212(B15, G15+H15+J15+K15+M15+N15)) -> FALSE | AB15: =IF($V15<>0, Valsp25(C15)) -> FALSE | AC15: =IF($V15<>0,Valsp2101(F15)) -> FALSE | AD15: =IF($V15<>0,Valsp291(E15,F15)) -> FALSE | AE15: =IF($V15<>0, Valsp1002(G15+H15+J15+K15+M15+N15)) -> FALSE | AF15: =IF($V15<>0, Valsp1003(D15,G15,H15,I15)) -> FALSE | AG15: =IF($V15<>0, Valsp1004(J15,K15,L15)) -> FALSE | AH15: =IF($V15<>0, Valsp1005(M15,N15,O15)) -> FALSE | AI15: =IF($V15<>0, Valsp1011(C15,E15,P15)) -> FALSE | AJ15: =IF($V15<>0, OR(Valsp1012(G15+H15,I15), Valsp1012(J15+K15,L15), Valsp1012(M15+N15,O15))) -> FALSE | AK15: 0 | AL15: =IF($V15<>0, Valsp1020(D15,Q15)) -> FALSE | AM15: 0 | AN15: =IF($V15<>0,Valsp1024(D15,G15,H15,I15)) -> FALSE
B16: Talbot Specialist School | C16: 7024 | D16: Special | G16: 172 | H16: 180 | I16: 1766666.67 | J16: 0 | K16: 0 | L16: 0 | M16: 0 | N16: 0 | O16: 0 | P16: 1766666.67 | Q16: 0 | T16: 1003: You have entered an amount which is outside the expected tolerance. Please check your SEN place funding. | V16: 1 | W16: =IF($V16<>0,OR(Valsp11(C16),Valsp11(Q16))) -> FALSE | X16: FALSE | Y16: FALSE | Z16: =IF($V16<>0, Valsp211(C16,0)) -> FALSE | AA16: =IF($V16<>0, Valsp212(B16, G16+H16+J16+K16+M16+N16)) -> FALSE | AB16: =IF($V16<>0, Valsp25(C16)) -> FALSE | AC16: =IF($V16<>0,Valsp2101(F16)) -> FALSE | AD16: =IF($V16<>0,Valsp291(E16,F16)) -> FALSE | AE16: =IF($V16<>0, Valsp1002(G16+H16+J16+K16+M16+N16)) -> FALSE | AF16: =IF($V16<>0, Valsp1003(D16,G16,H16,I16)) -> TRUE | AG16: =IF($V16<>0, Valsp1004(J16,K16,L16)) -> FALSE | AH16: =IF($V16<>0, Valsp1005(M16,N16,O16)) -> FALSE | AI16: =IF($V16<>0, Valsp1011(C16,E16,P16)) -> FALSE | AJ16: =IF($V16<>0, OR(Valsp1012(G16+H16,I16), Valsp1012(J16+K16,L16), Valsp1012(M16+N16,O16))) -> FALSE | AK16: 0 | AL16: =IF($V16<>0, Valsp1020(D16,Q16)) -> FALSE | AM16: 0 | AN16: =IF($V16<>0,Valsp1024(D16,G16,H16,I16)) -> FALSE
B17: Norfolk Park School | C17: 7023 | D17: Special | G17: 93.5 | H17: 93.5 | I17: 935000 | J17: 0 | K17: 0 | L17: 0 | M17: 0 | N17: 0 | O17: 0 | P17: 935000 | Q17: 0 | V17: 1 | W17: =IF($V17<>0,OR(Valsp11(C17),Valsp11(Q17))) -> FALSE | X17: FALSE | Y17: FALSE | Z17: =IF($V17<>0, Valsp211(C17,0)) -> FALSE | AA17: =IF($V17<>0, Valsp212(B17, G17+H17+J17+K17+M17+N17)) -> FALSE | AB17: =IF($V17<>0, Valsp25(C17)) -> FALSE | AC17: =IF($V17<>0,Valsp2101(F17)) -> FALSE | AD17: =IF($V17<>0,Valsp291(E17,F17)) -> FALSE | AE17: =IF($V17<>0, Valsp1002(G17+H17+J17+K17+M17+N17)) -> FALSE | AF17: =IF($V17<>0, Valsp1003(D17,G17,H17,I17)) -> FALSE | AG17: =IF($V17<>0, Valsp1004(J17,K17,L17)) -> FALSE | AH17: =IF($V17<>0, Valsp1005(M17,N17,O17)) -> FALSE | AI17: =IF($V17<>0, Valsp1011(C17,E17,P17)) -> FALSE | AJ17: =IF($V17<>0, OR(Valsp1012(G17+H17,I17), Valsp1012(J17+K17,L17), Valsp1012(M17+N17,O17))) -> FALSE | AK17: 0 | AL17: =IF($V17<>0, Valsp1020(D17,Q17)) -> FALSE | AM17: 0 | AN17: =IF($V17<>0,Valsp1024(D17,G17,H17,I17)) -> FALSE
B18: The Rowan School | C18: 7013 | D18: Special | G18: 97 | H18: 97 | I18: 970000 | J18: 0 | K18: 0 | L18: 0 | M18: 0 | N18: 0 | O18: 0 | P18: 970000 | Q18: 0 | V18: 1 | W18: =IF($V18<>0,OR(Valsp11(C18),Valsp11(Q18))) -> FALSE | X18: FALSE | Y18: FALSE | Z18: =IF($V18<>0, Valsp211(C18,0)) -> FALSE | AA18: =IF($V18<>0, Valsp212(B18, G18+H18+J18+K18+M18+N18)) -> FALSE | AB18: =IF($V18<>0, Valsp25(C18)) -> FALSE | AC18: =IF($V18<>0,Valsp2101(F18)) -> FALSE | AD18: =IF($V18<>0,Valsp291(E18,F18)) -> FALSE | AE18: =IF($V18<>0, Valsp1002(G18+H18+J18+K18+M18+N18)) -> FALSE | AF18: =IF($V18<>0, Valsp1003(D18,G18,H18,I18)) -> FALSE | AG18: =IF($V18<>0, Valsp1004(J18,K18,L18)) -> FALSE | AH18: =IF($V18<>0, Valsp1005(M18,N18,O18)) -> FALSE | AI18: =IF($V18<>0, Valsp1011(C18,E18,P18)) -> FALSE | AJ18: =IF($V18<>0, OR(Valsp1012(G18+H18,I18), Valsp1012(J18+K18,L18), Valsp1012(M18+N18,O18))) -> FALSE | AK18: 0 | AL18: =IF($V18<>0, Valsp1020(D18,Q18)) -> FALSE | AM18: 0 | AN18: =IF($V18<>0,Valsp1024(D18,G18,H18,I18)) -> FALSE
B19: Bents Green School | C19: 7010 | D19: Special | G19: 204 | H19: 204 | I19: 2040000 | J19: 0 | K19: 0 | L19: 0 | M19: 0 | N19: 0 | O19: 0 | P19: 2040000 | Q19: 0 | V19: 1 | W19: =IF($V19<>0,OR(Valsp11(C19),Valsp11(Q19))) -> FALSE | X19: FALSE | Y19: FALSE | Z19: =IF($V19<>0, Valsp211(C19,0)) -> FALSE | AA19: =IF($V19<>0, Valsp212(B19, G19+H19+J19+K19+M19+N19)) -> FALSE | AB19: =IF($V19<>0, Valsp25(C19)) -> FALSE | AC19: =IF($V19<>0,Valsp2101(F19)) -> FALSE | AD19: =IF($V19<>0,Valsp291(E19,F19)) -> FALSE | AE19: =IF($V19<>0, Valsp1002(G19+H19+J19+K19+M19+N19)) -> FALSE | AF19: =IF($V19<>0, Valsp1003(D19,G19,H19,I19)) -> FALSE | AG19: =IF($V19<>0, Valsp1004(J19,K19,L19)) -> FALSE | AH19: =IF($V19<>0, Valsp1005(M19,N19,O19)) -> FALSE | AI19: =IF($V19<>0, Valsp1011(C19,E19,P19)) -> FALSE | AJ19: =IF($V19<>0, OR(Valsp1012(G19+H19,I19), Valsp1012(J19+K19,L19), Valsp1012(M19+N19,O19))) -> FALSE | AK19: 0 | AL19: =IF($V19<>0, Valsp1020(D19,Q19)) -> FALSE | AM19: 0 | AN19: =IF($V19<>0,Valsp1024(D19,G19,H19,I19)) -> FALSE
B20: Arbourthorne Community Primary School | C20: 3429 | D20: Mainstream | G20: 10 | H20: 10 | I20: 60000 | J20: 0 | K20: 0 | L20: 0 | M20: 0 | N20: 0 | O20: 0 | P20: 60000 | Q20: 0 | V20: 1 | W20: =IF($V20<>0,OR(Valsp11(C20),Valsp11(Q20))) -> FALSE | X20: FALSE | Y20: FALSE | Z20: =IF($V20<>0, Valsp211(C20,0)) -> FALSE | AA20: =IF($V20<>0, Valsp212(B20, G20+H20+J20+K20+M20+N20)) -> FALSE | AB20: =IF($V20<>0, Valsp25(C20)) -> FALSE | AC20: =IF($V20<>0,Valsp2101(F20)) -> FALSE | AD20: =IF($V20<>0,Valsp291(E20,F20)) -> FALSE | AE20: =IF($V20<>0, Valsp1002(G20+H20+J20+K20+M20+N20)) -> FALSE | AF20: =IF($V20<>0, Valsp1003(D20,G20,H20,I20)) -> FALSE | AG20: =IF($V20<>0, Valsp1004(J20,K20,L20)) -> FALSE | AH20: =IF($V20<>0, Valsp1005(M20,N20,O20)) -> FALSE | AI20: =IF($V20<>0, Valsp1011(C20,E20,P20)) -> FALSE | AJ20: =IF($V20<>0, OR(Valsp1012(G20+H20,I20), Valsp1012(J20+K20,L20), Valsp1012(M20+N20,O20))) -> FALSE | AK20: 0 | AL20: =IF($V20<>0, Valsp1020(D20,Q20)) -> FALSE | AM20: 0 | AN20: =IF($V20<>0,Valsp1024(D20,G20,H20,I20)) -> FALSE
B21: Stradbroke Primary School | C21: 2350 | D21: Mainstream | G21: 25 | H21: 25 | I21: 150000 | J21: 0 | K21: 0 | L21: 0 | M21: 0 | N21: 0 | O21: 0 | P21: 150000 | Q21: 0 | V21: 1 | W21: =IF($V21<>0,OR(Valsp11(C21),Valsp11(Q21))) -> FALSE | X21: FALSE | Y21: FALSE | Z21: =IF($V21<>0, Valsp211(C21,0)) -> FALSE | AA21: =IF($V21<>0, Valsp212(B21, G21+H21+J21+K21+M21+N21)) -> FALSE | AB21: =IF($V21<>0, Valsp25(C21)) -> FALSE | AC21: =IF($V21<>0,Valsp2101(F21)) -> FALSE | AD21: =IF($V21<>0,Valsp291(E21,F21)) -> FALSE | AE21: =IF($V21<>0, Valsp1002(G21+H21+J21+K21+M21+N21)) -> FALSE | AF21: =IF($V21<>0, Valsp1003(D21,G21,H21,I21)) -> FALSE | AG21: =IF($V21<>0, Valsp1004(J21,K21,L21)) -> FALSE | AH21: =IF($V21<>0, Valsp1005(M21,N21,O21)) -> FALSE | AI21: =IF($V21<>0, Valsp1011(C21,E21,P21)) -> FALSE | AJ21: =IF($V21<>0, OR(Valsp1012(G21+H21,I21), Valsp1012(J21+K21,L21), Valsp1012(M21+N21,O21))) -> FALSE | AK21: 0 | AL21: =IF($V21<>0, Valsp1020(D21,Q21)) -> FALSE | AM21: 0 | AN21: =IF($V21<>0,Valsp1024(D21,G21,H21,I21)) -> FALSE
B22: Wharncliffe Side Primary School | C22: 2311 | D22: Mainstream | G22: 21 | H22: 21 | I22: 126000 | J22: 0 | K22: 0 | L22: 0 | M22: 0 | N22: 0 | O22: 0 | P22: 126000 | Q22: 0 | V22: 1 | W22: =IF($V22<>0,OR(Valsp11(C22),Valsp11(Q22))) -> FALSE | X22: FALSE | Y22: FALSE | Z22: =IF($V22<>0, Valsp211(C22,0)) -> FALSE | AA22: =IF($V22<>0, Valsp212(B22, G22+H22+J22+K22+M22+N22)) -> FALSE | AB22: =IF($V22<>0, Valsp25(C22)) -> FALSE | AC22: =IF($V22<>0,Valsp2101(F22)) -> FALSE | AD22: =IF($V22<>0,Valsp291(E22,F22)) -> FALSE | AE22: =IF($V22<>0, Valsp1002(G22+H22+J22+K22+M22+N22)) -> FALSE | AF22: =IF($V22<>0, Valsp1003(D22,G22,H22,I22)) -> FALSE | AG22: =IF($V22<>0, Valsp1004(J22,K22,L22)) -> FALSE | AH22: =IF($V22<>0, Valsp1005(M22,N22,O22)) -> FALSE | AI22: =IF($V22<>0, Valsp1011(C22,E22,P22)) -> FALSE | AJ22: =IF($V22<>0, OR(Valsp1012(G22+H22,I22), Valsp1012(J22+K22,L22), Valsp1012(M22+N22,O22))) -> FALSE | AK22: 0 | AL22: =IF($V22<>0, Valsp1020(D22,Q22)) -> FALSE | AM22: 0 | AN22: =IF($V22<>0,Valsp1024(D22,G22,H22,I22)) -> FALSE
B23: Nook Lane Junior School | C23: 2309 | D23: Mainstream | G23: 13 | H23: 13 | I23: 78000 | J23: 0 | K23: 0 | L23: 0 | M23: 0 | N23: 0 | O23: 0 | P23: 78000 | Q23: 0 | V23: 1 | W23: =IF($V23<>0,OR(Valsp11(C23),Valsp11(Q23))) -> FALSE | X23: FALSE | Y23: FALSE | Z23: =IF($V23<>0, Valsp211(C23,0)) -> FALSE | AA23: =IF($V23<>0, Valsp212(B23, G23+H23+J23+K23+M23+N23)) -> FALSE | AB23: =IF($V23<>0, Valsp25(C23)) -> FALSE | AC23: =IF($V23<>0,Valsp2101(F23)) -> FALSE | AD23: =IF($V23<>0,Valsp291(E23,F23)) -> FALSE | AE23: =IF($V23<>0, Valsp1002(G23+H23+J23+K23+M23+N23)) -> FALSE | AF23: =IF($V23<>0, Valsp1003(D23,G23,H23,I23)) -> FALSE | AG23: =IF($V23<>0, Valsp1004(J23,K23,L23)) -> FALSE | AH23: =IF($V23<>0, Valsp1005(M23,N23,O23)) -> FALSE | AI23: =IF($V23<>0, Valsp1011(C23,E23,P23)) -> FALSE | AJ23: =IF($V23<>0, OR(Valsp1012(G23+H23,I23), Valsp1012(J23+K23,L23), Valsp1012(M23+N23,O23))) -> FALSE | AK23: 0 | AL23: =IF($V23<>0, Valsp1020(D23,Q23)) -> FALSE | AM23: 0 | AN23: =IF($V23<>0,Valsp1024(D23,G23,H23,I23)) -> FALSE
B24: Nether Green Junior School | C24: 2087 | D24: Mainstream | G24: 13 | H24: 13 | I24: 78000 | J24: 0 | K24: 0 | L24: 0 | M24: 0 | N24: 0 | O24: 0 | P24: 78000 | Q24: 0 | V24: 1 | W24: =IF($V24<>0,OR(Valsp11(C24),Valsp11(Q24))) -> FALSE | X24: FALSE | Y24: FALSE | Z24: =IF($V24<>0, Valsp211(C24,0)) -> FALSE | AA24: =IF($V24<>0, Valsp212(B24, G24+H24+J24+K24+M24+N24)) -> FALSE | AB24: =IF($V24<>0, Valsp25(C24)) -> FALSE | AC24: =IF($V24<>0,Valsp2101(F24)) -> FALSE | AD24: =IF($V24<>0,Valsp291(E24,F24)) -> FALSE | AE24: =IF($V24<>0, Valsp1002(G24+H24+J24+K24+M24+N24)) -> FALSE | AF24: =IF($V24<>0, Valsp1003(D24,G24,H24,I24)) -> FALSE | AG24: =IF($V24<>0, Valsp1004(J24,K24,L24)) -> FALSE | AH24: =IF($V24<>0, Valsp1005(M24,N24,O24)) -> FALSE | AI24: =IF($V24<>0, Valsp1011(C24,E24,P24)) -> FALSE | AJ24: =IF($V24<>0, OR(Valsp1012(G24+H24,I24), Valsp1012(J24+K24,L24), Valsp1012(M24+N24,O24))) -> FALSE | AK24: 0 | AL24: =IF($V24<>0, Valsp1020(D24,Q24)) -> FALSE | AM24: 0 | AN24: =IF($V24<>0,Valsp1024(D24,G24,H24,I24)) -> FALSE
B25: Sheffield Inclusion Centre | C25: 1100 | D25: PRU | G25: 0 | H25: 0 | I25: 0 | J25: 180 | K25: 180 | L25: 1800000 | M25: 0 | N25: 0 | O25: 0 | P25: 1800000 | Q25: 0 | V25: 1 | W25: =IF($V25<>0,OR(Valsp11(C25),Valsp11(Q25))) -> FALSE | X25: FALSE | Y25: FALSE | Z25: =IF($V25<>0, Valsp211(C25,0)) -> FALSE | AA25: =IF($V25<>0, Valsp212(B25, G25+H25+J25+K25+M25+N25)) -> FALSE | AB25: =IF($V25<>0, Valsp25(C25)) -> FALSE | AC25: =IF($V25<>0,Valsp2101(F25)) -> FALSE | AD25: =IF($V25<>0,Valsp291(E25,F25)) -> FALSE | AE25: =IF($V25<>0, Valsp1002(G25+H25+J25+K25+M25+N25)) -> FALSE | AF25: =IF($V25<>0, Valsp1003(D25,G25,H25,I25)) -> FALSE | AG25: =IF($V25<>0, Valsp1004(J25,K25,L25)) -> FALSE | AH25: =IF($V25<>0, Valsp1005(M25,N25,O25)) -> FALSE | AI25: =IF($V25<>0, Valsp1011(C25,E25,P25)) -> FALSE | AJ25: =IF($V25<>0, OR(Valsp1012(G25+H25,I25), Valsp1012(J25+K25,L25), Valsp1012(M25+N25,O25))) -> FALSE | AK25: 0 | AL25: =IF($V25<>0, Valsp1020(D25,Q25)) -> FALSE | AM25: 0 | AN25: =IF($V25<>0,Valsp1024(D25,G25,H25,I25)) -> FALSE
V26: 0 | W26: =IF($V26<>0,OR(Valsp11(C26),Valsp11(Q26))) -> FALSE | X26: FALSE | Y26: FALSE | Z26: =IF($V26<>0, Valsp211(C26,0)) -> FALSE | AA26: =IF($V26<>0, Valsp212(B26, G26+H26+J26+K26+M26+N26)) -> FALSE | AB26: =IF($V26<>0, Valsp25(C26)) -> FALSE | AC26: =IF($V26<>0,Valsp2101(F26)) -> FALSE | AD26: =IF($V26<>0,Valsp291(E26,F26)) -> FALSE | AE26: =IF($V26<>0, Valsp1002(G26+H26+J26+K26+M26+N26)) -> FALSE | AF26: =IF($V26<>0, Valsp1003(D26,G26,H26,I26)) -> FALSE | AG26: =IF($V26<>0, Valsp1004(J26,K26,L26)) -> FALSE | AH26: =IF($V26<>0, Valsp1005(M26,N26,O26)) -> FALSE | AI26: =IF($V26<>0, Valsp1011(C26,E26,P26)) -> FALSE | AJ26: =IF($V26<>0, OR(Valsp1012(G26+H26,I26), Valsp1012(J26+K26,L26), Valsp1012(M26+N26,O26))) -> FALSE | AK26: 0 | AL26: =IF($V26<>0, Valsp1020(D26,Q26)) -> FALSE | AM26: 0 | AN26: =IF($V26<>0,Valsp1024(D26,G26,H26,I26)) -> FALSE
V27: 0 | W27: =IF($V27<>0,OR(Valsp11(C27),Valsp11(Q27))) -> FALSE | X27: FALSE | Y27: FALSE | Z27: =IF($V27<>0, Valsp211(C27,0)) -> FALSE | AA27: =IF($V27<>0, Valsp212(B27, G27+H27+J27+K27+M27+N27)) -> FALSE | AB27: =IF($V27<>0, Valsp25(C27)) -> FALSE | AC27: =IF($V27<>0,Valsp2101(F27)) -> FALSE | AD27: =IF($V27<>0,Valsp291(E27,F27)) -> FALSE | AE27: =IF($V27<>0, Valsp1002(G27+H27+J27+K27+M27+N27)) -> FALSE | AF27: =IF($V27<>0, Valsp1003(D27,G27,H27,I27)) -> FALSE | AG27: =IF($V27<>0, Valsp1004(J27,K27,L27)) -> FALSE | AH27: =IF($V27<>0, Valsp1005(M27,N27,O27)) -> FALSE | AI27: =IF($V27<>0, Valsp1011(C27,E27,P27)) -> FALSE | AJ27: =IF($V27<>0, OR(Valsp1012(G27+H27,I27), Valsp1012(J27+K27,L27), Valsp1012(M27+N27,O27))) -> FALSE | AK27: 0 | AL27: =IF($V27<>0, Valsp1020(D27,Q27)) -> FALSE | AM27: 0 | AN27: =IF($V27<>0,Valsp1024(D27,G27,H27,I27)) -> FALSE
V28: 0 | W28: =IF($V28<>0,OR(Valsp11(C28),Valsp11(Q28))) -> FALSE | X28: FALSE | Y28: FALSE | Z28: =IF($V28<>0, Valsp211(C28,0)) -> FALSE | AA28: =IF($V28<>0, Valsp212(B28, G28+H28+J28+K28+M28+N28)) -> FALSE | AB28: =IF($V28<>0, Valsp25(C28)) -> FALSE | AC28: =IF($V28<>0,Valsp2101(F28)) -> FALSE | AD28: =IF($V28<>0,Valsp291(E28,F28)) -> FALSE | AE28: =IF($V28<>0, Valsp1002(G28+H28+J28+K28+M28+N28)) -> FALSE | AF28: =IF($V28<>0, Valsp1003(D28,G28,H28,I28)) -> FALSE | AG28: =IF($V28<>0, Valsp1004(J28,K28,L28)) -> FALSE | AH28: =IF($V28<>0, Valsp1005(M28,N28,O28)) -> FALSE | AI28: =IF($V28<>0, Valsp1011(C28,E28,P28)) -> FALSE | AJ28: =IF($V28<>0, OR(Valsp1012(G28+H28,I28), Valsp1012(J28+K28,L28), Valsp1012(M28+N28,O28))) -> FALSE | AK28: 0 | AL28: =IF($V28<>0, Valsp1020(D28,Q28)) -> FALSE | AM28: 0 | AN28: =IF($V28<>0,Valsp1024(D28,G28,H28,I28)) -> FALSE
V29: 0 | W29: =IF($V29<>0,OR(Valsp11(C29),Valsp11(Q29))) -> FALSE | X29: FALSE | Y29: FALSE | Z29: =IF($V29<>0, Valsp211(C29,0)) -> FALSE | AA29: =IF($V29<>0, Valsp212(B29, G29+H29+J29+K29+M29+N29)) -> FALSE | AB29: =IF($V29<>0, Valsp25(C29)) -> FALSE | AC29: =IF($V29<>0,Valsp2101(F29)) -> FALSE | AD29: =IF($V29<>0,Valsp291(E29,F29)) -> FALSE | AE29: =IF($V29<>0, Valsp1002(G29+H29+J29+K29+M29+N29)) -> FALSE | AF29: =IF($V29<>0, Valsp1003(D29,G29,H29,I29)) -> FALSE | AG29: =IF($V29<>0, Valsp1004(J29,K29,L29)) -> FALSE | AH29: =IF($V29<>0, Valsp1005(M29,N29,O29)) -> FALSE | AI29: =IF($V29<>0, Valsp1011(C29,E29,P29)) -> FALSE | AJ29: =IF($V29<>0, OR(Valsp1012(G29+H29,I29), Valsp1012(J29+K29,L29), Valsp1012(M29+N29,O29))) -> FALSE | AK29: 0 | AL29: =IF($V29<>0, Valsp1020(D29,Q29)) -> FALSE | AM29: 0 | AN29: =IF($V29<>0,Valsp1024(D29,G29,H29,I29)) -> FALSE
V30: 0 | W30: =IF($V30<>0,OR(Valsp11(C30),Valsp11(Q30))) -> FALSE | X30: FALSE | Y30: FALSE | Z30: =IF($V30<>0, Valsp211(C30,0)) -> FALSE | AA30: =IF($V30<>0, Valsp212(B30, G30+H30+J30+K30+M30+N30)) -> FALSE | AB30: =IF($V30<>0, Valsp25(C30)) -> FALSE | AC30: =IF($V30<>0,Valsp2101(F30)) -> FALSE | AD30: =IF($V30<>0,Valsp291(E30,F30)) -> FALSE | AE30: =IF($V30<>0, Valsp1002(G30+H30+J30+K30+M30+N30)) -> FALSE | AF30: =IF($V30<>0, Valsp1003(D30,G30,H30,I30)) -> FALSE | AG30: =IF($V30<>0, Valsp1004(J30,K30,L30)) -> FALSE | AH30: =IF($V30<>0, Valsp1005(M30,N30,O30)) -> FALSE | AI30: =IF($V30<>0, Valsp1011(C30,E30,P30)) -> FALSE | AJ30: =IF($V30<>0, OR(Valsp1012(G30+H30,I30), Valsp1012(J30+K30,L30), Valsp1012(M30+N30,O30))) -> FALSE | AK30: 0 | AL30: =IF($V30<>0, Valsp1020(D30,Q30)) -> FALSE | AM30: 0 | AN30: =IF($V30<>0,Valsp1024(D30,G30,H30,I30)) -> FALSE
V31: 0 | W31: =IF($V31<>0,OR(Valsp11(C31),Valsp11(Q31))) -> FALSE | X31: FALSE | Y31: FALSE | Z31: =IF($V31<>0, Valsp211(C31,0)) -> FALSE | AA31: =IF($V31<>0, Valsp212(B31, G31+H31+J31+K31+M31+N31)) -> FALSE | AB31: =IF($V31<>0, Valsp25(C31)) -> FALSE | AC31: =IF($V31<>0,Valsp2101(F31)) -> FALSE | AD31: =IF($V31<>0,Valsp291(E31,F31)) -> FALSE | AE31: =IF($V31<>0, Valsp1002(G31+H31+J31+K31+M31+N31)) -> FALSE | AF31: =IF($V31<>0, Valsp1003(D31,G31,H31,I31)) -> FALSE | AG31: =IF($V31<>0, Valsp1004(J31,K31,L31)) -> FALSE | AH31: =IF($V31<>0, Valsp1005(M31,N31,O31)) -> FALSE | AI31: =IF($V31<>0, Valsp1011(C31,E31,P31)) -> FALSE | AJ31: =IF($V31<>0, OR(Valsp1012(G31+H31,I31), Valsp1012(J31+K31,L31), Valsp1012(M31+N31,O31))) -> FALSE | AK31: 0 | AL31: =IF($V31<>0, Valsp1020(D31,Q31)) -> FALSE | AM31: 0 | AN31: =IF($V31<>0,Valsp1024(D31,G31,H31,I31)) -> FALSE
V32: 0 | W32: =IF($V32<>0,OR(Valsp11(C32),Valsp11(Q32))) -> FALSE | X32: FALSE | Y32: FALSE | Z32: =IF($V32<>0, Valsp211(C32,0)) -> FALSE | AA32: =IF($V32<>0, Valsp212(B32, G32+H32+J32+K32+M32+N32)) -> FALSE | AB32: =IF($V32<>0, Valsp25(C32)) -> FALSE | AC32: =IF($V32<>0,Valsp2101(F32)) -> FALSE | AD32: =IF($V32<>0,Valsp291(E32,F32)) -> FALSE | AE32: =IF($V32<>0, Valsp1002(G32+H32+J32+K32+M32+N32)) -> FALSE | AF32: =IF($V32<>0, Valsp1003(D32,G32,H32,I32)) -> FALSE | AG32: =IF($V32<>0, Valsp1004(J32,K32,L32)) -> FALSE | AH32: =IF($V32<>0, Valsp1005(M32,N32,O32)) -> FALSE | AI32: =IF($V32<>0, Valsp1011(C32,E32,P32)) -> FALSE | AJ32: =IF($V32<>0, OR(Valsp1012(G32+H32,I32), Valsp1012(J32+K32,L32), Valsp1012(M32+N32,O32))) -> FALSE | AK32: 0 | AL32: =IF($V32<>0, Valsp1020(D32,Q32)) -> FALSE | AM32: 0 | AN32: =IF($V32<>0,Valsp1024(D32,G32,H32,I32)) -> FALSE
V33: 0 | W33: =IF($V33<>0,OR(Valsp11(C33),Valsp11(Q33))) -> FALSE | X33: FALSE | Y33: FALSE | Z33: =IF($V33<>0, Valsp211(C33,0)) -> FALSE | AA33: =IF($V33<>0, Valsp212(B33, G33+H33+J33+K33+M33+N33)) -> FALSE | AB33: =IF($V33<>0, Valsp25(C33)) -> FALSE | AC33: =IF($V33<>0,Valsp2101(F33)) -> FALSE | AD33: =IF($V33<>0,Valsp291(E33,F33)) -> FALSE | AE33: =IF($V33<>0, Valsp1002(G33+H33+J33+K33+M33+N33)) -> FALSE | AF33: =IF($V33<>0, Valsp1003(D33,G33,H33,I33)) -> FALSE | AG33: =IF($V33<>0, Valsp1004(J33,K33,L33)) -> FALSE | AH33: =IF($V33<>0, Valsp1005(M33,N33,O33)) -> FALSE | AI33: =IF($V33<>0, Valsp1011(C33,E33,P33)) -> FALSE | AJ33: =IF($V33<>0, OR(Valsp1012(G33+H33,I33), Valsp1012(J33+K33,L33), Valsp1012(M33+N33,O33))) -> FALSE | AK33: 0 | AL33: =IF($V33<>0, Valsp1020(D33,Q33)) -> FALSE | AM33: 0 | AN33: =IF($V33<>0,Valsp1024(D33,G33,H33,I33)) -> FALSE
V34: 0 | W34: =IF($V34<>0,OR(Valsp11(C34),Valsp11(Q34))) -> FALSE | X34: FALSE | Y34: FALSE | Z34: =IF($V34<>0, Valsp211(C34,0)) -> FALSE | AA34: =IF($V34<>0, Valsp212(B34, G34+H34+J34+K34+M34+N34)) -> FALSE | AB34: =IF($V34<>0, Valsp25(C34)) -> FALSE | AC34: =IF($V34<>0,Valsp2101(F34)) -> FALSE | AD34: =IF($V34<>0,Valsp291(E34,F34)) -> FALSE | AE34: =IF($V34<>0, Valsp1002(G34+H34+J34+K34+M34+N34)) -> FALSE | AF34: =IF($V34<>0, Valsp1003(D34,G34,H34,I34)) -> FALSE | AG34: =IF($V34<>0, Valsp1004(J34,K34,L34)) -> FALSE | AH34: =IF($V34<>0, Valsp1005(M34,N34,O34)) -> FALSE | AI34: =IF($V34<>0, Valsp1011(C34,E34,P34)) -> FALSE | AJ34: =IF($V34<>0, OR(Valsp1012(G34+H34,I34), Valsp1012(J34+K34,L34), Valsp1012(M34+N34,O34))) -> FALSE | AK34: 0 | AL34: =IF($V34<>0, Valsp1020(D34,Q34)) -> FALSE | AM34: 0 | AN34: =IF($V34<>0,Valsp1024(D34,G34,H34,I34)) -> FALSE
V35: 0 | W35: =IF($V35<>0,OR(Valsp11(C35),Valsp11(Q35))) -> FALSE | X35: FALSE | Y35: FALSE | Z35: =IF($V35<>0, Valsp211(C35,0)) -> FALSE | AA35: =IF($V35<>0, Valsp212(B35, G35+H35+J35+K35+M35+N35)) -> FALSE | AB35: =IF($V35<>0, Valsp25(C35)) -> FALSE | AC35: =IF($V35<>0,Valsp2101(F35)) -> FALSE | AD35: =IF($V35<>0,Valsp291(E35,F35)) -> FALSE | AE35: =IF($V35<>0, Valsp1002(G35+H35+J35+K35+M35+N35)) -> FALSE | AF35: =IF($V35<>0, Valsp1003(D35,G35,H35,I35)) -> FALSE | AG35: =IF($V35<>0, Valsp1004(J35,K35,L35)) -> FALSE | AH35: =IF($V35<>0, Valsp1005(M35,N35,O35)) -> FALSE | AI35: =IF($V35<>0, Valsp1011(C35,E35,P35)) -> FALSE | AJ35: =IF($V35<>0, OR(Valsp1012(G35+H35,I35), Valsp1012(J35+K35,L35), Valsp1012(M35+N35,O35))) -> FALSE | AK35: 0 | AL35: =IF($V35<>0, Valsp1020(D35,Q35)) -> FALSE | AM35: 0 | AN35: =IF($V35<>0,Valsp1024(D35,G35,H35,I35)) -> FALSE
V36: 0 | W36: =IF($V36<>0,OR(Valsp11(C36),Valsp11(Q36))) -> FALSE | X36: FALSE | Y36: FALSE | Z36: =IF($V36<>0, Valsp211(C36,0)) -> FALSE | AA36: =IF($V36<>0, Valsp212(B36, G36+H36+J36+K36+M36+N36)) -> FALSE | AB36: =IF($V36<>0, Valsp25(C36)) -> FALSE | AC36: =IF($V36<>0,Valsp2101(F36)) -> FALSE | AD36: =IF($V36<>0,Valsp291(E36,F36)) -> FALSE | AE36: =IF($V36<>0, Valsp1002(G36+H36+J36+K36+M36+N36)) -> FALSE | AF36: =IF($V36<>0, Valsp1003(D36,G36,H36,I36)) -> FALSE | AG36: =IF($V36<>0, Valsp1004(J36,K36,L36)) -> FALSE | AH36: =IF($V36<>0, Valsp1005(M36,N36,O36)) -> FALSE | AI36: =IF($V36<>0, Valsp1011(C36,E36,P36)) -> FALSE | AJ36: =IF($V36<>0, OR(Valsp1012(G36+H36,I36), Valsp1012(J36+K36,L36), Valsp1012(M36+N36,O36))) -> FALSE | AK36: 0 | AL36: =IF($V36<>0, Valsp1020(D36,Q36)) -> FALSE | AM36: 0 | AN36: =IF($V36<>0,Valsp1024(D36,G36,H36,I36)) -> FALSE
V37: 0 | W37: =IF($V37<>0,OR(Valsp11(C37),Valsp11(Q37))) -> FALSE | X37: FALSE | Y37: FALSE | Z37: =IF($V37<>0, Valsp211(C37,0)) -> FALSE | AA37: =IF($V37<>0, Valsp212(B37, G37+H37+J37+K37+M37+N37)) -> FALSE | AB37: =IF($V37<>0, Valsp25(C37)) -> FALSE | AC37: =IF($V37<>0,Valsp2101(F37)) -> FALSE | AD37: =IF($V37<>0,Valsp291(E37,F37)) -> FALSE | AE37: =IF($V37<>0, Valsp1002(G37+H37+J37+K37+M37+N37)) -> FALSE | AF37: =IF($V37<>0, Valsp1003(D37,G37,H37,I37)) -> FALSE | AG37: =IF($V37<>0, Valsp1004(J37,K37,L37)) -> FALSE | AH37: =IF($V37<>0, Valsp1005(M37,N37,O37)) -> FALSE | AI37: =IF($V37<>0, Valsp1011(C37,E37,P37)) -> FALSE | AJ37: =IF($V37<>0, OR(Valsp1012(G37+H37,I37), Valsp1012(J37+K37,L37), Valsp1012(M37+N37,O37))) -> FALSE | AK37: 0 | AL37: =IF($V37<>0, Valsp1020(D37,Q37)) -> FALSE | AM37: 0 | AN37: =IF($V37<>0,Valsp1024(D37,G37,H37,I37)) -> FALSE
V38: 0 | W38: =IF($V38<>0,OR(Valsp11(C38),Valsp11(Q38))) -> FALSE | X38: FALSE | Y38: FALSE | Z38: =IF($V38<>0, Valsp211(C38,0)) -> FALSE | AA38: =IF($V38<>0, Valsp212(B38, G38+H38+J38+K38+M38+N38)) -> FALSE | AB38: =IF($V38<>0, Valsp25(C38)) -> FALSE | AC38: =IF($V38<>0,Valsp2101(F38)) -> FALSE | AD38: =IF($V38<>0,Valsp291(E38,F38)) -> FALSE | AE38: =IF($V38<>0, Valsp1002(G38+H38+J38+K38+M38+N38)) -> FALSE | AF38: =IF($V38<>0, Valsp1003(D38,G38,H38,I38)) -> FALSE | AG38: =IF($V38<>0, Valsp1004(J38,K38,L38)) -> FALSE | AH38: =IF($V38<>0, Valsp1005(M38,N38,O38)) -> FALSE | AI38: =IF($V38<>0, Valsp1011(C38,E38,P38)) -> FALSE | AJ38: =IF($V38<>0, OR(Valsp1012(G38+H38,I38), Valsp1012(J38+K38,L38), Valsp1012(M38+N38,O38))) -> FALSE | AK38: 0 | AL38: =IF($V38<>0, Valsp1020(D38,Q38)) -> FALSE | AM38: 0 | AN38: =IF($V38<>0,Valsp1024(D38,G38,H38,I38)) -> FALSE
V39: 0 | W39: =IF($V39<>0,OR(Valsp11(C39),Valsp11(Q39))) -> FALSE | X39: FALSE | Y39: FALSE | Z39: =IF($V39<>0, Valsp211(C39,0)) -> FALSE | AA39: =IF($V39<>0, Valsp212(B39, G39+H39+J39+K39+M39+N39)) -> FALSE | AB39: =IF($V39<>0, Valsp25(C39)) -> FALSE | AC39: =IF($V39<>0,Valsp2101(F39)) -> FALSE | AD39: =IF($V39<>0,Valsp291(E39,F39)) -> FALSE | AE39: =IF($V39<>0, Valsp1002(G39+H39+J39+K39+M39+N39)) -> FALSE | AF39: =IF($V39<>0, Valsp1003(D39,G39,H39,I39)) -> FALSE | AG39: =IF($V39<>0, Valsp1004(J39,K39,L39)) -> FALSE | AH39: =IF($V39<>0, Valsp1005(M39,N39,O39)) -> FALSE | AI39: =IF($V39<>0, Valsp1011(C39,E39,P39)) -> FALSE | AJ39: =IF($V39<>0, OR(Valsp1012(G39+H39,I39), Valsp1012(J39+K39,L39), Valsp1012(M39+N39,O39))) -> FALSE | AK39: 0 | AL39: =IF($V39<>0, Valsp1020(D39,Q39)) -> FALSE | AM39: 0 | AN39: =IF($V39<>0,Valsp1024(D39,G39,H39,I39)) -> FALSE
V40: 0 | W40: =IF($V40<>0,OR(Valsp11(C40),Valsp11(Q40))) -> FALSE | X40: FALSE | Y40: FALSE | Z40: =IF($V40<>0, Valsp211(C40,0)) -> FALSE | AA40: =IF($V40<>0, Valsp212(B40, G40+H40+J40+K40+M40+N40)) -> FALSE | AB40: =IF($V40<>0, Valsp25(C40)) -> FALSE | AC40: =IF($V40<>0,Valsp2101(F40)) -> FALSE | AD40: =IF($V40<>0,Valsp291(E40,F40)) -> FALSE | AE40: =IF($V40<>0, Valsp1002(G40+H40+J40+K40+M40+N40)) -> FALSE | AF40: =IF($V40<>0, Valsp1003(D40,G40,H40,I40)) -> FALSE | AG40: =IF($V40<>0, Valsp1004(J40,K40,L40)) -> FALSE | AH40: =IF($V40<>0, Valsp1005(M40,N40,O40)) -> FALSE | AI40: =IF($V40<>0, Valsp1011(C40,E40,P40)) -> FALSE | AJ40: =IF($V40<>0, OR(Valsp1012(G40+H40,I40), Valsp1012(J40+K40,L40), Valsp1012(M40+N40,O40))) -> FALSE | AK40: 0 | AL40: =IF($V40<>0, Valsp1020(D40,Q40)) -> FALSE | AM40: 0 | AN40: =IF($V40<>0,Valsp1024(D40,G40,H40,I40)) -> FALSE
V41: 0 | W41: =IF($V41<>0,OR(Valsp11(C41),Valsp11(Q41))) -> FALSE | X41: FALSE | Y41: FALSE | Z41: =IF($V41<>0, Valsp211(C41,0)) -> FALSE | AA41: =IF($V41<>0, Valsp212(B41, G41+H41+J41+K41+M41+N41)) -> FALSE | AB41: =IF($V41<>0, Valsp25(C41)) -> FALSE | AC41: =IF($V41<>0,Valsp2101(F41)) -> FALSE | AD41: =IF($V41<>0,Valsp291(E41,F41)) -> FALSE | AE41: =IF($V41<>0, Valsp1002(G41+H41+J41+K41+M41+N41)) -> FALSE | AF41: =IF($V41<>0, Valsp1003(D41,G41,H41,I41)) -> FALSE | AG41: =IF($V41<>0, Valsp1004(J41,K41,L41)) -> FALSE | AH41: =IF($V41<>0, Valsp1005(M41,N41,O41)) -> FALSE | AI41: =IF($V41<>0, Valsp1011(C41,E41,P41)) -> FALSE | AJ41: =IF($V41<>0, OR(Valsp1012(G41+H41,I41), Valsp1012(J41+K41,L41), Valsp1012(M41+N41,O41))) -> FALSE | AK41: 0 | AL41: =IF($V41<>0, Valsp1020(D41,Q41)) -> FALSE | AM41: 0 | AN41: =IF($V41<>0,Valsp1024(D41,G41,H41,I41)) -> FALSE
V42: 0 | W42: =IF($V42<>0,OR(Valsp11(C42),Valsp11(Q42))) -> FALSE | X42: FALSE | Y42: FALSE | Z42: =IF($V42<>0, Valsp211(C42,0)) -> FALSE | AA42: =IF($V42<>0, Valsp212(B42, G42+H42+J42+K42+M42+N42)) -> FALSE | AB42: =IF($V42<>0, Valsp25(C42)) -> FALSE | AC42: =IF($V42<>0,Valsp2101(F42)) -> FALSE | AD42: =IF($V42<>0,Valsp291(E42,F42)) -> FALSE | AE42: =IF($V42<>0, Valsp1002(G42+H42+J42+K42+M42+N42)) -> FALSE | AF42: =IF($V42<>0, Valsp1003(D42,G42,H42,I42)) -> FALSE | AG42: =IF($V42<>0, Valsp1004(J42,K42,L42)) -> FALSE | AH42: =IF($V42<>0, Valsp1005(M42,N42,O42)) -> FALSE | AI42: =IF($V42<>0, Valsp1011(C42,E42,P42)) -> FALSE | AJ42: =IF($V42<>0, OR(Valsp1012(G42+H42,I42), Valsp1012(J42+K42,L42), Valsp1012(M42+N42,O42))) -> FALSE | AK42: 0 | AL42: =IF($V42<>0, Valsp1020(D42,Q42)) -> FALSE | AM42: 0 | AN42: =IF($V42<>0,Valsp1024(D42,G42,H42,I42)) -> FALSE
V43: 0 | W43: =IF($V43<>0,OR(Valsp11(C43),Valsp11(Q43))) -> FALSE | X43: FALSE | Y43: FALSE | Z43: =IF($V43<>0, Valsp211(C43,0)) -> FALSE | AA43: =IF($V43<>0, Valsp212(B43, G43+H43+J43+K43+M43+N43)) -> FALSE | AB43: =IF($V43<>0, Valsp25(C43)) -> FALSE | AC43: =IF($V43<>0,Valsp2101(F43)) -> FALSE | AD43: =IF($V43<>0,Valsp291(E43,F43)) -> FALSE | AE43: =IF($V43<>0, Valsp1002(G43+H43+J43+K43+M43+N43)) -> FALSE | AF43: =IF($V43<>0, Valsp1003(D43,G43,H43,I43)) -> FALSE | AG43: =IF($V43<>0, Valsp1004(J43,K43,L43)) -> FALSE | AH43: =IF($V43<>0, Valsp1005(M43,N43,O43)) -> FALSE | AI43: =IF($V43<>0, Valsp1011(C43,E43,P43)) -> FALSE | AJ43: =IF($V43<>0, OR(Valsp1012(G43+H43,I43), Valsp1012(J43+K43,L43), Valsp1012(M43+N43,O43))) -> FALSE | AK43: 0 | AL43: =IF($V43<>0, Valsp1020(D43,Q43)) -> FALSE | AM43: 0 | AN43: =IF($V43<>0,Valsp1024(D43,G43,H43,I43)) -> FALSE
V44: 0 | W44: =IF($V44<>0,OR(Valsp11(C44),Valsp11(Q44))) -> FALSE | X44: FALSE | Y44: FALSE | Z44: =IF($V44<>0, Valsp211(C44,0)) -> FALSE | AA44: =IF($V44<>0, Valsp212(B44, G44+H44+J44+K44+M44+N44)) -> FALSE | AB44: =IF($V44<>0, Valsp25(C44)) -> FALSE | AC44: =IF($V44<>0,Valsp2101(F44)) -> FALSE | AD44: =IF($V44<>0,Valsp291(E44,F44)) -> FALSE | AE44: =IF($V44<>0, Valsp1002(G44+H44+J44+K44+M44+N44)) -> FALSE | AF44: =IF($V44<>0, Valsp1003(D44,G44,H44,I44)) -> FALSE | AG44: =IF($V44<>0, Valsp1004(J44,K44,L44)) -> FALSE | AH44: =IF($V44<>0, Valsp1005(M44,N44,O44)) -> FALSE | AI44: =IF($V44<>0, Valsp1011(C44,E44,P44)) -> FALSE | AJ44: =IF($V44<>0, OR(Valsp1012(G44+H44,I44), Valsp1012(J44+K44,L44), Valsp1012(M44+N44,O44))) -> FALSE | AK44: 0 | AL44: =IF($V44<>0, Valsp1020(D44,Q44)) -> FALSE | AM44: 0 | AN44: =IF($V44<>0,Valsp1024(D44,G44,H44,I44)) -> FALSE
V45: 0 | W45: =IF($V45<>0,OR(Valsp11(C45),Valsp11(Q45))) -> FALSE | X45: FALSE | Y45: FALSE | Z45: =IF($V45<>0, Valsp211(C45,0)) -> FALSE | AA45: =IF($V45<>0, Valsp212(B45, G45+H45+J45+K45+M45+N45)) -> FALSE | AB45: =IF($V45<>0, Valsp25(C45)) -> FALSE | AC45: =IF($V45<>0,Valsp2101(F45)) -> FALSE | AD45: =IF($V45<>0,Valsp291(E45,F45)) -> FALSE | AE45: =IF($V45<>0, Valsp1002(G45+H45+J45+K45+M45+N45)) -> FALSE | AF45: =IF($V45<>0, Valsp1003(D45,G45,H45,I45)) -> FALSE | AG45: =IF($V45<>0, Valsp1004(J45,K45,L45)) -> FALSE | AH45: =IF($V45<>0, Valsp1005(M45,N45,O45)) -> FALSE | AI45: =IF($V45<>0, Valsp1011(C45,E45,P45)) -> FALSE | AJ45: =IF($V45<>0, OR(Valsp1012(G45+H45,I45), Valsp1012(J45+K45,L45), Valsp1012(M45+N45,O45))) -> FALSE | AK45: 0 | AL45: =IF($V45<>0, Valsp1020(D45,Q45)) -> FALSE | AM45: 0 | AN45: =IF($V45<>0,Valsp1024(D45,G45,H45,I45)) -> FALSE
V46: 0 | W46: =IF($V46<>0,OR(Valsp11(C46),Valsp11(Q46))) -> FALSE | X46: FALSE | Y46: FALSE | Z46: =IF($V46<>0, Valsp211(C46,0)) -> FALSE | AA46: =IF($V46<>0, Valsp212(B46, G46+H46+J46+K46+M46+N46)) -> FALSE | AB46: =IF($V46<>0, Valsp25(C46)) -> FALSE | AC46: =IF($V46<>0,Valsp2101(F46)) -> FALSE | AD46: =IF($V46<>0,Valsp291(E46,F46)) -> FALSE | AE46: =IF($V46<>0, Valsp1002(G46+H46+J46+K46+M46+N46)) -> FALSE | AF46: =IF($V46<>0, Valsp1003(D46,G46,H46,I46)) -> FALSE | AG46: =IF($V46<>0, Valsp1004(J46,K46,L46)) -> FALSE | AH46: =IF($V46<>0, Valsp1005(M46,N46,O46)) -> FALSE | AI46: =IF($V46<>0, Valsp1011(C46,E46,P46)) -> FALSE | AJ46: =IF($V46<>0, OR(Valsp1012(G46+H46,I46), Valsp1012(J46+K46,L46), Valsp1012(M46+N46,O46))) -> FALSE | AK46: 0 | AL46: =IF($V46<>0, Valsp1020(D46,Q46)) -> FALSE | AM46: 0 | AN46: =IF($V46<>0,Valsp1024(D46,G46,H46,I46)) -> FALSE
V47: 0 | W47: =IF($V47<>0,OR(Valsp11(C47),Valsp11(Q47))) -> FALSE | X47: FALSE | Y47: FALSE | Z47: =IF($V47<>0, Valsp211(C47,0)) -> FALSE | AA47: =IF($V47<>0, Valsp212(B47, G47+H47+J47+K47+M47+N47)) -> FALSE | AB47: =IF($V47<>0, Valsp25(C47)) -> FALSE | AC47: =IF($V47<>0,Valsp2101(F47)) -> FALSE | AD47: =IF($V47<>0,Valsp291(E47,F47)) -> FALSE | AE47: =IF($V47<>0, Valsp1002(G47+H47+J47+K47+M47+N47)) -> FALSE | AF47: =IF($V47<>0, Valsp1003(D47,G47,H47,I47)) -> FALSE | AG47: =IF($V47<>0, Valsp1004(J47,K47,L47)) -> FALSE | AH47: =IF($V47<>0, Valsp1005(M47,N47,O47)) -> FALSE | AI47: =IF($V47<>0, Valsp1011(C47,E47,P47)) -> FALSE | AJ47: =IF($V47<>0, OR(Valsp1012(G47+H47,I47), Valsp1012(J47+K47,L47), Valsp1012(M47+N47,O47))) -> FALSE | AK47: 0 | AL47: =IF($V47<>0, Valsp1020(D47,Q47)) -> FALSE | AM47: 0 | AN47: =IF($V47<>0,Valsp1024(D47,G47,H47,I47)) -> FALSE
V48: 0 | W48: =IF($V48<>0,OR(Valsp11(C48),Valsp11(Q48))) -> FALSE | X48: FALSE | Y48: FALSE | Z48: =IF($V48<>0, Valsp211(C48,0)) -> FALSE | AA48: =IF($V48<>0, Valsp212(B48, G48+H48+J48+K48+M48+N48)) -> FALSE | AB48: =IF($V48<>0, Valsp25(C48)) -> FALSE | AC48: =IF($V48<>0,Valsp2101(F48)) -> FALSE | AD48: =IF($V48<>0,Valsp291(E48,F48)) -> FALSE | AE48: =IF($V48<>0, Valsp1002(G48+H48+J48+K48+M48+N48)) -> FALSE | AF48: =IF($V48<>0, Valsp1003(D48,G48,H48,I48)) -> FALSE | AG48: =IF($V48<>0, Valsp1004(J48,K48,L48)) -> FALSE | AH48: =IF($V48<>0, Valsp1005(M48,N48,O48)) -> FALSE | AI48: =IF($V48<>0, Valsp1011(C48,E48,P48)) -> FALSE | AJ48: =IF($V48<>0, OR(Valsp1012(G48+H48,I48), Valsp1012(J48+K48,L48), Valsp1012(M48+N48,O48))) -> FALSE | AK48: 0 | AL48: =IF($V48<>0, Valsp1020(D48,Q48)) -> FALSE | AM48: 0 | AN48: =IF($V48<>0,Valsp1024(D48,G48,H48,I48)) -> FALSE
P49: =IF(OR(I49<>"",L49<>"",O49<>""),SUM(I49,L49,O49),"") ->  | V49: 0 | W49: =IF($V49<>0,OR(Valsp11(C49),Valsp11(Q49))) -> FALSE | X49: FALSE | Y49: FALSE | Z49: =IF($V49<>0, Valsp211(C49,0)) -> FALSE | AA49: =IF($V49<>0, Valsp212(B49, G49+H49+J49+K49+M49+N49)) -> FALSE | AB49: =IF($V49<>0, Valsp25(C49)) -> FALSE | AC49: =IF($V49<>0,Valsp2101(F49)) -> FALSE | AD49: =IF($V49<>0,Valsp291(E49,F49)) -> FALSE | AE49: =IF($V49<>0, Valsp1002(G49+H49+J49+K49+M49+N49)) -> FALSE | AF49: =IF($V49<>0, Valsp1003(D49,G49,H49,I49)) -> FALSE | AG49: =IF($V49<>0, Valsp1004(J49,K49,L49)) -> FALSE | AH49: =IF($V49<>0, Valsp1005(M49,N49,O49)) -> FALSE | AI49: =IF($V49<>0, Valsp1011(C49,E49,P49)) -> FALSE | AJ49: =IF($V49<>0, OR(Valsp1012(G49+H49,I49), Valsp1012(J49+K49,L49), Valsp1012(M49+N49,O49))) -> FALSE | AK49: 0 | AL49: =IF($V49<>0, Valsp1020(D49,Q49)) -> FALSE | AM49: 0 | AN49: =IF($V49<>0,Valsp1024(D49,G49,H49,I49)) -> FALSE
V50: 0 | W50: =IF($V50<>0,OR(Valsp11(C50),Valsp11(Q50))) -> FALSE | X50: FALSE | Y50: FALSE | Z50: =IF($V50<>0, Valsp211(C50,0)) -> FALSE | AA50: =IF($V50<>0, Valsp212(B50, G50+H50+J50+K50+M50+N50)) -> FALSE | AB50: =IF($V50<>0, Valsp25(C50)) -> FALSE | AC50: =IF($V50<>0,Valsp2101(F50)) -> FALSE | AD50: =IF($V50<>0,Valsp291(E50,F50)) -> FALSE | AE50: =IF($V50<>0, Valsp1002(G50+H50+J50+K50+M50+N50)) -> FALSE | AF50: =IF($V50<>0, Valsp1003(D50,G50,H50,I50)) -> FALSE | AG50: =IF($V50<>0, Valsp1004(J50,K50,L50)) -> FALSE | AH50: =IF($V50<>0, Valsp1005(M50,N50,O50)) -> FALSE | AI50: =IF($V50<>0, Valsp1011(C50,E50,P50)) -> FALSE | AJ50: =IF($V50<>0, OR(Valsp1012(G50+H50,I50), Valsp1012(J50+K50,L50), Valsp1012(M50+N50,O50))) -> FALSE | AK50: 0 | AL50: =IF($V50<>0, Valsp1020(D50,Q50)) -> FALSE | AM50: 0 | AN50: =IF($V50<>0,Valsp1024(D50,G50,H50,I50)) -> FALSE
V51: 0 | W51: =IF($V51<>0,OR(Valsp11(C51),Valsp11(Q51))) -> FALSE | X51: FALSE | Y51: FALSE | Z51: =IF($V51<>0, Valsp211(C51,0)) -> FALSE | AA51: =IF($V51<>0, Valsp212(B51, G51+H51+J51+K51+M51+N51)) -> FALSE | AB51: =IF($V51<>0, Valsp25(C51)) -> FALSE | AC51: =IF($V51<>0,Valsp2101(F51)) -> FALSE | AD51: =IF($V51<>0,Valsp291(E51,F51)) -> FALSE | AE51: =IF($V51<>0, Valsp1002(G51+H51+J51+K51+M51+N51)) -> FALSE | AF51: =IF($V51<>0, Valsp1003(D51,G51,H51,I51)) -> FALSE | AG51: =IF($V51<>0, Valsp1004(J51,K51,L51)) -> FALSE | AH51: =IF($V51<>0, Valsp1005(M51,N51,O51)) -> FALSE | AI51: =IF($V51<>0, Valsp1011(C51,E51,P51)) -> FALSE | AJ51: =IF($V51<>0, OR(Valsp1012(G51+H51,I51), Valsp1012(J51+K51,L51), Valsp1012(M51+N51,O51))) -> FALSE | AK51: 0 | AL51: =IF($V51<>0, Valsp1020(D51,Q51)) -> FALSE | AM51: 0 | AN51: =IF($V51<>0,Valsp1024(D51,G51,H51,I51)) -> FALSE
V52: 0 | W52: =IF($V52<>0,OR(Valsp11(C52),Valsp11(Q52))) -> FALSE | X52: FALSE | Y52: FALSE | Z52: =IF($V52<>0, Valsp211(C52,0)) -> FALSE | AA52: =IF($V52<>0, Valsp212(B52, G52+H52+J52+K52+M52+N52)) -> FALSE | AB52: =IF($V52<>0, Valsp25(C52)) -> FALSE | AC52: =IF($V52<>0,Valsp2101(F52)) -> FALSE | AD52: =IF($V52<>0,Valsp291(E52,F52)) -> FALSE | AE52: =IF($V52<>0, Valsp1002(G52+H52+J52+K52+M52+N52)) -> FALSE | AF52: =IF($V52<>0, Valsp1003(D52,G52,H52,I52)) -> FALSE | AG52: =IF($V52<>0, Valsp1004(J52,K52,L52)) -> FALSE | AH52: =IF($V52<>0, Valsp1005(M52,N52,O52)) -> FALSE | AI52: =IF($V52<>0, Valsp1011(C52,E52,P52)) -> FALSE | AJ52: =IF($V52<>0, OR(Valsp1012(G52+H52,I52), Valsp1012(J52+K52,L52), Valsp1012(M52+N52,O52))) -> FALSE | AK52: 0 | AL52: =IF($V52<>0, Valsp1020(D52,Q52)) -> FALSE | AM52: 0 | AN52: =IF($V52<>0,Valsp1024(D52,G52,H52,I52)) -> FALSE
V53: 0 | W53: =IF($V53<>0,OR(Valsp11(C53),Valsp11(Q53))) -> FALSE | X53: FALSE | Y53: FALSE | Z53: =IF($V53<>0, Valsp211(C53,0)) -> FALSE | AA53: =IF($V53<>0, Valsp212(B53, G53+H53+J53+K53+M53+N53)) -> FALSE | AB53: =IF($V53<>0, Valsp25(C53)) -> FALSE | AC53: =IF($V53<>0,Valsp2101(F53)) -> FALSE | AD53: =IF($V53<>0,Valsp291(E53,F53)) -> FALSE | AE53: =IF($V53<>0, Valsp1002(G53+H53+J53+K53+M53+N53)) -> FALSE | AF53: =IF($V53<>0, Valsp1003(D53,G53,H53,I53)) -> FALSE | AG53: =IF($V53<>0, Valsp1004(J53,K53,L53)) -> FALSE | AH53: =IF($V53<>0, Valsp1005(M53,N53,O53)) -> FALSE | AI53: =IF($V53<>0, Valsp1011(C53,E53,P53)) -> FALSE | AJ53: =IF($V53<>0, OR(Valsp1012(G53+H53,I53), Valsp1012(J53+K53,L53), Valsp1012(M53+N53,O53))) -> FALSE | AK53: 0 | AL53: =IF($V53<>0, Valsp1020(D53,Q53)) -> FALSE | AM53: 0 | AN53: =IF($V53<>0,Valsp1024(D53,G53,H53,I53)) -> FALSE
V54: 0 | W54: =IF($V54<>0,OR(Valsp11(C54),Valsp11(Q54))) -> FALSE | X54: FALSE | Y54: FALSE | Z54: =IF($V54<>0, Valsp211(C54,0)) -> FALSE | AA54: =IF($V54<>0, Valsp212(B54, G54+H54+J54+K54+M54+N54)) -> FALSE | AB54: =IF($V54<>0, Valsp25(C54)) -> FALSE | AC54: =IF($V54<>0,Valsp2101(F54)) -> FALSE | AD54: =IF($V54<>0,Valsp291(E54,F54)) -> FALSE | AE54: =IF($V54<>0, Valsp1002(G54+H54+J54+K54+M54+N54)) -> FALSE | AF54: =IF($V54<>0, Valsp1003(D54,G54,H54,I54)) -> FALSE | AG54: =IF($V54<>0, Valsp1004(J54,K54,L54)) -> FALSE | AH54: =IF($V54<>0, Valsp1005(M54,N54,O54)) -> FALSE | AI54: =IF($V54<>0, Valsp1011(C54,E54,P54)) -> FALSE | AJ54: =IF($V54<>0, OR(Valsp1012(G54+H54,I54), Valsp1012(J54+K54,L54), Valsp1012(M54+N54,O54))) -> FALSE | AK54: 0 | AL54: =IF($V54<>0, Valsp1020(D54,Q54)) -> FALSE | AM54: 0 | AN54: =IF($V54<>0,Valsp1024(D54,G54,H54,I54)) -> FALSE
V55: 0 | W55: =IF($V55<>0,OR(Valsp11(C55),Valsp11(Q55))) -> FALSE | X55: FALSE | Y55: FALSE | Z55: =IF($V55<>0, Valsp211(C55,0)) -> FALSE | AA55: =IF($V55<>0, Valsp212(B55, G55+H55+J55+K55+M55+N55)) -> FALSE | AB55: =IF($V55<>0, Valsp25(C55)) -> FALSE | AC55: =IF($V55<>0,Valsp2101(F55)) -> FALSE | AD55: =IF($V55<>0,Valsp291(E55,F55)) -> FALSE | AE55: =IF($V55<>0, Valsp1002(G55+H55+J55+K55+M55+N55)) -> FALSE | AF55: =IF($V55<>0, Valsp1003(D55,G55,H55,I55)) -> FALSE | AG55: =IF($V55<>0, Valsp1004(J55,K55,L55)) -> FALSE | AH55: =IF($V55<>0, Valsp1005(M55,N55,O55)) -> FALSE | AI55: =IF($V55<>0, Valsp1011(C55,E55,P55)) -> FALSE | AJ55: =IF($V55<>0, OR(Valsp1012(G55+H55,I55), Valsp1012(J55+K55,L55), Valsp1012(M55+N55,O55))) -> FALSE | AK55: 0 | AL55: =IF($V55<>0, Valsp1020(D55,Q55)) -> FALSE | AM55: 0 | AN55: =IF($V55<>0,Valsp1024(D55,G55,H55,I55)) -> FALSE
V56: 0 | W56: =IF($V56<>0,OR(Valsp11(C56),Valsp11(Q56))) -> FALSE | X56: FALSE | Y56: FALSE | Z56: =IF($V56<>0, Valsp211(C56,0)) -> FALSE | AA56: =IF($V56<>0, Valsp212(B56, G56+H56+J56+K56+M56+N56)) -> FALSE | AB56: =IF($V56<>0, Valsp25(C56)) -> FALSE | AC56: =IF($V56<>0,Valsp2101(F56)) -> FALSE | AD56: =IF($V56<>0,Valsp291(E56,F56)) -> FALSE | AE56: =IF($V56<>0, Valsp1002(G56+H56+J56+K56+M56+N56)) -> FALSE | AF56: =IF($V56<>0, Valsp1003(D56,G56,H56,I56)) -> FALSE | AG56: =IF($V56<>0, Valsp1004(J56,K56,L56)) -> FALSE | AH56: =IF($V56<>0, Valsp1005(M56,N56,O56)) -> FALSE | AI56: =IF($V56<>0, Valsp1011(C56,E56,P56)) -> FALSE | AJ56: =IF($V56<>0, OR(Valsp1012(G56+H56,I56), Valsp1012(J56+K56,L56), Valsp1012(M56+N56,O56))) -> FALSE | AK56: 0 | AL56: =IF($V56<>0, Valsp1020(D56,Q56)) -> FALSE | AM56: 0 | AN56: =IF($V56<>0,Valsp1024(D56,G56,H56,I56)) -> FALSE
V57: 0 | W57: =IF($V57<>0,OR(Valsp11(C57),Valsp11(Q57))) -> FALSE | X57: FALSE | Y57: FALSE | Z57: =IF($V57<>0, Valsp211(C57,0)) -> FALSE | AA57: =IF($V57<>0, Valsp212(B57, G57+H57+J57+K57+M57+N57)) -> FALSE | AB57: =IF($V57<>0, Valsp25(C57)) -> FALSE | AC57: =IF($V57<>0,Valsp2101(F57)) -> FALSE | AD57: =IF($V57<>0,Valsp291(E57,F57)) -> FALSE | AE57: =IF($V57<>0, Valsp1002(G57+H57+J57+K57+M57+N57)) -> FALSE | AF57: =IF($V57<>0, Valsp1003(D57,G57,H57,I57)) -> FALSE | AG57: =IF($V57<>0, Valsp1004(J57,K57,L57)) -> FALSE | AH57: =IF($V57<>0, Valsp1005(M57,N57,O57)) -> FALSE | AI57: =IF($V57<>0, Valsp1011(C57,E57,P57)) -> FALSE | AJ57: =IF($V57<>0, OR(Valsp1012(G57+H57,I57), Valsp1012(J57+K57,L57), Valsp1012(M57+N57,O57))) -> FALSE | AK57: 0 | AL57: =IF($V57<>0, Valsp1020(D57,Q57)) -> FALSE | AM57: 0 | AN57: =IF($V57<>0,Valsp1024(D57,G57,H57,I57)) -> FALSE
V58: 0 | W58: =IF($V58<>0,OR(Valsp11(C58),Valsp11(Q58))) -> FALSE | X58: FALSE | Y58: FALSE | Z58: =IF($V58<>0, Valsp211(C58,0)) -> FALSE | AA58: =IF($V58<>0, Valsp212(B58, G58+H58+J58+K58+M58+N58)) -> FALSE | AB58: =IF($V58<>0, Valsp25(C58)) -> FALSE | AC58: =IF($V58<>0,Valsp2101(F58)) -> FALSE | AD58: =IF($V58<>0,Valsp291(E58,F58)) -> FALSE | AE58: =IF($V58<>0, Valsp1002(G58+H58+J58+K58+M58+N58)) -> FALSE | AF58: =IF($V58<>0, Valsp1003(D58,G58,H58,I58)) -> FALSE | AG58: =IF($V58<>0, Valsp1004(J58,K58,L58)) -> FALSE | AH58: =IF($V58<>0, Valsp1005(M58,N58,O58)) -> FALSE | AI58: =IF($V58<>0, Valsp1011(C58,E58,P58)) -> FALSE | AJ58: =IF($V58<>0, OR(Valsp1012(G58+H58,I58), Valsp1012(J58+K58,L58), Valsp1012(M58+N58,O58))) -> FALSE | AK58: 0 | AL58: =IF($V58<>0, Valsp1020(D58,Q58)) -> FALSE | AM58: 0 | AN58: =IF($V58<>0,Valsp1024(D58,G58,H58,I58)) -> FALSE
V59: 0 | W59: =IF($V59<>0,OR(Valsp11(C59),Valsp11(Q59))) -> FALSE | X59: FALSE | Y59: FALSE | Z59: =IF($V59<>0, Valsp211(C59,0)) -> FALSE | AA59: =IF($V59<>0, Valsp212(B59, G59+H59+J59+K59+M59+N59)) -> FALSE | AB59: =IF($V59<>0, Valsp25(C59)) -> FALSE | AC59: =IF($V59<>0,Valsp2101(F59)) -> FALSE | AD59: =IF($V59<>0,Valsp291(E59,F59)) -> FALSE | AE59: =IF($V59<>0, Valsp1002(G59+H59+J59+K59+M59+N59)) -> FALSE | AF59: =IF($V59<>0, Valsp1003(D59,G59,H59,I59)) -> FALSE | AG59: =IF($V59<>0, Valsp1004(J59,K59,L59)) -> FALSE | AH59: =IF($V59<>0, Valsp1005(M59,N59,O59)) -> FALSE | AI59: =IF($V59<>0, Valsp1011(C59,E59,P59)) -> FALSE | AJ59: =IF($V59<>0, OR(Valsp1012(G59+H59,I59), Valsp1012(J59+K59,L59), Valsp1012(M59+N59,O59))) -> FALSE | AK59: 0 | AL59: =IF($V59<>0, Valsp1020(D59,Q59)) -> FALSE | AM59: 0 | AN59: =IF($V59<>0,Valsp1024(D59,G59,H59,I59)) -> FALSE
V60: 0 | W60: =IF($V60<>0,OR(Valsp11(C60),Valsp11(Q60))) -> FALSE | X60: FALSE | Y60: FALSE | Z60: =IF($V60<>0, Valsp211(C60,0)) -> FALSE | AA60: =IF($V60<>0, Valsp212(B60, G60+H60+J60+K60+M60+N60)) -> FALSE | AB60: =IF($V60<>0, Valsp25(C60)) -> FALSE | AC60: =IF($V60<>0,Valsp2101(F60)) -> FALSE | AD60: =IF($V60<>0,Valsp291(E60,F60)) -> FALSE | AE60: =IF($V60<>0, Valsp1002(G60+H60+J60+K60+M60+N60)) -> FALSE | AF60: =IF($V60<>0, Valsp1003(D60,G60,H60,I60)) -> FALSE | AG60: =IF($V60<>0, Valsp1004(J60,K60,L60)) -> FALSE | AH60: =IF($V60<>0, Valsp1005(M60,N60,O60)) -> FALSE | AI60: =IF($V60<>0, Valsp1011(C60,E60,P60)) -> FALSE | AJ60: =IF($V60<>0, OR(Valsp1012(G60+H60,I60), Valsp1012(J60+K60,L60), Valsp1012(M60+N60,O60))) -> FALSE | AK60: 0 | AL60: =IF($V60<>0, Valsp1020(D60,Q60)) -> FALSE | AM60: 0 | AN60: =IF($V60<>0,Valsp1024(D60,G60,H60,I60)) -> FALSE
V61: 0 | W61: =IF($V61<>0,OR(Valsp11(C61),Valsp11(Q61))) -> FALSE | X61: FALSE | Y61: FALSE | Z61: =IF($V61<>0, Valsp211(C61,0)) -> FALSE | AA61: =IF($V61<>0, Valsp212(B61, G61+H61+J61+K61+M61+N61)) -> FALSE | AB61: =IF($V61<>0, Valsp25(C61)) -> FALSE | AC61: =IF($V61<>0,Valsp2101(F61)) -> FALSE | AD61: =IF($V61<>0,Valsp291(E61,F61)) -> FALSE | AE61: =IF($V61<>0, Valsp1002(G61+H61+J61+K61+M61+N61)) -> FALSE | AF61: =IF($V61<>0, Valsp1003(D61,G61,H61,I61)) -> FALSE | AG61: =IF($V61<>0, Valsp1004(J61,K61,L61)) -> FALSE | AH61: =IF($V61<>0, Valsp1005(M61,N61,O61)) -> FALSE | AI61: =IF($V61<>0, Valsp1011(C61,E61,P61)) -> FALSE | AJ61: =IF($V61<>0, OR(Valsp1012(G61+H61,I61), Valsp1012(J61+K61,L61), Valsp1012(M61+N61,O61))) -> FALSE | AK61: 0 | AL61: =IF($V61<>0, Valsp1020(D61,Q61)) -> FALSE | AM61: 0 | AN61: =IF($V61<>0,Valsp1024(D61,G61,H61,I61)) -> FALSE
V62: 0 | W62: =IF($V62<>0,OR(Valsp11(C62),Valsp11(Q62))) -> FALSE | X62: FALSE | Y62: FALSE | Z62: =IF($V62<>0, Valsp211(C62,0)) -> FALSE | AA62: =IF($V62<>0, Valsp212(B62, G62+H62+J62+K62+M62+N62)) -> FALSE | AB62: =IF($V62<>0, Valsp25(C62)) -> FALSE | AC62: =IF($V62<>0,Valsp2101(F62)) -> FALSE | AD62: =IF($V62<>0,Valsp291(E62,F62)) -> FALSE | AE62: =IF($V62<>0, Valsp1002(G62+H62+J62+K62+M62+N62)) -> FALSE | AF62: =IF($V62<>0, Valsp1003(D62,G62,H62,I62)) -> FALSE | AG62: =IF($V62<>0, Valsp1004(J62,K62,L62)) -> FALSE | AH62: =IF($V62<>0, Valsp1005(M62,N62,O62)) -> FALSE | AI62: =IF($V62<>0, Valsp1011(C62,E62,P62)) -> FALSE | AJ62: =IF($V62<>0, OR(Valsp1012(G62+H62,I62), Valsp1012(J62+K62,L62), Valsp1012(M62+N62,O62))) -> FALSE | AK62: 0 | AL62: =IF($V62<>0, Valsp1020(D62,Q62)) -> FALSE | AM62: 0 | AN62: =IF($V62<>0,Valsp1024(D62,G62,H62,I62)) -> FALSE
V63: 0 | W63: =IF($V63<>0,OR(Valsp11(C63),Valsp11(Q63))) -> FALSE | X63: FALSE | Y63: FALSE | Z63: =IF($V63<>0, Valsp211(C63,0)) -> FALSE | AA63: =IF($V63<>0, Valsp212(B63, G63+H63+J63+K63+M63+N63)) -> FALSE | AB63: =IF($V63<>0, Valsp25(C63)) -> FALSE | AC63: =IF($V63<>0,Valsp2101(F63)) -> FALSE | AD63: =IF($V63<>0,Valsp291(E63,F63)) -> FALSE | AE63: =IF($V63<>0, Valsp1002(G63+H63+J63+K63+M63+N63)) -> FALSE | AF63: =IF($V63<>0, Valsp1003(D63,G63,H63,I63)) -> FALSE | AG63: =IF($V63<>0, Valsp1004(J63,K63,L63)) -> FALSE | AH63: =IF($V63<>0, Valsp1005(M63,N63,O63)) -> FALSE | AI63: =IF($V63<>0, Valsp1011(C63,E63,P63)) -> FALSE | AJ63: =IF($V63<>0, OR(Valsp1012(G63+H63,I63), Valsp1012(J63+K63,L63), Valsp1012(M63+N63,O63))) -> FALSE | AK63: 0 | AL63: =IF($V63<>0, Valsp1020(D63,Q63)) -> FALSE | AM63: 0 | AN63: =IF($V63<>0,Valsp1024(D63,G63,H63,I63)) -> FALSE
V64: 0 | W64: =IF($V64<>0,OR(Valsp11(C64),Valsp11(Q64))) -> FALSE | X64: FALSE | Y64: FALSE | Z64: =IF($V64<>0, Valsp211(C64,0)) -> FALSE | AA64: =IF($V64<>0, Valsp212(B64, G64+H64+J64+K64+M64+N64)) -> FALSE | AB64: =IF($V64<>0, Valsp25(C64)) -> FALSE | AC64: =IF($V64<>0,Valsp2101(F64)) -> FALSE | AD64: =IF($V64<>0,Valsp291(E64,F64)) -> FALSE | AE64: =IF($V64<>0, Valsp1002(G64+H64+J64+K64+M64+N64)) -> FALSE | AF64: =IF($V64<>0, Valsp1003(D64,G64,H64,I64)) -> FALSE | AG64: =IF($V64<>0, Valsp1004(J64,K64,L64)) -> FALSE | AH64: =IF($V64<>0, Valsp1005(M64,N64,O64)) -> FALSE | AI64: =IF($V64<>0, Valsp1011(C64,E64,P64)) -> FALSE | AJ64: =IF($V64<>0, OR(Valsp1012(G64+H64,I64), Valsp1012(J64+K64,L64), Valsp1012(M64+N64,O64))) -> FALSE | AK64: 0 | AL64: =IF($V64<>0, Valsp1020(D64,Q64)) -> FALSE | AM64: 0 | AN64: =IF($V64<>0,Valsp1024(D64,G64,H64,I64)) -> FALSE
V65: 0 | W65: =IF($V65<>0,OR(Valsp11(C65),Valsp11(Q65))) -> FALSE | X65: FALSE | Y65: FALSE | Z65: =IF($V65<>0, Valsp211(C65,0)) -> FALSE | AA65: =IF($V65<>0, Valsp212(B65, G65+H65+J65+K65+M65+N65)) -> FALSE | AB65: =IF($V65<>0, Valsp25(C65)) -> FALSE | AC65: =IF($V65<>0,Valsp2101(F65)) -> FALSE | AD65: =IF($V65<>0,Valsp291(E65,F65)) -> FALSE | AE65: =IF($V65<>0, Valsp1002(G65+H65+J65+K65+M65+N65)) -> FALSE | AF65: =IF($V65<>0, Valsp1003(D65,G65,H65,I65)) -> FALSE | AG65: =IF($V65<>0, Valsp1004(J65,K65,L65)) -> FALSE | AH65: =IF($V65<>0, Valsp1005(M65,N65,O65)) -> FALSE | AI65: =IF($V65<>0, Valsp1011(C65,E65,P65)) -> FALSE | AJ65: =IF($V65<>0, OR(Valsp1012(G65+H65,I65), Valsp1012(J65+K65,L65), Valsp1012(M65+N65,O65))) -> FALSE | AK65: 0 | AL65: =IF($V65<>0, Valsp1020(D65,Q65)) -> FALSE | AM65: 0 | AN65: =IF($V65<>0,Valsp1024(D65,G65,H65,I65)) -> FALSE
V66: 0 | W66: =IF($V66<>0,OR(Valsp11(C66),Valsp11(Q66))) -> FALSE | X66: FALSE | Y66: FALSE | Z66: =IF($V66<>0, Valsp211(C66,0)) -> FALSE | AA66: =IF($V66<>0, Valsp212(B66, G66+H66+J66+K66+M66+N66)) -> FALSE | AB66: =IF($V66<>0, Valsp25(C66)) -> FALSE | AC66: =IF($V66<>0,Valsp2101(F66)) -> FALSE | AD66: =IF($V66<>0,Valsp291(E66,F66)) -> FALSE | AE66: =IF($V66<>0, Valsp1002(G66+H66+J66+K66+M66+N66)) -> FALSE | AF66: =IF($V66<>0, Valsp1003(D66,G66,H66,I66)) -> FALSE | AG66: =IF($V66<>0, Valsp1004(J66,K66,L66)) -> FALSE | AH66: =IF($V66<>0, Valsp1005(M66,N66,O66)) -> FALSE | AI66: =IF($V66<>0, Valsp1011(C66,E66,P66)) -> FALSE | AJ66: =IF($V66<>0, OR(Valsp1012(G66+H66,I66), Valsp1012(J66+K66,L66), Valsp1012(M66+N66,O66))) -> FALSE | AK66: 0 | AL66: =IF($V66<>0, Valsp1020(D66,Q66)) -> FALSE | AM66: 0 | AN66: =IF($V66<>0,Valsp1024(D66,G66,H66,I66)) -> FALSE
V67: 0 | W67: =IF($V67<>0,OR(Valsp11(C67),Valsp11(Q67))) -> FALSE | X67: FALSE | Y67: FALSE | Z67: =IF($V67<>0, Valsp211(C67,0)) -> FALSE | AA67: =IF($V67<>0, Valsp212(B67, G67+H67+J67+K67+M67+N67)) -> FALSE | AB67: =IF($V67<>0, Valsp25(C67)) -> FALSE | AC67: =IF($V67<>0,Valsp2101(F67)) -> FALSE | AD67: =IF($V67<>0,Valsp291(E67,F67)) -> FALSE | AE67: =IF($V67<>0, Valsp1002(G67+H67+J67+K67+M67+N67)) -> FALSE | AF67: =IF($V67<>0, Valsp1003(D67,G67,H67,I67)) -> FALSE | AG67: =IF($V67<>0, Valsp1004(J67,K67,L67)) -> FALSE | AH67: =IF($V67<>0, Valsp1005(M67,N67,O67)) -> FALSE | AI67: =IF($V67<>0, Valsp1011(C67,E67,P67)) -> FALSE | AJ67: =IF($V67<>0, OR(Valsp1012(G67+H67,I67), Valsp1012(J67+K67,L67), Valsp1012(M67+N67,O67))) -> FALSE | AK67: 0 | AL67: =IF($V67<>0, Valsp1020(D67,Q67)) -> FALSE | AM67: 0 | AN67: =IF($V67<>0,Valsp1024(D67,G67,H67,I67)) -> FALSE
V68: 0 | W68: =IF($V68<>0,OR(Valsp11(C68),Valsp11(Q68))) -> FALSE | X68: FALSE | Y68: FALSE | Z68: =IF($V68<>0, Valsp211(C68,0)) -> FALSE | AA68: =IF($V68<>0, Valsp212(B68, G68+H68+J68+K68+M68+N68)) -> FALSE | AB68: =IF($V68<>0, Valsp25(C68)) -> FALSE | AC68: =IF($V68<>0,Valsp2101(F68)) -> FALSE | AD68: =IF($V68<>0,Valsp291(E68,F68)) -> FALSE | AE68: =IF($V68<>0, Valsp1002(G68+H68+J68+K68+M68+N68)) -> FALSE | AF68: =IF($V68<>0, Valsp1003(D68,G68,H68,I68)) -> FALSE | AG68: =IF($V68<>0, Valsp1004(J68,K68,L68)) -> FALSE | AH68: =IF($V68<>0, Valsp1005(M68,N68,O68)) -> FALSE | AI68: =IF($V68<>0, Valsp1011(C68,E68,P68)) -> FALSE | AJ68: =IF($V68<>0, OR(Valsp1012(G68+H68,I68), Valsp1012(J68+K68,L68), Valsp1012(M68+N68,O68))) -> FALSE | AK68: 0 | AL68: =IF($V68<>0, Valsp1020(D68,Q68)) -> FALSE | AM68: 0 | AN68: =IF($V68<>0,Valsp1024(D68,G68,H68,I68)) -> FALSE
V69: 0 | W69: =IF($V69<>0,OR(Valsp11(C69),Valsp11(Q69))) -> FALSE | X69: FALSE | Y69: FALSE | Z69: =IF($V69<>0, Valsp211(C69,0)) -> FALSE | AA69: =IF($V69<>0, Valsp212(B69, G69+H69+J69+K69+M69+N69)) -> FALSE | AB69: =IF($V69<>0, Valsp25(C69)) -> FALSE | AC69: =IF($V69<>0,Valsp2101(F69)) -> FALSE | AD69: =IF($V69<>0,Valsp291(E69,F69)) -> FALSE | AE69: =IF($V69<>0, Valsp1002(G69+H69+J69+K69+M69+N69)) -> FALSE | AF69: =IF($V69<>0, Valsp1003(D69,G69,H69,I69)) -> FALSE | AG69: =IF($V69<>0, Valsp1004(J69,K69,L69)) -> FALSE | AH69: =IF($V69<>0, Valsp1005(M69,N69,O69)) -> FALSE | AI69: =IF($V69<>0, Valsp1011(C69,E69,P69)) -> FALSE | AJ69: =IF($V69<>0, OR(Valsp1012(G69+H69,I69), Valsp1012(J69+K69,L69), Valsp1012(M69+N69,O69))) -> FALSE | AK69: 0 | AL69: =IF($V69<>0, Valsp1020(D69,Q69)) -> FALSE | AM69: 0 | AN69: =IF($V69<>0,Valsp1024(D69,G69,H69,I69)) -> FALSE
V70: 0 | W70: =IF($V70<>0,OR(Valsp11(C70),Valsp11(Q70))) -> FALSE | X70: FALSE | Y70: FALSE | Z70: =IF($V70<>0, Valsp211(C70,0)) -> FALSE | AA70: =IF($V70<>0, Valsp212(B70, G70+H70+J70+K70+M70+N70)) -> FALSE | AB70: =IF($V70<>0, Valsp25(C70)) -> FALSE | AC70: =IF($V70<>0,Valsp2101(F70)) -> FALSE | AD70: =IF($V70<>0,Valsp291(E70,F70)) -> FALSE | AE70: =IF($V70<>0, Valsp1002(G70+H70+J70+K70+M70+N70)) -> FALSE | AF70: =IF($V70<>0, Valsp1003(D70,G70,H70,I70)) -> FALSE | AG70: =IF($V70<>0, Valsp1004(J70,K70,L70)) -> FALSE | AH70: =IF($V70<>0, Valsp1005(M70,N70,O70)) -> FALSE | AI70: =IF($V70<>0, Valsp1011(C70,E70,P70)) -> FALSE | AJ70: =IF($V70<>0, OR(Valsp1012(G70+H70,I70), Valsp1012(J70+K70,L70), Valsp1012(M70+N70,O70))) -> FALSE | AK70: 0 | AL70: =IF($V70<>0, Valsp1020(D70,Q70)) -> FALSE | AM70: 0 | AN70: =IF($V70<>0,Valsp1024(D70,G70,H70,I70)) -> FALSE
V71: 0 | W71: =IF($V71<>0,OR(Valsp11(C71),Valsp11(Q71))) -> FALSE | X71: FALSE | Y71: FALSE | Z71: =IF($V71<>0, Valsp211(C71,0)) -> FALSE | AA71: =IF($V71<>0, Valsp212(B71, G71+H71+J71+K71+M71+N71)) -> FALSE | AB71: =IF($V71<>0, Valsp25(C71)) -> FALSE | AC71: =IF($V71<>0,Valsp2101(F71)) -> FALSE | AD71: =IF($V71<>0,Valsp291(E71,F71)) -> FALSE | AE71: =IF($V71<>0, Valsp1002(G71+H71+J71+K71+M71+N71)) -> FALSE | AF71: =IF($V71<>0, Valsp1003(D71,G71,H71,I71)) -> FALSE | AG71: =IF($V71<>0, Valsp1004(J71,K71,L71)) -> FALSE | AH71: =IF($V71<>0, Valsp1005(M71,N71,O71)) -> FALSE | AI71: =IF($V71<>0, Valsp1011(C71,E71,P71)) -> FALSE | AJ71: =IF($V71<>0, OR(Valsp1012(G71+H71,I71), Valsp1012(J71+K71,L71), Valsp1012(M71+N71,O71))) -> FALSE | AK71: 0 | AL71: =IF($V71<>0, Valsp1020(D71,Q71)) -> FALSE | AM71: 0 | AN71: =IF($V71<>0,Valsp1024(D71,G71,H71,I71)) -> FALSE
V72: 0 | W72: =IF($V72<>0,OR(Valsp11(C72),Valsp11(Q72))) -> FALSE | X72: FALSE | Y72: FALSE | Z72: =IF($V72<>0, Valsp211(C72,0)) -> FALSE | AA72: =IF($V72<>0, Valsp212(B72, G72+H72+J72+K72+M72+N72)) -> FALSE | AB72: =IF($V72<>0, Valsp25(C72)) -> FALSE | AC72: =IF($V72<>0,Valsp2101(F72)) -> FALSE | AD72: =IF($V72<>0,Valsp291(E72,F72)) -> FALSE | AE72: =IF($V72<>0, Valsp1002(G72+H72+J72+K72+M72+N72)) -> FALSE | AF72: =IF($V72<>0, Valsp1003(D72,G72,H72,I72)) -> FALSE | AG72: =IF($V72<>0, Valsp1004(J72,K72,L72)) -> FALSE | AH72: =IF($V72<>0, Valsp1005(M72,N72,O72)) -> FALSE | AI72: =IF($V72<>0, Valsp1011(C72,E72,P72)) -> FALSE | AJ72: =IF($V72<>0, OR(Valsp1012(G72+H72,I72), Valsp1012(J72+K72,L72), Valsp1012(M72+N72,O72))) -> FALSE | AK72: 0 | AL72: =IF($V72<>0, Valsp1020(D72,Q72)) -> FALSE | AM72: 0 | AN72: =IF($V72<>0,Valsp1024(D72,G72,H72,I72)) -> FALSE
V73: 0 | W73: =IF($V73<>0,OR(Valsp11(C73),Valsp11(Q73))) -> FALSE | X73: FALSE | Y73: FALSE | Z73: =IF($V73<>0, Valsp211(C73,0)) -> FALSE | AA73: =IF($V73<>0, Valsp212(B73, G73+H73+J73+K73+M73+N73)) -> FALSE | AB73: =IF($V73<>0, Valsp25(C73)) -> FALSE | AC73: =IF($V73<>0,Valsp2101(F73)) -> FALSE | AD73: =IF($V73<>0,Valsp291(E73,F73)) -> FALSE | AE73: =IF($V73<>0, Valsp1002(G73+H73+J73+K73+M73+N73)) -> FALSE | AF73: =IF($V73<>0, Valsp1003(D73,G73,H73,I73)) -> FALSE | AG73: =IF($V73<>0, Valsp1004(J73,K73,L73)) -> FALSE | AH73: =IF($V73<>0, Valsp1005(M73,N73,O73)) -> FALSE | AI73: =IF($V73<>0, Valsp1011(C73,E73,P73)) -> FALSE | AJ73: =IF($V73<>0, OR(Valsp1012(G73+H73,I73), Valsp1012(J73+K73,L73), Valsp1012(M73+N73,O73))) -> FALSE | AK73: 0 | AL73: =IF($V73<>0, Valsp1020(D73,Q73)) -> FALSE | AM73: 0 | AN73: =IF($V73<>0,Valsp1024(D73,G73,H73,I73)) -> FALSE
V74: 0 | W74: =IF($V74<>0,OR(Valsp11(C74),Valsp11(Q74))) -> FALSE | X74: FALSE | Y74: =IF($V74<>0, OR(Valsp13(G74), Valsp13(H74), Valsp13(J74), Valsp13(K74), Valsp13(M74), Valsp13(N74), Valsp13(Q74))) -> FALSE | Z74: =IF($V74<>0, Valsp211(C74,0)) -> FALSE | AA74: =IF($V74<>0, Valsp212(B74, G74+H74+J74+K74+M74+N74)) -> FALSE | AB74: =IF($V74<>0, Valsp25(C74)) -> FALSE | AC74: =IF($V74<>0,Valsp2101(F74)) -> FALSE | AD74: =IF($V74<>0,Valsp291(E74,F74)) -> FALSE | AE74: =IF($V74<>0, Valsp1002(G74+H74+J74+K74+M74+N74)) -> FALSE | AF74: =IF($V74<>0, Valsp1003(D74,G74,H74,I74)) -> FALSE | AG74: =IF($V74<>0, Valsp1004(J74,K74,L74)) -> FALSE | AH74: =IF($V74<>0, Valsp1005(M74,N74,O74)) -> FALSE | AI74: =IF($V74<>0, Valsp1011(C74,E74,P74)) -> FALSE | AJ74: =IF($V74<>0, OR(Valsp1012(G74+H74,I74), Valsp1012(J74+K74,L74), Valsp1012(M74+N74,O74))) -> FALSE | AK74: 0 | AL74: =IF($V74<>0, Valsp1020(D74,Q74)) -> FALSE | AM74: 0 | AN74: =IF($V74<>0,Valsp1024(D74,G74,H74,I74)) -> FALSE
P75: =IF(OR(I75<>"",L75<>"",O75<>""),SUM(I75,L75,O75),"") ->  | T75: =ValSP_SchoolErrorMessage(V75,W75,X75,Y75,Z75,AA75,AB75,AC75,AD75,AE75,AF75,AG75,AH75,AI75,AJ75,AK75,AL75,AM75,AN75) ->  | V75: =NonNull(B75:Q75) -> 0 | W75: =IF($V75<>0,OR(Valsp11(C75),Valsp11(Q75))) -> FALSE | X75: =AND(V75=1,COUNTIF($C$10:$C$210,C75) > 1) -> FALSE | Y75: FALSE | Z75: =IF($V75<>0, Valsp211(C75,0)) -> FALSE | AA75: =IF($V75<>0, Valsp212(B75, G75+H75+J75+K75+M75+N75)) -> FALSE | AB75: =IF($V75<>0, Valsp25(C75)) -> FALSE | AC75: =IF($V75<>0,Valsp2101(F75)) -> FALSE | AD75: =IF($V75<>0,Valsp291(E75,F75)) -> FALSE | AE75: =IF($V75<>0, Valsp1002(G75+H75+J75+K75+M75+N75)) -> FALSE | AF75: =IF($V75<>0, Valsp1003(D75,G75,H75,I75)) -> FALSE | AG75: =IF($V75<>0, Valsp1004(J75,K75,L75)) -> FALSE | AH75: =IF($V75<>0, Valsp1005(M75,N75,O75)) -> FALSE | AI75: =IF($V75<>0, Valsp1011(C75,E75,P75)) -> FALSE | AJ75: =IF($V75<>0, OR(Valsp1012(G75+H75,I75), Valsp1012(J75+K75,L75), Valsp1012(M75+N75,O75))) -> FALSE | AK75: 0 | AL75: =IF($V75<>0, Valsp1020(D75,Q75)) -> FALSE | AM75: 0 | AN75: =IF($V75<>0,Valsp1024(D75,G75,H75,I75)) -> FALSE
V76: 0 | W76: =IF($V76<>0,OR(Valsp11(C76),Valsp11(Q76))) -> FALSE | X76: FALSE | Y76: FALSE | Z76: =IF($V76<>0, Valsp211(C76,0)) -> FALSE | AA76: =IF($V76<>0, Valsp212(B76, G76+H76+J76+K76+M76+N76)) -> FALSE | AB76: =IF($V76<>0, Valsp25(C76)) -> FALSE | AC76: =IF($V76<>0,Valsp2101(F76)) -> FALSE | AD76: =IF($V76<>0,Valsp291(E76,F76)) -> FALSE | AE76: =IF($V76<>0, Valsp1002(G76+H76+J76+K76+M76+N76)) -> FALSE | AF76: =IF($V76<>0, Valsp1003(D76,G76,H76,I76)) -> FALSE | AG76: =IF($V76<>0, Valsp1004(J76,K76,L76)) -> FALSE | AH76: =IF($V76<>0, Valsp1005(M76,N76,O76)) -> FALSE | AI76: =IF($V76<>0, Valsp1011(C76,E76,P76)) -> FALSE | AJ76: =IF($V76<>0, OR(Valsp1012(G76+H76,I76), Valsp1012(J76+K76,L76), Valsp1012(M76+N76,O76))) -> FALSE | AK76: 0 | AL76: =IF($V76<>0, Valsp1020(D76,Q76)) -> FALSE | AM76: 0 | AN76: =IF($V76<>0,Valsp1024(D76,G76,H76,I76)) -> FALSE
V77: 0 | W77: =IF($V77<>0,OR(Valsp11(C77),Valsp11(Q77))) -> FALSE | X77: FALSE | Y77: FALSE | Z77: =IF($V77<>0, Valsp211(C77,0)) -> FALSE | AA77: =IF($V77<>0, Valsp212(B77, G77+H77+J77+K77+M77+N77)) -> FALSE | AB77: =IF($V77<>0, Valsp25(C77)) -> FALSE | AC77: =IF($V77<>0,Valsp2101(F77)) -> FALSE | AD77: =IF($V77<>0,Valsp291(E77,F77)) -> FALSE | AE77: =IF($V77<>0, Valsp1002(G77+H77+J77+K77+M77+N77)) -> FALSE | AF77: =IF($V77<>0, Valsp1003(D77,G77,H77,I77)) -> FALSE | AG77: =IF($V77<>0, Valsp1004(J77,K77,L77)) -> FALSE | AH77: =IF($V77<>0, Valsp1005(M77,N77,O77)) -> FALSE | AI77: =IF($V77<>0, Valsp1011(C77,E77,P77)) -> FALSE | AJ77: =IF($V77<>0, OR(Valsp1012(G77+H77,I77), Valsp1012(J77+K77,L77), Valsp1012(M77+N77,O77))) -> FALSE | AK77: 0 | AL77: =IF($V77<>0, Valsp1020(D77,Q77)) -> FALSE | AM77: 0 | AN77: =IF($V77<>0,Valsp1024(D77,G77,H77,I77)) -> FALSE
V78: 0 | W78: =IF($V78<>0,OR(Valsp11(C78),Valsp11(Q78))) -> FALSE | X78: FALSE | Y78: FALSE | Z78: =IF($V78<>0, Valsp211(C78,0)) -> FALSE | AA78: =IF($V78<>0, Valsp212(B78, G78+H78+J78+K78+M78+N78)) -> FALSE | AB78: =IF($V78<>0, Valsp25(C78)) -> FALSE | AC78: =IF($V78<>0,Valsp2101(F78)) -> FALSE | AD78: =IF($V78<>0,Valsp291(E78,F78)) -> FALSE | AE78: =IF($V78<>0, Valsp1002(G78+H78+J78+K78+M78+N78)) -> FALSE | AF78: =IF($V78<>0, Valsp1003(D78,G78,H78,I78)) -> FALSE | AG78: =IF($V78<>0, Valsp1004(J78,K78,L78)) -> FALSE | AH78: =IF($V78<>0, Valsp1005(M78,N78,O78)) -> FALSE | AI78: =IF($V78<>0, Valsp1011(C78,E78,P78)) -> FALSE | AJ78: =IF($V78<>0, OR(Valsp1012(G78+H78,I78), Valsp1012(J78+K78,L78), Valsp1012(M78+N78,O78))) -> FALSE | AK78: 0 | AL78: =IF($V78<>0, Valsp1020(D78,Q78)) -> FALSE | AM78: 0 | AN78: =IF($V78<>0,Valsp1024(D78,G78,H78,I78)) -> FALSE
V79: 0 | W79: =IF($V79<>0,OR(Valsp11(C79),Valsp11(Q79))) -> FALSE | X79: FALSE | Y79: FALSE | Z79: =IF($V79<>0, Valsp211(C79,0)) -> FALSE | AA79: =IF($V79<>0, Valsp212(B79, G79+H79+J79+K79+M79+N79)) -> FALSE | AB79: =IF($V79<>0, Valsp25(C79)) -> FALSE | AC79: =IF($V79<>0,Valsp2101(F79)) -> FALSE | AD79: =IF($V79<>0,Valsp291(E79,F79)) -> FALSE | AE79: =IF($V79<>0, Valsp1002(G79+H79+J79+K79+M79+N79)) -> FALSE | AF79: =IF($V79<>0, Valsp1003(D79,G79,H79,I79)) -> FALSE | AG79: =IF($V79<>0, Valsp1004(J79,K79,L79)) -> FALSE | AH79: =IF($V79<>0, Valsp1005(M79,N79,O79)) -> FALSE | AI79: =IF($V79<>0, Valsp1011(C79,E79,P79)) -> FALSE | AJ79: =IF($V79<>0, OR(Valsp1012(G79+H79,I79), Valsp1012(J79+K79,L79), Valsp1012(M79+N79,O79))) -> FALSE | AK79: 0 | AL79: =IF($V79<>0, Valsp1020(D79,Q79)) -> FALSE | AM79: 0 | AN79: =IF($V79<>0,Valsp1024(D79,G79,H79,I79)) -> FALSE
V80: 0 | W80: =IF($V80<>0,OR(Valsp11(C80),Valsp11(Q80))) -> FALSE | X80: FALSE | Y80: FALSE | Z80: =IF($V80<>0, Valsp211(C80,0)) -> FALSE | AA80: =IF($V80<>0, Valsp212(B80, G80+H80+J80+K80+M80+N80)) -> FALSE | AB80: =IF($V80<>0, Valsp25(C80)) -> FALSE | AC80: =IF($V80<>0,Valsp2101(F80)) -> FALSE | AD80: =IF($V80<>0,Valsp291(E80,F80)) -> FALSE | AE80: =IF($V80<>0, Valsp1002(G80+H80+J80+K80+M80+N80)) -> FALSE | AF80: =IF($V80<>0, Valsp1003(D80,G80,H80,I80)) -> FALSE | AG80: =IF($V80<>0, Valsp1004(J80,K80,L80)) -> FALSE | AH80: =IF($V80<>0, Valsp1005(M80,N80,O80)) -> FALSE | AI80: =IF($V80<>0, Valsp1011(C80,E80,P80)) -> FALSE | AJ80: =IF($V80<>0, OR(Valsp1012(G80+H80,I80), Valsp1012(J80+K80,L80), Valsp1012(M80+N80,O80))) -> FALSE | AK80: 0 | AL80: =IF($V80<>0, Valsp1020(D80,Q80)) -> FALSE | AM80: 0 | AN80: =IF($V80<>0,Valsp1024(D80,G80,H80,I80)) -> FALSE
V81: 0 | W81: =IF($V81<>0,OR(Valsp11(C81),Valsp11(Q81))) -> FALSE | X81: FALSE | Y81: FALSE | Z81: =IF($V81<>0, Valsp211(C81,0)) -> FALSE | AA81: =IF($V81<>0, Valsp212(B81, G81+H81+J81+K81+M81+N81)) -> FALSE | AB81: =IF($V81<>0, Valsp25(C81)) -> FALSE | AC81: =IF($V81<>0,Valsp2101(F81)) -> FALSE | AD81: =IF($V81<>0,Valsp291(E81,F81)) -> FALSE | AE81: =IF($V81<>0, Valsp1002(G81+H81+J81+K81+M81+N81)) -> FALSE | AF81: =IF($V81<>0, Valsp1003(D81,G81,H81,I81)) -> FALSE | AG81: =IF($V81<>0, Valsp1004(J81,K81,L81)) -> FALSE | AH81: =IF($V81<>0, Valsp1005(M81,N81,O81)) -> FALSE | AI81: =IF($V81<>0, Valsp1011(C81,E81,P81)) -> FALSE | AJ81: =IF($V81<>0, OR(Valsp1012(G81+H81,I81), Valsp1012(J81+K81,L81), Valsp1012(M81+N81,O81))) -> FALSE | AK81: 0 | AL81: =IF($V81<>0, Valsp1020(D81,Q81)) -> FALSE | AM81: 0 | AN81: =IF($V81<>0,Valsp1024(D81,G81,H81,I81)) -> FALSE
V82: 0 | W82: =IF($V82<>0,OR(Valsp11(C82),Valsp11(Q82))) -> FALSE | X82: FALSE | Y82: FALSE | Z82: =IF($V82<>0, Valsp211(C82,0)) -> FALSE | AA82: =IF($V82<>0, Valsp212(B82, G82+H82+J82+K82+M82+N82)) -> FALSE | AB82: =IF($V82<>0, Valsp25(C82)) -> FALSE | AC82: =IF($V82<>0,Valsp2101(F82)) -> FALSE | AD82: =IF($V82<>0,Valsp291(E82,F82)) -> FALSE | AE82: =IF($V82<>0, Valsp1002(G82+H82+J82+K82+M82+N82)) -> FALSE | AF82: =IF($V82<>0, Valsp1003(D82,G82,H82,I82)) -> FALSE | AG82: =IF($V82<>0, Valsp1004(J82,K82,L82)) -> FALSE | AH82: =IF($V82<>0, Valsp1005(M82,N82,O82)) -> FALSE | AI82: =IF($V82<>0, Valsp1011(C82,E82,P82)) -> FALSE | AJ82: =IF($V82<>0, OR(Valsp1012(G82+H82,I82), Valsp1012(J82+K82,L82), Valsp1012(M82+N82,O82))) -> FALSE | AK82: 0 | AL82: =IF($V82<>0, Valsp1020(D82,Q82)) -> FALSE | AM82: 0 | AN82: =IF($V82<>0,Valsp1024(D82,G82,H82,I82)) -> FALSE
V83: 0 | W83: =IF($V83<>0,OR(Valsp11(C83),Valsp11(Q83))) -> FALSE | X83: FALSE | Y83: FALSE | Z83: =IF($V83<>0, Valsp211(C83,0)) -> FALSE | AA83: =IF($V83<>0, Valsp212(B83, G83+H83+J83+K83+M83+N83)) -> FALSE | AB83: =IF($V83<>0, Valsp25(C83)) -> FALSE | AC83: =IF($V83<>0,Valsp2101(F83)) -> FALSE | AD83: =IF($V83<>0,Valsp291(E83,F83)) -> FALSE | AE83: =IF($V83<>0, Valsp1002(G83+H83+J83+K83+M83+N83)) -> FALSE | AF83: =IF($V83<>0, Valsp1003(D83,G83,H83,I83)) -> FALSE | AG83: =IF($V83<>0, Valsp1004(J83,K83,L83)) -> FALSE | AH83: =IF($V83<>0, Valsp1005(M83,N83,O83)) -> FALSE | AI83: =IF($V83<>0, Valsp1011(C83,E83,P83)) -> FALSE | AJ83: =IF($V83<>0, OR(Valsp1012(G83+H83,I83), Valsp1012(J83+K83,L83), Valsp1012(M83+N83,O83))) -> FALSE | AK83: 0 | AL83: =IF($V83<>0, Valsp1020(D83,Q83)) -> FALSE | AM83: 0 | AN83: =IF($V83<>0,Valsp1024(D83,G83,H83,I83)) -> FALSE
V84: 0 | W84: =IF($V84<>0,OR(Valsp11(C84),Valsp11(Q84))) -> FALSE | X84: FALSE | Y84: FALSE | Z84: =IF($V84<>0, Valsp211(C84,0)) -> FALSE | AA84: =IF($V84<>0, Valsp212(B84, G84+H84+J84+K84+M84+N84)) -> FALSE | AB84: =IF($V84<>0, Valsp25(C84)) -> FALSE | AC84: =IF($V84<>0,Valsp2101(F84)) -> FALSE | AD84: =IF($V84<>0,Valsp291(E84,F84)) -> FALSE | AE84: =IF($V84<>0, Valsp1002(G84+H84+J84+K84+M84+N84)) -> FALSE | AF84: =IF($V84<>0, Valsp1003(D84,G84,H84,I84)) -> FALSE | AG84: =IF($V84<>0, Valsp1004(J84,K84,L84)) -> FALSE | AH84: =IF($V84<>0, Valsp1005(M84,N84,O84)) -> FALSE | AI84: =IF($V84<>0, Valsp1011(C84,E84,P84)) -> FALSE | AJ84: =IF($V84<>0, OR(Valsp1012(G84+H84,I84), Valsp1012(J84+K84,L84), Valsp1012(M84+N84,O84))) -> FALSE | AK84: 0 | AL84: =IF($V84<>0, Valsp1020(D84,Q84)) -> FALSE | AM84: 0 | AN84: =IF($V84<>0,Valsp1024(D84,G84,H84,I84)) -> FALSE
V85: 0 | W85: =IF($V85<>0,OR(Valsp11(C85),Valsp11(Q85))) -> FALSE | X85: FALSE | Y85: FALSE | Z85: =IF($V85<>0, Valsp211(C85,0)) -> FALSE | AA85: =IF($V85<>0, Valsp212(B85, G85+H85+J85+K85+M85+N85)) -> FALSE | AB85: =IF($V85<>0, Valsp25(C85)) -> FALSE | AC85: =IF($V85<>0,Valsp2101(F85)) -> FALSE | AD85: =IF($V85<>0,Valsp291(E85,F85)) -> FALSE | AE85: =IF($V85<>0, Valsp1002(G85+H85+J85+K85+M85+N85)) -> FALSE | AF85: =IF($V85<>0, Valsp1003(D85,G85,H85,I85)) -> FALSE | AG85: =IF($V85<>0, Valsp1004(J85,K85,L85)) -> FALSE | AH85: =IF($V85<>0, Valsp1005(M85,N85,O85)) -> FALSE | AI85: =IF($V85<>0, Valsp1011(C85,E85,P85)) -> FALSE | AJ85: =IF($V85<>0, OR(Valsp1012(G85+H85,I85), Valsp1012(J85+K85,L85), Valsp1012(M85+N85,O85))) -> FALSE | AK85: 0 | AL85: =IF($V85<>0, Valsp1020(D85,Q85)) -> FALSE | AM85: 0 | AN85: =IF($V85<>0,Valsp1024(D85,G85,H85,I85)) -> FALSE
V86: 0 | W86: =IF($V86<>0,OR(Valsp11(C86),Valsp11(Q86))) -> FALSE | X86: FALSE | Y86: FALSE | Z86: =IF($V86<>0, Valsp211(C86,0)) -> FALSE | AA86: =IF($V86<>0, Valsp212(B86, G86+H86+J86+K86+M86+N86)) -> FALSE | AB86: =IF($V86<>0, Valsp25(C86)) -> FALSE | AC86: =IF($V86<>0,Valsp2101(F86)) -> FALSE | AD86: =IF($V86<>0,Valsp291(E86,F86)) -> FALSE | AE86: =IF($V86<>0, Valsp1002(G86+H86+J86+K86+M86+N86)) -> FALSE | AF86: =IF($V86<>0, Valsp1003(D86,G86,H86,I86)) -> FALSE | AG86: =IF($V86<>0, Valsp1004(J86,K86,L86)) -> FALSE | AH86: =IF($V86<>0, Valsp1005(M86,N86,O86)) -> FALSE | AI86: =IF($V86<>0, Valsp1011(C86,E86,P86)) -> FALSE | AJ86: =IF($V86<>0, OR(Valsp1012(G86+H86,I86), Valsp1012(J86+K86,L86), Valsp1012(M86+N86,O86))) -> FALSE | AK86: 0 | AL86: =IF($V86<>0, Valsp1020(D86,Q86)) -> FALSE | AM86: 0 | AN86: =IF($V86<>0,Valsp1024(D86,G86,H86,I86)) -> FALSE
V87: 0 | W87: =IF($V87<>0,OR(Valsp11(C87),Valsp11(Q87))) -> FALSE | X87: FALSE | Y87: FALSE | Z87: =IF($V87<>0, Valsp211(C87,0)) -> FALSE | AA87: =IF($V87<>0, Valsp212(B87, G87+H87+J87+K87+M87+N87)) -> FALSE | AB87: =IF($V87<>0, Valsp25(C87)) -> FALSE | AC87: =IF($V87<>0,Valsp2101(F87)) -> FALSE | AD87: =IF($V87<>0,Valsp291(E87,F87)) -> FALSE | AE87: =IF($V87<>0, Valsp1002(G87+H87+J87+K87+M87+N87)) -> FALSE | AF87: =IF($V87<>0, Valsp1003(D87,G87,H87,I87)) -> FALSE | AG87: =IF($V87<>0, Valsp1004(J87,K87,L87)) -> FALSE | AH87: =IF($V87<>0, Valsp1005(M87,N87,O87)) -> FALSE | AI87: =IF($V87<>0, Valsp1011(C87,E87,P87)) -> FALSE | AJ87: =IF($V87<>0, OR(Valsp1012(G87+H87,I87), Valsp1012(J87+K87,L87), Valsp1012(M87+N87,O87))) -> FALSE | AK87: 0 | AL87: =IF($V87<>0, Valsp1020(D87,Q87)) -> FALSE | AM87: 0 | AN87: =IF($V87<>0,Valsp1024(D87,G87,H87,I87)) -> FALSE
V88: 0 | W88: =IF($V88<>0,OR(Valsp11(C88),Valsp11(Q88))) -> FALSE | X88: FALSE | Y88: FALSE | Z88: =IF($V88<>0, Valsp211(C88,0)) -> FALSE | AA88: =IF($V88<>0, Valsp212(B88, G88+H88+J88+K88+M88+N88)) -> FALSE | AB88: =IF($V88<>0, Valsp25(C88)) -> FALSE | AC88: =IF($V88<>0,Valsp2101(F88)) -> FALSE | AD88: =IF($V88<>0,Valsp291(E88,F88)) -> FALSE | AE88: =IF($V88<>0, Valsp1002(G88+H88+J88+K88+M88+N88)) -> FALSE | AF88: =IF($V88<>0, Valsp1003(D88,G88,H88,I88)) -> FALSE | AG88: =IF($V88<>0, Valsp1004(J88,K88,L88)) -> FALSE | AH88: =IF($V88<>0, Valsp1005(M88,N88,O88)) -> FALSE | AI88: =IF($V88<>0, Valsp1011(C88,E88,P88)) -> FALSE | AJ88: =IF($V88<>0, OR(Valsp1012(G88+H88,I88), Valsp1012(J88+K88,L88), Valsp1012(M88+N88,O88))) -> FALSE | AK88: 0 | AL88: =IF($V88<>0, Valsp1020(D88,Q88)) -> FALSE | AM88: 0 | AN88: =IF($V88<>0,Valsp1024(D88,G88,H88,I88)) -> FALSE
V89: 0 | W89: =IF($V89<>0,OR(Valsp11(C89),Valsp11(Q89))) -> FALSE | X89: FALSE | Y89: FALSE | Z89: =IF($V89<>0, Valsp211(C89,0)) -> FALSE | AA89: =IF($V89<>0, Valsp212(B89, G89+H89+J89+K89+M89+N89)) -> FALSE | AB89: =IF($V89<>0, Valsp25(C89)) -> FALSE | AC89: =IF($V89<>0,Valsp2101(F89)) -> FALSE | AD89: =IF($V89<>0,Valsp291(E89,F89)) -> FALSE | AE89: =IF($V89<>0, Valsp1002(G89+H89+J89+K89+M89+N89)) -> FALSE | AF89: =IF($V89<>0, Valsp1003(D89,G89,H89,I89)) -> FALSE | AG89: =IF($V89<>0, Valsp1004(J89,K89,L89)) -> FALSE | AH89: =IF($V89<>0, Valsp1005(M89,N89,O89)) -> FALSE | AI89: =IF($V89<>0, Valsp1011(C89,E89,P89)) -> FALSE | AJ89: =IF($V89<>0, OR(Valsp1012(G89+H89,I89), Valsp1012(J89+K89,L89), Valsp1012(M89+N89,O89))) -> FALSE | AK89: 0 | AL89: =IF($V89<>0, Valsp1020(D89,Q89)) -> FALSE | AM89: 0 | AN89: =IF($V89<>0,Valsp1024(D89,G89,H89,I89)) -> FALSE
V90: 0 | W90: =IF($V90<>0,OR(Valsp11(C90),Valsp11(Q90))) -> FALSE | X90: FALSE | Y90: FALSE | Z90: =IF($V90<>0, Valsp211(C90,0)) -> FALSE | AA90: =IF($V90<>0, Valsp212(B90, G90+H90+J90+K90+M90+N90)) -> FALSE | AB90: =IF($V90<>0, Valsp25(C90)) -> FALSE | AC90: =IF($V90<>0,Valsp2101(F90)) -> FALSE | AD90: =IF($V90<>0,Valsp291(E90,F90)) -> FALSE | AE90: =IF($V90<>0, Valsp1002(G90+H90+J90+K90+M90+N90)) -> FALSE | AF90: =IF($V90<>0, Valsp1003(D90,G90,H90,I90)) -> FALSE | AG90: =IF($V90<>0, Valsp1004(J90,K90,L90)) -> FALSE | AH90: =IF($V90<>0, Valsp1005(M90,N90,O90)) -> FALSE | AI90: =IF($V90<>0, Valsp1011(C90,E90,P90)) -> FALSE | AJ90: =IF($V90<>0, OR(Valsp1012(G90+H90,I90), Valsp1012(J90+K90,L90), Valsp1012(M90+N90,O90))) -> FALSE | AK90: 0 | AL90: =IF($V90<>0, Valsp1020(D90,Q90)) -> FALSE | AM90: 0 | AN90: =IF($V90<>0,Valsp1024(D90,G90,H90,I90)) -> FALSE
V91: 0 | W91: =IF($V91<>0,OR(Valsp11(C91),Valsp11(Q91))) -> FALSE | X91: FALSE | Y91: FALSE | Z91: =IF($V91<>0, Valsp211(C91,0)) -> FALSE | AA91: =IF($V91<>0, Valsp212(B91, G91+H91+J91+K91+M91+N91)) -> FALSE | AB91: =IF($V91<>0, Valsp25(C91)) -> FALSE | AC91: =IF($V91<>0,Valsp2101(F91)) -> FALSE | AD91: =IF($V91<>0,Valsp291(E91,F91)) -> FALSE | AE91: =IF($V91<>0, Valsp1002(G91+H91+J91+K91+M91+N91)) -> FALSE | AF91: =IF($V91<>0, Valsp1003(D91,G91,H91,I91)) -> FALSE | AG91: =IF($V91<>0, Valsp1004(J91,K91,L91)) -> FALSE | AH91: =IF($V91<>0, Valsp1005(M91,N91,O91)) -> FALSE | AI91: =IF($V91<>0, Valsp1011(C91,E91,P91)) -> FALSE | AJ91: =IF($V91<>0, OR(Valsp1012(G91+H91,I91), Valsp1012(J91+K91,L91), Valsp1012(M91+N91,O91))) -> FALSE | AK91: 0 | AL91: =IF($V91<>0, Valsp1020(D91,Q91)) -> FALSE | AM91: 0 | AN91: =IF($V91<>0,Valsp1024(D91,G91,H91,I91)) -> FALSE
V92: 0 | W92: =IF($V92<>0,OR(Valsp11(C92),Valsp11(Q92))) -> FALSE | X92: FALSE | Y92: FALSE | Z92: =IF($V92<>0, Valsp211(C92,0)) -> FALSE | AA92: =IF($V92<>0, Valsp212(B92, G92+H92+J92+K92+M92+N92)) -> FALSE | AB92: =IF($V92<>0, Valsp25(C92)) -> FALSE | AC92: =IF($V92<>0,Valsp2101(F92)) -> FALSE | AD92: =IF($V92<>0,Valsp291(E92,F92)) -> FALSE | AE92: =IF($V92<>0, Valsp1002(G92+H92+J92+K92+M92+N92)) -> FALSE | AF92: =IF($V92<>0, Valsp1003(D92,G92,H92,I92)) -> FALSE | AG92: =IF($V92<>0, Valsp1004(J92,K92,L92)) -> FALSE | AH92: =IF($V92<>0, Valsp1005(M92,N92,O92)) -> FALSE | AI92: =IF($V92<>0, Valsp1011(C92,E92,P92)) -> FALSE | AJ92: =IF($V92<>0, OR(Valsp1012(G92+H92,I92), Valsp1012(J92+K92,L92), Valsp1012(M92+N92,O92))) -> FALSE | AK92: 0 | AL92: =IF($V92<>0, Valsp1020(D92,Q92)) -> FALSE | AM92: 0 | AN92: =IF($V92<>0,Valsp1024(D92,G92,H92,I92)) -> FALSE
V93: 0 | W93: =IF($V93<>0,OR(Valsp11(C93),Valsp11(Q93))) -> FALSE | X93: FALSE | Y93: FALSE | Z93: =IF($V93<>0, Valsp211(C93,0)) -> FALSE | AA93: =IF($V93<>0, Valsp212(B93, G93+H93+J93+K93+M93+N93)) -> FALSE | AB93: =IF($V93<>0, Valsp25(C93)) -> FALSE | AC93: =IF($V93<>0,Valsp2101(F93)) -> FALSE | AD93: =IF($V93<>0,Valsp291(E93,F93)) -> FALSE | AE93: =IF($V93<>0, Valsp1002(G93+H93+J93+K93+M93+N93)) -> FALSE | AF93: =IF($V93<>0, Valsp1003(D93,G93,H93,I93)) -> FALSE | AG93: =IF($V93<>0, Valsp1004(J93,K93,L93)) -> FALSE | AH93: =IF($V93<>0, Valsp1005(M93,N93,O93)) -> FALSE | AI93: =IF($V93<>0, Valsp1011(C93,E93,P93)) -> FALSE | AJ93: =IF($V93<>0, OR(Valsp1012(G93+H93,I93), Valsp1012(J93+K93,L93), Valsp1012(M93+N93,O93))) -> FALSE | AK93: 0 | AL93: =IF($V93<>0, Valsp1020(D93,Q93)) -> FALSE | AM93: 0 | AN93: =IF($V93<>0,Valsp1024(D93,G93,H93,I93)) -> FALSE
V94: 0 | W94: =IF($V94<>0,OR(Valsp11(C94),Valsp11(Q94))) -> FALSE | X94: FALSE | Y94: FALSE | Z94: =IF($V94<>0, Valsp211(C94,0)) -> FALSE | AA94: =IF($V94<>0, Valsp212(B94, G94+H94+J94+K94+M94+N94)) -> FALSE | AB94: =IF($V94<>0, Valsp25(C94)) -> FALSE | AC94: =IF($V94<>0,Valsp2101(F94)) -> FALSE | AD94: =IF($V94<>0,Valsp291(E94,F94)) -> FALSE | AE94: =IF($V94<>0, Valsp1002(G94+H94+J94+K94+M94+N94)) -> FALSE | AF94: =IF($V94<>0, Valsp1003(D94,G94,H94,I94)) -> FALSE | AG94: =IF($V94<>0, Valsp1004(J94,K94,L94)) -> FALSE | AH94: =IF($V94<>0, Valsp1005(M94,N94,O94)) -> FALSE | AI94: =IF($V94<>0, Valsp1011(C94,E94,P94)) -> FALSE | AJ94: =IF($V94<>0, OR(Valsp1012(G94+H94,I94), Valsp1012(J94+K94,L94), Valsp1012(M94+N94,O94))) -> FALSE | AK94: 0 | AL94: =IF($V94<>0, Valsp1020(D94,Q94)) -> FALSE | AM94: 0 | AN94: =IF($V94<>0,Valsp1024(D94,G94,H94,I94)) -> FALSE
V95: 0 | W95: =IF($V95<>0,OR(Valsp11(C95),Valsp11(Q95))) -> FALSE | X95: FALSE | Y95: FALSE | Z95: =IF($V95<>0, Valsp211(C95,0)) -> FALSE | AA95: =IF($V95<>0, Valsp212(B95, G95+H95+J95+K95+M95+N95)) -> FALSE | AB95: =IF($V95<>0, Valsp25(C95)) -> FALSE | AC95: =IF($V95<>0,Valsp2101(F95)) -> FALSE | AD95: =IF($V95<>0,Valsp291(E95,F95)) -> FALSE | AE95: =IF($V95<>0, Valsp1002(G95+H95+J95+K95+M95+N95)) -> FALSE | AF95: =IF($V95<>0, Valsp1003(D95,G95,H95,I95)) -> FALSE | AG95: =IF($V95<>0, Valsp1004(J95,K95,L95)) -> FALSE | AH95: =IF($V95<>0, Valsp1005(M95,N95,O95)) -> FALSE | AI95: =IF($V95<>0, Valsp1011(C95,E95,P95)) -> FALSE | AJ95: =IF($V95<>0, OR(Valsp1012(G95+H95,I95), Valsp1012(J95+K95,L95), Valsp1012(M95+N95,O95))) -> FALSE | AK95: 0 | AL95: =IF($V95<>0, Valsp1020(D95,Q95)) -> FALSE | AM95: 0 | AN95: =IF($V95<>0,Valsp1024(D95,G95,H95,I95)) -> FALSE
V96: 0 | W96: =IF($V96<>0,OR(Valsp11(C96),Valsp11(Q96))) -> FALSE | X96: FALSE | Y96: FALSE | Z96: =IF($V96<>0, Valsp211(C96,0)) -> FALSE | AA96: =IF($V96<>0, Valsp212(B96, G96+H96+J96+K96+M96+N96)) -> FALSE | AB96: =IF($V96<>0, Valsp25(C96)) -> FALSE | AC96: =IF($V96<>0,Valsp2101(F96)) -> FALSE | AD96: =IF($V96<>0,Valsp291(E96,F96)) -> FALSE | AE96: =IF($V96<>0, Valsp1002(G96+H96+J96+K96+M96+N96)) -> FALSE | AF96: =IF($V96<>0, Valsp1003(D96,G96,H96,I96)) -> FALSE | AG96: =IF($V96<>0, Valsp1004(J96,K96,L96)) -> FALSE | AH96: =IF($V96<>0, Valsp1005(M96,N96,O96)) -> FALSE | AI96: =IF($V96<>0, Valsp1011(C96,E96,P96)) -> FALSE | AJ96: =IF($V96<>0, OR(Valsp1012(G96+H96,I96), Valsp1012(J96+K96,L96), Valsp1012(M96+N96,O96))) -> FALSE | AK96: 0 | AL96: =IF($V96<>0, Valsp1020(D96,Q96)) -> FALSE | AM96: 0 | AN96: =IF($V96<>0,Valsp1024(D96,G96,H96,I96)) -> FALSE
V97: 0 | W97: =IF($V97<>0,OR(Valsp11(C97),Valsp11(Q97))) -> FALSE | X97: FALSE | Y97: FALSE | Z97: =IF($V97<>0, Valsp211(C97,0)) -> FALSE | AA97: =IF($V97<>0, Valsp212(B97, G97+H97+J97+K97+M97+N97)) -> FALSE | AB97: =IF($V97<>0, Valsp25(C97)) -> FALSE | AC97: =IF($V97<>0,Valsp2101(F97)) -> FALSE | AD97: =IF($V97<>0,Valsp291(E97,F97)) -> FALSE | AE97: =IF($V97<>0, Valsp1002(G97+H97+J97+K97+M97+N97)) -> FALSE | AF97: =IF($V97<>0, Valsp1003(D97,G97,H97,I97)) -> FALSE | AG97: =IF($V97<>0, Valsp1004(J97,K97,L97)) -> FALSE | AH97: =IF($V97<>0, Valsp1005(M97,N97,O97)) -> FALSE | AI97: =IF($V97<>0, Valsp1011(C97,E97,P97)) -> FALSE | AJ97: =IF($V97<>0, OR(Valsp1012(G97+H97,I97), Valsp1012(J97+K97,L97), Valsp1012(M97+N97,O97))) -> FALSE | AK97: 0 | AL97: =IF($V97<>0, Valsp1020(D97,Q97)) -> FALSE | AM97: 0 | AN97: =IF($V97<>0,Valsp1024(D97,G97,H97,I97)) -> FALSE
V98: 0 | W98: =IF($V98<>0,OR(Valsp11(C98),Valsp11(Q98))) -> FALSE | X98: FALSE | Y98: FALSE | Z98: =IF($V98<>0, Valsp211(C98,0)) -> FALSE | AA98: =IF($V98<>0, Valsp212(B98, G98+H98+J98+K98+M98+N98)) -> FALSE | AB98: =IF($V98<>0, Valsp25(C98)) -> FALSE | AC98: =IF($V98<>0,Valsp2101(F98)) -> FALSE | AD98: =IF($V98<>0,Valsp291(E98,F98)) -> FALSE | AE98: =IF($V98<>0, Valsp1002(G98+H98+J98+K98+M98+N98)) -> FALSE | AF98: =IF($V98<>0, Valsp1003(D98,G98,H98,I98)) -> FALSE | AG98: =IF($V98<>0, Valsp1004(J98,K98,L98)) -> FALSE | AH98: =IF($V98<>0, Valsp1005(M98,N98,O98)) -> FALSE | AI98: =IF($V98<>0, Valsp1011(C98,E98,P98)) -> FALSE | AJ98: =IF($V98<>0, OR(Valsp1012(G98+H98,I98), Valsp1012(J98+K98,L98), Valsp1012(M98+N98,O98))) -> FALSE | AK98: 0 | AL98: =IF($V98<>0, Valsp1020(D98,Q98)) -> FALSE | AM98: 0 | AN98: =IF($V98<>0,Valsp1024(D98,G98,H98,I98)) -> FALSE
V99: 0 | W99: =IF($V99<>0,OR(Valsp11(C99),Valsp11(Q99))) -> FALSE | X99: FALSE | Y99: FALSE | Z99: =IF($V99<>0, Valsp211(C99,0)) -> FALSE | AA99: =IF($V99<>0, Valsp212(B99, G99+H99+J99+K99+M99+N99)) -> FALSE | AB99: =IF($V99<>0, Valsp25(C99)) -> FALSE | AC99: =IF($V99<>0,Valsp2101(F99)) -> FALSE | AD99: =IF($V99<>0,Valsp291(E99,F99)) -> FALSE | AE99: =IF($V99<>0, Valsp1002(G99+H99+J99+K99+M99+N99)) -> FALSE | AF99: =IF($V99<>0, Valsp1003(D99,G99,H99,I99)) -> FALSE | AG99: =IF($V99<>0, Valsp1004(J99,K99,L99)) -> FALSE | AH99: =IF($V99<>0, Valsp1005(M99,N99,O99)) -> FALSE | AI99: =IF($V99<>0, Valsp1011(C99,E99,P99)) -> FALSE | AJ99: =IF($V99<>0, OR(Valsp1012(G99+H99,I99), Valsp1012(J99+K99,L99), Valsp1012(M99+N99,O99))) -> FALSE | AK99: 0 | AL99: =IF($V99<>0, Valsp1020(D99,Q99)) -> FALSE | AM99: 0 | AN99: =IF($V99<>0,Valsp1024(D99,G99,H99,I99)) -> FALSE
V100: 0 | W100: =IF($V100<>0,OR(Valsp11(C100),Valsp11(Q100))) -> FALSE | X100: FALSE | Y100: FALSE | Z100: =IF($V100<>0, Valsp211(C100,0)) -> FALSE | AA100: =IF($V100<>0, Valsp212(B100, G100+H100+J100+K100+M100+N100)) -> FALSE | AB100: =IF($V100<>0, Valsp25(C100)) -> FALSE | AC100: =IF($V100<>0,Valsp2101(F100)) -> FALSE | AD100: =IF($V100<>0,Valsp291(E100,F100)) -> FALSE | AE100: =IF($V100<>0, Valsp1002(G100+H100+J100+K100+M100+N100)) -> FALSE | AF100: =IF($V100<>0, Valsp1003(D100,G100,H100,I100)) -> FALSE | AG100: =IF($V100<>0, Valsp1004(J100,K100,L100)) -> FALSE | AH100: =IF($V100<>0, Valsp1005(M100,N100,O100)) -> FALSE | AI100: =IF($V100<>0, Valsp1011(C100,E100,P100)) -> FALSE | AJ100: =IF($V100<>0, OR(Valsp1012(G100+H100,I100), Valsp1012(J100+K100,L100), Valsp1012(M100+N100,O100))) -> FALSE | AK100: 0 | AL100: =IF($V100<>0, Valsp1020(D100,Q100)) -> FALSE | AM100: 0 | AN100: =IF($V100<>0,Valsp1024(D100,G100,H100,I100)) -> FALSE
V101: 0 | W101: =IF($V101<>0,OR(Valsp11(C101),Valsp11(Q101))) -> FALSE | X101: FALSE | Y101: FALSE | Z101: =IF($V101<>0, Valsp211(C101,0)) -> FALSE | AA101: =IF($V101<>0, Valsp212(B101, G101+H101+J101+K101+M101+N101)) -> FALSE | AB101: =IF($V101<>0, Valsp25(C101)) -> FALSE | AC101: =IF($V101<>0,Valsp2101(F101)) -> FALSE | AD101: =IF($V101<>0,Valsp291(E101,F101)) -> FALSE | AE101: =IF($V101<>0, Valsp1002(G101+H101+J101+K101+M101+N101)) -> FALSE | AF101: =IF($V101<>0, Valsp1003(D101,G101,H101,I101)) -> FALSE | AG101: =IF($V101<>0, Valsp1004(J101,K101,L101)) -> FALSE | AH101: =IF($V101<>0, Valsp1005(M101,N101,O101)) -> FALSE | AI101: =IF($V101<>0, Valsp1011(C101,E101,P101)) -> FALSE | AJ101: =IF($V101<>0, OR(Valsp1012(G101+H101,I101), Valsp1012(J101+K101,L101), Valsp1012(M101+N101,O101))) -> FALSE | AK101: 0 | AL101: =IF($V101<>0, Valsp1020(D101,Q101)) -> FALSE | AM101: 0 | AN101: =IF($V101<>0,Valsp1024(D101,G101,H101,I101)) -> FALSE
V102: 0 | W102: =IF($V102<>0,OR(Valsp11(C102),Valsp11(Q102))) -> FALSE | X102: FALSE | Y102: FALSE | Z102: =IF($V102<>0, Valsp211(C102,0)) -> FALSE | AA102: =IF($V102<>0, Valsp212(B102, G102+H102+J102+K102+M102+N102)) -> FALSE | AB102: =IF($V102<>0, Valsp25(C102)) -> FALSE | AC102: =IF($V102<>0,Valsp2101(F102)) -> FALSE | AD102: =IF($V102<>0,Valsp291(E102,F102)) -> FALSE | AE102: =IF($V102<>0, Valsp1002(G102+H102+J102+K102+M102+N102)) -> FALSE | AF102: =IF($V102<>0, Valsp1003(D102,G102,H102,I102)) -> FALSE | AG102: =IF($V102<>0, Valsp1004(J102,K102,L102)) -> FALSE | AH102: =IF($V102<>0, Valsp1005(M102,N102,O102)) -> FALSE | AI102: =IF($V102<>0, Valsp1011(C102,E102,P102)) -> FALSE | AJ102: =IF($V102<>0, OR(Valsp1012(G102+H102,I102), Valsp1012(J102+K102,L102), Valsp1012(M102+N102,O102))) -> FALSE | AK102: 0 | AL102: =IF($V102<>0, Valsp1020(D102,Q102)) -> FALSE | AM102: 0 | AN102: =IF($V102<>0,Valsp1024(D102,G102,H102,I102)) -> FALSE
V103: 0 | W103: =IF($V103<>0,OR(Valsp11(C103),Valsp11(Q103))) -> FALSE | X103: FALSE | Y103: FALSE | Z103: =IF($V103<>0, Valsp211(C103,0)) -> FALSE | AA103: =IF($V103<>0, Valsp212(B103, G103+H103+J103+K103+M103+N103)) -> FALSE | AB103: =IF($V103<>0, Valsp25(C103)) -> FALSE | AC103: =IF($V103<>0,Valsp2101(F103)) -> FALSE | AD103: =IF($V103<>0,Valsp291(E103,F103)) -> FALSE | AE103: =IF($V103<>0, Valsp1002(G103+H103+J103+K103+M103+N103)) -> FALSE | AF103: =IF($V103<>0, Valsp1003(D103,G103,H103,I103)) -> FALSE | AG103: =IF($V103<>0, Valsp1004(J103,K103,L103)) -> FALSE | AH103: =IF($V103<>0, Valsp1005(M103,N103,O103)) -> FALSE | AI103: =IF($V103<>0, Valsp1011(C103,E103,P103)) -> FALSE | AJ103: =IF($V103<>0, OR(Valsp1012(G103+H103,I103), Valsp1012(J103+K103,L103), Valsp1012(M103+N103,O103))) -> FALSE | AK103: 0 | AL103: =IF($V103<>0, Valsp1020(D103,Q103)) -> FALSE | AM103: 0 | AN103: =IF($V103<>0,Valsp1024(D103,G103,H103,I103)) -> FALSE
V104: 0 | W104: =IF($V104<>0,OR(Valsp11(C104),Valsp11(Q104))) -> FALSE | X104: FALSE | Y104: FALSE | Z104: =IF($V104<>0, Valsp211(C104,0)) -> FALSE | AA104: =IF($V104<>0, Valsp212(B104, G104+H104+J104+K104+M104+N104)) -> FALSE | AB104: =IF($V104<>0, Valsp25(C104)) -> FALSE | AC104: =IF($V104<>0,Valsp2101(F104)) -> FALSE | AD104: =IF($V104<>0,Valsp291(E104,F104)) -> FALSE | AE104: =IF($V104<>0, Valsp1002(G104+H104+J104+K104+M104+N104)) -> FALSE | AF104: =IF($V104<>0, Valsp1003(D104,G104,H104,I104)) -> FALSE | AG104: =IF($V104<>0, Valsp1004(J104,K104,L104)) -> FALSE | AH104: =IF($V104<>0, Valsp1005(M104,N104,O104)) -> FALSE | AI104: =IF($V104<>0, Valsp1011(C104,E104,P104)) -> FALSE | AJ104: =IF($V104<>0, OR(Valsp1012(G104+H104,I104), Valsp1012(J104+K104,L104), Valsp1012(M104+N104,O104))) -> FALSE | AK104: 0 | AL104: =IF($V104<>0, Valsp1020(D104,Q104)) -> FALSE | AM104: 0 | AN104: =IF($V104<>0,Valsp1024(D104,G104,H104,I104)) -> FALSE
V105: 0 | W105: =IF($V105<>0,OR(Valsp11(C105),Valsp11(Q105))) -> FALSE | X105: FALSE | Y105: FALSE | Z105: =IF($V105<>0, Valsp211(C105,0)) -> FALSE | AA105: =IF($V105<>0, Valsp212(B105, G105+H105+J105+K105+M105+N105)) -> FALSE | AB105: =IF($V105<>0, Valsp25(C105)) -> FALSE | AC105: =IF($V105<>0,Valsp2101(F105)) -> FALSE | AD105: =IF($V105<>0,Valsp291(E105,F105)) -> FALSE | AE105: =IF($V105<>0, Valsp1002(G105+H105+J105+K105+M105+N105)) -> FALSE | AF105: =IF($V105<>0, Valsp1003(D105,G105,H105,I105)) -> FALSE | AG105: =IF($V105<>0, Valsp1004(J105,K105,L105)) -> FALSE | AH105: =IF($V105<>0, Valsp1005(M105,N105,O105)) -> FALSE | AI105: =IF($V105<>0, Valsp1011(C105,E105,P105)) -> FALSE | AJ105: =IF($V105<>0, OR(Valsp1012(G105+H105,I105), Valsp1012(J105+K105,L105), Valsp1012(M105+N105,O105))) -> FALSE | AK105: 0 | AL105: =IF($V105<>0, Valsp1020(D105,Q105)) -> FALSE | AM105: 0 | AN105: =IF($V105<>0,Valsp1024(D105,G105,H105,I105)) -> FALSE
V106: 0 | W106: =IF($V106<>0,OR(Valsp11(C106),Valsp11(Q106))) -> FALSE | X106: FALSE | Y106: FALSE | Z106: =IF($V106<>0, Valsp211(C106,0)) -> FALSE | AA106: =IF($V106<>0, Valsp212(B106, G106+H106+J106+K106+M106+N106)) -> FALSE | AB106: =IF($V106<>0, Valsp25(C106)) -> FALSE | AC106: =IF($V106<>0,Valsp2101(F106)) -> FALSE | AD106: =IF($V106<>0,Valsp291(E106,F106)) -> FALSE | AE106: =IF($V106<>0, Valsp1002(G106+H106+J106+K106+M106+N106)) -> FALSE | AF106: =IF($V106<>0, Valsp1003(D106,G106,H106,I106)) -> FALSE | AG106: =IF($V106<>0, Valsp1004(J106,K106,L106)) -> FALSE | AH106: =IF($V106<>0, Valsp1005(M106,N106,O106)) -> FALSE | AI106: =IF($V106<>0, Valsp1011(C106,E106,P106)) -> FALSE | AJ106: =IF($V106<>0, OR(Valsp1012(G106+H106,I106), Valsp1012(J106+K106,L106), Valsp1012(M106+N106,O106))) -> FALSE | AK106: 0 | AL106: =IF($V106<>0, Valsp1020(D106,Q106)) -> FALSE | AM106: 0 | AN106: =IF($V106<>0,Valsp1024(D106,G106,H106,I106)) -> FALSE
V107: 0 | W107: =IF($V107<>0,OR(Valsp11(C107),Valsp11(Q107))) -> FALSE | X107: FALSE | Y107: FALSE | Z107: =IF($V107<>0, Valsp211(C107,0)) -> FALSE | AA107: =IF($V107<>0, Valsp212(B107, G107+H107+J107+K107+M107+N107)) -> FALSE | AB107: =IF($V107<>0, Valsp25(C107)) -> FALSE | AC107: =IF($V107<>0,Valsp2101(F107)) -> FALSE | AD107: =IF($V107<>0,Valsp291(E107,F107)) -> FALSE | AE107: =IF($V107<>0, Valsp1002(G107+H107+J107+K107+M107+N107)) -> FALSE | AF107: =IF($V107<>0, Valsp1003(D107,G107,H107,I107)) -> FALSE | AG107: =IF($V107<>0, Valsp1004(J107,K107,L107)) -> FALSE | AH107: =IF($V107<>0, Valsp1005(M107,N107,O107)) -> FALSE | AI107: =IF($V107<>0, Valsp1011(C107,E107,P107)) -> FALSE | AJ107: =IF($V107<>0, OR(Valsp1012(G107+H107,I107), Valsp1012(J107+K107,L107), Valsp1012(M107+N107,O107))) -> FALSE | AK107: 0 | AL107: =IF($V107<>0, Valsp1020(D107,Q107)) -> FALSE | AM107: 0 | AN107: =IF($V107<>0,Valsp1024(D107,G107,H107,I107)) -> FALSE
V108: 0 | W108: =IF($V108<>0,OR(Valsp11(C108),Valsp11(Q108))) -> FALSE | X108: FALSE | Y108: FALSE | Z108: =IF($V108<>0, Valsp211(C108,0)) -> FALSE | AA108: =IF($V108<>0, Valsp212(B108, G108+H108+J108+K108+M108+N108)) -> FALSE | AB108: =IF($V108<>0, Valsp25(C108)) -> FALSE | AC108: =IF($V108<>0,Valsp2101(F108)) -> FALSE | AD108: =IF($V108<>0,Valsp291(E108,F108)) -> FALSE | AE108: =IF($V108<>0, Valsp1002(G108+H108+J108+K108+M108+N108)) -> FALSE | AF108: =IF($V108<>0, Valsp1003(D108,G108,H108,I108)) -> FALSE | AG108: =IF($V108<>0, Valsp1004(J108,K108,L108)) -> FALSE | AH108: =IF($V108<>0, Valsp1005(M108,N108,O108)) -> FALSE | AI108: =IF($V108<>0, Valsp1011(C108,E108,P108)) -> FALSE | AJ108: =IF($V108<>0, OR(Valsp1012(G108+H108,I108), Valsp1012(J108+K108,L108), Valsp1012(M108+N108,O108))) -> FALSE | AK108: 0 | AL108: =IF($V108<>0, Valsp1020(D108,Q108)) -> FALSE | AM108: 0 | AN108: =IF($V108<>0,Valsp1024(D108,G108,H108,I108)) -> FALSE
V109: 0 | W109: =IF($V109<>0,OR(Valsp11(C109),Valsp11(Q109))) -> FALSE | X109: FALSE | Y109: FALSE | Z109: =IF($V109<>0, Valsp211(C109,0)) -> FALSE | AA109: =IF($V109<>0, Valsp212(B109, G109+H109+J109+K109+M109+N109)) -> FALSE | AB109: =IF($V109<>0, Valsp25(C109)) -> FALSE | AC109: =IF($V109<>0,Valsp2101(F109)) -> FALSE | AD109: =IF($V109<>0,Valsp291(E109,F109)) -> FALSE | AE109: =IF($V109<>0, Valsp1002(G109+H109+J109+K109+M109+N109)) -> FALSE | AF109: =IF($V109<>0, Valsp1003(D109,G109,H109,I109)) -> FALSE | AG109: =IF($V109<>0, Valsp1004(J109,K109,L109)) -> FALSE | AH109: =IF($V109<>0, Valsp1005(M109,N109,O109)) -> FALSE | AI109: =IF($V109<>0, Valsp1011(C109,E109,P109)) -> FALSE | AJ109: =IF($V109<>0, OR(Valsp1012(G109+H109,I109), Valsp1012(J109+K109,L109), Valsp1012(M109+N109,O109))) -> FALSE | AK109: 0 | AL109: =IF($V109<>0, Valsp1020(D109,Q109)) -> FALSE | AM109: 0 | AN109: =IF($V109<>0,Valsp1024(D109,G109,H109,I109)) -> FALSE
V110: 0 | W110: =IF($V110<>0,OR(Valsp11(C110),Valsp11(Q110))) -> FALSE | X110: FALSE | Y110: FALSE | Z110: =IF($V110<>0, Valsp211(C110,0)) -> FALSE | AA110: =IF($V110<>0, Valsp212(B110, G110+H110+J110+K110+M110+N110)) -> FALSE | AB110: =IF($V110<>0, Valsp25(C110)) -> FALSE | AC110: =IF($V110<>0,Valsp2101(F110)) -> FALSE | AD110: =IF($V110<>0,Valsp291(E110,F110)) -> FALSE | AE110: =IF($V110<>0, Valsp1002(G110+H110+J110+K110+M110+N110)) -> FALSE | AF110: =IF($V110<>0, Valsp1003(D110,G110,H110,I110)) -> FALSE | AG110: =IF($V110<>0, Valsp1004(J110,K110,L110)) -> FALSE | AH110: =IF($V110<>0, Valsp1005(M110,N110,O110)) -> FALSE | AI110: =IF($V110<>0, Valsp1011(C110,E110,P110)) -> FALSE | AJ110: =IF($V110<>0, OR(Valsp1012(G110+H110,I110), Valsp1012(J110+K110,L110), Valsp1012(M110+N110,O110))) -> FALSE | AK110: 0 | AL110: =IF($V110<>0, Valsp1020(D110,Q110)) -> FALSE | AM110: 0 | AN110: =IF($V110<>0,Valsp1024(D110,G110,H110,I110)) -> FALSE
V111: 0 | W111: =IF($V111<>0,OR(Valsp11(C111),Valsp11(Q111))) -> FALSE | X111: FALSE | Y111: FALSE | Z111: =IF($V111<>0, Valsp211(C111,0)) -> FALSE | AA111: =IF($V111<>0, Valsp212(B111, G111+H111+J111+K111+M111+N111)) -> FALSE | AB111: =IF($V111<>0, Valsp25(C111)) -> FALSE | AC111: =IF($V111<>0,Valsp2101(F111)) -> FALSE | AD111: =IF($V111<>0,Valsp291(E111,F111)) -> FALSE | AE111: =IF($V111<>0, Valsp1002(G111+H111+J111+K111+M111+N111)) -> FALSE | AF111: =IF($V111<>0, Valsp1003(D111,G111,H111,I111)) -> FALSE | AG111: =IF($V111<>0, Valsp1004(J111,K111,L111)) -> FALSE | AH111: =IF($V111<>0, Valsp1005(M111,N111,O111)) -> FALSE | AI111: =IF($V111<>0, Valsp1011(C111,E111,P111)) -> FALSE | AJ111: =IF($V111<>0, OR(Valsp1012(G111+H111,I111), Valsp1012(J111+K111,L111), Valsp1012(M111+N111,O111))) -> FALSE | AK111: 0 | AL111: =IF($V111<>0, Valsp1020(D111,Q111)) -> FALSE | AM111: 0 | AN111: =IF($V111<>0,Valsp1024(D111,G111,H111,I111)) -> FALSE
V112: 0 | W112: =IF($V112<>0,OR(Valsp11(C112),Valsp11(Q112))) -> FALSE | X112: FALSE | Y112: FALSE | Z112: =IF($V112<>0, Valsp211(C112,0)) -> FALSE | AA112: =IF($V112<>0, Valsp212(B112, G112+H112+J112+K112+M112+N112)) -> FALSE | AB112: =IF($V112<>0, Valsp25(C112)) -> FALSE | AC112: =IF($V112<>0,Valsp2101(F112)) -> FALSE | AD112: =IF($V112<>0,Valsp291(E112,F112)) -> FALSE | AE112: =IF($V112<>0, Valsp1002(G112+H112+J112+K112+M112+N112)) -> FALSE | AF112: =IF($V112<>0, Valsp1003(D112,G112,H112,I112)) -> FALSE | AG112: =IF($V112<>0, Valsp1004(J112,K112,L112)) -> FALSE | AH112: =IF($V112<>0, Valsp1005(M112,N112,O112)) -> FALSE | AI112: =IF($V112<>0, Valsp1011(C112,E112,P112)) -> FALSE | AJ112: =IF($V112<>0, OR(Valsp1012(G112+H112,I112), Valsp1012(J112+K112,L112), Valsp1012(M112+N112,O112))) -> FALSE | AK112: 0 | AL112: =IF($V112<>0, Valsp1020(D112,Q112)) -> FALSE | AM112: 0 | AN112: =IF($V112<>0,Valsp1024(D112,G112,H112,I112)) -> FALSE
V113: 0 | W113: =IF($V113<>0,OR(Valsp11(C113),Valsp11(Q113))) -> FALSE | X113: FALSE | Y113: FALSE | Z113: =IF($V113<>0, Valsp211(C113,0)) -> FALSE | AA113: =IF($V113<>0, Valsp212(B113, G113+H113+J113+K113+M113+N113)) -> FALSE | AB113: =IF($V113<>0, Valsp25(C113)) -> FALSE | AC113: =IF($V113<>0,Valsp2101(F113)) -> FALSE | AD113: =IF($V113<>0,Valsp291(E113,F113)) -> FALSE | AE113: =IF($V113<>0, Valsp1002(G113+H113+J113+K113+M113+N113)) -> FALSE | AF113: =IF($V113<>0, Valsp1003(D113,G113,H113,I113)) -> FALSE | AG113: =IF($V113<>0, Valsp1004(J113,K113,L113)) -> FALSE | AH113: =IF($V113<>0, Valsp1005(M113,N113,O113)) -> FALSE | AI113: =IF($V113<>0, Valsp1011(C113,E113,P113)) -> FALSE | AJ113: =IF($V113<>0, OR(Valsp1012(G113+H113,I113), Valsp1012(J113+K113,L113), Valsp1012(M113+N113,O113))) -> FALSE | AK113: 0 | AL113: =IF($V113<>0, Valsp1020(D113,Q113)) -> FALSE | AM113: 0 | AN113: =IF($V113<>0,Valsp1024(D113,G113,H113,I113)) -> FALSE
V114: 0 | W114: =IF($V114<>0,OR(Valsp11(C114),Valsp11(Q114))) -> FALSE | X114: FALSE | Y114: FALSE | Z114: =IF($V114<>0, Valsp211(C114,0)) -> FALSE | AA114: =IF($V114<>0, Valsp212(B114, G114+H114+J114+K114+M114+N114)) -> FALSE | AB114: =IF($V114<>0, Valsp25(C114)) -> FALSE | AC114: =IF($V114<>0,Valsp2101(F114)) -> FALSE | AD114: =IF($V114<>0,Valsp291(E114,F114)) -> FALSE | AE114: =IF($V114<>0, Valsp1002(G114+H114+J114+K114+M114+N114)) -> FALSE | AF114: =IF($V114<>0, Valsp1003(D114,G114,H114,I114)) -> FALSE | AG114: =IF($V114<>0, Valsp1004(J114,K114,L114)) -> FALSE | AH114: =IF($V114<>0, Valsp1005(M114,N114,O114)) -> FALSE | AI114: =IF($V114<>0, Valsp1011(C114,E114,P114)) -> FALSE | AJ114: =IF($V114<>0, OR(Valsp1012(G114+H114,I114), Valsp1012(J114+K114,L114), Valsp1012(M114+N114,O114))) -> FALSE | AK114: 0 | AL114: =IF($V114<>0, Valsp1020(D114,Q114)) -> FALSE | AM114: 0 | AN114: =IF($V114<>0,Valsp1024(D114,G114,H114,I114)) -> FALSE
V115: 0 | W115: =IF($V115<>0,OR(Valsp11(C115),Valsp11(Q115))) -> FALSE | X115: FALSE | Y115: FALSE | Z115: =IF($V115<>0, Valsp211(C115,0)) -> FALSE | AA115: =IF($V115<>0, Valsp212(B115, G115+H115+J115+K115+M115+N115)) -> FALSE | AB115: =IF($V115<>0, Valsp25(C115)) -> FALSE | AC115: =IF($V115<>0,Valsp2101(F115)) -> FALSE | AD115: =IF($V115<>0,Valsp291(E115,F115)) -> FALSE | AE115: =IF($V115<>0, Valsp1002(G115+H115+J115+K115+M115+N115)) -> FALSE | AF115: =IF($V115<>0, Valsp1003(D115,G115,H115,I115)) -> FALSE | AG115: =IF($V115<>0, Valsp1004(J115,K115,L115)) -> FALSE | AH115: =IF($V115<>0, Valsp1005(M115,N115,O115)) -> FALSE | AI115: =IF($V115<>0, Valsp1011(C115,E115,P115)) -> FALSE | AJ115: =IF($V115<>0, OR(Valsp1012(G115+H115,I115), Valsp1012(J115+K115,L115), Valsp1012(M115+N115,O115))) -> FALSE | AK115: 0 | AL115: =IF($V115<>0, Valsp1020(D115,Q115)) -> FALSE | AM115: 0 | AN115: =IF($V115<>0,Valsp1024(D115,G115,H115,I115)) -> FALSE
V116: 0 | W116: =IF($V116<>0,OR(Valsp11(C116),Valsp11(Q116))) -> FALSE | X116: FALSE | Y116: FALSE | Z116: =IF($V116<>0, Valsp211(C116,0)) -> FALSE | AA116: =IF($V116<>0, Valsp212(B116, G116+H116+J116+K116+M116+N116)) -> FALSE | AB116: =IF($V116<>0, Valsp25(C116)) -> FALSE | AC116: =IF($V116<>0,Valsp2101(F116)) -> FALSE | AD116: =IF($V116<>0,Valsp291(E116,F116)) -> FALSE | AE116: =IF($V116<>0, Valsp1002(G116+H116+J116+K116+M116+N116)) -> FALSE | AF116: =IF($V116<>0, Valsp1003(D116,G116,H116,I116)) -> FALSE | AG116: =IF($V116<>0, Valsp1004(J116,K116,L116)) -> FALSE | AH116: =IF($V116<>0, Valsp1005(M116,N116,O116)) -> FALSE | AI116: =IF($V116<>0, Valsp1011(C116,E116,P116)) -> FALSE | AJ116: =IF($V116<>0, OR(Valsp1012(G116+H116,I116), Valsp1012(J116+K116,L116), Valsp1012(M116+N116,O116))) -> FALSE | AK116: 0 | AL116: =IF($V116<>0, Valsp1020(D116,Q116)) -> FALSE | AM116: 0 | AN116: =IF($V116<>0,Valsp1024(D116,G116,H116,I116)) -> FALSE
V117: 0 | W117: =IF($V117<>0,OR(Valsp11(C117),Valsp11(Q117))) -> FALSE | X117: FALSE | Y117: FALSE | Z117: =IF($V117<>0, Valsp211(C117,0)) -> FALSE | AA117: =IF($V117<>0, Valsp212(B117, G117+H117+J117+K117+M117+N117)) -> FALSE | AB117: =IF($V117<>0, Valsp25(C117)) -> FALSE | AC117: =IF($V117<>0,Valsp2101(F117)) -> FALSE | AD117: =IF($V117<>0,Valsp291(E117,F117)) -> FALSE | AE117: =IF($V117<>0, Valsp1002(G117+H117+J117+K117+M117+N117)) -> FALSE | AF117: =IF($V117<>0, Valsp1003(D117,G117,H117,I117)) -> FALSE | AG117: =IF($V117<>0, Valsp1004(J117,K117,L117)) -> FALSE | AH117: =IF($V117<>0, Valsp1005(M117,N117,O117)) -> FALSE | AI117: =IF($V117<>0, Valsp1011(C117,E117,P117)) -> FALSE | AJ117: =IF($V117<>0, OR(Valsp1012(G117+H117,I117), Valsp1012(J117+K117,L117), Valsp1012(M117+N117,O117))) -> FALSE | AK117: 0 | AL117: =IF($V117<>0, Valsp1020(D117,Q117)) -> FALSE | AM117: 0 | AN117: =IF($V117<>0,Valsp1024(D117,G117,H117,I117)) -> FALSE
V118: 0 | W118: =IF($V118<>0,OR(Valsp11(C118),Valsp11(Q118))) -> FALSE | X118: FALSE | Y118: FALSE | Z118: =IF($V118<>0, Valsp211(C118,0)) -> FALSE | AA118: =IF($V118<>0, Valsp212(B118, G118+H118+J118+K118+M118+N118)) -> FALSE | AB118: =IF($V118<>0, Valsp25(C118)) -> FALSE | AC118: =IF($V118<>0,Valsp2101(F118)) -> FALSE | AD118: =IF($V118<>0,Valsp291(E118,F118)) -> FALSE | AE118: =IF($V118<>0, Valsp1002(G118+H118+J118+K118+M118+N118)) -> FALSE | AF118: =IF($V118<>0, Valsp1003(D118,G118,H118,I118)) -> FALSE | AG118: =IF($V118<>0, Valsp1004(J118,K118,L118)) -> FALSE | AH118: =IF($V118<>0, Valsp1005(M118,N118,O118)) -> FALSE | AI118: =IF($V118<>0, Valsp1011(C118,E118,P118)) -> FALSE | AJ118: =IF($V118<>0, OR(Valsp1012(G118+H118,I118), Valsp1012(J118+K118,L118), Valsp1012(M118+N118,O118))) -> FALSE | AK118: 0 | AL118: =IF($V118<>0, Valsp1020(D118,Q118)) -> FALSE | AM118: 0 | AN118: =IF($V118<>0,Valsp1024(D118,G118,H118,I118)) -> FALSE
V119: 0 | W119: =IF($V119<>0,OR(Valsp11(C119),Valsp11(Q119))) -> FALSE | X119: FALSE | Y119: FALSE | Z119: =IF($V119<>0, Valsp211(C119,0)) -> FALSE | AA119: =IF($V119<>0, Valsp212(B119, G119+H119+J119+K119+M119+N119)) -> FALSE | AB119: =IF($V119<>0, Valsp25(C119)) -> FALSE | AC119: =IF($V119<>0,Valsp2101(F119)) -> FALSE | AD119: =IF($V119<>0,Valsp291(E119,F119)) -> FALSE | AE119: =IF($V119<>0, Valsp1002(G119+H119+J119+K119+M119+N119)) -> FALSE | AF119: =IF($V119<>0, Valsp1003(D119,G119,H119,I119)) -> FALSE | AG119: =IF($V119<>0, Valsp1004(J119,K119,L119)) -> FALSE | AH119: =IF($V119<>0, Valsp1005(M119,N119,O119)) -> FALSE | AI119: =IF($V119<>0, Valsp1011(C119,E119,P119)) -> FALSE | AJ119: =IF($V119<>0, OR(Valsp1012(G119+H119,I119), Valsp1012(J119+K119,L119), Valsp1012(M119+N119,O119))) -> FALSE | AK119: 0 | AL119: =IF($V119<>0, Valsp1020(D119,Q119)) -> FALSE | AM119: 0 | AN119: =IF($V119<>0,Valsp1024(D119,G119,H119,I119)) -> FALSE
V120: 0 | W120: =IF($V120<>0,OR(Valsp11(C120),Valsp11(Q120))) -> FALSE | X120: FALSE | Y120: FALSE | Z120: =IF($V120<>0, Valsp211(C120,0)) -> FALSE | AA120: =IF($V120<>0, Valsp212(B120, G120+H120+J120+K120+M120+N120)) -> FALSE | AB120: =IF($V120<>0, Valsp25(C120)) -> FALSE | AC120: =IF($V120<>0,Valsp2101(F120)) -> FALSE | AD120: =IF($V120<>0,Valsp291(E120,F120)) -> FALSE | AE120: =IF($V120<>0, Valsp1002(G120+H120+J120+K120+M120+N120)) -> FALSE | AF120: =IF($V120<>0, Valsp1003(D120,G120,H120,I120)) -> FALSE | AG120: =IF($V120<>0, Valsp1004(J120,K120,L120)) -> FALSE | AH120: =IF($V120<>0, Valsp1005(M120,N120,O120)) -> FALSE | AI120: =IF($V120<>0, Valsp1011(C120,E120,P120)) -> FALSE | AJ120: =IF($V120<>0, OR(Valsp1012(G120+H120,I120), Valsp1012(J120+K120,L120), Valsp1012(M120+N120,O120))) -> FALSE | AK120: 0 | AL120: =IF($V120<>0, Valsp1020(D120,Q120)) -> FALSE | AM120: 0 | AN120: =IF($V120<>0,Valsp1024(D120,G120,H120,I120)) -> FALSE
V121: 0 | W121: =IF($V121<>0,OR(Valsp11(C121),Valsp11(Q121))) -> FALSE | X121: FALSE | Y121: FALSE | Z121: =IF($V121<>0, Valsp211(C121,0)) -> FALSE | AA121: =IF($V121<>0, Valsp212(B121, G121+H121+J121+K121+M121+N121)) -> FALSE | AB121: =IF($V121<>0, Valsp25(C121)) -> FALSE | AC121: =IF($V121<>0,Valsp2101(F121)) -> FALSE | AD121: =IF($V121<>0,Valsp291(E121,F121)) -> FALSE | AE121: =IF($V121<>0, Valsp1002(G121+H121+J121+K121+M121+N121)) -> FALSE | AF121: =IF($V121<>0, Valsp1003(D121,G121,H121,I121)) -> FALSE | AG121: =IF($V121<>0, Valsp1004(J121,K121,L121)) -> FALSE | AH121: =IF($V121<>0, Valsp1005(M121,N121,O121)) -> FALSE | AI121: =IF($V121<>0, Valsp1011(C121,E121,P121)) -> FALSE | AJ121: =IF($V121<>0, OR(Valsp1012(G121+H121,I121), Valsp1012(J121+K121,L121), Valsp1012(M121+N121,O121))) -> FALSE | AK121: 0 | AL121: =IF($V121<>0, Valsp1020(D121,Q121)) -> FALSE | AM121: 0 | AN121: =IF($V121<>0,Valsp1024(D121,G121,H121,I121)) -> FALSE
V122: 0 | W122: =IF($V122<>0,OR(Valsp11(C122),Valsp11(Q122))) -> FALSE | X122: FALSE | Y122: FALSE | Z122: =IF($V122<>0, Valsp211(C122,0)) -> FALSE | AA122: =IF($V122<>0, Valsp212(B122, G122+H122+J122+K122+M122+N122)) -> FALSE | AB122: =IF($V122<>0, Valsp25(C122)) -> FALSE | AC122: =IF($V122<>0,Valsp2101(F122)) -> FALSE | AD122: =IF($V122<>0,Valsp291(E122,F122)) -> FALSE | AE122: =IF($V122<>0, Valsp1002(G122+H122+J122+K122+M122+N122)) -> FALSE | AF122: =IF($V122<>0, Valsp1003(D122,G122,H122,I122)) -> FALSE | AG122: =IF($V122<>0, Valsp1004(J122,K122,L122)) -> FALSE | AH122: =IF($V122<>0, Valsp1005(M122,N122,O122)) -> FALSE | AI122: =IF($V122<>0, Valsp1011(C122,E122,P122)) -> FALSE | AJ122: =IF($V122<>0, OR(Valsp1012(G122+H122,I122), Valsp1012(J122+K122,L122), Valsp1012(M122+N122,O122))) -> FALSE | AK122: 0 | AL122: =IF($V122<>0, Valsp1020(D122,Q122)) -> FALSE | AM122: 0 | AN122: =IF($V122<>0,Valsp1024(D122,G122,H122,I122)) -> FALSE
V123: 0 | W123: =IF($V123<>0,OR(Valsp11(C123),Valsp11(Q123))) -> FALSE | X123: FALSE | Y123: FALSE | Z123: =IF($V123<>0, Valsp211(C123,0)) -> FALSE | AA123: =IF($V123<>0, Valsp212(B123, G123+H123+J123+K123+M123+N123)) -> FALSE | AB123: =IF($V123<>0, Valsp25(C123)) -> FALSE | AC123: =IF($V123<>0,Valsp2101(F123)) -> FALSE | AD123: =IF($V123<>0,Valsp291(E123,F123)) -> FALSE | AE123: =IF($V123<>0, Valsp1002(G123+H123+J123+K123+M123+N123)) -> FALSE | AF123: =IF($V123<>0, Valsp1003(D123,G123,H123,I123)) -> FALSE | AG123: =IF($V123<>0, Valsp1004(J123,K123,L123)) -> FALSE | AH123: =IF($V123<>0, Valsp1005(M123,N123,O123)) -> FALSE | AI123: =IF($V123<>0, Valsp1011(C123,E123,P123)) -> FALSE | AJ123: =IF($V123<>0, OR(Valsp1012(G123+H123,I123), Valsp1012(J123+K123,L123), Valsp1012(M123+N123,O123))) -> FALSE | AK123: 0 | AL123: =IF($V123<>0, Valsp1020(D123,Q123)) -> FALSE | AM123: 0 | AN123: =IF($V123<>0,Valsp1024(D123,G123,H123,I123)) -> FALSE
V124: 0 | W124: =IF($V124<>0,OR(Valsp11(C124),Valsp11(Q124))) -> FALSE | X124: FALSE | Y124: FALSE | Z124: =IF($V124<>0, Valsp211(C124,0)) -> FALSE | AA124: =IF($V124<>0, Valsp212(B124, G124+H124+J124+K124+M124+N124)) -> FALSE | AB124: =IF($V124<>0, Valsp25(C124)) -> FALSE | AC124: =IF($V124<>0,Valsp2101(F124)) -> FALSE | AD124: =IF($V124<>0,Valsp291(E124,F124)) -> FALSE | AE124: =IF($V124<>0, Valsp1002(G124+H124+J124+K124+M124+N124)) -> FALSE | AF124: =IF($V124<>0, Valsp1003(D124,G124,H124,I124)) -> FALSE | AG124: =IF($V124<>0, Valsp1004(J124,K124,L124)) -> FALSE | AH124: =IF($V124<>0, Valsp1005(M124,N124,O124)) -> FALSE | AI124: =IF($V124<>0, Valsp1011(C124,E124,P124)) -> FALSE | AJ124: =IF($V124<>0, OR(Valsp1012(G124+H124,I124), Valsp1012(J124+K124,L124), Valsp1012(M124+N124,O124))) -> FALSE | AK124: 0 | AL124: =IF($V124<>0, Valsp1020(D124,Q124)) -> FALSE | AM124: 0 | AN124: =IF($V124<>0,Valsp1024(D124,G124,H124,I124)) -> FALSE
V125: 0 | W125: =IF($V125<>0,OR(Valsp11(C125),Valsp11(Q125))) -> FALSE | X125: FALSE | Y125: FALSE | Z125: =IF($V125<>0, Valsp211(C125,0)) -> FALSE | AA125: =IF($V125<>0, Valsp212(B125, G125+H125+J125+K125+M125+N125)) -> FALSE | AB125: =IF($V125<>0, Valsp25(C125)) -> FALSE | AC125: =IF($V125<>0,Valsp2101(F125)) -> FALSE | AD125: =IF($V125<>0,Valsp291(E125,F125)) -> FALSE | AE125: =IF($V125<>0, Valsp1002(G125+H125+J125+K125+M125+N125)) -> FALSE | AF125: =IF($V125<>0, Valsp1003(D125,G125,H125,I125)) -> FALSE | AG125: =IF($V125<>0, Valsp1004(J125,K125,L125)) -> FALSE | AH125: =IF($V125<>0, Valsp1005(M125,N125,O125)) -> FALSE | AI125: =IF($V125<>0, Valsp1011(C125,E125,P125)) -> FALSE | AJ125: =IF($V125<>0, OR(Valsp1012(G125+H125,I125), Valsp1012(J125+K125,L125), Valsp1012(M125+N125,O125))) -> FALSE | AK125: 0 | AL125: =IF($V125<>0, Valsp1020(D125,Q125)) -> FALSE | AM125: 0 | AN125: =IF($V125<>0,Valsp1024(D125,G125,H125,I125)) -> FALSE
V126: 0 | W126: =IF($V126<>0,OR(Valsp11(C126),Valsp11(Q126))) -> FALSE | X126: FALSE | Y126: FALSE | Z126: =IF($V126<>0, Valsp211(C126,0)) -> FALSE | AA126: =IF($V126<>0, Valsp212(B126, G126+H126+J126+K126+M126+N126)) -> FALSE | AB126: =IF($V126<>0, Valsp25(C126)) -> FALSE | AC126: =IF($V126<>0,Valsp2101(F126)) -> FALSE | AD126: =IF($V126<>0,Valsp291(E126,F126)) -> FALSE | AE126: =IF($V126<>0, Valsp1002(G126+H126+J126+K126+M126+N126)) -> FALSE | AF126: =IF($V126<>0, Valsp1003(D126,G126,H126,I126)) -> FALSE | AG126: =IF($V126<>0, Valsp1004(J126,K126,L126)) -> FALSE | AH126: =IF($V126<>0, Valsp1005(M126,N126,O126)) -> FALSE | AI126: =IF($V126<>0, Valsp1011(C126,E126,P126)) -> FALSE | AJ126: =IF($V126<>0, OR(Valsp1012(G126+H126,I126), Valsp1012(J126+K126,L126), Valsp1012(M126+N126,O126))) -> FALSE | AK126: 0 | AL126: =IF($V126<>0, Valsp1020(D126,Q126)) -> FALSE | AM126: 0 | AN126: =IF($V126<>0,Valsp1024(D126,G126,H126,I126)) -> FALSE
V127: 0 | W127: =IF($V127<>0,OR(Valsp11(C127),Valsp11(Q127))) -> FALSE | X127: FALSE | Y127: FALSE | Z127: =IF($V127<>0, Valsp211(C127,0)) -> FALSE | AA127: =IF($V127<>0, Valsp212(B127, G127+H127+J127+K127+M127+N127)) -> FALSE | AB127: =IF($V127<>0, Valsp25(C127)) -> FALSE | AC127: =IF($V127<>0,Valsp2101(F127)) -> FALSE | AD127: =IF($V127<>0,Valsp291(E127,F127)) -> FALSE | AE127: =IF($V127<>0, Valsp1002(G127+H127+J127+K127+M127+N127)) -> FALSE | AF127: =IF($V127<>0, Valsp1003(D127,G127,H127,I127)) -> FALSE | AG127: =IF($V127<>0, Valsp1004(J127,K127,L127)) -> FALSE | AH127: =IF($V127<>0, Valsp1005(M127,N127,O127)) -> FALSE | AI127: =IF($V127<>0, Valsp1011(C127,E127,P127)) -> FALSE | AJ127: =IF($V127<>0, OR(Valsp1012(G127+H127,I127), Valsp1012(J127+K127,L127), Valsp1012(M127+N127,O127))) -> FALSE | AK127: 0 | AL127: =IF($V127<>0, Valsp1020(D127,Q127)) -> FALSE | AM127: 0 | AN127: =IF($V127<>0,Valsp1024(D127,G127,H127,I127)) -> FALSE
V128: 0 | W128: =IF($V128<>0,OR(Valsp11(C128),Valsp11(Q128))) -> FALSE | X128: FALSE | Y128: FALSE | Z128: =IF($V128<>0, Valsp211(C128,0)) -> FALSE | AA128: =IF($V128<>0, Valsp212(B128, G128+H128+J128+K128+M128+N128)) -> FALSE | AB128: =IF($V128<>0, Valsp25(C128)) -> FALSE | AC128: =IF($V128<>0,Valsp2101(F128)) -> FALSE | AD128: =IF($V128<>0,Valsp291(E128,F128)) -> FALSE | AE128: =IF($V128<>0, Valsp1002(G128+H128+J128+K128+M128+N128)) -> FALSE | AF128: =IF($V128<>0, Valsp1003(D128,G128,H128,I128)) -> FALSE | AG128: =IF($V128<>0, Valsp1004(J128,K128,L128)) -> FALSE | AH128: =IF($V128<>0, Valsp1005(M128,N128,O128)) -> FALSE | AI128: =IF($V128<>0, Valsp1011(C128,E128,P128)) -> FALSE | AJ128: =IF($V128<>0, OR(Valsp1012(G128+H128,I128), Valsp1012(J128+K128,L128), Valsp1012(M128+N128,O128))) -> FALSE | AK128: 0 | AL128: =IF($V128<>0, Valsp1020(D128,Q128)) -> FALSE | AM128: 0 | AN128: =IF($V128<>0,Valsp1024(D128,G128,H128,I128)) -> FALSE
V129: 0 | W129: =IF($V129<>0,OR(Valsp11(C129),Valsp11(Q129))) -> FALSE | X129: FALSE | Y129: FALSE | Z129: =IF($V129<>0, Valsp211(C129,0)) -> FALSE | AA129: =IF($V129<>0, Valsp212(B129, G129+H129+J129+K129+M129+N129)) -> FALSE | AB129: =IF($V129<>0, Valsp25(C129)) -> FALSE | AC129: =IF($V129<>0,Valsp2101(F129)) -> FALSE | AD129: =IF($V129<>0,Valsp291(E129,F129)) -> FALSE | AE129: =IF($V129<>0, Valsp1002(G129+H129+J129+K129+M129+N129)) -> FALSE | AF129: =IF($V129<>0, Valsp1003(D129,G129,H129,I129)) -> FALSE | AG129: =IF($V129<>0, Valsp1004(J129,K129,L129)) -> FALSE | AH129: =IF($V129<>0, Valsp1005(M129,N129,O129)) -> FALSE | AI129: =IF($V129<>0, Valsp1011(C129,E129,P129)) -> FALSE | AJ129: =IF($V129<>0, OR(Valsp1012(G129+H129,I129), Valsp1012(J129+K129,L129), Valsp1012(M129+N129,O129))) -> FALSE | AK129: 0 | AL129: =IF($V129<>0, Valsp1020(D129,Q129)) -> FALSE | AM129: 0 | AN129: =IF($V129<>0,Valsp1024(D129,G129,H129,I129)) -> FALSE
V130: 0 | W130: =IF($V130<>0,OR(Valsp11(C130),Valsp11(Q130))) -> FALSE | X130: FALSE | Y130: FALSE | Z130: =IF($V130<>0, Valsp211(C130,0)) -> FALSE | AA130: =IF($V130<>0, Valsp212(B130, G130+H130+J130+K130+M130+N130)) -> FALSE | AB130: =IF($V130<>0, Valsp25(C130)) -> FALSE | AC130: =IF($V130<>0,Valsp2101(F130)) -> FALSE | AD130: =IF($V130<>0,Valsp291(E130,F130)) -> FALSE | AE130: =IF($V130<>0, Valsp1002(G130+H130+J130+K130+M130+N130)) -> FALSE | AF130: =IF($V130<>0, Valsp1003(D130,G130,H130,I130)) -> FALSE | AG130: =IF($V130<>0, Valsp1004(J130,K130,L130)) -> FALSE | AH130: =IF($V130<>0, Valsp1005(M130,N130,O130)) -> FALSE | AI130: =IF($V130<>0, Valsp1011(C130,E130,P130)) -> FALSE | AJ130: =IF($V130<>0, OR(Valsp1012(G130+H130,I130), Valsp1012(J130+K130,L130), Valsp1012(M130+N130,O130))) -> FALSE | AK130: 0 | AL130: =IF($V130<>0, Valsp1020(D130,Q130)) -> FALSE | AM130: 0 | AN130: =IF($V130<>0,Valsp1024(D130,G130,H130,I130)) -> FALSE
V131: 0 | W131: =IF($V131<>0,OR(Valsp11(C131),Valsp11(Q131))) -> FALSE | X131: FALSE | Y131: FALSE | Z131: =IF($V131<>0, Valsp211(C131,0)) -> FALSE | AA131: =IF($V131<>0, Valsp212(B131, G131+H131+J131+K131+M131+N131)) -> FALSE | AB131: =IF($V131<>0, Valsp25(C131)) -> FALSE | AC131: =IF($V131<>0,Valsp2101(F131)) -> FALSE | AD131: =IF($V131<>0,Valsp291(E131,F131)) -> FALSE | AE131: =IF($V131<>0, Valsp1002(G131+H131+J131+K131+M131+N131)) -> FALSE | AF131: =IF($V131<>0, Valsp1003(D131,G131,H131,I131)) -> FALSE | AG131: =IF($V131<>0, Valsp1004(J131,K131,L131)) -> FALSE | AH131: =IF($V131<>0, Valsp1005(M131,N131,O131)) -> FALSE | AI131: =IF($V131<>0, Valsp1011(C131,E131,P131)) -> FALSE | AJ131: =IF($V131<>0, OR(Valsp1012(G131+H131,I131), Valsp1012(J131+K131,L131), Valsp1012(M131+N131,O131))) -> FALSE | AK131: 0 | AL131: =IF($V131<>0, Valsp1020(D131,Q131)) -> FALSE | AM131: 0 | AN131: =IF($V131<>0,Valsp1024(D131,G131,H131,I131)) -> FALSE
V132: 0 | W132: =IF($V132<>0,OR(Valsp11(C132),Valsp11(Q132))) -> FALSE | X132: FALSE | Y132: FALSE | Z132: =IF($V132<>0, Valsp211(C132,0)) -> FALSE | AA132: =IF($V132<>0, Valsp212(B132, G132+H132+J132+K132+M132+N132)) -> FALSE | AB132: =IF($V132<>0, Valsp25(C132)) -> FALSE | AC132: =IF($V132<>0,Valsp2101(F132)) -> FALSE | AD132: =IF($V132<>0,Valsp291(E132,F132)) -> FALSE | AE132: =IF($V132<>0, Valsp1002(G132+H132+J132+K132+M132+N132)) -> FALSE | AF132: =IF($V132<>0, Valsp1003(D132,G132,H132,I132)) -> FALSE | AG132: =IF($V132<>0, Valsp1004(J132,K132,L132)) -> FALSE | AH132: =IF($V132<>0, Valsp1005(M132,N132,O132)) -> FALSE | AI132: =IF($V132<>0, Valsp1011(C132,E132,P132)) -> FALSE | AJ132: =IF($V132<>0, OR(Valsp1012(G132+H132,I132), Valsp1012(J132+K132,L132), Valsp1012(M132+N132,O132))) -> FALSE | AK132: 0 | AL132: =IF($V132<>0, Valsp1020(D132,Q132)) -> FALSE | AM132: 0 | AN132: =IF($V132<>0,Valsp1024(D132,G132,H132,I132)) -> FALSE
V133: 0 | W133: =IF($V133<>0,OR(Valsp11(C133),Valsp11(Q133))) -> FALSE | X133: FALSE | Y133: FALSE | Z133: =IF($V133<>0, Valsp211(C133,0)) -> FALSE | AA133: =IF($V133<>0, Valsp212(B133, G133+H133+J133+K133+M133+N133)) -> FALSE | AB133: =IF($V133<>0, Valsp25(C133)) -> FALSE | AC133: =IF($V133<>0,Valsp2101(F133)) -> FALSE | AD133: =IF($V133<>0,Valsp291(E133,F133)) -> FALSE | AE133: =IF($V133<>0, Valsp1002(G133+H133+J133+K133+M133+N133)) -> FALSE | AF133: =IF($V133<>0, Valsp1003(D133,G133,H133,I133)) -> FALSE | AG133: =IF($V133<>0, Valsp1004(J133,K133,L133)) -> FALSE | AH133: =IF($V133<>0, Valsp1005(M133,N133,O133)) -> FALSE | AI133: =IF($V133<>0, Valsp1011(C133,E133,P133)) -> FALSE | AJ133: =IF($V133<>0, OR(Valsp1012(G133+H133,I133), Valsp1012(J133+K133,L133), Valsp1012(M133+N133,O133))) -> FALSE | AK133: 0 | AL133: =IF($V133<>0, Valsp1020(D133,Q133)) -> FALSE | AM133: 0 | AN133: =IF($V133<>0,Valsp1024(D133,G133,H133,I133)) -> FALSE
V134: 0 | W134: =IF($V134<>0,OR(Valsp11(C134),Valsp11(Q134))) -> FALSE | X134: FALSE | Y134: FALSE | Z134: =IF($V134<>0, Valsp211(C134,0)) -> FALSE | AA134: =IF($V134<>0, Valsp212(B134, G134+H134+J134+K134+M134+N134)) -> FALSE | AB134: =IF($V134<>0, Valsp25(C134)) -> FALSE | AC134: =IF($V134<>0,Valsp2101(F134)) -> FALSE | AD134: =IF($V134<>0,Valsp291(E134,F134)) -> FALSE | AE134: =IF($V134<>0, Valsp1002(G134+H134+J134+K134+M134+N134)) -> FALSE | AF134: =IF($V134<>0, Valsp1003(D134,G134,H134,I134)) -> FALSE | AG134: =IF($V134<>0, Valsp1004(J134,K134,L134)) -> FALSE | AH134: =IF($V134<>0, Valsp1005(M134,N134,O134)) -> FALSE | AI134: =IF($V134<>0, Valsp1011(C134,E134,P134)) -> FALSE | AJ134: =IF($V134<>0, OR(Valsp1012(G134+H134,I134), Valsp1012(J134+K134,L134), Valsp1012(M134+N134,O134))) -> FALSE | AK134: 0 | AL134: =IF($V134<>0, Valsp1020(D134,Q134)) -> FALSE | AM134: 0 | AN134: =IF($V134<>0,Valsp1024(D134,G134,H134,I134)) -> FALSE
V135: 0 | W135: =IF($V135<>0,OR(Valsp11(C135),Valsp11(Q135))) -> FALSE | X135: FALSE | Y135: FALSE | Z135: =IF($V135<>0, Valsp211(C135,0)) -> FALSE | AA135: =IF($V135<>0, Valsp212(B135, G135+H135+J135+K135+M135+N135)) -> FALSE | AB135: =IF($V135<>0, Valsp25(C135)) -> FALSE | AC135: =IF($V135<>0,Valsp2101(F135)) -> FALSE | AD135: =IF($V135<>0,Valsp291(E135,F135)) -> FALSE | AE135: =IF($V135<>0, Valsp1002(G135+H135+J135+K135+M135+N135)) -> FALSE | AF135: =IF($V135<>0, Valsp1003(D135,G135,H135,I135)) -> FALSE | AG135: =IF($V135<>0, Valsp1004(J135,K135,L135)) -> FALSE | AH135: =IF($V135<>0, Valsp1005(M135,N135,O135)) -> FALSE | AI135: =IF($V135<>0, Valsp1011(C135,E135,P135)) -> FALSE | AJ135: =IF($V135<>0, OR(Valsp1012(G135+H135,I135), Valsp1012(J135+K135,L135), Valsp1012(M135+N135,O135))) -> FALSE | AK135: 0 | AL135: =IF($V135<>0, Valsp1020(D135,Q135)) -> FALSE | AM135: 0 | AN135: =IF($V135<>0,Valsp1024(D135,G135,H135,I135)) -> FALSE
V136: 0 | W136: =IF($V136<>0,OR(Valsp11(C136),Valsp11(Q136))) -> FALSE | X136: FALSE | Y136: FALSE | Z136: =IF($V136<>0, Valsp211(C136,0)) -> FALSE | AA136: =IF($V136<>0, Valsp212(B136, G136+H136+J136+K136+M136+N136)) -> FALSE | AB136: =IF($V136<>0, Valsp25(C136)) -> FALSE | AC136: =IF($V136<>0,Valsp2101(F136)) -> FALSE | AD136: =IF($V136<>0,Valsp291(E136,F136)) -> FALSE | AE136: =IF($V136<>0, Valsp1002(G136+H136+J136+K136+M136+N136)) -> FALSE | AF136: =IF($V136<>0, Valsp1003(D136,G136,H136,I136)) -> FALSE | AG136: =IF($V136<>0, Valsp1004(J136,K136,L136)) -> FALSE | AH136: =IF($V136<>0, Valsp1005(M136,N136,O136)) -> FALSE | AI136: =IF($V136<>0, Valsp1011(C136,E136,P136)) -> FALSE | AJ136: =IF($V136<>0, OR(Valsp1012(G136+H136,I136), Valsp1012(J136+K136,L136), Valsp1012(M136+N136,O136))) -> FALSE | AK136: 0 | AL136: =IF($V136<>0, Valsp1020(D136,Q136)) -> FALSE | AM136: 0 | AN136: =IF($V136<>0,Valsp1024(D136,G136,H136,I136)) -> FALSE
V137: 0 | W137: =IF($V137<>0,OR(Valsp11(C137),Valsp11(Q137))) -> FALSE | X137: FALSE | Y137: FALSE | Z137: =IF($V137<>0, Valsp211(C137,0)) -> FALSE | AA137: =IF($V137<>0, Valsp212(B137, G137+H137+J137+K137+M137+N137)) -> FALSE | AB137: =IF($V137<>0, Valsp25(C137)) -> FALSE | AC137: =IF($V137<>0,Valsp2101(F137)) -> FALSE | AD137: =IF($V137<>0,Valsp291(E137,F137)) -> FALSE | AE137: =IF($V137<>0, Valsp1002(G137+H137+J137+K137+M137+N137)) -> FALSE | AF137: =IF($V137<>0, Valsp1003(D137,G137,H137,I137)) -> FALSE | AG137: =IF($V137<>0, Valsp1004(J137,K137,L137)) -> FALSE | AH137: =IF($V137<>0, Valsp1005(M137,N137,O137)) -> FALSE | AI137: =IF($V137<>0, Valsp1011(C137,E137,P137)) -> FALSE | AJ137: =IF($V137<>0, OR(Valsp1012(G137+H137,I137), Valsp1012(J137+K137,L137), Valsp1012(M137+N137,O137))) -> FALSE | AK137: 0 | AL137: =IF($V137<>0, Valsp1020(D137,Q137)) -> FALSE | AM137: 0 | AN137: =IF($V137<>0,Valsp1024(D137,G137,H137,I137)) -> FALSE
V138: 0 | W138: =IF($V138<>0,OR(Valsp11(C138),Valsp11(Q138))) -> FALSE | X138: FALSE | Y138: =IF($V138<>0, OR(Valsp13(G138), Valsp13(H138), Valsp13(J138), Valsp13(K138), Valsp13(M138), Valsp13(N138), Valsp13(Q138))) -> FALSE | Z138: =IF($V138<>0, Valsp211(C138,0)) -> FALSE | AA138: =IF($V138<>0, Valsp212(B138, G138+H138+J138+K138+M138+N138)) -> FALSE | AB138: =IF($V138<>0, Valsp25(C138)) -> FALSE | AC138: =IF($V138<>0,Valsp2101(F138)) -> FALSE | AD138: =IF($V138<>0,Valsp291(E138,F138)) -> FALSE | AE138: =IF($V138<>0, Valsp1002(G138+H138+J138+K138+M138+N138)) -> FALSE | AF138: =IF($V138<>0, Valsp1003(D138,G138,H138,I138)) -> FALSE | AG138: =IF($V138<>0, Valsp1004(J138,K138,L138)) -> FALSE | AH138: =IF($V138<>0, Valsp1005(M138,N138,O138)) -> FALSE | AI138: =IF($V138<>0, Valsp1011(C138,E138,P138)) -> FALSE | AJ138: =IF($V138<>0, OR(Valsp1012(G138+H138,I138), Valsp1012(J138+K138,L138), Valsp1012(M138+N138,O138))) -> FALSE | AK138: 0 | AL138: =IF($V138<>0, Valsp1020(D138,Q138)) -> FALSE | AM138: 0 | AN138: =IF($V138<>0,Valsp1024(D138,G138,H138,I138)) -> FALSE
P139: =IF(OR(I139<>"",L139<>"",O139<>""),SUM(I139,L139,O139),"") ->  | T139: =ValSP_SchoolErrorMessage(V139,W139,X139,Y139,Z139,AA139,AB139,AC139,AD139,AE139,AF139,AG139,AH139,AI139,AJ139,AK139,AL139,AM139,AN139) ->  | V139: =NonNull(B139:Q139) -> 0 | W139: =IF($V139<>0,OR(Valsp11(C139),Valsp11(Q139))) -> FALSE | X139: =AND(V139=1,COUNTIF($C$10:$C$210,C139) > 1) -> FALSE | Y139: FALSE | Z139: =IF($V139<>0, Valsp211(C139,0)) -> FALSE | AA139: =IF($V139<>0, Valsp212(B139, G139+H139+J139+K139+M139+N139)) -> FALSE | AB139: =IF($V139<>0, Valsp25(C139)) -> FALSE | AC139: =IF($V139<>0,Valsp2101(F139)) -> FALSE | AD139: =IF($V139<>0,Valsp291(E139,F139)) -> FALSE | AE139: =IF($V139<>0, Valsp1002(G139+H139+J139+K139+M139+N139)) -> FALSE | AF139: =IF($V139<>0, Valsp1003(D139,G139,H139,I139)) -> FALSE | AG139: =IF($V139<>0, Valsp1004(J139,K139,L139)) -> FALSE | AH139: =IF($V139<>0, Valsp1005(M139,N139,O139)) -> FALSE | AI139: =IF($V139<>0, Valsp1011(C139,E139,P139)) -> FALSE | AJ139: =IF($V139<>0, OR(Valsp1012(G139+H139,I139), Valsp1012(J139+K139,L139), Valsp1012(M139+N139,O139))) -> FALSE | AK139: 0 | AL139: =IF($V139<>0, Valsp1020(D139,Q139)) -> FALSE | AM139: 0 | AN139: =IF($V139<>0,Valsp1024(D139,G139,H139,I139)) -> FALSE
V140: 0 | W140: =IF($V140<>0,OR(Valsp11(C140),Valsp11(Q140))) -> FALSE | X140: FALSE | Y140: FALSE | Z140: =IF($V140<>0, Valsp211(C140,0)) -> FALSE | AA140: =IF($V140<>0, Valsp212(B140, G140+H140+J140+K140+M140+N140)) -> FALSE | AB140: =IF($V140<>0, Valsp25(C140)) -> FALSE | AC140: =IF($V140<>0,Valsp2101(F140)) -> FALSE | AD140: =IF($V140<>0,Valsp291(E140,F140)) -> FALSE | AE140: =IF($V140<>0, Valsp1002(G140+H140+J140+K140+M140+N140)) -> FALSE | AF140: =IF($V140<>0, Valsp1003(D140,G140,H140,I140)) -> FALSE | AG140: =IF($V140<>0, Valsp1004(J140,K140,L140)) -> FALSE | AH140: =IF($V140<>0, Valsp1005(M140,N140,O140)) -> FALSE | AI140: =IF($V140<>0, Valsp1011(C140,E140,P140)) -> FALSE | AJ140: =IF($V140<>0, OR(Valsp1012(G140+H140,I140), Valsp1012(J140+K140,L140), Valsp1012(M140+N140,O140))) -> FALSE | AK140: 0 | AL140: =IF($V140<>0, Valsp1020(D140,Q140)) -> FALSE | AM140: 0 | AN140: =IF($V140<>0,Valsp1024(D140,G140,H140,I140)) -> FALSE
V141: 0 | W141: =IF($V141<>0,OR(Valsp11(C141),Valsp11(Q141))) -> FALSE | X141: FALSE | Y141: FALSE | Z141: =IF($V141<>0, Valsp211(C141,0)) -> FALSE | AA141: =IF($V141<>0, Valsp212(B141, G141+H141+J141+K141+M141+N141)) -> FALSE | AB141: =IF($V141<>0, Valsp25(C141)) -> FALSE | AC141: =IF($V141<>0,Valsp2101(F141)) -> FALSE | AD141: =IF($V141<>0,Valsp291(E141,F141)) -> FALSE | AE141: =IF($V141<>0, Valsp1002(G141+H141+J141+K141+M141+N141)) -> FALSE | AF141: =IF($V141<>0, Valsp1003(D141,G141,H141,I141)) -> FALSE | AG141: =IF($V141<>0, Valsp1004(J141,K141,L141)) -> FALSE | AH141: =IF($V141<>0, Valsp1005(M141,N141,O141)) -> FALSE | AI141: =IF($V141<>0, Valsp1011(C141,E141,P141)) -> FALSE | AJ141: =IF($V141<>0, OR(Valsp1012(G141+H141,I141), Valsp1012(J141+K141,L141), Valsp1012(M141+N141,O141))) -> FALSE | AK141: 0 | AL141: =IF($V141<>0, Valsp1020(D141,Q141)) -> FALSE | AM141: 0 | AN141: =IF($V141<>0,Valsp1024(D141,G141,H141,I141)) -> FALSE
V142: 0 | W142: =IF($V142<>0,OR(Valsp11(C142),Valsp11(Q142))) -> FALSE | X142: FALSE | Y142: FALSE | Z142: =IF($V142<>0, Valsp211(C142,0)) -> FALSE | AA142: =IF($V142<>0, Valsp212(B142, G142+H142+J142+K142+M142+N142)) -> FALSE | AB142: =IF($V142<>0, Valsp25(C142)) -> FALSE | AC142: =IF($V142<>0,Valsp2101(F142)) -> FALSE | AD142: =IF($V142<>0,Valsp291(E142,F142)) -> FALSE | AE142: =IF($V142<>0, Valsp1002(G142+H142+J142+K142+M142+N142)) -> FALSE | AF142: =IF($V142<>0, Valsp1003(D142,G142,H142,I142)) -> FALSE | AG142: =IF($V142<>0, Valsp1004(J142,K142,L142)) -> FALSE | AH142: =IF($V142<>0, Valsp1005(M142,N142,O142)) -> FALSE | AI142: =IF($V142<>0, Valsp1011(C142,E142,P142)) -> FALSE | AJ142: =IF($V142<>0, OR(Valsp1012(G142+H142,I142), Valsp1012(J142+K142,L142), Valsp1012(M142+N142,O142))) -> FALSE | AK142: 0 | AL142: =IF($V142<>0, Valsp1020(D142,Q142)) -> FALSE | AM142: 0 | AN142: =IF($V142<>0,Valsp1024(D142,G142,H142,I142)) -> FALSE
V143: 0 | W143: =IF($V143<>0,OR(Valsp11(C143),Valsp11(Q143))) -> FALSE | X143: FALSE | Y143: FALSE | Z143: =IF($V143<>0, Valsp211(C143,0)) -> FALSE | AA143: =IF($V143<>0, Valsp212(B143, G143+H143+J143+K143+M143+N143)) -> FALSE | AB143: =IF($V143<>0, Valsp25(C143)) -> FALSE | AC143: =IF($V143<>0,Valsp2101(F143)) -> FALSE | AD143: =IF($V143<>0,Valsp291(E143,F143)) -> FALSE | AE143: =IF($V143<>0, Valsp1002(G143+H143+J143+K143+M143+N143)) -> FALSE | AF143: =IF($V143<>0, Valsp1003(D143,G143,H143,I143)) -> FALSE | AG143: =IF($V143<>0, Valsp1004(J143,K143,L143)) -> FALSE | AH143: =IF($V143<>0, Valsp1005(M143,N143,O143)) -> FALSE | AI143: =IF($V143<>0, Valsp1011(C143,E143,P143)) -> FALSE | AJ143: =IF($V143<>0, OR(Valsp1012(G143+H143,I143), Valsp1012(J143+K143,L143), Valsp1012(M143+N143,O143))) -> FALSE | AK143: 0 | AL143: =IF($V143<>0, Valsp1020(D143,Q143)) -> FALSE | AM143: 0 | AN143: =IF($V143<>0,Valsp1024(D143,G143,H143,I143)) -> FALSE
V144: 0 | W144: =IF($V144<>0,OR(Valsp11(C144),Valsp11(Q144))) -> FALSE | X144: FALSE | Y144: FALSE | Z144: =IF($V144<>0, Valsp211(C144,0)) -> FALSE | AA144: =IF($V144<>0, Valsp212(B144, G144+H144+J144+K144+M144+N144)) -> FALSE | AB144: =IF($V144<>0, Valsp25(C144)) -> FALSE | AC144: =IF($V144<>0,Valsp2101(F144)) -> FALSE | AD144: =IF($V144<>0,Valsp291(E144,F144)) -> FALSE | AE144: =IF($V144<>0, Valsp1002(G144+H144+J144+K144+M144+N144)) -> FALSE | AF144: =IF($V144<>0, Valsp1003(D144,G144,H144,I144)) -> FALSE | AG144: =IF($V144<>0, Valsp1004(J144,K144,L144)) -> FALSE | AH144: =IF($V144<>0, Valsp1005(M144,N144,O144)) -> FALSE | AI144: =IF($V144<>0, Valsp1011(C144,E144,P144)) -> FALSE | AJ144: =IF($V144<>0, OR(Valsp1012(G144+H144,I144), Valsp1012(J144+K144,L144), Valsp1012(M144+N144,O144))) -> FALSE | AK144: 0 | AL144: =IF($V144<>0, Valsp1020(D144,Q144)) -> FALSE | AM144: 0 | AN144: =IF($V144<>0,Valsp1024(D144,G144,H144,I144)) -> FALSE
V145: 0 | W145: =IF($V145<>0,OR(Valsp11(C145),Valsp11(Q145))) -> FALSE | X145: FALSE | Y145: FALSE | Z145: =IF($V145<>0, Valsp211(C145,0)) -> FALSE | AA145: =IF($V145<>0, Valsp212(B145, G145+H145+J145+K145+M145+N145)) -> FALSE | AB145: =IF($V145<>0, Valsp25(C145)) -> FALSE | AC145: =IF($V145<>0,Valsp2101(F145)) -> FALSE | AD145: =IF($V145<>0,Valsp291(E145,F145)) -> FALSE | AE145: =IF($V145<>0, Valsp1002(G145+H145+J145+K145+M145+N145)) -> FALSE | AF145: =IF($V145<>0, Valsp1003(D145,G145,H145,I145)) -> FALSE | AG145: =IF($V145<>0, Valsp1004(J145,K145,L145)) -> FALSE | AH145: =IF($V145<>0, Valsp1005(M145,N145,O145)) -> FALSE | AI145: =IF($V145<>0, Valsp1011(C145,E145,P145)) -> FALSE | AJ145: =IF($V145<>0, OR(Valsp1012(G145+H145,I145), Valsp1012(J145+K145,L145), Valsp1012(M145+N145,O145))) -> FALSE | AK145: 0 | AL145: =IF($V145<>0, Valsp1020(D145,Q145)) -> FALSE | AM145: 0 | AN145: =IF($V145<>0,Valsp1024(D145,G145,H145,I145)) -> FALSE
V146: 0 | W146: =IF($V146<>0,OR(Valsp11(C146),Valsp11(Q146))) -> FALSE | X146: FALSE | Y146: FALSE | Z146: =IF($V146<>0, Valsp211(C146,0)) -> FALSE | AA146: =IF($V146<>0, Valsp212(B146, G146+H146+J146+K146+M146+N146)) -> FALSE | AB146: =IF($V146<>0, Valsp25(C146)) -> FALSE | AC146: =IF($V146<>0,Valsp2101(F146)) -> FALSE | AD146: =IF($V146<>0,Valsp291(E146,F146)) -> FALSE | AE146: =IF($V146<>0, Valsp1002(G146+H146+J146+K146+M146+N146)) -> FALSE | AF146: =IF($V146<>0, Valsp1003(D146,G146,H146,I146)) -> FALSE | AG146: =IF($V146<>0, Valsp1004(J146,K146,L146)) -> FALSE | AH146: =IF($V146<>0, Valsp1005(M146,N146,O146)) -> FALSE | AI146: =IF($V146<>0, Valsp1011(C146,E146,P146)) -> FALSE | AJ146: =IF($V146<>0, OR(Valsp1012(G146+H146,I146), Valsp1012(J146+K146,L146), Valsp1012(M146+N146,O146))) -> FALSE | AK146: 0 | AL146: =IF($V146<>0, Valsp1020(D146,Q146)) -> FALSE | AM146: 0 | AN146: =IF($V146<>0,Valsp1024(D146,G146,H146,I146)) -> FALSE
V147: 0 | W147: =IF($V147<>0,OR(Valsp11(C147),Valsp11(Q147))) -> FALSE | X147: FALSE | Y147: FALSE | Z147: =IF($V147<>0, Valsp211(C147,0)) -> FALSE | AA147: =IF($V147<>0, Valsp212(B147, G147+H147+J147+K147+M147+N147)) -> FALSE | AB147: =IF($V147<>0, Valsp25(C147)) -> FALSE | AC147: =IF($V147<>0,Valsp2101(F147)) -> FALSE | AD147: =IF($V147<>0,Valsp291(E147,F147)) -> FALSE | AE147: =IF($V147<>0, Valsp1002(G147+H147+J147+K147+M147+N147)) -> FALSE | AF147: =IF($V147<>0, Valsp1003(D147,G147,H147,I147)) -> FALSE | AG147: =IF($V147<>0, Valsp1004(J147,K147,L147)) -> FALSE | AH147: =IF($V147<>0, Valsp1005(M147,N147,O147)) -> FALSE | AI147: =IF($V147<>0, Valsp1011(C147,E147,P147)) -> FALSE | AJ147: =IF($V147<>0, OR(Valsp1012(G147+H147,I147), Valsp1012(J147+K147,L147), Valsp1012(M147+N147,O147))) -> FALSE | AK147: 0 | AL147: =IF($V147<>0, Valsp1020(D147,Q147)) -> FALSE | AM147: 0 | AN147: =IF($V147<>0,Valsp1024(D147,G147,H147,I147)) -> FALSE
V148: 0 | W148: =IF($V148<>0,OR(Valsp11(C148),Valsp11(Q148))) -> FALSE | X148: FALSE | Y148: FALSE | Z148: =IF($V148<>0, Valsp211(C148,0)) -> FALSE | AA148: =IF($V148<>0, Valsp212(B148, G148+H148+J148+K148+M148+N148)) -> FALSE | AB148: =IF($V148<>0, Valsp25(C148)) -> FALSE | AC148: =IF($V148<>0,Valsp2101(F148)) -> FALSE | AD148: =IF($V148<>0,Valsp291(E148,F148)) -> FALSE | AE148: =IF($V148<>0, Valsp1002(G148+H148+J148+K148+M148+N148)) -> FALSE | AF148: =IF($V148<>0, Valsp1003(D148,G148,H148,I148)) -> FALSE | AG148: =IF($V148<>0, Valsp1004(J148,K148,L148)) -> FALSE | AH148: =IF($V148<>0, Valsp1005(M148,N148,O148)) -> FALSE | AI148: =IF($V148<>0, Valsp1011(C148,E148,P148)) -> FALSE | AJ148: =IF($V148<>0, OR(Valsp1012(G148+H148,I148), Valsp1012(J148+K148,L148), Valsp1012(M148+N148,O148))) -> FALSE | AK148: 0 | AL148: =IF($V148<>0, Valsp1020(D148,Q148)) -> FALSE | AM148: 0 | AN148: =IF($V148<>0,Valsp1024(D148,G148,H148,I148)) -> FALSE
V149: 0 | W149: =IF($V149<>0,OR(Valsp11(C149),Valsp11(Q149))) -> FALSE | X149: FALSE | Y149: FALSE | Z149: =IF($V149<>0, Valsp211(C149,0)) -> FALSE | AA149: =IF($V149<>0, Valsp212(B149, G149+H149+J149+K149+M149+N149)) -> FALSE | AB149: =IF($V149<>0, Valsp25(C149)) -> FALSE | AC149: =IF($V149<>0,Valsp2101(F149)) -> FALSE | AD149: =IF($V149<>0,Valsp291(E149,F149)) -> FALSE | AE149: =IF($V149<>0, Valsp1002(G149+H149+J149+K149+M149+N149)) -> FALSE | AF149: =IF($V149<>0, Valsp1003(D149,G149,H149,I149)) -> FALSE | AG149: =IF($V149<>0, Valsp1004(J149,K149,L149)) -> FALSE | AH149: =IF($V149<>0, Valsp1005(M149,N149,O149)) -> FALSE | AI149: =IF($V149<>0, Valsp1011(C149,E149,P149)) -> FALSE | AJ149: =IF($V149<>0, OR(Valsp1012(G149+H149,I149), Valsp1012(J149+K149,L149), Valsp1012(M149+N149,O149))) -> FALSE | AK149: 0 | AL149: =IF($V149<>0, Valsp1020(D149,Q149)) -> FALSE | AM149: 0 | AN149: =IF($V149<>0,Valsp1024(D149,G149,H149,I149)) -> FALSE
V150: 0 | W150: =IF($V150<>0,OR(Valsp11(C150),Valsp11(Q150))) -> FALSE | X150: FALSE | Y150: FALSE | Z150: =IF($V150<>0, Valsp211(C150,0)) -> FALSE | AA150: =IF($V150<>0, Valsp212(B150, G150+H150+J150+K150+M150+N150)) -> FALSE | AB150: =IF($V150<>0, Valsp25(C150)) -> FALSE | AC150: =IF($V150<>0,Valsp2101(F150)) -> FALSE | AD150: =IF($V150<>0,Valsp291(E150,F150)) -> FALSE | AE150: =IF($V150<>0, Valsp1002(G150+H150+J150+K150+M150+N150)) -> FALSE | AF150: =IF($V150<>0, Valsp1003(D150,G150,H150,I150)) -> FALSE | AG150: =IF($V150<>0, Valsp1004(J150,K150,L150)) -> FALSE | AH150: =IF($V150<>0, Valsp1005(M150,N150,O150)) -> FALSE | AI150: =IF($V150<>0, Valsp1011(C150,E150,P150)) -> FALSE | AJ150: =IF($V150<>0, OR(Valsp1012(G150+H150,I150), Valsp1012(J150+K150,L150), Valsp1012(M150+N150,O150))) -> FALSE | AK150: 0 | AL150: =IF($V150<>0, Valsp1020(D150,Q150)) -> FALSE | AM150: 0 | AN150: =IF($V150<>0,Valsp1024(D150,G150,H150,I150)) -> FALSE
V151: 0 | W151: =IF($V151<>0,OR(Valsp11(C151),Valsp11(Q151))) -> FALSE | X151: FALSE | Y151: FALSE | Z151: =IF($V151<>0, Valsp211(C151,0)) -> FALSE | AA151: =IF($V151<>0, Valsp212(B151, G151+H151+J151+K151+M151+N151)) -> FALSE | AB151: =IF($V151<>0, Valsp25(C151)) -> FALSE | AC151: =IF($V151<>0,Valsp2101(F151)) -> FALSE | AD151: =IF($V151<>0,Valsp291(E151,F151)) -> FALSE | AE151: =IF($V151<>0, Valsp1002(G151+H151+J151+K151+M151+N151)) -> FALSE | AF151: =IF($V151<>0, Valsp1003(D151,G151,H151,I151)) -> FALSE | AG151: =IF($V151<>0, Valsp1004(J151,K151,L151)) -> FALSE | AH151: =IF($V151<>0, Valsp1005(M151,N151,O151)) -> FALSE | AI151: =IF($V151<>0, Valsp1011(C151,E151,P151)) -> FALSE | AJ151: =IF($V151<>0, OR(Valsp1012(G151+H151,I151), Valsp1012(J151+K151,L151), Valsp1012(M151+N151,O151))) -> FALSE | AK151: 0 | AL151: =IF($V151<>0, Valsp1020(D151,Q151)) -> FALSE | AM151: 0 | AN151: =IF($V151<>0,Valsp1024(D151,G151,H151,I151)) -> FALSE
V152: 0 | W152: =IF($V152<>0,OR(Valsp11(C152),Valsp11(Q152))) -> FALSE | X152: FALSE | Y152: FALSE | Z152: =IF($V152<>0, Valsp211(C152,0)) -> FALSE | AA152: =IF($V152<>0, Valsp212(B152, G152+H152+J152+K152+M152+N152)) -> FALSE | AB152: =IF($V152<>0, Valsp25(C152)) -> FALSE | AC152: =IF($V152<>0,Valsp2101(F152)) -> FALSE | AD152: =IF($V152<>0,Valsp291(E152,F152)) -> FALSE | AE152: =IF($V152<>0, Valsp1002(G152+H152+J152+K152+M152+N152)) -> FALSE | AF152: =IF($V152<>0, Valsp1003(D152,G152,H152,I152)) -> FALSE | AG152: =IF($V152<>0, Valsp1004(J152,K152,L152)) -> FALSE | AH152: =IF($V152<>0, Valsp1005(M152,N152,O152)) -> FALSE | AI152: =IF($V152<>0, Valsp1011(C152,E152,P152)) -> FALSE | AJ152: =IF($V152<>0, OR(Valsp1012(G152+H152,I152), Valsp1012(J152+K152,L152), Valsp1012(M152+N152,O152))) -> FALSE | AK152: 0 | AL152: =IF($V152<>0, Valsp1020(D152,Q152)) -> FALSE | AM152: 0 | AN152: =IF($V152<>0,Valsp1024(D152,G152,H152,I152)) -> FALSE
V153: 0 | W153: =IF($V153<>0,OR(Valsp11(C153),Valsp11(Q153))) -> FALSE | X153: FALSE | Y153: FALSE | Z153: =IF($V153<>0, Valsp211(C153,0)) -> FALSE | AA153: =IF($V153<>0, Valsp212(B153, G153+H153+J153+K153+M153+N153)) -> FALSE | AB153: =IF($V153<>0, Valsp25(C153)) -> FALSE | AC153: =IF($V153<>0,Valsp2101(F153)) -> FALSE | AD153: =IF($V153<>0,Valsp291(E153,F153)) -> FALSE | AE153: =IF($V153<>0, Valsp1002(G153+H153+J153+K153+M153+N153)) -> FALSE | AF153: =IF($V153<>0, Valsp1003(D153,G153,H153,I153)) -> FALSE | AG153: =IF($V153<>0, Valsp1004(J153,K153,L153)) -> FALSE | AH153: =IF($V153<>0, Valsp1005(M153,N153,O153)) -> FALSE | AI153: =IF($V153<>0, Valsp1011(C153,E153,P153)) -> FALSE | AJ153: =IF($V153<>0, OR(Valsp1012(G153+H153,I153), Valsp1012(J153+K153,L153), Valsp1012(M153+N153,O153))) -> FALSE | AK153: 0 | AL153: =IF($V153<>0, Valsp1020(D153,Q153)) -> FALSE | AM153: 0 | AN153: =IF($V153<>0,Valsp1024(D153,G153,H153,I153)) -> FALSE
V154: 0 | W154: =IF($V154<>0,OR(Valsp11(C154),Valsp11(Q154))) -> FALSE | X154: FALSE | Y154: FALSE | Z154: =IF($V154<>0, Valsp211(C154,0)) -> FALSE | AA154: =IF($V154<>0, Valsp212(B154, G154+H154+J154+K154+M154+N154)) -> FALSE | AB154: =IF($V154<>0, Valsp25(C154)) -> FALSE | AC154: =IF($V154<>0,Valsp2101(F154)) -> FALSE | AD154: =IF($V154<>0,Valsp291(E154,F154)) -> FALSE | AE154: =IF($V154<>0, Valsp1002(G154+H154+J154+K154+M154+N154)) -> FALSE | AF154: =IF($V154<>0, Valsp1003(D154,G154,H154,I154)) -> FALSE | AG154: =IF($V154<>0, Valsp1004(J154,K154,L154)) -> FALSE | AH154: =IF($V154<>0, Valsp1005(M154,N154,O154)) -> FALSE | AI154: =IF($V154<>0, Valsp1011(C154,E154,P154)) -> FALSE | AJ154: =IF($V154<>0, OR(Valsp1012(G154+H154,I154), Valsp1012(J154+K154,L154), Valsp1012(M154+N154,O154))) -> FALSE | AK154: 0 | AL154: =IF($V154<>0, Valsp1020(D154,Q154)) -> FALSE | AM154: 0 | AN154: =IF($V154<>0,Valsp1024(D154,G154,H154,I154)) -> FALSE
V155: 0 | W155: =IF($V155<>0,OR(Valsp11(C155),Valsp11(Q155))) -> FALSE | X155: FALSE | Y155: FALSE | Z155: =IF($V155<>0, Valsp211(C155,0)) -> FALSE | AA155: =IF($V155<>0, Valsp212(B155, G155+H155+J155+K155+M155+N155)) -> FALSE | AB155: =IF($V155<>0, Valsp25(C155)) -> FALSE | AC155: =IF($V155<>0,Valsp2101(F155)) -> FALSE | AD155: =IF($V155<>0,Valsp291(E155,F155)) -> FALSE | AE155: =IF($V155<>0, Valsp1002(G155+H155+J155+K155+M155+N155)) -> FALSE | AF155: =IF($V155<>0, Valsp1003(D155,G155,H155,I155)) -> FALSE | AG155: =IF($V155<>0, Valsp1004(J155,K155,L155)) -> FALSE | AH155: =IF($V155<>0, Valsp1005(M155,N155,O155)) -> FALSE | AI155: =IF($V155<>0, Valsp1011(C155,E155,P155)) -> FALSE | AJ155: =IF($V155<>0, OR(Valsp1012(G155+H155,I155), Valsp1012(J155+K155,L155), Valsp1012(M155+N155,O155))) -> FALSE | AK155: 0 | AL155: =IF($V155<>0, Valsp1020(D155,Q155)) -> FALSE | AM155: 0 | AN155: =IF($V155<>0,Valsp1024(D155,G155,H155,I155)) -> FALSE
V156: 0 | W156: =IF($V156<>0,OR(Valsp11(C156),Valsp11(Q156))) -> FALSE | X156: FALSE | Y156: FALSE | Z156: =IF($V156<>0, Valsp211(C156,0)) -> FALSE | AA156: =IF($V156<>0, Valsp212(B156, G156+H156+J156+K156+M156+N156)) -> FALSE | AB156: =IF($V156<>0, Valsp25(C156)) -> FALSE | AC156: =IF($V156<>0,Valsp2101(F156)) -> FALSE | AD156: =IF($V156<>0,Valsp291(E156,F156)) -> FALSE | AE156: =IF($V156<>0, Valsp1002(G156+H156+J156+K156+M156+N156)) -> FALSE | AF156: =IF($V156<>0, Valsp1003(D156,G156,H156,I156)) -> FALSE | AG156: =IF($V156<>0, Valsp1004(J156,K156,L156)) -> FALSE | AH156: =IF($V156<>0, Valsp1005(M156,N156,O156)) -> FALSE | AI156: =IF($V156<>0, Valsp1011(C156,E156,P156)) -> FALSE | AJ156: =IF($V156<>0, OR(Valsp1012(G156+H156,I156), Valsp1012(J156+K156,L156), Valsp1012(M156+N156,O156))) -> FALSE | AK156: 0 | AL156: =IF($V156<>0, Valsp1020(D156,Q156)) -> FALSE | AM156: 0 | AN156: =IF($V156<>0,Valsp1024(D156,G156,H156,I156)) -> FALSE
V157: 0 | W157: =IF($V157<>0,OR(Valsp11(C157),Valsp11(Q157))) -> FALSE | X157: FALSE | Y157: FALSE | Z157: =IF($V157<>0, Valsp211(C157,0)) -> FALSE | AA157: =IF($V157<>0, Valsp212(B157, G157+H157+J157+K157+M157+N157)) -> FALSE | AB157: =IF($V157<>0, Valsp25(C157)) -> FALSE | AC157: =IF($V157<>0,Valsp2101(F157)) -> FALSE | AD157: =IF($V157<>0,Valsp291(E157,F157)) -> FALSE | AE157: =IF($V157<>0, Valsp1002(G157+H157+J157+K157+M157+N157)) -> FALSE | AF157: =IF($V157<>0, Valsp1003(D157,G157,H157,I157)) -> FALSE | AG157: =IF($V157<>0, Valsp1004(J157,K157,L157)) -> FALSE | AH157: =IF($V157<>0, Valsp1005(M157,N157,O157)) -> FALSE | AI157: =IF($V157<>0, Valsp1011(C157,E157,P157)) -> FALSE | AJ157: =IF($V157<>0, OR(Valsp1012(G157+H157,I157), Valsp1012(J157+K157,L157), Valsp1012(M157+N157,O157))) -> FALSE | AK157: 0 | AL157: =IF($V157<>0, Valsp1020(D157,Q157)) -> FALSE | AM157: 0 | AN157: =IF($V157<>0,Valsp1024(D157,G157,H157,I157)) -> FALSE
V158: 0 | W158: =IF($V158<>0,OR(Valsp11(C158),Valsp11(Q158))) -> FALSE | X158: FALSE | Y158: FALSE | Z158: =IF($V158<>0, Valsp211(C158,0)) -> FALSE | AA158: =IF($V158<>0, Valsp212(B158, G158+H158+J158+K158+M158+N158)) -> FALSE | AB158: =IF($V158<>0, Valsp25(C158)) -> FALSE | AC158: =IF($V158<>0,Valsp2101(F158)) -> FALSE | AD158: =IF($V158<>0,Valsp291(E158,F158)) -> FALSE | AE158: =IF($V158<>0, Valsp1002(G158+H158+J158+K158+M158+N158)) -> FALSE | AF158: =IF($V158<>0, Valsp1003(D158,G158,H158,I158)) -> FALSE | AG158: =IF($V158<>0, Valsp1004(J158,K158,L158)) -> FALSE | AH158: =IF($V158<>0, Valsp1005(M158,N158,O158)) -> FALSE | AI158: =IF($V158<>0, Valsp1011(C158,E158,P158)) -> FALSE | AJ158: =IF($V158<>0, OR(Valsp1012(G158+H158,I158), Valsp1012(J158+K158,L158), Valsp1012(M158+N158,O158))) -> FALSE | AK158: 0 | AL158: =IF($V158<>0, Valsp1020(D158,Q158)) -> FALSE | AM158: 0 | AN158: =IF($V158<>0,Valsp1024(D158,G158,H158,I158)) -> FALSE
V159: 0 | W159: =IF($V159<>0,OR(Valsp11(C159),Valsp11(Q159))) -> FALSE | X159: FALSE | Y159: FALSE | Z159: =IF($V159<>0, Valsp211(C159,0)) -> FALSE | AA159: =IF($V159<>0, Valsp212(B159, G159+H159+J159+K159+M159+N159)) -> FALSE | AB159: =IF($V159<>0, Valsp25(C159)) -> FALSE | AC159: =IF($V159<>0,Valsp2101(F159)) -> FALSE | AD159: =IF($V159<>0,Valsp291(E159,F159)) -> FALSE | AE159: =IF($V159<>0, Valsp1002(G159+H159+J159+K159+M159+N159)) -> FALSE | AF159: =IF($V159<>0, Valsp1003(D159,G159,H159,I159)) -> FALSE | AG159: =IF($V159<>0, Valsp1004(J159,K159,L159)) -> FALSE | AH159: =IF($V159<>0, Valsp1005(M159,N159,O159)) -> FALSE | AI159: =IF($V159<>0, Valsp1011(C159,E159,P159)) -> FALSE | AJ159: =IF($V159<>0, OR(Valsp1012(G159+H159,I159), Valsp1012(J159+K159,L159), Valsp1012(M159+N159,O159))) -> FALSE | AK159: 0 | AL159: =IF($V159<>0, Valsp1020(D159,Q159)) -> FALSE | AM159: 0 | AN159: =IF($V159<>0,Valsp1024(D159,G159,H159,I159)) -> FALSE
V160: 0 | W160: =IF($V160<>0,OR(Valsp11(C160),Valsp11(Q160))) -> FALSE | X160: FALSE | Y160: FALSE | Z160: =IF($V160<>0, Valsp211(C160,0)) -> FALSE | AA160: =IF($V160<>0, Valsp212(B160, G160+H160+J160+K160+M160+N160)) -> FALSE | AB160: =IF($V160<>0, Valsp25(C160)) -> FALSE | AC160: =IF($V160<>0,Valsp2101(F160)) -> FALSE | AD160: =IF($V160<>0,Valsp291(E160,F160)) -> FALSE | AE160: =IF($V160<>0, Valsp1002(G160+H160+J160+K160+M160+N160)) -> FALSE | AF160: =IF($V160<>0, Valsp1003(D160,G160,H160,I160)) -> FALSE | AG160: =IF($V160<>0, Valsp1004(J160,K160,L160)) -> FALSE | AH160: =IF($V160<>0, Valsp1005(M160,N160,O160)) -> FALSE | AI160: =IF($V160<>0, Valsp1011(C160,E160,P160)) -> FALSE | AJ160: =IF($V160<>0, OR(Valsp1012(G160+H160,I160), Valsp1012(J160+K160,L160), Valsp1012(M160+N160,O160))) -> FALSE | AK160: 0 | AL160: =IF($V160<>0, Valsp1020(D160,Q160)) -> FALSE | AM160: 0 | AN160: =IF($V160<>0,Valsp1024(D160,G160,H160,I160)) -> FALSE
V161: 0 | W161: =IF($V161<>0,OR(Valsp11(C161),Valsp11(Q161))) -> FALSE | X161: FALSE | Y161: FALSE | Z161: =IF($V161<>0, Valsp211(C161,0)) -> FALSE | AA161: =IF($V161<>0, Valsp212(B161, G161+H161+J161+K161+M161+N161)) -> FALSE | AB161: =IF($V161<>0, Valsp25(C161)) -> FALSE | AC161: =IF($V161<>0,Valsp2101(F161)) -> FALSE | AD161: =IF($V161<>0,Valsp291(E161,F161)) -> FALSE | AE161: =IF($V161<>0, Valsp1002(G161+H161+J161+K161+M161+N161)) -> FALSE | AF161: =IF($V161<>0, Valsp1003(D161,G161,H161,I161)) -> FALSE | AG161: =IF($V161<>0, Valsp1004(J161,K161,L161)) -> FALSE | AH161: =IF($V161<>0, Valsp1005(M161,N161,O161)) -> FALSE | AI161: =IF($V161<>0, Valsp1011(C161,E161,P161)) -> FALSE | AJ161: =IF($V161<>0, OR(Valsp1012(G161+H161,I161), Valsp1012(J161+K161,L161), Valsp1012(M161+N161,O161))) -> FALSE | AK161: 0 | AL161: =IF($V161<>0, Valsp1020(D161,Q161)) -> FALSE | AM161: 0 | AN161: =IF($V161<>0,Valsp1024(D161,G161,H161,I161)) -> FALSE
V162: 0 | W162: =IF($V162<>0,OR(Valsp11(C162),Valsp11(Q162))) -> FALSE | X162: FALSE | Y162: FALSE | Z162: =IF($V162<>0, Valsp211(C162,0)) -> FALSE | AA162: =IF($V162<>0, Valsp212(B162, G162+H162+J162+K162+M162+N162)) -> FALSE | AB162: =IF($V162<>0, Valsp25(C162)) -> FALSE | AC162: =IF($V162<>0,Valsp2101(F162)) -> FALSE | AD162: =IF($V162<>0,Valsp291(E162,F162)) -> FALSE | AE162: =IF($V162<>0, Valsp1002(G162+H162+J162+K162+M162+N162)) -> FALSE | AF162: =IF($V162<>0, Valsp1003(D162,G162,H162,I162)) -> FALSE | AG162: =IF($V162<>0, Valsp1004(J162,K162,L162)) -> FALSE | AH162: =IF($V162<>0, Valsp1005(M162,N162,O162)) -> FALSE | AI162: =IF($V162<>0, Valsp1011(C162,E162,P162)) -> FALSE | AJ162: =IF($V162<>0, OR(Valsp1012(G162+H162,I162), Valsp1012(J162+K162,L162), Valsp1012(M162+N162,O162))) -> FALSE | AK162: 0 | AL162: =IF($V162<>0, Valsp1020(D162,Q162)) -> FALSE | AM162: 0 | AN162: =IF($V162<>0,Valsp1024(D162,G162,H162,I162)) -> FALSE
V163: 0 | W163: =IF($V163<>0,OR(Valsp11(C163),Valsp11(Q163))) -> FALSE | X163: FALSE | Y163: FALSE | Z163: =IF($V163<>0, Valsp211(C163,0)) -> FALSE | AA163: =IF($V163<>0, Valsp212(B163, G163+H163+J163+K163+M163+N163)) -> FALSE | AB163: =IF($V163<>0, Valsp25(C163)) -> FALSE | AC163: =IF($V163<>0,Valsp2101(F163)) -> FALSE | AD163: =IF($V163<>0,Valsp291(E163,F163)) -> FALSE | AE163: =IF($V163<>0, Valsp1002(G163+H163+J163+K163+M163+N163)) -> FALSE | AF163: =IF($V163<>0, Valsp1003(D163,G163,H163,I163)) -> FALSE | AG163: =IF($V163<>0, Valsp1004(J163,K163,L163)) -> FALSE | AH163: =IF($V163<>0, Valsp1005(M163,N163,O163)) -> FALSE | AI163: =IF($V163<>0, Valsp1011(C163,E163,P163)) -> FALSE | AJ163: =IF($V163<>0, OR(Valsp1012(G163+H163,I163), Valsp1012(J163+K163,L163), Valsp1012(M163+N163,O163))) -> FALSE | AK163: 0 | AL163: =IF($V163<>0, Valsp1020(D163,Q163)) -> FALSE | AM163: 0 | AN163: =IF($V163<>0,Valsp1024(D163,G163,H163,I163)) -> FALSE
V164: 0 | W164: =IF($V164<>0,OR(Valsp11(C164),Valsp11(Q164))) -> FALSE | X164: FALSE | Y164: FALSE | Z164: =IF($V164<>0, Valsp211(C164,0)) -> FALSE | AA164: =IF($V164<>0, Valsp212(B164, G164+H164+J164+K164+M164+N164)) -> FALSE | AB164: =IF($V164<>0, Valsp25(C164)) -> FALSE | AC164: =IF($V164<>0,Valsp2101(F164)) -> FALSE | AD164: =IF($V164<>0,Valsp291(E164,F164)) -> FALSE | AE164: =IF($V164<>0, Valsp1002(G164+H164+J164+K164+M164+N164)) -> FALSE | AF164: =IF($V164<>0, Valsp1003(D164,G164,H164,I164)) -> FALSE | AG164: =IF($V164<>0, Valsp1004(J164,K164,L164)) -> FALSE | AH164: =IF($V164<>0, Valsp1005(M164,N164,O164)) -> FALSE | AI164: =IF($V164<>0, Valsp1011(C164,E164,P164)) -> FALSE | AJ164: =IF($V164<>0, OR(Valsp1012(G164+H164,I164), Valsp1012(J164+K164,L164), Valsp1012(M164+N164,O164))) -> FALSE | AK164: 0 | AL164: =IF($V164<>0, Valsp1020(D164,Q164)) -> FALSE | AM164: 0 | AN164: =IF($V164<>0,Valsp1024(D164,G164,H164,I164)) -> FALSE
V165: 0 | W165: =IF($V165<>0,OR(Valsp11(C165),Valsp11(Q165))) -> FALSE | X165: FALSE | Y165: FALSE | Z165: =IF($V165<>0, Valsp211(C165,0)) -> FALSE | AA165: =IF($V165<>0, Valsp212(B165, G165+H165+J165+K165+M165+N165)) -> FALSE | AB165: =IF($V165<>0, Valsp25(C165)) -> FALSE | AC165: =IF($V165<>0,Valsp2101(F165)) -> FALSE | AD165: =IF($V165<>0,Valsp291(E165,F165)) -> FALSE | AE165: =IF($V165<>0, Valsp1002(G165+H165+J165+K165+M165+N165)) -> FALSE | AF165: =IF($V165<>0, Valsp1003(D165,G165,H165,I165)) -> FALSE | AG165: =IF($V165<>0, Valsp1004(J165,K165,L165)) -> FALSE | AH165: =IF($V165<>0, Valsp1005(M165,N165,O165)) -> FALSE | AI165: =IF($V165<>0, Valsp1011(C165,E165,P165)) -> FALSE | AJ165: =IF($V165<>0, OR(Valsp1012(G165+H165,I165), Valsp1012(J165+K165,L165), Valsp1012(M165+N165,O165))) -> FALSE | AK165: 0 | AL165: =IF($V165<>0, Valsp1020(D165,Q165)) -> FALSE | AM165: 0 | AN165: =IF($V165<>0,Valsp1024(D165,G165,H165,I165)) -> FALSE
V166: 0 | W166: =IF($V166<>0,OR(Valsp11(C166),Valsp11(Q166))) -> FALSE | X166: FALSE | Y166: FALSE | Z166: =IF($V166<>0, Valsp211(C166,0)) -> FALSE | AA166: =IF($V166<>0, Valsp212(B166, G166+H166+J166+K166+M166+N166)) -> FALSE | AB166: =IF($V166<>0, Valsp25(C166)) -> FALSE | AC166: =IF($V166<>0,Valsp2101(F166)) -> FALSE | AD166: =IF($V166<>0,Valsp291(E166,F166)) -> FALSE | AE166: =IF($V166<>0, Valsp1002(G166+H166+J166+K166+M166+N166)) -> FALSE | AF166: =IF($V166<>0, Valsp1003(D166,G166,H166,I166)) -> FALSE | AG166: =IF($V166<>0, Valsp1004(J166,K166,L166)) -> FALSE | AH166: =IF($V166<>0, Valsp1005(M166,N166,O166)) -> FALSE | AI166: =IF($V166<>0, Valsp1011(C166,E166,P166)) -> FALSE | AJ166: =IF($V166<>0, OR(Valsp1012(G166+H166,I166), Valsp1012(J166+K166,L166), Valsp1012(M166+N166,O166))) -> FALSE | AK166: 0 | AL166: =IF($V166<>0, Valsp1020(D166,Q166)) -> FALSE | AM166: 0 | AN166: =IF($V166<>0,Valsp1024(D166,G166,H166,I166)) -> FALSE
V167: 0 | W167: =IF($V167<>0,OR(Valsp11(C167),Valsp11(Q167))) -> FALSE | X167: FALSE | Y167: FALSE | Z167: =IF($V167<>0, Valsp211(C167,0)) -> FALSE | AA167: =IF($V167<>0, Valsp212(B167, G167+H167+J167+K167+M167+N167)) -> FALSE | AB167: =IF($V167<>0, Valsp25(C167)) -> FALSE | AC167: =IF($V167<>0,Valsp2101(F167)) -> FALSE | AD167: =IF($V167<>0,Valsp291(E167,F167)) -> FALSE | AE167: =IF($V167<>0, Valsp1002(G167+H167+J167+K167+M167+N167)) -> FALSE | AF167: =IF($V167<>0, Valsp1003(D167,G167,H167,I167)) -> FALSE | AG167: =IF($V167<>0, Valsp1004(J167,K167,L167)) -> FALSE | AH167: =IF($V167<>0, Valsp1005(M167,N167,O167)) -> FALSE | AI167: =IF($V167<>0, Valsp1011(C167,E167,P167)) -> FALSE | AJ167: =IF($V167<>0, OR(Valsp1012(G167+H167,I167), Valsp1012(J167+K167,L167), Valsp1012(M167+N167,O167))) -> FALSE | AK167: 0 | AL167: =IF($V167<>0, Valsp1020(D167,Q167)) -> FALSE | AM167: 0 | AN167: =IF($V167<>0,Valsp1024(D167,G167,H167,I167)) -> FALSE
V168: 0 | W168: =IF($V168<>0,OR(Valsp11(C168),Valsp11(Q168))) -> FALSE | X168: FALSE | Y168: FALSE | Z168: =IF($V168<>0, Valsp211(C168,0)) -> FALSE | AA168: =IF($V168<>0, Valsp212(B168, G168+H168+J168+K168+M168+N168)) -> FALSE | AB168: =IF($V168<>0, Valsp25(C168)) -> FALSE | AC168: =IF($V168<>0,Valsp2101(F168)) -> FALSE | AD168: =IF($V168<>0,Valsp291(E168,F168)) -> FALSE | AE168: =IF($V168<>0, Valsp1002(G168+H168+J168+K168+M168+N168)) -> FALSE | AF168: =IF($V168<>0, Valsp1003(D168,G168,H168,I168)) -> FALSE | AG168: =IF($V168<>0, Valsp1004(J168,K168,L168)) -> FALSE | AH168: =IF($V168<>0, Valsp1005(M168,N168,O168)) -> FALSE | AI168: =IF($V168<>0, Valsp1011(C168,E168,P168)) -> FALSE | AJ168: =IF($V168<>0, OR(Valsp1012(G168+H168,I168), Valsp1012(J168+K168,L168), Valsp1012(M168+N168,O168))) -> FALSE | AK168: 0 | AL168: =IF($V168<>0, Valsp1020(D168,Q168)) -> FALSE | AM168: 0 | AN168: =IF($V168<>0,Valsp1024(D168,G168,H168,I168)) -> FALSE
V169: 0 | W169: =IF($V169<>0,OR(Valsp11(C169),Valsp11(Q169))) -> FALSE | X169: FALSE | Y169: FALSE | Z169: =IF($V169<>0, Valsp211(C169,0)) -> FALSE | AA169: =IF($V169<>0, Valsp212(B169, G169+H169+J169+K169+M169+N169)) -> FALSE | AB169: =IF($V169<>0, Valsp25(C169)) -> FALSE | AC169: =IF($V169<>0,Valsp2101(F169)) -> FALSE | AD169: =IF($V169<>0,Valsp291(E169,F169)) -> FALSE | AE169: =IF($V169<>0, Valsp1002(G169+H169+J169+K169+M169+N169)) -> FALSE | AF169: =IF($V169<>0, Valsp1003(D169,G169,H169,I169)) -> FALSE | AG169: =IF($V169<>0, Valsp1004(J169,K169,L169)) -> FALSE | AH169: =IF($V169<>0, Valsp1005(M169,N169,O169)) -> FALSE | AI169: =IF($V169<>0, Valsp1011(C169,E169,P169)) -> FALSE | AJ169: =IF($V169<>0, OR(Valsp1012(G169+H169,I169), Valsp1012(J169+K169,L169), Valsp1012(M169+N169,O169))) -> FALSE | AK169: 0 | AL169: =IF($V169<>0, Valsp1020(D169,Q169)) -> FALSE | AM169: 0 | AN169: =IF($V169<>0,Valsp1024(D169,G169,H169,I169)) -> FALSE
V170: 0 | W170: =IF($V170<>0,OR(Valsp11(C170),Valsp11(Q170))) -> FALSE | X170: FALSE | Y170: FALSE | Z170: =IF($V170<>0, Valsp211(C170,0)) -> FALSE | AA170: =IF($V170<>0, Valsp212(B170, G170+H170+J170+K170+M170+N170)) -> FALSE | AB170: =IF($V170<>0, Valsp25(C170)) -> FALSE | AC170: =IF($V170<>0,Valsp2101(F170)) -> FALSE | AD170: =IF($V170<>0,Valsp291(E170,F170)) -> FALSE | AE170: =IF($V170<>0, Valsp1002(G170+H170+J170+K170+M170+N170)) -> FALSE | AF170: =IF($V170<>0, Valsp1003(D170,G170,H170,I170)) -> FALSE | AG170: =IF($V170<>0, Valsp1004(J170,K170,L170)) -> FALSE | AH170: =IF($V170<>0, Valsp1005(M170,N170,O170)) -> FALSE | AI170: =IF($V170<>0, Valsp1011(C170,E170,P170)) -> FALSE | AJ170: =IF($V170<>0, OR(Valsp1012(G170+H170,I170), Valsp1012(J170+K170,L170), Valsp1012(M170+N170,O170))) -> FALSE | AK170: 0 | AL170: =IF($V170<>0, Valsp1020(D170,Q170)) -> FALSE | AM170: 0 | AN170: =IF($V170<>0,Valsp1024(D170,G170,H170,I170)) -> FALSE
V171: 0 | W171: =IF($V171<>0,OR(Valsp11(C171),Valsp11(Q171))) -> FALSE | X171: FALSE | Y171: FALSE | Z171: =IF($V171<>0, Valsp211(C171,0)) -> FALSE | AA171: =IF($V171<>0, Valsp212(B171, G171+H171+J171+K171+M171+N171)) -> FALSE | AB171: =IF($V171<>0, Valsp25(C171)) -> FALSE | AC171: =IF($V171<>0,Valsp2101(F171)) -> FALSE | AD171: =IF($V171<>0,Valsp291(E171,F171)) -> FALSE | AE171: =IF($V171<>0, Valsp1002(G171+H171+J171+K171+M171+N171)) -> FALSE | AF171: =IF($V171<>0, Valsp1003(D171,G171,H171,I171)) -> FALSE | AG171: =IF($V171<>0, Valsp1004(J171,K171,L171)) -> FALSE | AH171: =IF($V171<>0, Valsp1005(M171,N171,O171)) -> FALSE | AI171: =IF($V171<>0, Valsp1011(C171,E171,P171)) -> FALSE | AJ171: =IF($V171<>0, OR(Valsp1012(G171+H171,I171), Valsp1012(J171+K171,L171), Valsp1012(M171+N171,O171))) -> FALSE | AK171: 0 | AL171: =IF($V171<>0, Valsp1020(D171,Q171)) -> FALSE | AM171: 0 | AN171: =IF($V171<>0,Valsp1024(D171,G171,H171,I171)) -> FALSE
V172: 0 | W172: =IF($V172<>0,OR(Valsp11(C172),Valsp11(Q172))) -> FALSE | X172: FALSE | Y172: FALSE | Z172: =IF($V172<>0, Valsp211(C172,0)) -> FALSE | AA172: =IF($V172<>0, Valsp212(B172, G172+H172+J172+K172+M172+N172)) -> FALSE | AB172: =IF($V172<>0, Valsp25(C172)) -> FALSE | AC172: =IF($V172<>0,Valsp2101(F172)) -> FALSE | AD172: =IF($V172<>0,Valsp291(E172,F172)) -> FALSE | AE172: =IF($V172<>0, Valsp1002(G172+H172+J172+K172+M172+N172)) -> FALSE | AF172: =IF($V172<>0, Valsp1003(D172,G172,H172,I172)) -> FALSE | AG172: =IF($V172<>0, Valsp1004(J172,K172,L172)) -> FALSE | AH172: =IF($V172<>0, Valsp1005(M172,N172,O172)) -> FALSE | AI172: =IF($V172<>0, Valsp1011(C172,E172,P172)) -> FALSE | AJ172: =IF($V172<>0, OR(Valsp1012(G172+H172,I172), Valsp1012(J172+K172,L172), Valsp1012(M172+N172,O172))) -> FALSE | AK172: 0 | AL172: =IF($V172<>0, Valsp1020(D172,Q172)) -> FALSE | AM172: 0 | AN172: =IF($V172<>0,Valsp1024(D172,G172,H172,I172)) -> FALSE
V173: 0 | W173: =IF($V173<>0,OR(Valsp11(C173),Valsp11(Q173))) -> FALSE | X173: FALSE | Y173: FALSE | Z173: =IF($V173<>0, Valsp211(C173,0)) -> FALSE | AA173: =IF($V173<>0, Valsp212(B173, G173+H173+J173+K173+M173+N173)) -> FALSE | AB173: =IF($V173<>0, Valsp25(C173)) -> FALSE | AC173: =IF($V173<>0,Valsp2101(F173)) -> FALSE | AD173: =IF($V173<>0,Valsp291(E173,F173)) -> FALSE | AE173: =IF($V173<>0, Valsp1002(G173+H173+J173+K173+M173+N173)) -> FALSE | AF173: =IF($V173<>0, Valsp1003(D173,G173,H173,I173)) -> FALSE | AG173: =IF($V173<>0, Valsp1004(J173,K173,L173)) -> FALSE | AH173: =IF($V173<>0, Valsp1005(M173,N173,O173)) -> FALSE | AI173: =IF($V173<>0, Valsp1011(C173,E173,P173)) -> FALSE | AJ173: =IF($V173<>0, OR(Valsp1012(G173+H173,I173), Valsp1012(J173+K173,L173), Valsp1012(M173+N173,O173))) -> FALSE | AK173: 0 | AL173: =IF($V173<>0, Valsp1020(D173,Q173)) -> FALSE | AM173: 0 | AN173: =IF($V173<>0,Valsp1024(D173,G173,H173,I173)) -> FALSE
V174: 0 | W174: =IF($V174<>0,OR(Valsp11(C174),Valsp11(Q174))) -> FALSE | X174: FALSE | Y174: FALSE | Z174: =IF($V174<>0, Valsp211(C174,0)) -> FALSE | AA174: =IF($V174<>0, Valsp212(B174, G174+H174+J174+K174+M174+N174)) -> FALSE | AB174: =IF($V174<>0, Valsp25(C174)) -> FALSE | AC174: =IF($V174<>0,Valsp2101(F174)) -> FALSE | AD174: =IF($V174<>0,Valsp291(E174,F174)) -> FALSE | AE174: =IF($V174<>0, Valsp1002(G174+H174+J174+K174+M174+N174)) -> FALSE | AF174: =IF($V174<>0, Valsp1003(D174,G174,H174,I174)) -> FALSE | AG174: =IF($V174<>0, Valsp1004(J174,K174,L174)) -> FALSE | AH174: =IF($V174<>0, Valsp1005(M174,N174,O174)) -> FALSE | AI174: =IF($V174<>0, Valsp1011(C174,E174,P174)) -> FALSE | AJ174: =IF($V174<>0, OR(Valsp1012(G174+H174,I174), Valsp1012(J174+K174,L174), Valsp1012(M174+N174,O174))) -> FALSE | AK174: 0 | AL174: =IF($V174<>0, Valsp1020(D174,Q174)) -> FALSE | AM174: 0 | AN174: =IF($V174<>0,Valsp1024(D174,G174,H174,I174)) -> FALSE
V175: 0 | W175: =IF($V175<>0,OR(Valsp11(C175),Valsp11(Q175))) -> FALSE | X175: FALSE | Y175: FALSE | Z175: =IF($V175<>0, Valsp211(C175,0)) -> FALSE | AA175: =IF($V175<>0, Valsp212(B175, G175+H175+J175+K175+M175+N175)) -> FALSE | AB175: =IF($V175<>0, Valsp25(C175)) -> FALSE | AC175: =IF($V175<>0,Valsp2101(F175)) -> FALSE | AD175: =IF($V175<>0,Valsp291(E175,F175)) -> FALSE | AE175: =IF($V175<>0, Valsp1002(G175+H175+J175+K175+M175+N175)) -> FALSE | AF175: =IF($V175<>0, Valsp1003(D175,G175,H175,I175)) -> FALSE | AG175: =IF($V175<>0, Valsp1004(J175,K175,L175)) -> FALSE | AH175: =IF($V175<>0, Valsp1005(M175,N175,O175)) -> FALSE | AI175: =IF($V175<>0, Valsp1011(C175,E175,P175)) -> FALSE | AJ175: =IF($V175<>0, OR(Valsp1012(G175+H175,I175), Valsp1012(J175+K175,L175), Valsp1012(M175+N175,O175))) -> FALSE | AK175: 0 | AL175: =IF($V175<>0, Valsp1020(D175,Q175)) -> FALSE | AM175: 0 | AN175: =IF($V175<>0,Valsp1024(D175,G175,H175,I175)) -> FALSE
V176: 0 | W176: =IF($V176<>0,OR(Valsp11(C176),Valsp11(Q176))) -> FALSE | X176: FALSE | Y176: FALSE | Z176: =IF($V176<>0, Valsp211(C176,0)) -> FALSE | AA176: =IF($V176<>0, Valsp212(B176, G176+H176+J176+K176+M176+N176)) -> FALSE | AB176: =IF($V176<>0, Valsp25(C176)) -> FALSE | AC176: =IF($V176<>0,Valsp2101(F176)) -> FALSE | AD176: =IF($V176<>0,Valsp291(E176,F176)) -> FALSE | AE176: =IF($V176<>0, Valsp1002(G176+H176+J176+K176+M176+N176)) -> FALSE | AF176: =IF($V176<>0, Valsp1003(D176,G176,H176,I176)) -> FALSE | AG176: =IF($V176<>0, Valsp1004(J176,K176,L176)) -> FALSE | AH176: =IF($V176<>0, Valsp1005(M176,N176,O176)) -> FALSE | AI176: =IF($V176<>0, Valsp1011(C176,E176,P176)) -> FALSE | AJ176: =IF($V176<>0, OR(Valsp1012(G176+H176,I176), Valsp1012(J176+K176,L176), Valsp1012(M176+N176,O176))) -> FALSE | AK176: 0 | AL176: =IF($V176<>0, Valsp1020(D176,Q176)) -> FALSE | AM176: 0 | AN176: =IF($V176<>0,Valsp1024(D176,G176,H176,I176)) -> FALSE
V177: 0 | W177: =IF($V177<>0,OR(Valsp11(C177),Valsp11(Q177))) -> FALSE | X177: FALSE | Y177: FALSE | Z177: =IF($V177<>0, Valsp211(C177,0)) -> FALSE | AA177: =IF($V177<>0, Valsp212(B177, G177+H177+J177+K177+M177+N177)) -> FALSE | AB177: =IF($V177<>0, Valsp25(C177)) -> FALSE | AC177: =IF($V177<>0,Valsp2101(F177)) -> FALSE | AD177: =IF($V177<>0,Valsp291(E177,F177)) -> FALSE | AE177: =IF($V177<>0, Valsp1002(G177+H177+J177+K177+M177+N177)) -> FALSE | AF177: =IF($V177<>0, Valsp1003(D177,G177,H177,I177)) -> FALSE | AG177: =IF($V177<>0, Valsp1004(J177,K177,L177)) -> FALSE | AH177: =IF($V177<>0, Valsp1005(M177,N177,O177)) -> FALSE | AI177: =IF($V177<>0, Valsp1011(C177,E177,P177)) -> FALSE | AJ177: =IF($V177<>0, OR(Valsp1012(G177+H177,I177), Valsp1012(J177+K177,L177), Valsp1012(M177+N177,O177))) -> FALSE | AK177: 0 | AL177: =IF($V177<>0, Valsp1020(D177,Q177)) -> FALSE | AM177: 0 | AN177: =IF($V177<>0,Valsp1024(D177,G177,H177,I177)) -> FALSE
V178: 0 | W178: =IF($V178<>0,OR(Valsp11(C178),Valsp11(Q178))) -> FALSE | X178: FALSE | Y178: FALSE | Z178: =IF($V178<>0, Valsp211(C178,0)) -> FALSE | AA178: =IF($V178<>0, Valsp212(B178, G178+H178+J178+K178+M178+N178)) -> FALSE | AB178: =IF($V178<>0, Valsp25(C178)) -> FALSE | AC178: =IF($V178<>0,Valsp2101(F178)) -> FALSE | AD178: =IF($V178<>0,Valsp291(E178,F178)) -> FALSE | AE178: =IF($V178<>0, Valsp1002(G178+H178+J178+K178+M178+N178)) -> FALSE | AF178: =IF($V178<>0, Valsp1003(D178,G178,H178,I178)) -> FALSE | AG178: =IF($V178<>0, Valsp1004(J178,K178,L178)) -> FALSE | AH178: =IF($V178<>0, Valsp1005(M178,N178,O178)) -> FALSE | AI178: =IF($V178<>0, Valsp1011(C178,E178,P178)) -> FALSE | AJ178: =IF($V178<>0, OR(Valsp1012(G178+H178,I178), Valsp1012(J178+K178,L178), Valsp1012(M178+N178,O178))) -> FALSE | AK178: 0 | AL178: =IF($V178<>0, Valsp1020(D178,Q178)) -> FALSE | AM178: 0 | AN178: =IF($V178<>0,Valsp1024(D178,G178,H178,I178)) -> FALSE
V179: 0 | W179: =IF($V179<>0,OR(Valsp11(C179),Valsp11(Q179))) -> FALSE | X179: FALSE | Y179: FALSE | Z179: =IF($V179<>0, Valsp211(C179,0)) -> FALSE | AA179: =IF($V179<>0, Valsp212(B179, G179+H179+J179+K179+M179+N179)) -> FALSE | AB179: =IF($V179<>0, Valsp25(C179)) -> FALSE | AC179: =IF($V179<>0,Valsp2101(F179)) -> FALSE | AD179: =IF($V179<>0,Valsp291(E179,F179)) -> FALSE | AE179: =IF($V179<>0, Valsp1002(G179+H179+J179+K179+M179+N179)) -> FALSE | AF179: =IF($V179<>0, Valsp1003(D179,G179,H179,I179)) -> FALSE | AG179: =IF($V179<>0, Valsp1004(J179,K179,L179)) -> FALSE | AH179: =IF($V179<>0, Valsp1005(M179,N179,O179)) -> FALSE | AI179: =IF($V179<>0, Valsp1011(C179,E179,P179)) -> FALSE | AJ179: =IF($V179<>0, OR(Valsp1012(G179+H179,I179), Valsp1012(J179+K179,L179), Valsp1012(M179+N179,O179))) -> FALSE | AK179: 0 | AL179: =IF($V179<>0, Valsp1020(D179,Q179)) -> FALSE | AM179: 0 | AN179: =IF($V179<>0,Valsp1024(D179,G179,H179,I179)) -> FALSE
V180: 0 | W180: =IF($V180<>0,OR(Valsp11(C180),Valsp11(Q180))) -> FALSE | X180: FALSE | Y180: FALSE | Z180: =IF($V180<>0, Valsp211(C180,0)) -> FALSE | AA180: =IF($V180<>0, Valsp212(B180, G180+H180+J180+K180+M180+N180)) -> FALSE | AB180: =IF($V180<>0, Valsp25(C180)) -> FALSE | AC180: =IF($V180<>0,Valsp2101(F180)) -> FALSE | AD180: =IF($V180<>0,Valsp291(E180,F180)) -> FALSE | AE180: =IF($V180<>0, Valsp1002(G180+H180+J180+K180+M180+N180)) -> FALSE | AF180: =IF($V180<>0, Valsp1003(D180,G180,H180,I180)) -> FALSE | AG180: =IF($V180<>0, Valsp1004(J180,K180,L180)) -> FALSE | AH180: =IF($V180<>0, Valsp1005(M180,N180,O180)) -> FALSE | AI180: =IF($V180<>0, Valsp1011(C180,E180,P180)) -> FALSE | AJ180: =IF($V180<>0, OR(Valsp1012(G180+H180,I180), Valsp1012(J180+K180,L180), Valsp1012(M180+N180,O180))) -> FALSE | AK180: 0 | AL180: =IF($V180<>0, Valsp1020(D180,Q180)) -> FALSE | AM180: 0 | AN180: =IF($V180<>0,Valsp1024(D180,G180,H180,I180)) -> FALSE
V181: 0 | W181: =IF($V181<>0,OR(Valsp11(C181),Valsp11(Q181))) -> FALSE | X181: FALSE | Y181: FALSE | Z181: =IF($V181<>0, Valsp211(C181,0)) -> FALSE | AA181: =IF($V181<>0, Valsp212(B181, G181+H181+J181+K181+M181+N181)) -> FALSE | AB181: =IF($V181<>0, Valsp25(C181)) -> FALSE | AC181: =IF($V181<>0,Valsp2101(F181)) -> FALSE | AD181: =IF($V181<>0,Valsp291(E181,F181)) -> FALSE | AE181: =IF($V181<>0, Valsp1002(G181+H181+J181+K181+M181+N181)) -> FALSE | AF181: =IF($V181<>0, Valsp1003(D181,G181,H181,I181)) -> FALSE | AG181: =IF($V181<>0, Valsp1004(J181,K181,L181)) -> FALSE | AH181: =IF($V181<>0, Valsp1005(M181,N181,O181)) -> FALSE | AI181: =IF($V181<>0, Valsp1011(C181,E181,P181)) -> FALSE | AJ181: =IF($V181<>0, OR(Valsp1012(G181+H181,I181), Valsp1012(J181+K181,L181), Valsp1012(M181+N181,O181))) -> FALSE | AK181: 0 | AL181: =IF($V181<>0, Valsp1020(D181,Q181)) -> FALSE | AM181: 0 | AN181: =IF($V181<>0,Valsp1024(D181,G181,H181,I181)) -> FALSE
V182: 0 | W182: =IF($V182<>0,OR(Valsp11(C182),Valsp11(Q182))) -> FALSE | X182: FALSE | Y182: FALSE | Z182: =IF($V182<>0, Valsp211(C182,0)) -> FALSE | AA182: =IF($V182<>0, Valsp212(B182, G182+H182+J182+K182+M182+N182)) -> FALSE | AB182: =IF($V182<>0, Valsp25(C182)) -> FALSE | AC182: =IF($V182<>0,Valsp2101(F182)) -> FALSE | AD182: =IF($V182<>0,Valsp291(E182,F182)) -> FALSE | AE182: =IF($V182<>0, Valsp1002(G182+H182+J182+K182+M182+N182)) -> FALSE | AF182: =IF($V182<>0, Valsp1003(D182,G182,H182,I182)) -> FALSE | AG182: =IF($V182<>0, Valsp1004(J182,K182,L182)) -> FALSE | AH182: =IF($V182<>0, Valsp1005(M182,N182,O182)) -> FALSE | AI182: =IF($V182<>0, Valsp1011(C182,E182,P182)) -> FALSE | AJ182: =IF($V182<>0, OR(Valsp1012(G182+H182,I182), Valsp1012(J182+K182,L182), Valsp1012(M182+N182,O182))) -> FALSE | AK182: 0 | AL182: =IF($V182<>0, Valsp1020(D182,Q182)) -> FALSE | AM182: 0 | AN182: =IF($V182<>0,Valsp1024(D182,G182,H182,I182)) -> FALSE
V183: 0 | W183: =IF($V183<>0,OR(Valsp11(C183),Valsp11(Q183))) -> FALSE | X183: FALSE | Y183: FALSE | Z183: =IF($V183<>0, Valsp211(C183,0)) -> FALSE | AA183: =IF($V183<>0, Valsp212(B183, G183+H183+J183+K183+M183+N183)) -> FALSE | AB183: =IF($V183<>0, Valsp25(C183)) -> FALSE | AC183: =IF($V183<>0,Valsp2101(F183)) -> FALSE | AD183: =IF($V183<>0,Valsp291(E183,F183)) -> FALSE | AE183: =IF($V183<>0, Valsp1002(G183+H183+J183+K183+M183+N183)) -> FALSE | AF183: =IF($V183<>0, Valsp1003(D183,G183,H183,I183)) -> FALSE | AG183: =IF($V183<>0, Valsp1004(J183,K183,L183)) -> FALSE | AH183: =IF($V183<>0, Valsp1005(M183,N183,O183)) -> FALSE | AI183: =IF($V183<>0, Valsp1011(C183,E183,P183)) -> FALSE | AJ183: =IF($V183<>0, OR(Valsp1012(G183+H183,I183), Valsp1012(J183+K183,L183), Valsp1012(M183+N183,O183))) -> FALSE | AK183: 0 | AL183: =IF($V183<>0, Valsp1020(D183,Q183)) -> FALSE | AM183: 0 | AN183: =IF($V183<>0,Valsp1024(D183,G183,H183,I183)) -> FALSE
V184: 0 | W184: =IF($V184<>0,OR(Valsp11(C184),Valsp11(Q184))) -> FALSE | X184: FALSE | Y184: FALSE | Z184: =IF($V184<>0, Valsp211(C184,0)) -> FALSE | AA184: =IF($V184<>0, Valsp212(B184, G184+H184+J184+K184+M184+N184)) -> FALSE | AB184: =IF($V184<>0, Valsp25(C184)) -> FALSE | AC184: =IF($V184<>0,Valsp2101(F184)) -> FALSE | AD184: =IF($V184<>0,Valsp291(E184,F184)) -> FALSE | AE184: =IF($V184<>0, Valsp1002(G184+H184+J184+K184+M184+N184)) -> FALSE | AF184: =IF($V184<>0, Valsp1003(D184,G184,H184,I184)) -> FALSE | AG184: =IF($V184<>0, Valsp1004(J184,K184,L184)) -> FALSE | AH184: =IF($V184<>0, Valsp1005(M184,N184,O184)) -> FALSE | AI184: =IF($V184<>0, Valsp1011(C184,E184,P184)) -> FALSE | AJ184: =IF($V184<>0, OR(Valsp1012(G184+H184,I184), Valsp1012(J184+K184,L184), Valsp1012(M184+N184,O184))) -> FALSE | AK184: 0 | AL184: =IF($V184<>0, Valsp1020(D184,Q184)) -> FALSE | AM184: 0 | AN184: =IF($V184<>0,Valsp1024(D184,G184,H184,I184)) -> FALSE
V185: 0 | W185: =IF($V185<>0,OR(Valsp11(C185),Valsp11(Q185))) -> FALSE | X185: FALSE | Y185: FALSE | Z185: =IF($V185<>0, Valsp211(C185,0)) -> FALSE | AA185: =IF($V185<>0, Valsp212(B185, G185+H185+J185+K185+M185+N185)) -> FALSE | AB185: =IF($V185<>0, Valsp25(C185)) -> FALSE | AC185: =IF($V185<>0,Valsp2101(F185)) -> FALSE | AD185: =IF($V185<>0,Valsp291(E185,F185)) -> FALSE | AE185: =IF($V185<>0, Valsp1002(G185+H185+J185+K185+M185+N185)) -> FALSE | AF185: =IF($V185<>0, Valsp1003(D185,G185,H185,I185)) -> FALSE | AG185: =IF($V185<>0, Valsp1004(J185,K185,L185)) -> FALSE | AH185: =IF($V185<>0, Valsp1005(M185,N185,O185)) -> FALSE | AI185: =IF($V185<>0, Valsp1011(C185,E185,P185)) -> FALSE | AJ185: =IF($V185<>0, OR(Valsp1012(G185+H185,I185), Valsp1012(J185+K185,L185), Valsp1012(M185+N185,O185))) -> FALSE | AK185: 0 | AL185: =IF($V185<>0, Valsp1020(D185,Q185)) -> FALSE | AM185: 0 | AN185: =IF($V185<>0,Valsp1024(D185,G185,H185,I185)) -> FALSE
V186: 0 | W186: =IF($V186<>0,OR(Valsp11(C186),Valsp11(Q186))) -> FALSE | X186: FALSE | Y186: FALSE | Z186: =IF($V186<>0, Valsp211(C186,0)) -> FALSE | AA186: =IF($V186<>0, Valsp212(B186, G186+H186+J186+K186+M186+N186)) -> FALSE | AB186: =IF($V186<>0, Valsp25(C186)) -> FALSE | AC186: =IF($V186<>0,Valsp2101(F186)) -> FALSE | AD186: =IF($V186<>0,Valsp291(E186,F186)) -> FALSE | AE186: =IF($V186<>0, Valsp1002(G186+H186+J186+K186+M186+N186)) -> FALSE | AF186: =IF($V186<>0, Valsp1003(D186,G186,H186,I186)) -> FALSE | AG186: =IF($V186<>0, Valsp1004(J186,K186,L186)) -> FALSE | AH186: =IF($V186<>0, Valsp1005(M186,N186,O186)) -> FALSE | AI186: =IF($V186<>0, Valsp1011(C186,E186,P186)) -> FALSE | AJ186: =IF($V186<>0, OR(Valsp1012(G186+H186,I186), Valsp1012(J186+K186,L186), Valsp1012(M186+N186,O186))) -> FALSE | AK186: 0 | AL186: =IF($V186<>0, Valsp1020(D186,Q186)) -> FALSE | AM186: 0 | AN186: =IF($V186<>0,Valsp1024(D186,G186,H186,I186)) -> FALSE
V187: 0 | W187: =IF($V187<>0,OR(Valsp11(C187),Valsp11(Q187))) -> FALSE | X187: FALSE | Y187: FALSE | Z187: =IF($V187<>0, Valsp211(C187,0)) -> FALSE | AA187: =IF($V187<>0, Valsp212(B187, G187+H187+J187+K187+M187+N187)) -> FALSE | AB187: =IF($V187<>0, Valsp25(C187)) -> FALSE | AC187: =IF($V187<>0,Valsp2101(F187)) -> FALSE | AD187: =IF($V187<>0,Valsp291(E187,F187)) -> FALSE | AE187: =IF($V187<>0, Valsp1002(G187+H187+J187+K187+M187+N187)) -> FALSE | AF187: =IF($V187<>0, Valsp1003(D187,G187,H187,I187)) -> FALSE | AG187: =IF($V187<>0, Valsp1004(J187,K187,L187)) -> FALSE | AH187: =IF($V187<>0, Valsp1005(M187,N187,O187)) -> FALSE | AI187: =IF($V187<>0, Valsp1011(C187,E187,P187)) -> FALSE | AJ187: =IF($V187<>0, OR(Valsp1012(G187+H187,I187), Valsp1012(J187+K187,L187), Valsp1012(M187+N187,O187))) -> FALSE | AK187: 0 | AL187: =IF($V187<>0, Valsp1020(D187,Q187)) -> FALSE | AM187: 0 | AN187: =IF($V187<>0,Valsp1024(D187,G187,H187,I187)) -> FALSE
V188: 0 | W188: =IF($V188<>0,OR(Valsp11(C188),Valsp11(Q188))) -> FALSE | X188: FALSE | Y188: FALSE | Z188: =IF($V188<>0, Valsp211(C188,0)) -> FALSE | AA188: =IF($V188<>0, Valsp212(B188, G188+H188+J188+K188+M188+N188)) -> FALSE | AB188: =IF($V188<>0, Valsp25(C188)) -> FALSE | AC188: =IF($V188<>0,Valsp2101(F188)) -> FALSE | AD188: =IF($V188<>0,Valsp291(E188,F188)) -> FALSE | AE188: =IF($V188<>0, Valsp1002(G188+H188+J188+K188+M188+N188)) -> FALSE | AF188: =IF($V188<>0, Valsp1003(D188,G188,H188,I188)) -> FALSE | AG188: =IF($V188<>0, Valsp1004(J188,K188,L188)) -> FALSE | AH188: =IF($V188<>0, Valsp1005(M188,N188,O188)) -> FALSE | AI188: =IF($V188<>0, Valsp1011(C188,E188,P188)) -> FALSE | AJ188: =IF($V188<>0, OR(Valsp1012(G188+H188,I188), Valsp1012(J188+K188,L188), Valsp1012(M188+N188,O188))) -> FALSE | AK188: 0 | AL188: =IF($V188<>0, Valsp1020(D188,Q188)) -> FALSE | AM188: 0 | AN188: =IF($V188<>0,Valsp1024(D188,G188,H188,I188)) -> FALSE
V189: 0 | W189: =IF($V189<>0,OR(Valsp11(C189),Valsp11(Q189))) -> FALSE | X189: FALSE | Y189: FALSE | Z189: =IF($V189<>0, Valsp211(C189,0)) -> FALSE | AA189: =IF($V189<>0, Valsp212(B189, G189+H189+J189+K189+M189+N189)) -> FALSE | AB189: =IF($V189<>0, Valsp25(C189)) -> FALSE | AC189: =IF($V189<>0,Valsp2101(F189)) -> FALSE | AD189: =IF($V189<>0,Valsp291(E189,F189)) -> FALSE | AE189: =IF($V189<>0, Valsp1002(G189+H189+J189+K189+M189+N189)) -> FALSE | AF189: =IF($V189<>0, Valsp1003(D189,G189,H189,I189)) -> FALSE | AG189: =IF($V189<>0, Valsp1004(J189,K189,L189)) -> FALSE | AH189: =IF($V189<>0, Valsp1005(M189,N189,O189)) -> FALSE | AI189: =IF($V189<>0, Valsp1011(C189,E189,P189)) -> FALSE | AJ189: =IF($V189<>0, OR(Valsp1012(G189+H189,I189), Valsp1012(J189+K189,L189), Valsp1012(M189+N189,O189))) -> FALSE | AK189: 0 | AL189: =IF($V189<>0, Valsp1020(D189,Q189)) -> FALSE | AM189: 0 | AN189: =IF($V189<>0,Valsp1024(D189,G189,H189,I189)) -> FALSE
V190: 0 | W190: =IF($V190<>0,OR(Valsp11(C190),Valsp11(Q190))) -> FALSE | X190: FALSE | Y190: FALSE | Z190: =IF($V190<>0, Valsp211(C190,0)) -> FALSE | AA190: =IF($V190<>0, Valsp212(B190, G190+H190+J190+K190+M190+N190)) -> FALSE | AB190: =IF($V190<>0, Valsp25(C190)) -> FALSE | AC190: =IF($V190<>0,Valsp2101(F190)) -> FALSE | AD190: =IF($V190<>0,Valsp291(E190,F190)) -> FALSE | AE190: =IF($V190<>0, Valsp1002(G190+H190+J190+K190+M190+N190)) -> FALSE | AF190: =IF($V190<>0, Valsp1003(D190,G190,H190,I190)) -> FALSE | AG190: =IF($V190<>0, Valsp1004(J190,K190,L190)) -> FALSE | AH190: =IF($V190<>0, Valsp1005(M190,N190,O190)) -> FALSE | AI190: =IF($V190<>0, Valsp1011(C190,E190,P190)) -> FALSE | AJ190: =IF($V190<>0, OR(Valsp1012(G190+H190,I190), Valsp1012(J190+K190,L190), Valsp1012(M190+N190,O190))) -> FALSE | AK190: 0 | AL190: =IF($V190<>0, Valsp1020(D190,Q190)) -> FALSE | AM190: 0 | AN190: =IF($V190<>0,Valsp1024(D190,G190,H190,I190)) -> FALSE
V191: 0 | W191: =IF($V191<>0,OR(Valsp11(C191),Valsp11(Q191))) -> FALSE | X191: FALSE | Y191: FALSE | Z191: =IF($V191<>0, Valsp211(C191,0)) -> FALSE | AA191: =IF($V191<>0, Valsp212(B191, G191+H191+J191+K191+M191+N191)) -> FALSE | AB191: =IF($V191<>0, Valsp25(C191)) -> FALSE | AC191: =IF($V191<>0,Valsp2101(F191)) -> FALSE | AD191: =IF($V191<>0,Valsp291(E191,F191)) -> FALSE | AE191: =IF($V191<>0, Valsp1002(G191+H191+J191+K191+M191+N191)) -> FALSE | AF191: =IF($V191<>0, Valsp1003(D191,G191,H191,I191)) -> FALSE | AG191: =IF($V191<>0, Valsp1004(J191,K191,L191)) -> FALSE | AH191: =IF($V191<>0, Valsp1005(M191,N191,O191)) -> FALSE | AI191: =IF($V191<>0, Valsp1011(C191,E191,P191)) -> FALSE | AJ191: =IF($V191<>0, OR(Valsp1012(G191+H191,I191), Valsp1012(J191+K191,L191), Valsp1012(M191+N191,O191))) -> FALSE | AK191: 0 | AL191: =IF($V191<>0, Valsp1020(D191,Q191)) -> FALSE | AM191: 0 | AN191: =IF($V191<>0,Valsp1024(D191,G191,H191,I191)) -> FALSE
V192: 0 | W192: =IF($V192<>0,OR(Valsp11(C192),Valsp11(Q192))) -> FALSE | X192: FALSE | Y192: FALSE | Z192: =IF($V192<>0, Valsp211(C192,0)) -> FALSE | AA192: =IF($V192<>0, Valsp212(B192, G192+H192+J192+K192+M192+N192)) -> FALSE | AB192: =IF($V192<>0, Valsp25(C192)) -> FALSE | AC192: =IF($V192<>0,Valsp2101(F192)) -> FALSE | AD192: =IF($V192<>0,Valsp291(E192,F192)) -> FALSE | AE192: =IF($V192<>0, Valsp1002(G192+H192+J192+K192+M192+N192)) -> FALSE | AF192: =IF($V192<>0, Valsp1003(D192,G192,H192,I192)) -> FALSE | AG192: =IF($V192<>0, Valsp1004(J192,K192,L192)) -> FALSE | AH192: =IF($V192<>0, Valsp1005(M192,N192,O192)) -> FALSE | AI192: =IF($V192<>0, Valsp1011(C192,E192,P192)) -> FALSE | AJ192: =IF($V192<>0, OR(Valsp1012(G192+H192,I192), Valsp1012(J192+K192,L192), Valsp1012(M192+N192,O192))) -> FALSE | AK192: 0 | AL192: =IF($V192<>0, Valsp1020(D192,Q192)) -> FALSE | AM192: 0 | AN192: =IF($V192<>0,Valsp1024(D192,G192,H192,I192)) -> FALSE
V193: 0 | W193: =IF($V193<>0,OR(Valsp11(C193),Valsp11(Q193))) -> FALSE | X193: FALSE | Y193: FALSE | Z193: =IF($V193<>0, Valsp211(C193,0)) -> FALSE | AA193: =IF($V193<>0, Valsp212(B193, G193+H193+J193+K193+M193+N193)) -> FALSE | AB193: =IF($V193<>0, Valsp25(C193)) -> FALSE | AC193: =IF($V193<>0,Valsp2101(F193)) -> FALSE | AD193: =IF($V193<>0,Valsp291(E193,F193)) -> FALSE | AE193: =IF($V193<>0, Valsp1002(G193+H193+J193+K193+M193+N193)) -> FALSE | AF193: =IF($V193<>0, Valsp1003(D193,G193,H193,I193)) -> FALSE | AG193: =IF($V193<>0, Valsp1004(J193,K193,L193)) -> FALSE | AH193: =IF($V193<>0, Valsp1005(M193,N193,O193)) -> FALSE | AI193: =IF($V193<>0, Valsp1011(C193,E193,P193)) -> FALSE | AJ193: =IF($V193<>0, OR(Valsp1012(G193+H193,I193), Valsp1012(J193+K193,L193), Valsp1012(M193+N193,O193))) -> FALSE | AK193: 0 | AL193: =IF($V193<>0, Valsp1020(D193,Q193)) -> FALSE | AM193: 0 | AN193: =IF($V193<>0,Valsp1024(D193,G193,H193,I193)) -> FALSE
V194: 0 | W194: =IF($V194<>0,OR(Valsp11(C194),Valsp11(Q194))) -> FALSE | X194: FALSE | Y194: FALSE | Z194: =IF($V194<>0, Valsp211(C194,0)) -> FALSE | AA194: =IF($V194<>0, Valsp212(B194, G194+H194+J194+K194+M194+N194)) -> FALSE | AB194: =IF($V194<>0, Valsp25(C194)) -> FALSE | AC194: =IF($V194<>0,Valsp2101(F194)) -> FALSE | AD194: =IF($V194<>0,Valsp291(E194,F194)) -> FALSE | AE194: =IF($V194<>0, Valsp1002(G194+H194+J194+K194+M194+N194)) -> FALSE | AF194: =IF($V194<>0, Valsp1003(D194,G194,H194,I194)) -> FALSE | AG194: =IF($V194<>0, Valsp1004(J194,K194,L194)) -> FALSE | AH194: =IF($V194<>0, Valsp1005(M194,N194,O194)) -> FALSE | AI194: =IF($V194<>0, Valsp1011(C194,E194,P194)) -> FALSE | AJ194: =IF($V194<>0, OR(Valsp1012(G194+H194,I194), Valsp1012(J194+K194,L194), Valsp1012(M194+N194,O194))) -> FALSE | AK194: 0 | AL194: =IF($V194<>0, Valsp1020(D194,Q194)) -> FALSE | AM194: 0 | AN194: =IF($V194<>0,Valsp1024(D194,G194,H194,I194)) -> FALSE
V195: 0 | W195: =IF($V195<>0,OR(Valsp11(C195),Valsp11(Q195))) -> FALSE | X195: FALSE | Y195: FALSE | Z195: =IF($V195<>0, Valsp211(C195,0)) -> FALSE | AA195: =IF($V195<>0, Valsp212(B195, G195+H195+J195+K195+M195+N195)) -> FALSE | AB195: =IF($V195<>0, Valsp25(C195)) -> FALSE | AC195: =IF($V195<>0,Valsp2101(F195)) -> FALSE | AD195: =IF($V195<>0,Valsp291(E195,F195)) -> FALSE | AE195: =IF($V195<>0, Valsp1002(G195+H195+J195+K195+M195+N195)) -> FALSE | AF195: =IF($V195<>0, Valsp1003(D195,G195,H195,I195)) -> FALSE | AG195: =IF($V195<>0, Valsp1004(J195,K195,L195)) -> FALSE | AH195: =IF($V195<>0, Valsp1005(M195,N195,O195)) -> FALSE | AI195: =IF($V195<>0, Valsp1011(C195,E195,P195)) -> FALSE | AJ195: =IF($V195<>0, OR(Valsp1012(G195+H195,I195), Valsp1012(J195+K195,L195), Valsp1012(M195+N195,O195))) -> FALSE | AK195: 0 | AL195: =IF($V195<>0, Valsp1020(D195,Q195)) -> FALSE | AM195: 0 | AN195: =IF($V195<>0,Valsp1024(D195,G195,H195,I195)) -> FALSE
V196: 0 | W196: =IF($V196<>0,OR(Valsp11(C196),Valsp11(Q196))) -> FALSE | X196: FALSE | Y196: FALSE | Z196: =IF($V196<>0, Valsp211(C196,0)) -> FALSE | AA196: =IF($V196<>0, Valsp212(B196, G196+H196+J196+K196+M196+N196)) -> FALSE | AB196: =IF($V196<>0, Valsp25(C196)) -> FALSE | AC196: =IF($V196<>0,Valsp2101(F196)) -> FALSE | AD196: =IF($V196<>0,Valsp291(E196,F196)) -> FALSE | AE196: =IF($V196<>0, Valsp1002(G196+H196+J196+K196+M196+N196)) -> FALSE | AF196: =IF($V196<>0, Valsp1003(D196,G196,H196,I196)) -> FALSE | AG196: =IF($V196<>0, Valsp1004(J196,K196,L196)) -> FALSE | AH196: =IF($V196<>0, Valsp1005(M196,N196,O196)) -> FALSE | AI196: =IF($V196<>0, Valsp1011(C196,E196,P196)) -> FALSE | AJ196: =IF($V196<>0, OR(Valsp1012(G196+H196,I196), Valsp1012(J196+K196,L196), Valsp1012(M196+N196,O196))) -> FALSE | AK196: 0 | AL196: =IF($V196<>0, Valsp1020(D196,Q196)) -> FALSE | AM196: 0 | AN196: =IF($V196<>0,Valsp1024(D196,G196,H196,I196)) -> FALSE
V197: 0 | W197: =IF($V197<>0,OR(Valsp11(C197),Valsp11(Q197))) -> FALSE | X197: FALSE | Y197: FALSE | Z197: =IF($V197<>0, Valsp211(C197,0)) -> FALSE | AA197: =IF($V197<>0, Valsp212(B197, G197+H197+J197+K197+M197+N197)) -> FALSE | AB197: =IF($V197<>0, Valsp25(C197)) -> FALSE | AC197: =IF($V197<>0,Valsp2101(F197)) -> FALSE | AD197: =IF($V197<>0,Valsp291(E197,F197)) -> FALSE | AE197: =IF($V197<>0, Valsp1002(G197+H197+J197+K197+M197+N197)) -> FALSE | AF197: =IF($V197<>0, Valsp1003(D197,G197,H197,I197)) -> FALSE | AG197: =IF($V197<>0, Valsp1004(J197,K197,L197)) -> FALSE | AH197: =IF($V197<>0, Valsp1005(M197,N197,O197)) -> FALSE | AI197: =IF($V197<>0, Valsp1011(C197,E197,P197)) -> FALSE | AJ197: =IF($V197<>0, OR(Valsp1012(G197+H197,I197), Valsp1012(J197+K197,L197), Valsp1012(M197+N197,O197))) -> FALSE | AK197: 0 | AL197: =IF($V197<>0, Valsp1020(D197,Q197)) -> FALSE | AM197: 0 | AN197: =IF($V197<>0,Valsp1024(D197,G197,H197,I197)) -> FALSE
V198: 0 | W198: =IF($V198<>0,OR(Valsp11(C198),Valsp11(Q198))) -> FALSE | X198: FALSE | Y198: FALSE | Z198: =IF($V198<>0, Valsp211(C198,0)) -> FALSE | AA198: =IF($V198<>0, Valsp212(B198, G198+H198+J198+K198+M198+N198)) -> FALSE | AB198: =IF($V198<>0, Valsp25(C198)) -> FALSE | AC198: =IF($V198<>0,Valsp2101(F198)) -> FALSE | AD198: =IF($V198<>0,Valsp291(E198,F198)) -> FALSE | AE198: =IF($V198<>0, Valsp1002(G198+H198+J198+K198+M198+N198)) -> FALSE | AF198: =IF($V198<>0, Valsp1003(D198,G198,H198,I198)) -> FALSE | AG198: =IF($V198<>0, Valsp1004(J198,K198,L198)) -> FALSE | AH198: =IF($V198<>0, Valsp1005(M198,N198,O198)) -> FALSE | AI198: =IF($V198<>0, Valsp1011(C198,E198,P198)) -> FALSE | AJ198: =IF($V198<>0, OR(Valsp1012(G198+H198,I198), Valsp1012(J198+K198,L198), Valsp1012(M198+N198,O198))) -> FALSE | AK198: 0 | AL198: =IF($V198<>0, Valsp1020(D198,Q198)) -> FALSE | AM198: 0 | AN198: =IF($V198<>0,Valsp1024(D198,G198,H198,I198)) -> FALSE
V199: 0 | W199: =IF($V199<>0,OR(Valsp11(C199),Valsp11(Q199))) -> FALSE | X199: FALSE | Y199: FALSE | Z199: =IF($V199<>0, Valsp211(C199,0)) -> FALSE | AA199: =IF($V199<>0, Valsp212(B199, G199+H199+J199+K199+M199+N199)) -> FALSE | AB199: =IF($V199<>0, Valsp25(C199)) -> FALSE | AC199: =IF($V199<>0,Valsp2101(F199)) -> FALSE | AD199: =IF($V199<>0,Valsp291(E199,F199)) -> FALSE | AE199: =IF($V199<>0, Valsp1002(G199+H199+J199+K199+M199+N199)) -> FALSE | AF199: =IF($V199<>0, Valsp1003(D199,G199,H199,I199)) -> FALSE | AG199: =IF($V199<>0, Valsp1004(J199,K199,L199)) -> FALSE | AH199: =IF($V199<>0, Valsp1005(M199,N199,O199)) -> FALSE | AI199: =IF($V199<>0, Valsp1011(C199,E199,P199)) -> FALSE | AJ199: =IF($V199<>0, OR(Valsp1012(G199+H199,I199), Valsp1012(J199+K199,L199), Valsp1012(M199+N199,O199))) -> FALSE | AK199: 0 | AL199: =IF($V199<>0, Valsp1020(D199,Q199)) -> FALSE | AM199: 0 | AN199: =IF($V199<>0,Valsp1024(D199,G199,H199,I199)) -> FALSE
V200: 0 | W200: =IF($V200<>0,OR(Valsp11(C200),Valsp11(Q200))) -> FALSE | X200: FALSE | Y200: FALSE | Z200: =IF($V200<>0, Valsp211(C200,0)) -> FALSE | AA200: =IF($V200<>0, Valsp212(B200, G200+H200+J200+K200+M200+N200)) -> FALSE | AB200: =IF($V200<>0, Valsp25(C200)) -> FALSE | AC200: =IF($V200<>0,Valsp2101(F200)) -> FALSE | AD200: =IF($V200<>0,Valsp291(E200,F200)) -> FALSE | AE200: =IF($V200<>0, Valsp1002(G200+H200+J200+K200+M200+N200)) -> FALSE | AF200: =IF($V200<>0, Valsp1003(D200,G200,H200,I200)) -> FALSE | AG200: =IF($V200<>0, Valsp1004(J200,K200,L200)) -> FALSE | AH200: =IF($V200<>0, Valsp1005(M200,N200,O200)) -> FALSE | AI200: =IF($V200<>0, Valsp1011(C200,E200,P200)) -> FALSE | AJ200: =IF($V200<>0, OR(Valsp1012(G200+H200,I200), Valsp1012(J200+K200,L200), Valsp1012(M200+N200,O200))) -> FALSE | AK200: 0 | AL200: =IF($V200<>0, Valsp1020(D200,Q200)) -> FALSE | AM200: 0 | AN200: =IF($V200<>0,Valsp1024(D200,G200,H200,I200)) -> FALSE
V201: 0 | W201: =IF($V201<>0,OR(Valsp11(C201),Valsp11(Q201))) -> FALSE | X201: FALSE | Y201: FALSE | Z201: =IF($V201<>0, Valsp211(C201,0)) -> FALSE | AA201: =IF($V201<>0, Valsp212(B201, G201+H201+J201+K201+M201+N201)) -> FALSE | AB201: =IF($V201<>0, Valsp25(C201)) -> FALSE | AC201: =IF($V201<>0,Valsp2101(F201)) -> FALSE | AD201: =IF($V201<>0,Valsp291(E201,F201)) -> FALSE | AE201: =IF($V201<>0, Valsp1002(G201+H201+J201+K201+M201+N201)) -> FALSE | AF201: =IF($V201<>0, Valsp1003(D201,G201,H201,I201)) -> FALSE | AG201: =IF($V201<>0, Valsp1004(J201,K201,L201)) -> FALSE | AH201: =IF($V201<>0, Valsp1005(M201,N201,O201)) -> FALSE | AI201: =IF($V201<>0, Valsp1011(C201,E201,P201)) -> FALSE | AJ201: =IF($V201<>0, OR(Valsp1012(G201+H201,I201), Valsp1012(J201+K201,L201), Valsp1012(M201+N201,O201))) -> FALSE | AK201: 0 | AL201: =IF($V201<>0, Valsp1020(D201,Q201)) -> FALSE | AM201: 0 | AN201: =IF($V201<>0,Valsp1024(D201,G201,H201,I201)) -> FALSE
V202: 0 | W202: =IF($V202<>0,OR(Valsp11(C202),Valsp11(Q202))) -> FALSE | X202: FALSE | Y202: =IF($V202<>0, OR(Valsp13(G202), Valsp13(H202), Valsp13(J202), Valsp13(K202), Valsp13(M202), Valsp13(N202), Valsp13(Q202))) -> FALSE | Z202: =IF($V202<>0, Valsp211(C202,0)) -> FALSE | AA202: =IF($V202<>0, Valsp212(B202, G202+H202+J202+K202+M202+N202)) -> FALSE | AB202: =IF($V202<>0, Valsp25(C202)) -> FALSE | AC202: =IF($V202<>0,Valsp2101(F202)) -> FALSE | AD202: =IF($V202<>0,Valsp291(E202,F202)) -> FALSE | AE202: =IF($V202<>0, Valsp1002(G202+H202+J202+K202+M202+N202)) -> FALSE | AF202: =IF($V202<>0, Valsp1003(D202,G202,H202,I202)) -> FALSE | AG202: =IF($V202<>0, Valsp1004(J202,K202,L202)) -> FALSE | AH202: =IF($V202<>0, Valsp1005(M202,N202,O202)) -> FALSE | AI202: =IF($V202<>0, Valsp1011(C202,E202,P202)) -> FALSE | AJ202: =IF($V202<>0, OR(Valsp1012(G202+H202,I202), Valsp1012(J202+K202,L202), Valsp1012(M202+N202,O202))) -> FALSE | AK202: 0 | AL202: =IF($V202<>0, Valsp1020(D202,Q202)) -> FALSE | AM202: 0 | AN202: =IF($V202<>0,Valsp1024(D202,G202,H202,I202)) -> FALSE
P203: =IF(OR(I203<>"",L203<>"",O203<>""),SUM(I203,L203,O203),"") ->  | T203: =ValSP_SchoolErrorMessage(V203,W203,X203,Y203,Z203,AA203,AB203,AC203,AD203,AE203,AF203,AG203,AH203,AI203,AJ203,AK203,AL203,AM203,AN203) ->  | V203: =NonNull(B203:Q203) -> 0 | W203: =IF($V203<>0,OR(Valsp11(C203),Valsp11(Q203))) -> FALSE | X203: =AND(V203=1,COUNTIF($C$10:$C$210,C203) > 1) -> FALSE | Y203: FALSE | Z203: =IF($V203<>0, Valsp211(C203,0)) -> FALSE | AA203: =IF($V203<>0, Valsp212(B203, G203+H203+J203+K203+M203+N203)) -> FALSE | AB203: =IF($V203<>0, Valsp25(C203)) -> FALSE | AC203: =IF($V203<>0,Valsp2101(F203)) -> FALSE | AD203: =IF($V203<>0,Valsp291(E203,F203)) -> FALSE | AE203: =IF($V203<>0, Valsp1002(G203+H203+J203+K203+M203+N203)) -> FALSE | AF203: =IF($V203<>0, Valsp1003(D203,G203,H203,I203)) -> FALSE | AG203: =IF($V203<>0, Valsp1004(J203,K203,L203)) -> FALSE | AH203: =IF($V203<>0, Valsp1005(M203,N203,O203)) -> FALSE | AI203: =IF($V203<>0, Valsp1011(C203,E203,P203)) -> FALSE | AJ203: =IF($V203<>0, OR(Valsp1012(G203+H203,I203), Valsp1012(J203+K203,L203), Valsp1012(M203+N203,O203))) -> FALSE | AK203: 0 | AL203: =IF($V203<>0, Valsp1020(D203,Q203)) -> FALSE | AM203: 0 | AN203: =IF($V203<>0,Valsp1024(D203,G203,H203,I203)) -> FALSE
V204: 0 | W204: =IF($V204<>0,OR(Valsp11(C204),Valsp11(Q204))) -> FALSE | X204: FALSE | Y204: FALSE | Z204: =IF($V204<>0, Valsp211(C204,0)) -> FALSE | AA204: =IF($V204<>0, Valsp212(B204, G204+H204+J204+K204+M204+N204)) -> FALSE | AB204: =IF($V204<>0, Valsp25(C204)) -> FALSE | AC204: =IF($V204<>0,Valsp2101(F204)) -> FALSE | AD204: =IF($V204<>0,Valsp291(E204,F204)) -> FALSE | AE204: =IF($V204<>0, Valsp1002(G204+H204+J204+K204+M204+N204)) -> FALSE | AF204: =IF($V204<>0, Valsp1003(D204,G204,H204,I204)) -> FALSE | AG204: =IF($V204<>0, Valsp1004(J204,K204,L204)) -> FALSE | AH204: =IF($V204<>0, Valsp1005(M204,N204,O204)) -> FALSE | AI204: =IF($V204<>0, Valsp1011(C204,E204,P204)) -> FALSE | AJ204: =IF($V204<>0, OR(Valsp1012(G204+H204,I204), Valsp1012(J204+K204,L204), Valsp1012(M204+N204,O204))) -> FALSE | AK204: 0 | AL204: =IF($V204<>0, Valsp1020(D204,Q204)) -> FALSE | AM204: 0 | AN204: =IF($V204<>0,Valsp1024(D204,G204,H204,I204)) -> FALSE
... 6 more rows

Sheet Early Years Table
E2: LA Name | G2: LA Number
E3: =IF('Cover Sheet'!C13 = "","",'Cover Sheet'!C13) -> Sheffield | G3: =IF('Cover Sheet'!C15 = "","",'Cover Sheet'!C15) -> 373
W4: EYNFF | X4: MNS
B5: Pass-through rate for delivering government funded hours: | S5: =IF(AND(SUM(Total1a)<>0, $W$5<>0),((SUM(Total1, Total2, Total37a8)-$X$5)/(SUM(Total1a))/$W$5),"") -> 0.9584976669 | U5: =ValSP1023(S5) ->  | W5: =VLOOKUP(G3, PrevYrData, 3, FALSE) -> 4.57 | X5: =VLOOKUP(G3, PrevYrData, 4, FALSE) -> 26847.75994
B7: EYSFF (3 & 4 year olds): Base rate | E7: Description | F7: Unit Value (£) | I7: Unit Applied | J7: Number of Units (Universal 15 hours) | M7: Number of Units (Additional 15 hours) | P7: Anticipated Budget (£) | U7: Error Message(s)
F8: PVI | G8: Nursery School | H8: Primary Nursery Class | J8: PVI | K8: Nursery School | L8: Primary Nursery Class | M8: PVI | N8: Nursery School | O8: Primary Nursery Class | P8: PVI | Q8: Nursery School | R8: Primary Nursery Class | S8: TOTAL | W8: HasData | X8: ValSP321 | Y8: ValSP500 | Z8: ValSP507 | AA8: ValSP508 | AB8: ValSP5010 | AC8: ValSP5011 | AD8: ValSP5012 | AE8: ValSP1009 | AF8: ValSP1010
A9: EY1 | B9: 1. Base Rate(s) per hour, per provider type | D9: 1 | E9: EYSFF Base Rate 3&4yo | F9: 4.1 | G9: 4.1 | H9: 4.1 | I9: PerHour | J9: 3642994.1 | K9: 96526.39 | L9: 946716.57 | M9: 1217963.8 | N9: 16426.17 | O9: 153422.77 | P9: =IF(AND(F9="",J9=""),"",F9*(J9+M9)) -> 19929927.39 | Q9: =IF(AND(G9="",L9=""),"",G9*(K9+N9)) -> 463105.496 | R9: =IF(AND(H9="",N9=""),"",H9*(L9+O9)) -> 4510571.294 | S9: =SUM(P9:R9) -> 24903604.18 | U9: =ValSP_EYErrorMessage(X9,Y9,Z9,AA9,AB9,AC9,AD9,AE9,AF9) ->  | W9: =COUNTA(E9:O9) <> 0 -> TRUE | Y9: =OR(ValSP500(F9,J9),ValSP500(G9,K9),ValSP500(H9,L9)) -> FALSE | Z9: =OR(valsp507(I9,F9),valsp507(I9,G9),valsp507(I9,H9)) -> FALSE | AA9: =OR(valsp508(I9,F9),valsp508(I9,G9),valsp508(I9,H9)) -> FALSE | AB9: =AND(W9,OR(ValSP5010(J9),ValSP5010(K9),ValSP5010(L9),ValSP5010(M9),ValSP5010(N9),ValSP5010(O9))) -> FALSE | AC9: =OR(valsp5011(I9,F9),valsp5011(I9,G9),valsp5011(I9,H9)) -> FALSE | AD9: =OR(ValSP5012(I9,J9),ValSP5012(I9,K9),ValSP5012(I9,L9),ValSP5012(I9,M9),ValSP5012(I9,N9),ValSP5012(I9,O9)) -> FALSE | AE9: =AND(W9,valsp1009(E9)) -> FALSE | AF9: =AND(LEN(E9)<>0,COUNTA(F9:H9,J9:O9)=0) -> FALSE
C10: End of section 1
B13: EYSFF (3 and 4 year olds): Other formula factors - supplements | E13: Description | F13: Unit Value (£) | I13: Unit Applied | J13: Number of Units (Universal & Additional 15 hours) | P13: Anticipated Budget (£) | U13: Error Message(s)
F14: PVI | G14: Nursery School | H14: Primary Nursery Class | J14: PVI | K14: Nursery School | L14: Primary Nursery Class | M14: Not used | P14: PVI | Q14: Nursery School | R14: Primary Nursery Class | S14: TOTAL
A15: EY2a | C15: A. Deprivation (Mandatory) | D15: 1 | E15: IDACI index based | F15: 0.3 | G15: 0.3 | H15: 0.3 | I15: PerHour | J15: 2106165.17 | K15: 58406.13 | L15: 580420.33 | P15: =IF(AND(F15="",J15=""),"",F15*J15) -> 631849.551 | Q15: =IF(AND(G15="",L15=""),"",G15*K15) -> 17521.839 | R15: =IF(AND(H15="",N15=""),"",H15*L15) -> 174126.099 | S15: =SUM(P15:R15) -> 823497.489 | U15: =ValSP_EYErrorMessage(X15,Y15,Z15,AA15,AB15,AC15,AD15,AE15,AF15) ->  | W15: =COUNTA(E15:L15) <> 0 -> TRUE | Y15: =OR(ValSP500(F15,J15),ValSP500(G15,K15),ValSP500(H15,L15)) -> FALSE | Z15: =OR(valsp507(I15,F15),valsp507(I15,G15),valsp507(I15,H15)) -> FALSE | AA15: =OR(valsp508(I15,F15),valsp508(I15,G15),valsp508(I15,H15)) -> FALSE | AB15: =AND(W15,OR(ValSP5010(J15),ValSP5010(K15),ValSP5010(L15))) -> FALSE | AC15: =OR(valsp5011(I15,F15),valsp5011(I15,G15),valsp5011(I15,H15)) -> FALSE | AD15: =OR(ValSP5012(I15,J15),ValSP5012(I15,K15),ValSP5012(I15,L15)) -> FALSE | AE15: =AND(W15,valsp1009(E15)) -> FALSE | AF15: =AND(LEN(E15)<>0,COUNTA(F15:H15,J15:L15)=0) -> FALSE
A16: EY2b | C16: B. Quality (if applicable) | D16: 1 | P16: =IF(AND(F16="",J16=""),"",F16*J16) ->  | Q16: =IF(AND(G16="",L16=""),"",G16*K16) ->  | R16: =IF(AND(H16="",N16=""),"",H16*L16) ->  | S16: =SUM(P16:R16) -> 0 | W16: =COUNTA(E16:L16) <> 0 -> FALSE | Y16: =OR(ValSP500(F16,J16),ValSP500(G16,K16),ValSP500(H16,L16)) -> FALSE | Z16: =OR(valsp507(I16,F16),valsp507(I16,G16),valsp507(I16,H16)) -> FALSE | AA16: =OR(valsp508(I16,F16),valsp508(I16,G16),valsp508(I16,H16)) -> FALSE | AB16: =AND(W16,OR(ValSP5010(J16),ValSP5010(K16),ValSP5010(L16))) -> FALSE | AC16: =OR(valsp5011(I16,F16),valsp5011(I16,G16),valsp5011(I16,H16)) -> FALSE | AD16: =OR(ValSP5012(I16,J16),ValSP5012(I16,K16),ValSP5012(I16,L16)) -> FALSE | AE16: FALSE | AF16: =AND(LEN(E16)<>0,COUNTA(F16:H16,J16:L16)=0) -> FALSE
A17: EY2c | C17: C. Flexibility (if applicable) | D17: 1 | P17: =IF(AND(F17="",J17=""),"",F17*J17) ->  | S17: 0 | W17: FALSE | Y17: =OR(ValSP500(F17,J17),ValSP500(G17,K17),ValSP500(H17,L17)) -> FALSE | Z17: =OR(valsp507(I17,F17),valsp507(I17,G17),valsp507(I17,H17)) -> FALSE | AA17: =OR(valsp508(I17,F17),valsp508(I17,G17),valsp508(I17,H17)) -> FALSE | AB17: =AND(W17,OR(ValSP5010(J17),ValSP5010(K17),ValSP5010(L17))) -> FALSE | AC17: =OR(valsp5011(I17,F17),valsp5011(I17,G17),valsp5011(I17,H17)) -> FALSE | AD17: =OR(ValSP5012(I17,J17),ValSP5012(I17,K17),ValSP5012(I17,L17)) -> FALSE | AE17: FALSE | AF17: FALSE
A18: EY2d | C18: D. Rurality/ Sparsity (if applicable) | D18: 1 | P18: =IF(AND(F18="",J18=""),"",F18*J18) ->  | S18: 0 | W18: FALSE | Y18: =OR(ValSP500(F18,J18),ValSP500(G18,K18),ValSP500(H18,L18)) -> FALSE | Z18: =OR(valsp507(I18,F18),valsp507(I18,G18),valsp507(I18,H18)) -> FALSE | AA18: =OR(valsp508(I18,F18),valsp508(I18,G18),valsp508(I18,H18)) -> FALSE | AB18: =AND(W18,OR(ValSP5010(J18),ValSP5010(K18),ValSP5010(L18))) -> FALSE | AC18: =OR(valsp5011(I18,F18),valsp5011(I18,G18),valsp5011(I18,H18)) -> FALSE | AD18: =OR(ValSP5012(I18,J18),ValSP5012(I18,K18),ValSP5012(I18,L18)) -> FALSE | AE18: FALSE | AF18: FALSE
A19: EY2e | C19: E. EAL (if applicable) | D19: 1 | S19: =SUM(P19:R19) -> 0 | W19: FALSE | Y19: =OR(ValSP500(F19,J19),ValSP500(G19,K19),ValSP500(H19,L19)) -> FALSE | Z19: =OR(valsp507(I19,F19),valsp507(I19,G19),valsp507(I19,H19)) -> FALSE | AA19: =OR(valsp508(I19,F19),valsp508(I19,G19),valsp508(I19,H19)) -> FALSE | AB19: =AND(W19,OR(ValSP5010(J19),ValSP5010(K19),ValSP5010(L19))) -> FALSE | AC19: =OR(valsp5011(I19,F19),valsp5011(I19,G19),valsp5011(I19,H19)) -> FALSE | AD19: =OR(ValSP5012(I19,J19),ValSP5012(I19,K19),ValSP5012(I19,L19)) -> FALSE | AE19: FALSE | AF19: FALSE
R20: Funding provided through supplements: | S20: =IF(SUM(Total1,Total2)<>0, SUM(Total2)/SUM(Total1,Total2), 0) -> 0.03200894915 | U20: =IF(S20>=0.1005,"The supplementary cap in the EY table cannot be more than 10%.","") -> 
E22: Description | F22: PVI | G22: Nursery School | H22: Primary Nursery Class | I22: Unit Applied | J22: PVI | K22: Nursery School | L22: Primary Nursery Class | M22: Not used | P22: PVI | Q22: Nursery School | R22: Primary Nursery Class | S22: TOTAL | U22: Error Message(s)
A23: EY3 | B23: 3. Maintained nursery school (MNS) lump sums (if applicable) | D23: 1 | E23: 2 x MNS | G23: 26848 | I23: LumpSum | K23: 2 | Q23: =IF(AND(G23="",L23=""),"",G23*K23) -> 53696 | S23: =IF(OR(P23<>"",Q23<>"",R23<>""),SUM(P23:R23),"") -> 53696 | U23: =ValSP_EYErrorMessage(X23,Y23,Z23,AA23,AB23,AC23,AD23,AE23,AF23) ->  | W23: =COUNTA(E23:O23) <> 0 -> TRUE | Y23: =OR(ValSP500(F23,J23),ValSP500(G23,K23),ValSP500(H23,L23)) -> FALSE | Z23: =OR(valsp507(I23,F23),valsp507(I23,G23),valsp507(I23,H23)) -> FALSE | AA23: =OR(valsp508(I23,F23),valsp508(I23,G23),valsp508(I23,H23)) -> FALSE | AB23: =AND(W23,OR(ValSP5010(J23),ValSP5010(K23),ValSP5010(L23))) -> FALSE | AC23: =OR(valsp5011(I23,F23),valsp5011(I23,G23),valsp5011(I23,H23)) -> FALSE | AD23: =OR(ValSP5012(I23,J23),ValSP5012(I23,K23),ValSP5012(I23,L23)) -> FALSE | AE23: =AND(W23,valsp1009(E23)) -> FALSE | AF23: =AND(LEN(E23)<>0,COUNTA(F23:H23,J23:L23)=0) -> FALSE
A24: EY4 | B24: 4. Hours above universal/ additional 15 hours (if applicable) | D24: 1 | Q24: =IF(AND(G24="",L24=""),"",G24*K24) ->  | R24: =IF(AND(H24="",N24=""),"",H24*L24) ->  | S24: =IF(OR(P24<>"",Q24<>"",R24<>""),SUM(P24:R24),"") ->  | W24: FALSE | Y24: =OR(ValSP500(F24,J24),ValSP500(G24,K24),ValSP500(H24,L24)) -> FALSE | Z24: =OR(valsp507(I24,F24),valsp507(I24,G24),valsp507(I24,H24)) -> FALSE | AA24: =OR(valsp508(I24,F24),valsp508(I24,G24),valsp508(I24,H24)) -> FALSE | AB24: =AND(W24,OR(ValSP5010(J24),ValSP5010(K24),ValSP5010(L24))) -> FALSE | AC24: =OR(valsp5011(I24,F24),valsp5011(I24,G24),valsp5011(I24,H24)) -> FALSE | AD24: =OR(ValSP5012(I24,J24),ValSP5012(I24,K24),ValSP5012(I24,L24)) -> FALSE | AE24: FALSE | AF24: FALSE
C25: End of Section 3 | E25: Description | R25: TOTAL FUNDING FOR EARLY YEARS SINGLE FUNDING FORMULA (3 & 4 YEAR OLDS): | S25: =SUM(Total1, Total2,Total3) -> 25780797.67
B27: EYSFF (2 year olds) | E27: Description | F27: Unit Value (£) | I27: Unit Applied | J27: Number of Units | P27: Anticipated Budget (£) | U27: Error Message(s)
F28: PVI | G28: Nursery School | H28: Primary Nursery Class | J28: PVI | K28: Nursery School | L28: Primary Nursery Class | M28: Not used | P28: PVI | Q28: Nursery School | R28: Primary Nursery Class | S28: TOTAL
A29: EY5 | B29: 5. Base Rate(s) per hour, per provider type | D29: 1 | E29: EYNFF Base Rate 2yo | F29: 4.94 | G29: 4.94 | H29: 4.94 | I29: PerHour | J29: 874222.7 | K29: 10248.53 | L29: 36975.6 | P29: =IF(AND(F29="",J29="",K29=""),"",F29*J29) -> 4318660.138 | Q29: =IF(AND(G29="",K29="",L29=""),"",G29*K29) -> 50627.7382 | R29: =IF(AND(H29="",L29="",O29=""),"",(H29*L29)) -> 182659.464 | S29: =IF(OR(P29<>"",Q29<>"",R29<>""),SUM(P29:R29),"") -> 4551947.34 | U29: =ValSP_EYErrorMessage(X29,Y29,Z29,AA29,AB29,AC29,AD29,AE29,AF29) ->  | W29: TRUE | Y29: =OR(ValSP500(F29,J29),ValSP500(G29,K29),ValSP500(H29,L29)) -> FALSE | Z29: =OR(valsp507(I29,F29),valsp507(I29,G29),valsp507(I29,H29)) -> FALSE | AA29: =OR(valsp508(I29,F29),valsp508(I29,G29),valsp508(I29,H29)) -> FALSE | AB29: =AND(W29,OR(ValSP5010(J29),ValSP5010(K29),ValSP5010(L29))) -> FALSE | AC29: =OR(valsp5011(I29,F29),valsp5011(I29,G29),valsp5011(I29,H29)) -> FALSE | AD29: =OR(ValSP5012(I29,J29),ValSP5012(I29,K29),ValSP5012(I29,L29)) -> FALSE | AE29: =AND(W29,valsp1009(E29)) -> FALSE
A30: EY6a | B30: 6. Supplements (please provide a short explanation of your supplement payments) | C30: A. Quality (if applicable) | D30: 1 | P30: =IF(AND(F30="",J30="",K30=""),"",F30*J30) ->  | Q30: =IF(AND(G30="",K30="",L30=""),"",(G30*K30)) ->  | R30: =IF(AND(H30="",L30="",O30=""),"",(H30*L30)) ->  | S30: =IF(OR(P30<>"",Q30<>"",R30<>""),SUM(P30:R30),"") ->  | W30: FALSE | Y30: =OR(ValSP500(F30,J30),ValSP500(G30,K30),ValSP500(H30,L30)) -> FALSE | Z30: =OR(valsp507(I30,F30),valsp507(I30,G30),valsp507(I30,H30)) -> FALSE | AA30: =OR(valsp508(I30,F30),valsp508(I30,G30),valsp508(I30,H30)) -> FALSE | AB30: =AND(W30,OR(ValSP5010(J30),ValSP5010(K30),ValSP5010(L30))) -> FALSE | AC30: =OR(valsp5011(I30,F30),valsp5011(I30,G30),valsp5011(I30,H30)) -> FALSE | AD30: =OR(ValSP5012(I30,J30),ValSP5012(I30,K30),ValSP5012(I30,L30)) -> FALSE | AE30: FALSE
A31: EY6b | B31: 6. Supplements (please provide a short explanation of your supplement payments) | C31: B. Other supplements (if applicable) | D31: 1 | P31: =IF(AND(F31="",J31="",K31=""),"",F31*J31) ->  | Q31: =IF(AND(G31="",K31="",L31=""),"",(G31*K31)) ->  | R31: =IF(AND(H31="",L31="",O31=""),"",(H31*L31)) ->  | S31: =IF(OR(P31<>"",Q31<>"",R31<>""),SUM(P31:R31),"") ->  | W31: FALSE | Y31: =OR(ValSP500(F31,J31),ValSP500(G31,K31),ValSP500(H31,L31)) -> FALSE | Z31: =OR(valsp507(I31,F31),valsp507(I31,G31),valsp507(I31,H31)) -> FALSE | AA31: =OR(valsp508(I31,F31),valsp508(I31,G31),valsp508(I31,H31)) -> FALSE | AB31: =AND(W31,OR(ValSP5010(J31),ValSP5010(K31),ValSP5010(L31))) -> FALSE | AC31: =OR(valsp5011(I31,F31),valsp5011(I31,G31),valsp5011(I31,H31)) -> FALSE | AD31: =OR(ValSP5012(I31,J31),ValSP5012(I31,K31),ValSP5012(I31,L31)) -> FALSE | AE31: FALSE
R32: TOTAL FUNDING FOR EARLY YEARS SINGLE FUNDING FORMULA (2 YEAR OLDS): | S32: =SUM(Total4) -> 4551947.34
B34: 7. SEN Inclusion Fund (funded directly to providers) | D34: Description | P34: Anticipated total budget (£) | U34: Error Message(s)
P35: PVI | Q35: Nursery School | R35: Primary Nursery Class | S35: TOTAL
A36: EY7ai | B36: (a) 3 & 4 Year Olds (Mandatory) | C36: (ai) Funding allocated from EY Block | D36: 1 | E36: Grant funding, paid on successful application | P36: 598500 | Q36: 0 | R36: 0 | S36: =IF(OR(P36<>"",Q36<>"",R36<>""),SUM(P36:R36),"") -> 598500 | U36: =ValSP_EYErrorMessage(X36,Y36,Z36,AA36,AB36,AC36,AD36,AE36,AF36) ->  | W36: =COUNTA(E36:O36) <> 0 -> TRUE | Y36: =OR(ValSP500(F36,J36),ValSP500(G36,K36),ValSP500(H36,L36)) -> FALSE | Z36: =OR(valsp507(I36,F36),valsp507(I36,G36),valsp507(I36,H36)) -> FALSE | AA36: =OR(valsp508(I36,F36),valsp508(I36,G36),valsp508(I36,H36)) -> FALSE | AB36: =AND(W36,OR(ValSP5010(J36),ValSP5010(K36),ValSP5010(L36))) -> FALSE | AC36: =OR(valsp5011(I36,F36),valsp5011(I36,G36),valsp5011(I36,H36)) -> FALSE | AD36: =OR(ValSP5012(I36,J36),ValSP5012(I36,K36),ValSP5012(I36,L36)) -> FALSE | AE36: =AND(W36,valsp1009(E36)) -> FALSE
A37: EY7aii | B37: (a) 3 & 4 Year Olds (Mandatory) | C37: (aii) Funding allocated from HN Block | D37: 1 | S37: =IF(OR(P37<>"",Q37<>"",R37<>""),SUM(P37:R37),"") ->  | U37: =ValSP_EYErrorMessage(X37,Y37,Z37,AA37,AB37,AC37,AD37,AE37,AF37) ->  | W37: =COUNTA(E37:O37) <> 0 -> FALSE | Y37: =OR(ValSP500(F37,J37),ValSP500(G37,K37),ValSP500(H37,L37)) -> FALSE | Z37: =OR(valsp507(I37,F37),valsp507(I37,G37),valsp507(I37,H37)) -> FALSE | AA37: =OR(valsp508(I37,F37),valsp508(I37,G37),valsp508(I37,H37)) -> FALSE | AB37: =AND(W37,OR(ValSP5010(J37),ValSP5010(K37),ValSP5010(L37))) -> FALSE | AC37: =OR(valsp5011(I37,F37),valsp5011(I37,G37),valsp5011(I37,H37)) -> FALSE | AD37: =OR(ValSP5012(I37,J37),ValSP5012(I37,K37),ValSP5012(I37,L37)) -> FALSE | AE37: =AND(W37,valsp1009(E37)) -> FALSE
A38: EY7bi | B38: (b) 2 Year Olds (if applicable) | C38: (bi) Funding allocated from EY Block | D38: 1 | E38: Grant funding, paid on successful application | P38: 31500 | Q38: 0 | R38: 0 | S38: =IF(OR(P38<>"",Q38<>"",R38<>""),SUM(P38:R38),"") -> 31500 | W38: TRUE | Y38: =OR(ValSP500(F38,J38),ValSP500(G38,K38),ValSP500(H38,L38)) -> FALSE | Z38: =OR(valsp507(I38,F38),valsp507(I38,G38),valsp507(I38,H38)) -> FALSE | AA38: =OR(valsp508(I38,F38),valsp508(I38,G38),valsp508(I38,H38)) -> FALSE | AB38: =AND(W38,OR(ValSP5010(J38),ValSP5010(K38),ValSP5010(L38))) -> FALSE | AC38: =OR(valsp5011(I38,F38),valsp5011(I38,G38),valsp5011(I38,H38)) -> FALSE | AD38: =OR(ValSP5012(I38,J38),ValSP5012(I38,K38),ValSP5012(I38,L38)) -> FALSE | AE38: FALSE
A39: EY7bii | B39: (b) 2 Year Olds (if applicable) | C39: (bii) Funding allocated from HN Block | D39: 1 | S39: =IF(OR(P39<>"",Q39<>"",R39<>""),SUM(P39:R39),"") ->  | U39: =ValSP_EYErrorMessage(X39,Y39,Z39,AA39,AB39,AC39,AD39,AE39,AF39) ->  | W39: =COUNTA(E39:O39) <> 0 -> FALSE | Y39: =OR(ValSP500(F39,J39),ValSP500(G39,K39),ValSP500(H39,L39)) -> FALSE | Z39: =OR(valsp507(I39,F39),valsp507(I39,G39),valsp507(I39,H39)) -> FALSE | AA39: =OR(valsp508(I39,F39),valsp508(I39,G39),valsp508(I39,H39)) -> FALSE | AB39: =AND(W39,OR(ValSP5010(J39),ValSP5010(K39),ValSP5010(L39))) -> FALSE | AC39: =OR(valsp5011(I39,F39),valsp5011(I39,G39),valsp5011(I39,H39)) -> FALSE | AD39: =OR(ValSP5012(I39,J39),ValSP5012(I39,K39),ValSP5012(I39,L39)) -> FALSE | AE39: =AND(W39,valsp1009(E39)) -> FALSE
R40: TOTAL FUNDING FOR SEN INCLUSION FUND (TOP-UP GRANT ELEMENT): | S40: =SUM(Total5) -> 630000
B43: 8. Early years contingency funding | D43: Description | P43: Anticipated total budget (£) | S43: Total | U43: Error Message(s)
A44: EY8a | B44: 3 & 4 Year Olds | D44: 1 | E44: Future growth of 3 & 4 year old places | S44: 253919 | U44: =ValSP_EYErrorMessage(X44,Y44,Z44,AA44,AB44,AC44,AD44,AE44,AF44) ->  | W44: =COUNTA(E44:O44) <> 0 -> TRUE | X44: =AND(LEN(S44)<>0,ValSP321(S44)) -> FALSE | AE44: =AND(W44,valsp1009(E44)) -> FALSE
A45: EY8b | B45: 2 Year Olds | D45: 1 | E45: Future growth of 2 year old places | S45: 89435 | U45: =ValSP_EYErrorMessage(X45,Y45,Z45,AA45,AB45,AC45,AD45,AE45,AF45) ->  | W45: TRUE | X45: =AND(LEN(S45)<>0,ValSP321(S45)) -> FALSE | AE45: =AND(W45,valsp1009(E45)) -> FALSE
B46: 9. Early years centrally retained funding | D46: Description | P46: Anticipated total budget (£) | S46: Total | U46: Error Message(s)
A47: EY9a | B47: 3 & 4 Year Olds | D47: 1 | E47: Centrally Retained 3 & 4 year old FEL Funding | S47: 1401893 | U47: =ValSP_EYErrorMessage(X47,Y47,Z47,AA47,AB47,AC47,AD47,AE47,AF47) ->  | W47: TRUE | X47: =AND(LEN(S47)<>0,ValSP321(S47)) -> FALSE | AE47: =AND(W47,valsp1009(E47)) -> FALSE
A48: EY9b | B48: 2 Year Olds | D48: 1 | E48: Centrally Retained 2 year old FEL Funding | S48: 244283 | W48: TRUE | X48: =AND(LEN(S48)<>0,ValSP321(S48)) -> FALSE | AE48: =AND(W48,valsp1009(E48)) -> FALSE
R49: TOTAL FUNDING FOR EARLY YEARS CENTRAL EXPENDITURE: | S49: =SUM(Total6,Total7) -> 1989530
B51: 10. Early years pupil premium | P51: Anticipated total budget (£) | S51: Total | U51: Error Message(s)
A52: EY10 | B52: 3 & 4 Year Olds | S52: 571159.95 | U52: =Valsp14(Total8) ->  | W52: FALSE
R53: TOTAL FUNDING FOR EARLY YEARS PUPIL PREMIUM: | S53: =Total8 -> 571159.95
B55: 11. Disability access fund | P55: Anticipated total budget (£) | S55: Total | U55: Error Message(s)
A56: EY11 | B56: 3 & 4 Year Olds | S56: 180195 | U56: =Valsp14(Total9) ->  | W56: FALSE
R57: TOTAL FUNDING FOR EARLY YEARS DISABILITY ACCESS FUND: | S57: =Total9 -> 180195
U59: Error Message(s)
B60: Early Years Table Notes | U60: =IF(LEN(D60) > 4000,"You have entered too many characters for this field. The maximum is 4000. You have entered " &LEN(D60),"") -> 

Sheet Admin (hidden)
A1: 1 - EYSFF (3 and 4 year olds) base rate(s) per hour | B1: EY1 | D1: LA List | E1: LA NAME | F1: EYNFF | G1: MNS | I1: SchoolState | K1: SchoolType | N1: Full LA List
A2: 2a - Supplements: deprivation | B2: EY2a | D2: 201 | E2: City of London | F2: 0 | G2: 0 | I2: Closed | K2: HSP | N2: 201 | O2: City of London
A3: 2b - Supplements: quality | B3: EY2b | D3: 202 | E3: Camden | F3: 8.51 | G3: 0 | I3: Converter | K3: Mainstream | N3: 420 | O3: Isles of Scilly
A4: 2c - Supplements: flexibility | B4: EY2c | D4: 203 | E4: Greenwich | F4: 6.17 | G4: 703494 | I4: Open | K4: PRU | N4: 835 | O4: Dorset (Pre LGR 2019) | R4: Not used
A5: 2d - Supplements: rurality/sparsity | B5: EY2d | D5: 204 | E5: Hackney | F5: 5.83 | G5: 442046.4 | K5: Special | N5: 836 | O5: Poole (Pre LGR 2019) | R5: Not used
A6: 2e - Supplements: EAL | B6: EY2e | D6: 205 | E6: Hammersmith & Fulham | F6: 7.92 | G6: 808049.1 | N6: 837 | O6: Bournemouth (Pre LGR 2019) | R6: Not used
A7: 3 - Maintained nursery school (MNS) lump sums | B7: EY3 | D7: 206 | E7: Islington | F7: 7.81 | G7: 340533.1987 | N7: 202 | O7: Camden | P7: 8.51 | Q7: 0
A8: 4 - Hours above universal/ additional 15 hours | B8: EY4 | D8: 207 | E8: Kensington & Chelsea | F8: 7.89 | G8: 584403.8926 | N8: 203 | O8: Greenwich | P8: 6.17 | Q8: 703494
A9: 5 - EYSFF (2 year olds) base rate(s) per hour | B9: EY5 | D9: 208 | E9: Lambeth | F9: 7.32 | G9: 547088.85 | N9: 204 | O9: Hackney | P9: 5.83 | Q9: 442046.4
A10: 6a - Quality supplements | B10: EY6a | D10: 209 | E10: Lewisham | F10: 5.62 | G10: 443642.4 | N10: 205 | O10: Hammersmith & Fulham | P10: 7.92 | Q10: 808049.1
A11: 6b - Other supplements | B11: EY6b | D11: 210 | E11: Southwark | F11: 6.86 | G11: 1467949.5 | N11: 206 | O11: Islington | P11: 7.81 | Q11: 340533.1987
A12: 7ai - SEN Inclusion (3 and 4 year olds) funding allocated from EY block | B12: EY7ai | D12: 211 | E12: Tower Hamlets | F12: 8.06 | G12: 565808.5993 | N12: 207 | O12: Kensington & Chelsea | P12: 7.89 | Q12: 584403.8926
A13: 7aii - SEN Inclusion (3 and 4 year olds) funding allocated from HN block | B13: EY7aii | D13: 212 | E13: Wandsworth | F13: 6.48 | G13: 427260.6 | N13: 208 | O13: Lambeth | P13: 7.32 | Q13: 547088.85
A14: 7bi - SEN Inclusion (2 year olds) funding allocated from EY block | B14: EY7bi | D14: 213 | E14: Westminster | F14: 7.86 | G14: 1398591.9 | N14: 209 | O14: Lewisham | P14: 5.62 | Q14: 443642.4
A15: 7bii - SEN Inclusion (2 year olds) funding allocated from HN block | B15: EY7bii | D15: 301 | E15: Barking & Dagenham | F15: 5.5 | G15: 0 | N15: 210 | O15: Southwark | P15: 6.86 | Q15: 1467949.5
A16: 8a - Early years contingency funding: 3 & 4 year olds | B16: EY8a | D16: 302 | E16: Barnet | F16: 5.93 | G16: 0 | N16: 211 | O16: Tower Hamlets | P16: 8.06 | Q16: 565808.5993
A17: 8b - Early years contingency funding: 2 year olds | B17: EY8b | D17: 303 | E17: Bexley | F17: 5.11 | G17: 0 | N17: 212 | O17: Wandsworth | P17: 6.48 | Q17: 427260.6
A18: 9a - Early years centrally retained funding: 3 & 4 year olds | B18: EY9a | D18: 304 | E18: Brent | F18: 5.37 | G18: 778232.4 | N18: 213 | O18: Westminster | P18: 7.86 | Q18: 1398591.9
A19: 9b - Early years centrally retained funding: 2 year olds | B19: EY9b | D19: 305 | E19: Bromley | F19: 4.91 | G19: 0 | N19: 301 | O19: Barking & Dagenham | P19: 5.5 | Q19: 0
D20: 306 | E20: Croydon | F20: 5.13 | G20: 529188 | N20: 302 | O20: Barnet | P20: 5.93 | Q20: 0
D21: 307 | E21: Ealing | F21: 5.83 | G21: 770341.32 | N21: 303 | O21: Bexley | P21: 5.11 | Q21: 0
D22: 308 | E22: Enfield | F22: 5.62 | G22: 0 | N22: 304 | O22: Brent | P22: 5.37 | Q22: 778232.4
D23: 309 | E23: Haringey | F23: 5.66 | G23: 1235731.5 | N23: 305 | O23: Bromley | P23: 4.91 | Q23: 0
D24: 310 | E24: Harrow | F24: 5.58 | G24: 0 | N24: 306 | O24: Croydon | P24: 5.13 | Q24: 529188
D25: 311 | E25: Havering | F25: 5.28 | G25: 0 | N25: 307 | O25: Ealing | P25: 5.83 | Q25: 770341.32
D26: 312 | E26: Hillingdon | F26: 5.83 | G26: 238801.5 | N26: 308 | O26: Enfield | P26: 5.62 | Q26: 0
D27: 313 | E27: Hounslow | F27: 5.91 | G27: 0 | N27: 309 | O27: Haringey | P27: 5.66 | Q27: 1235731.5
D28: 314 | E28: Kingston Upon Thames | F28: 5.77 | G28: 52685.1 | N28: 310 | O28: Harrow | P28: 5.58 | Q28: 0
D29: 315 | E29: Merton | F29: 5.64 | G29: 0 | N29: 311 | O29: Havering | P29: 5.28 | Q29: 0
D30: 316 | E30: Newham | F30: 5.57 | G30: 1882368 | N30: 312 | O30: Hillingdon | P30: 5.83 | Q30: 238801.5
D31: 317 | E31: Redbridge | F31: 5.21 | G31: 0 | N31: 313 | O31: Hounslow | P31: 5.91 | Q31: 0
D32: 318 | E32: Richmond Upon Thames | F32: 5.69 | G32: 84907.2 | N32: 314 | O32: Kingston Upon Thames | P32: 5.77 | Q32: 52685.1
D33: 319 | E33: Sutton | F33: 5.46 | G33: 354312 | N33: 315 | O33: Merton | P33: 5.64 | Q33: 0
D34: 320 | E34: Waltham Forest | F34: 5.52 | G34: 232132.5 | N34: 316 | O34: Newham | P34: 5.57 | Q34: 1882368
D35: 330 | E35: Birmingham | F35: 4.71 | G35: 4516701.2 | N35: 317 | O35: Redbridge | P35: 5.21 | Q35: 0
D36: 331 | E36: Coventry | F36: 4.42 | G36: 204379.2 | N36: 318 | O36: Richmond Upon Thames | P36: 5.69 | Q36: 84907.2
D37: 332 | E37: Dudley | F37: 4.3 | G37: 320438.04 | N37: 319 | O37: Sutton | P37: 5.46 | Q37: 354312
D38: 333 | E38: Sandwell | F38: 4.43 | G38: 0 | N38: 320 | O38: Waltham Forest | P38: 5.52 | Q38: 232132.5
D39: 334 | E39: Solihull | F39: 4.36 | G39: 0 | N39: 330 | O39: Birmingham | P39: 4.71 | Q39: 4516701.2
D40: 335 | E40: Walsall | F40: 4.52 | G40: 1346345.7 | N40: 331 | O40: Coventry | P40: 4.42 | Q40: 204379.2
D41: 336 | E41: Wolverhampton | F41: 4.68 | G41: 943125.7989 | N41: 332 | O41: Dudley | P41: 4.3 | Q41: 320438.04
D42: 340 | E42: Knowsley | F42: 4.72 | G42: 0 | N42: 333 | O42: Sandwell | P42: 4.43 | Q42: 0
D43: 341 | E43: Liverpool | F43: 4.55 | G43: 1422469.2 | N43: 334 | O43: Solihull | P43: 4.36 | Q43: 0
D44: 342 | E44: St Helens | F44: 4.47 | G44: 69788.52 | N44: 335 | O44: Walsall | P44: 4.52 | Q44: 1346345.7
D45: 343 | E45: Sefton | F45: 4.3 | G45: 586966.62 | N45: 336 | O45: Wolverhampton | P45: 4.68 | Q45: 943125.7989
D46: 344 | E46: Wirral | F46: 4.31 | G46: 563103 | N46: 340 | O46: Knowsley | P46: 4.72 | Q46: 0
D47: 350 | E47: Bolton | F47: 4.37 | G47: 242820 | N47: 341 | O47: Liverpool | P47: 4.55 | Q47: 1422469.2
D48: 351 | E48: Bury | F48: 4.3 | G48: 159206.7 | N48: 342 | O48: St Helens | P48: 4.47 | Q48: 69788.52
D49: 352 | E49: Manchester | F49: 4.87 | G49: 347198.4 | N49: 343 | O49: Sefton | P49: 4.3 | Q49: 586966.62
D50: 353 | E50: Oldham | F50: 4.35 | G50: 0 | N50: 344 | O50: Wirral | P50: 4.31 | Q50: 563103
D51: 354 | E51: Rochdale | F51: 4.42 | G51: 247545.3 | N51: 350 | O51: Bolton | P51: 4.37 | Q51: 242820
D52: 355 | E52: Salford | F52: 4.5 | G52: 0 | N52: 351 | O52: Bury | P52: 4.3 | Q52: 159206.7
D53: 356 | E53: Stockport | F53: 4.3 | G53: 734752.8 | N53: 352 | O53: Manchester | P53: 4.87 | Q53: 347198.4
D54: 357 | E54: Tameside | F54: 4.51 | G54: 0 | N54: 353 | O54: Oldham | P54: 4.35 | Q54: 0
D55: 358 | E55: Trafford | F55: 4.3 | G55: 0 | N55: 354 | O55: Rochdale | P55: 4.42 | Q55: 247545.3
D56: 359 | E56: Wigan | F56: 4.3 | G56: 226540.8 | N56: 355 | O56: Salford | P56: 4.5 | Q56: 0
D57: 370 | E57: Barnsley | F57: 4.3 | G57: 0 | N57: 356 | O57: Stockport | P57: 4.3 | Q57: 734752.8
D58: 371 | E58: Doncaster | F58: 4.46 | G58: 0 | N58: 357 | O58: Tameside | P58: 4.51 | Q58: 0
D59: 372 | E59: Rotherham | F59: 4.3 | G59: 916285.262 | N59: 358 | O59: Trafford | P59: 4.3 | Q59: 0
D60: 373 | E60: Sheffield | F60: 4.57 | G60: 26847.75994 | N60: 359 | O60: Wigan | P60: 4.3 | Q60: 226540.8
D61: 380 | E61: Bradford | F61: 4.57 | G61: 1225089.593 | N61: 370 | O61: Barnsley | P61: 4.3 | Q61: 0
D62: 381 | E62: Calderdale | F62: 4.3 | G62: 0 | N62: 371 | O62: Doncaster | P62: 4.46 | Q62: 0
D63: 382 | E63: Kirklees | F63: 4.3 | G63: 134400.3 | N63: 372 | O63: Rotherham | P63: 4.3 | Q63: 916285.262
D64: 383 | E64: Leeds | F64: 4.81 | G64: 0 | N64: 373 | O64: Sheffield | P64: 4.57 | Q64: 26847.75994
D65: 384 | E65: Wakefield | F65: 4.31 | G65: 313073.64 | N65: 380 | O65: Bradford | P65: 4.57 | Q65: 1225089.593
D66: 390 | E66: Gateshead | F66: 4.53 | G66: 152972.04 | N66: 381 | O66: Calderdale | P66: 4.3 | Q66: 0
D67: 391 | E67: Newcastle Upon Tyne | F67: 4.91 | G67: 368562 | N67: 382 | O67: Kirklees | P67: 4.3 | Q67: 134400.3
D68: 392 | E68: North Tyneside | F68: 4.56 | G68: 0 | N68: 383 | O68: Leeds | P68: 4.81 | Q68: 0
D69: 393 | E69: South Tyneside | F69: 4.62 | G69: 389016.45 | N69: 384 | O69: Wakefield | P69: 4.31 | Q69: 313073.64
D70: 394 | E70: Sunderland | F70: 4.84 | G70: 725610 | N70: 390 | O70: Gateshead | P70: 4.53 | Q70: 152972.04
D71: 420 | E71: Isles of Scilly | F71: 0 | G71: 0 | N71: 391 | O71: Newcastle Upon Tyne | P71: 4.91 | Q71: 368562
D72: 800 | E72: Bath & North East Somerset | F72: 4.3 | G72: 0 | N72: 392 | O72: North Tyneside | P72: 4.56 | Q72: 0
D73: 801 | E73: Bristol | F73: 5.69 | G73: 765139.5 | N73: 393 | O73: South Tyneside | P73: 4.62 | Q73: 389016.45
D74: 802 | E74: North Somerset | F74: 4.3 | G74: 0 | N74: 394 | O74: Sunderland | P74: 4.84 | Q74: 725610
D75: 803 | E75: South Gloucestershire | F75: 4.34 | G75: 0 | N75: 800 | O75: Bath & North East Somerset | P75: 4.3 | Q75: 0
D76: 805 | E76: Hartlepool | F76: 4.49 | G76: 0 | N76: 801 | O76: Bristol | P76: 5.69 | Q76: 765139.5
D77: 806 | E77: Middlesbrough | F77: 4.66 | G77: 0 | N77: 802 | O77: North Somerset | P77: 4.3 | Q77: 0
D78: 807 | E78: Redcar & Cleveland | F78: 4.3 | G78: 0 | N78: 803 | O78: South Gloucestershire | P78: 4.34 | Q78: 0
D79: 808 | E79: Stockton-on-Tees | F79: 4.45 | G79: 0 | N79: 805 | O79: Hartlepool | P79: 4.49 | Q79: 0
D80: 810 | E80: Kingston-upon-Hull | F80: 4.3 | G80: 189960.48 | N80: 806 | O80: Middlesbrough | P80: 4.66 | Q80: 0
D81: 811 | E81: East Riding of Yorkshire | F81: 4.3 | G81: 346873.1197 | N81: 807 | O81: Redcar & Cleveland | P81: 4.3 | Q81: 0
D82: 812 | E82: North East Lincolnshire | F82: 4.3 | G82: 146412.48 | N82: 808 | O82: Stockton-on-Tees | P82: 4.45 | Q82: 0
D83: 813 | E83: North Lincolnshire | F83: 4.3 | G83: 0 | N83: 810 | O83: Kingston-upon-Hull | P83: 4.3 | Q83: 189960.48
D84: 815 | E84: North Yorkshire | F84: 4.3 | G84: 264060.48 | N84: 811 | O84: East Riding of Yorkshire | P84: 4.3 | Q84: 346873.1197
D85: 816 | E85: York | F85: 4.3 | G85: 89272.26 | N85: 812 | O85: North East Lincolnshire | P85: 4.3 | Q85: 146412.48
D86: 821 | E86: Luton | F86: 4.8 | G86: 1665731.518 | N86: 813 | O86: North Lincolnshire | P86: 4.3 | Q86: 0
D87: 822 | E87: Bedford Borough | F87: 4.56 | G87: 98439.0015 | N87: 815 | O87: North Yorkshire | P87: 4.3 | Q87: 264060.48
D88: 823 | E88: Central Bedfordshire | F88: 4.3 | G88: 201865.5 | N88: 816 | O88: York | P88: 4.3 | Q88: 89272.26
D89: 825 | E89: Buckinghamshire | F89: 4.64 | G89: 222167.76 | N89: 821 | O89: Luton | P89: 4.8 | Q89: 1665731.518
D90: 826 | E90: Milton Keynes | F90: 5.24 | G90: 130756.86 | N90: 822 | O90: Bedford Borough | P90: 4.56 | Q90: 98439.0015
D91: 830 | E91: Derbyshire | F91: 4.39 | G91: 1085956.009 | N91: 823 | O91: Central Bedfordshire | P91: 4.3 | Q91: 201865.5
D92: 831 | E92: Derby | F92: 4.61 | G92: 1166349.934 | N92: 825 | O92: Buckinghamshire | P92: 4.64 | Q92: 222167.76
D93: 838 | E93: Dorset | F93: 4.3 | G93: 0 | N93: 826 | O93: Milton Keynes | P93: 5.24 | Q93: 130756.86
D94: 839 | E94: Bournemouth, Christchurch and Poole | F94: 4.3 | G94: 0 | N94: 830 | O94: Derbyshire | P94: 4.39 | Q94: 1085956.009
D95: 840 | E95: Durham | F95: 4.31 | G95: 1084420.44 | N95: 831 | O95: Derby | P95: 4.61 | Q95: 1166349.934
D96: 841 | E96: Darlington | F96: 4.44 | G96: 211079.8345 | N96: 838 | O96: Dorset | P96: 4.3 | Q96: 0
D97: 845 | E97: East Sussex | F97: 4.3 | G97: 0 | N97: 839 | O97: Bournemouth, Christchurch and Poole | P97: 4.3 | Q97: 0
D98: 846 | E98: Brighton & Hove | F98: 4.45 | G98: 197357.94 | N98: 840 | O98: Durham | P98: 4.31 | Q98: 1084420.44
D99: 850 | E99: Hampshire | F99: 4.61 | G99: 1569923.066 | N99: 841 | O99: Darlington | P99: 4.44 | Q99: 211079.8345
D100: 851 | E100: Portsmouth | F100: 4.69 | G100: 0 | N100: 845 | O100: East Sussex | P100: 4.3 | Q100: 0
D101: 852 | E101: Southampton | F101: 5.11 | G101: 73455.52028 | N101: 846 | O101: Brighton & Hove | P101: 4.45 | Q101: 197357.94
D102: 855 | E102: Leicestershire | F102: 4.3 | G102: 111828.3042 | N102: 850 | O102: Hampshire | P102: 4.61 | Q102: 1569923.066
D103: 856 | E103: Leicester | F103: 4.56 | G103: 0 | N103: 851 | O103: Portsmouth | P103: 4.69 | Q103: 0
D104: 857 | E104: Rutland | F104: 4.48 | G104: 0 | N104: 852 | O104: Southampton | P104: 5.11 | Q104: 73455.52028
D105: 860 | E105: Staffordshire | F105: 4.3 | G105: 127121.4 | N105: 855 | O105: Leicestershire | P105: 4.3 | Q105: 111828.3042
D106: 861 | E106: Stoke-on-Trent | F106: 4.51 | G106: 453343.8 | N106: 856 | O106: Leicester | P106: 4.56 | Q106: 0
D107: 865 | E107: Wiltshire | F107: 4.3 | G107: 0 | N107: 857 | O107: Rutland | P107: 4.48 | Q107: 0
D108: 866 | E108: Swindon | F108: 4.54 | G108: 0 | N108: 860 | O108: Staffordshire | P108: 4.3 | Q108: 127121.4
D109: 867 | E109: Bracknell Forest | F109: 4.93 | G109: 0 | N109: 861 | O109: Stoke-on-Trent | P109: 4.51 | Q109: 453343.8
D110: 868 | E110: Windsor & Maidenhead | F110: 5 | G110: 215430.93 | N110: 865 | O110: Wiltshire | P110: 4.3 | Q110: 0
D111: 869 | E111: West Berkshire | F111: 4.7 | G111: 258292.08 | N111: 866 | O111: Swindon | P111: 4.54 | Q111: 0
D112: 870 | E112: Reading | F112: 5.14 | G112: 266554.8 | N112: 867 | O112: Bracknell Forest | P112: 4.93 | Q112: 0
D113: 871 | E113: Slough | F113: 5.79 | G113: 771825.6 | N113: 868 | O113: Windsor & Maidenhead | P113: 5 | Q113: 215430.93
D114: 872 | E114: Wokingham | F114: 4.97 | G114: 2500.019983 | N114: 869 | O114: West Berkshire | P114: 4.7 | Q114: 258292.08
D115: 873 | E115: Cambridgeshire | F115: 4.42 | G115: 1257696.639 | N115: 870 | O115: Reading | P115: 5.14 | Q115: 266554.8
D116: 874 | E116: Peterborough | F116: 4.91 | G116: 215748.0408 | N116: 871 | O116: Slough | P116: 5.79 | Q116: 771825.6
D117: 876 | E117: Halton | F117: 5.12 | G117: 99111.6 | N117: 872 | O117: Wokingham | P117: 4.97 | Q117: 2500.019983
D118: 877 | E118: Warrington | F118: 4.3 | G118: 57456 | N118: 873 | O118: Cambridgeshire | P118: 4.42 | Q118: 1257696.639
D119: 878 | E119: Devon | F119: 4.3 | G119: 108704.7 | N119: 874 | O119: Peterborough | P119: 4.91 | Q119: 215748.0408
D120: 879 | E120: Plymouth | F120: 4.57 | G120: 408007.14 | N120: 876 | O120: Halton | P120: 5.12 | Q120: 99111.6
D121: 880 | E121: Torbay | F121: 4.3 | G121: 0 | N121: 877 | O121: Warrington | P121: 4.3 | Q121: 57456
D122: 881 | E122: Essex | F122: 4.47 | G122: 290275.92 | N122: 878 | O122: Devon | P122: 4.3 | Q122: 108704.7
D123: 882 | E123: Southend-on-Sea | F123: 4.4 | G123: 0 | N123: 879 | O123: Plymouth | P123: 4.57 | Q123: 408007.14
D124: 883 | E124: Thurrock | F124: 4.46 | G124: 0 | N124: 880 | O124: Torbay | P124: 4.3 | Q124: 0
D125: 884 | E125: Herefordshire | F125: 4.3 | G125: 0 | N125: 881 | O125: Essex | P125: 4.47 | Q125: 290275.92
D126: 885 | E126: Worcestershire | F126: 4.3 | G126: 82365.75965 | N126: 882 | O126: Southend-on-Sea | P126: 4.4 | Q126: 0
D127: 886 | E127: Kent | F127: 4.48 | G127: 155040 | N127: 883 | O127: Thurrock | P127: 4.46 | Q127: 0
D128: 887 | E128: Medway | F128: 4.49 | G128: 0 | N128: 884 | O128: Herefordshire | P128: 4.3 | Q128: 0
D129: 888 | E129: Lancashire | F129: 4.3 | G129: 3789475.899 | N129: 885 | O129: Worcestershire | P129: 4.3 | Q129: 82365.75965
D130: 889 | E130: Blackburn with Darwen | F130: 4.62 | G130: 159348.06 | N130: 886 | O130: Kent | P130: 4.48 | Q130: 155040
D131: 890 | E131: Blackpool | F131: 4.36 | G131: 0 | N131: 887 | O131: Medway | P131: 4.49 | Q131: 0
D132: 891 | E132: Nottinghamshire | F132: 4.3 | G132: 0 | N132: 888 | O132: Lancashire | P132: 4.3 | Q132: 3789475.899
D133: 892 | E133: Nottingham | F133: 4.92 | G133: 135432 | N133: 889 | O133: Blackburn with Darwen | P133: 4.62 | Q133: 159348.06
D134: 893 | E134: Shropshire | F134: 4.3 | G134: 0 | N134: 890 | O134: Blackpool | P134: 4.36 | Q134: 0
D135: 894 | E135: Telford & Wrekin | F135: 4.36 | G135: 396797.52 | N135: 891 | O135: Nottinghamshire | P135: 4.3 | Q135: 0
D136: 895 | E136: Cheshire East | F136: 4.3 | G136: 96592.2 | N136: 892 | O136: Nottingham | P136: 4.92 | Q136: 135432
D137: 896 | E137: Cheshire West and Chester | F137: 4.3 | G137: 88325.30044 | N137: 893 | O137: Shropshire | P137: 4.3 | Q137: 0
D138: 908 | E138: Cornwall | F138: 4.3 | G138: 268983 | N138: 894 | O138: Telford & Wrekin | P138: 4.36 | Q138: 396797.52
D139: 909 | E139: Cumbria | F139: 4.3 | G139: 485283.5606 | N139: 895 | O139: Cheshire East | P139: 4.3 | Q139: 96592.2
D140: 916 | E140: Gloucestershire | F140: 4.3 | G140: 0 | N140: 896 | O140: Cheshire West and Chester | P140: 4.3 | Q140: 88325.30044
D141: 919 | E141: Hertfordshire | F141: 5.38 | G141: 1763777.789 | N141: 908 | O141: Cornwall | P141: 4.3 | Q141: 268983
D142: 921 | E142: Isle of Wight | F142: 4.3 | G142: 0 | N142: 909 | O142: Cumbria | P142: 4.3 | Q142: 485283.5606
D143: 925 | E143: Lincolnshire | F143: 4.3 | G143: 541620.2709 | N143: 916 | O143: Gloucestershire | P143: 4.3 | Q143: 0
D144: 926 | E144: Norfolk | F144: 4.3 | G144: 273789.8085 | N144: 919 | O144: Hertfordshire | P144: 5.38 | Q144: 1763777.789
D145: 928 | E145: Northamptonshire | F145: 4.35 | G145: 1998305.481 | N145: 921 | O145: Isle of Wight | P145: 4.3 | Q145: 0
D146: 929 | E146: Northumberland | F146: 4.3 | G146: 0 | N146: 925 | O146: Lincolnshire | P146: 4.3 | Q146: 541620.2709
D147: 931 | E147: Oxfordshire | F147: 4.39 | G147: 510610.5593 | N147: 926 | O147: Norfolk | P147: 4.3 | Q147: 273789.8085
D148: 933 | E148: Somerset | F148: 4.3 | G148: 0 | N148: 928 | O148: Northamptonshire | P148: 4.35 | Q148: 1998305.481
D149: 935 | E149: Suffolk | F149: 4.3 | G149: 161299.74 | N149: 929 | O149: Northumberland | P149: 4.3 | Q149: 0
D150: 936 | E150: Surrey | F150: 5.18 | G150: 858527.5333 | N150: 931 | O150: Oxfordshire | P150: 4.39 | Q150: 510610.5593
D151: 937 | E151: Warwickshire | F151: 4.3 | G151: 716715.3395 | N151: 933 | O151: Somerset | P151: 4.3 | Q151: 0
D152: 938 | E152: West Sussex | F152: 4.78 | G152: 574890.6 | N152: 935 | O152: Suffolk | P152: 4.3 | Q152: 161299.74
N153: 936 | O153: Surrey | P153: 5.18 | Q153: 858527.5333
N154: 937 | O154: Warwickshire | P154: 4.3 | Q154: 716715.3395
N155: 938 | O155: West Sussex | P155: 4.78 | Q155: 574890.6

Sheet Prev_LA_Table
A1: LA Table: FUNDING PERIOD (2018-19)
A2: Department for Education Section 251 Financial Data Collection | E2: LA Table Local Authority Information
A4: Local Authority | B4: Sheffield | C4: 373
A6: Description | B6: EarlyYears | C6: Primary | D6: Secondary | E6: SENSpecial | F6: APPRU | G6: PostSchool | H6: Gross | I6: Income | J6: Net
A8: 1 SCHOOLS BUDGET
A10: 1.0.1 Individual Schools Budget (i.e. school budget shares, before Academy recoupment), including 6th form grant for maintained schools, but excluding all high needs place funding | B10: 32843339 | C10: 176388417 | D10: 141201635 | E10: 0 | F10: 0 | H10: 350433391 | J10: 350433391
A11: 1.0.2 High needs place funding within Individual Schools Budget (i.e. within school budget shares, before Academy recoupment), including all pre- and post-16 place funding for maintained schools and academies | C11: 749833 | D11: 464667 | E11: 11492917 | F11: 1420000 | H11: 14127417 | J11: 14127417
A13: DELEGATED ITEMS
A15: 1.1.1 Contingencies | C15: 259289 | D15: 28539 | H15: 287828 | I15: 0 | J15: 287828
A16: 1.1.2 Behaviour support services | C16: 0 | D16: 0 | H16: 0 | I16: 0 | J16: 0
A17: 1.1.3 Support to UPEG and bilingual learners | C17: 93758 | D17: 10320 | H17: 104078 | I17: 52400 | J17: 51678
A18: 1.1.4 Free school meals eligibility | C18: 30873 | D18: 3398 | H18: 34271 | I18: 0 | J18: 34271
A19: 1.1.5 Insurance | C19: 45330 | D19: 4989 | H19: 50319 | I19: 0 | J19: 50319
A20: 1.1.6 Museum and Library services | C20: 25240 | D20: 2778 | H20: 28018 | I20: 0 | J20: 28018
A21: 1.1.7 Licences/subscriptions | C21: 200920 | D21: 22114 | H21: 223034 | I21: 0 | J21: 223034
A22: 1.1.8 Staff costs – supply cover excluding cover for facility time | C22: 82088 | D22: 9035 | H22: 91123 | I22: 0 | J22: 91123
A23: 1.1.9 Staff costs – supply cover for facility time | C23: 89184 | D23: 9816 | H23: 99000 | I23: 0 | J23: 99000
A24: 1.1.10 School improvement | C24: 0 | D24: 0 | H24: 0 | I24: 0 | J24: 0
A26: HIGH NEEDS BUDGET
A28: 1.2.1 Top-up funding – maintained schools | B28: 306584 | C28: 1743585 | D28: 1394431 | E28: 12610281 | F28: 910255 | H28: 16965136 | I28: 120000 | J28: 16845136
A29: 1.2.2 Top-up funding – academies, free schools and colleges | B29: 0 | C29: 939763 | D29: 574480 | E29: 0 | F29: 0 | G29: 2832000 | H29: 4346243 | I29: 0 | J29: 4346243
A30: 1.2.3 Top-up and other funding – non-maintained and independent providers | B30: 0 | C30: 0 | D30: 0 | E30: 4038000 | F30: 0 | G30: 0 | H30: 4038000 | I30: 0 | J30: 4038000
A31: 1.2.4 Additional high needs targeted funding for mainstream schools and academies | B31: 0 | C31: 0 | D31: 0 | H31: 0 | I31: 0 | J31: 0
A32: 1.2.5 SEN support service | B32: 450256 | C32: 2428425 | D32: 1942133 | E32: 157559 | F32: 19467 | G32: 0 | H32: 4997840 | I32: 7600 | J32: 4990240
A33: 1.2.6 Hospital education services | E33: 0 | F33: 924835 | H33: 924835 | I33: 0 | J33: 924835
A34: 1.2.7 Other alternative provision services | B34: 89811 | C34: 484389 | D34: 387391 | E34: 31428 | F34: 3883 | G34: 0 | H34: 996902 | I34: 313880 | J34: 683022
A35: 1.2.8 Support for inclusion | B35: 517424 | C35: 2790687 | D35: 2231853 | E35: 181063 | F35: 22371 | G35: 0 | H35: 5743398 | I35: 323400 | J35: 5419998
A36: 1.2.9 Special schools and PRUs in financial difficulty | E36: 500000 | F36: 0 | H36: 500000 | I36: 0 | J36: 500000
A37: 1.2.10 PFI/ BSF costs at special schools, AP/ PRUs and Post 16 institutions only | E37: 0 | F37: 0 | G37: 0 | H37: 0 | I37: 0 | J37: 0
A38: 1.2.11 Direct payments (SEN and disability) | B38: 0 | C38: 0 | D38: 0 | E38: 0 | F38: 0 | G38: 0 | H38: 0 | I38: 0 | J38: 0
A39: 1.2.12 Carbon reduction commitment allowances (PRUs) | F39: 0 | H39: 0 | I39: 0 | J39: 0
A40: 1.2.13 Therapies and other health related services | B40: 10158 | C40: 54787 | D40: 43816 | E40: 3555 | F40: 439 | G40: 0 | H40: 112755 | I40: 0 | J40: 112755
A42: EARLY YEARS BUDGET
A44: 1.3.1 Central expenditure on early years entitlement | B44: 2100144 | H44: 2100144 | I44: 0 | J44: 2100144
A46: CENTRAL PROVISION WITHIN SCHOOLS BUDGET
A48: 1.4.1 Contribution to combined budgets | B48: 536221 | C48: 2892073 | D48: 2312935 | E48: 187641 | F48: 23184 | H48: 5952054 | I48: 23200 | J48: 5928854
A49: 1.4.2 School admissions | B49: 29072 | C49: 156797 | D49: 125399 | E49: 10173 | F49: 1257 | H49: 322698 | I49: 0 | J49: 322698
A50: 1.4.3 Servicing of schools forums | B50: 16032 | C50: 86468 | D50: 69152 | E50: 5610 | F50: 693 | H50: 177955 | I50: 0 | J50: 177955
A51: 1.4.4 Termination of employment costs | B51: 0 | C51: 0 | D51: 0 | E51: 0 | F51: 0 | H51: 0 | I51: 0 | J51: 0
A52: 1.4.5 Falling Rolls Fund | B52: 0 | C52: 0 | D52: 0 | E52: 0 | F52: 0 | H52: 0 | I52: 0 | J52: 0
A53: 1.4.6 Capital expenditure from revenue (CERA) | B53: 0 | C53: 0 | D53: 0 | E53: 0 | F53: 0 | H53: 0 | I53: 0 | J53: 0
A54: 1.4.7 Prudential borrowing costs | B54: 0 | C54: 0 | D54: 0 | E54: 0 | F54: 0 | H54: 0 | I54: 0 | J54: 0
A55: 1.4.8 Fees to independent schools without SEN | B55: 0 | C55: 0 | D55: 0 | E55: 0 | F55: 0 | H55: 0 | I55: 0 | J55: 0
A56: 1.4.9 Equal pay - back pay | B56: 0 | C56: 0 | D56: 0 | E56: 0 | F56: 0 | H56: 0 | I56: 0 | J56: 0
A57: 1.4.10 Pupil growth | B57: 0 | C57: 1844701 | D57: 1475299 | E57: 445016 | F57: 54984 | H57: 3820000 | I57: 0 | J57: 3820000
A58: 1.4.11 SEN transport | B58: 0 | C58: 0 | D58: 0 | E58: 4066762 | F58: 0 | G58: 0 | H58: 4066762 | I58: 0 | J58: 4066762
A59: 1.4.12 Exceptions agreed by Secretary of State | B59: 0 | C59: 0 | D59: 0 | E59: 0 | F59: 0 | G59: 0 | H59: 0 | I59: 0 | J59: 0
A60: 1.4.13 Infant class sizes | C60: 180000 | H60: 180000 | I60: 0 | J60: 180000
A61: 1.4.14 Other Items | B61: 31351 | C61: 169092 | D61: 135231 | E61: 10971 | F61: 1355 | G61: 0 | H61: 348000 | I61: 0 | J61: 348000
A63: CENTRAL PROVISION WITHIN SCHOOLS BUDGET (FORMER ESG RETAINED DUTIES)
A65: 1.5.1 Education welfare service | H65: 400000 | I65: 0 | J65: 400000
A66: 1.5.2 Asset management | H66: 450000 | I66: 0 | J66: 450000
A67: 1.5.3 Statutory/ Regulatory duties | H67: 300000 | I67: 0 | J67: 300000
A69: CENTRAL PROVISION FUNDED THROUGH MAINTAINED SCHOOLS BUDGET
A71: 1.6.1 Central support services | H71: 0 | I71: 0 | J71: 0
A72: 1.6.2 Education welfare service | H72: 0 | I72: 0 | J72: 0
A73: 1.6.3 Asset Management | H73: 0 | I73: 0 | J73: 0
A74: 1.6.4 Statutory/ Regulatory duties | H74: 0 | I74: 0 | J74: 0
A75: 1.6.5 Premature retirement cost/ Redundancy costs (new provisions) | H75: 0 | I75: 0 | J75: 0
A76: 1.6.6 Monitoring national curriculum assessment | H76: 0 | I76: 0 | J76: 0
A78: 1.7.1 Other Specific Grants | B78: 52585 | C78: 283613 | D78: 226820 | E78: 18401 | F78: 2274 | G78: 0 | H78: 583693 | I78: 583693 | J78: 0
A80: 1.8.1 TOTAL SCHOOLS BUDGET (before Academy recoupment) | B80: 36982977 | C80: 192019312 | D80: 152676231 | E80: 33759377 | F80: 3384997 | G80: 2832000 | H80: 422804894 | I80: 1424173 | J80: 421380721
A82: RECONCILIATION OF SCHOOLS BUDGET
A84: 1.9.1 Estimated Dedicated Schools Grant for 2018-19 (after deductions for post school high needs place funding, but including school and academy post-16 high needs place funding) | H84: 414324858
A85: 1.9.2 Dedicated Schools Grant brought forward from 2017-18 | H85: 3602312
A86: 1.9.3 Dedicated Schools Grant carry forward to 2019-20 | H86: 0
A87: 1.9.4 ESFA Sixth Form Grant for maintained school 6th forms (including post-16 high needs place funding) | H87: 3453551
A88: 1.9.5 Local Authority additional contribution | H88: 0
A89: 1.9.6 Total funding supporting the Schools Budget (lines 1.9.1 to 1.9.5) | H89: 421380721
A90: 1.10.1 Academy: recoupment from the Dedicated Schools Grant, excluding the recoupment of high needs place funding shown in line 1.0.2 above (please show any recoupment from the DSG as a negative in the cell) | H90: -210653251
A91: 1.10.2 Academy: recoupment from the Dedicated Schools Grant of high needs place funding shown under line 1.0.2 above (please show any recoupment from the DSG as a negative in the cell) | H91: -736500
A93: 2 OTHER EDUCATION AND COMMUNITY BUDGET
A95: 2.0.1 Central support services | H95: 2282985 | I95: 1866940 | J95: 416045
A96: 2.0.2 Education welfare service | H96: 0 | I96: 0 | J96: 0
A97: 2.0.3 School improvement | H97: 515307 | I97: 66200 | J97: 449107
A98: 2.0.4 Asset management - education | H98: 386000 | I98: 0 | J98: 386000
A99: 2.0.5 Statutory/ Regulatory duties - education | H99: 1687184 | I99: 674800 | J99: 1012384
A100: 2.0.6 Premature retirement cost/ Redundancy costs (new provisions) | H100: 181300 | I100: 0 | J100: 181300
A101: 2.0.7 Monitoring national curriculum assessment | H101: 0 | I101: 0 | J101: 0
A103: 2.1.1 Educational psychology service | H103: 0 | I103: 0 | J103: 0
A104: 2.1.2 SEN administration, assessment and coordination and monitoring | H104: 1037477 | I104: 90600 | J104: 946877
A105: 2.1.3 Independent Advice and Support Services (Parent partnership), guidance and information | H105: 144051 | I105: 0 | J105: 144051
A106: 2.1.4 Home to school transport (pre 16): SEN transport expenditure | B106: 0 | C106: 0 | D106: 0 | E106: 2580332 | F106: 0 | G106: 0 | H106: 2580332 | I106: 30000 | J106: 2550332
A107: 2.1.5 Home to school transport (pre 16): mainstream home to school transport expenditure | B107: 95206 | C107: 513486 | D107: 410660 | E107: 33316 | F107: 4116 | G107: 0 | H107: 1056784 | I107: 0 | J107: 1056784
A108: 2.1.6 Home to post-16 provision: SEN/ LLDD transport expenditure (aged 16-18) | B108: 0 | C108: 0 | D108: 0 | E108: 0 | F108: 0 | G108: 70498 | H108: 70498 | I108: 28500 | J108: 41998
A109: 2.1.7 Home to post-16 provision: SEN/ LLDD transport expenditure (aged 19-25) | B109: 0 | C109: 0 | D109: 0 | E109: 0 | F109: 0 | G109: 70498 | H109: 70498 | I109: 28500 | J109: 41998
A110: 2.1.8 Home to post-16 provision transport: mainstream home to post-16 transport expenditure | B110: 0 | C110: 0 | D110: 0 | E110: 0 | F110: 0 | G110: 293729 | H110: 293729 | I110: 70200 | J110: 223529
A111: 2.1.9 Supply of school places | H111: 450000 | I111: 450000 | J111: 0
A113: 2.2.1 Other spend not funded from the Schools Budget | H113: 0 | I113: 0 | J113: 0
A114: 2.3.1 Young people's learning and development | D114: 4009907 | E114: 325311 | F114: 40194 | H114: 4375412 | I114: 1297900 | J114: 3077512
A115: 2.3.2 Adult and Community learning | H115: 3847142 | I115: 2705600 | J115: 1141542
A116: 2.3.3 Pension costs | H116: 4375500 | I116: 777000 | J116: 3598500
A117: 2.3.4 Joint use arrangements | H117: 0 | I117: 0 | J117: 0
A118: 2.3.5 Insurance | H118: 0 | I118: 0 | J118: 0
A120: 2.4.1 Other Specific Grant | H120: 3228300 | I120: 3228300 | J120: 0
A122: 2.5.1 Total Other education and community budget | H122: 26582499 | I122: 11314540 | J122: 15267959
A124: 3 CHILDREN'S AND YOUNG PEOPLE'S SERVICES
A126: SURE START CHILDREN'S CENTRES AND OTHER SPEND ON CHILDREN UNDER 5
A128: 3.0.1 Funding for individual Sure Start Children's Centres | H128: 1042621 | I128: 24000 | J128: 1018621
A129: 3.0.2 Funding for local authority provided or commissioned area wide services delivered through Sure Start Children's Centres | H129: 0 | I129: 0 | J129: 0
A130: 3.0.3 Funding on local authority management costs relating to Sure Start Children's Centres | H130: 0 | I130: 0 | J130: 0
A131: 3.0.4 Other spend on children under 5 | H131: 1923313 | I131: 125341 | J131: 1797972
A132: 3.0.5 Total Sure Start children's centres and other spend on children under 5 | H132: 2965934 | I132: 149341 | J132: 2816593
A134: CHILDREN LOOKED AFTER
A136: 3.1.1 Residential care | H136: 11872528 | I136: 502197 | J136: 11370331
A137: 3.1.2a Fostering services (excluding fees and allowances for LA foster carers) | H137: 7400934 | I137: 250000 | J137: 7150934
A138: 3.1.2b Fostering services (fees and allowances for LA foster carers) | H138: 5484567 | I138: 423567 | J138: 5061000
A139: 3.1.3 Adoption services | H139: 3951939 | I139: 572590 | J139: 3379349
A140: 3.1.4 Special guardianship support | H140: 2650344 | I140: 0 | J140: 2650344
A141: 3.1.5 Other children looked after services | H141: 508683 | I141: 111211 | J141: 397472
A142: 3.1.6 Short breaks (respite) for looked after disabled children | H142: 484042 | I142: 0 | J142: 484042
A143: 3.1.7 Children placed with family and friends | H143: 0 | I143: 0 | J143: 0
A144: 3.1.8 Education of looked after children | B144: 0 | C144: 0 | D144: 0 | E144: 0 | F144: 0 | H144: 0 | I144: 0 | J144: 0
A145: 3.1.9 Leaving care support services | H145: 3016070 | I145: 0 | J145: 3016070
A146: 3.1.10 Asylum seeker services children | H146: 851325 | I146: 94359 | J146: 756966
A147: 3.1.11 Total Children Looked After | B147: 0 | C147: 0 | D147: 0 | E147: 0 | F147: 0 | H147: 36220432 | I147: 1953924 | J147: 34266508
A149: OTHER CHILDREN AND FAMILY SERVICES
A151: 3.2.1 Other children and families services | H151: 762718 | I151: 0 | J151: 762718
A153: SAFEGUARDING CHILDREN AND YOUNG PEOPLE'S SERVICES
A155: 3.3.1 Social work (including LA functions in relation to child protection) | H155: 13359859 | I155: 1171382 | J155: 12188477
A156: 3.3.2 Commissioning and Children's Services Strategy | H156: 6395339 | I156: 2652688 | J156: 3742651
A157: 3.3.3 Local Safeguarding Childrens Board | H157: 706663 | I157: 206091 | J157: 500572
A158: 3.3.4 Total Safeguarding Children and Young People's Services | H158: 20461861 | I158: 4030161 | J158: 16431700
A160: FAMILY SUPPORT SERVICES
A162: 3.4.1 Direct payments | H162: 1087482 | I162: 0 | J162: 1087482
A163: 3.4.2 Short breaks (respite) for disabled children | H163: 1845849 | I163: 0 | J163: 1845849
A164: 3.4.3 Other support for disabled children | H164: 0 | I164: 0 | J164: 0
A165: 3.4.4 Targeted family support | H165: 8606183 | I165: 4950787 | J165: 3655396
A166: 3.4.5 Universal family support | H166: 2995123 | I166: 0 | J166: 2995123
A167: 3.4.6 Total Family Support Services | H167: 14534637 | I167: 4950787 | J167: 9583850
A169: SERVICES FOR YOUNG PEOPLE
A171: 3.5.1 Universal services for young people | H171: 2863956 | I171: 70000 | J171: 2793956
A172: 3.5.2 Targeted services for young people | H172: 1798704 | I172: 179100 | J172: 1619604
A173: 3.5.3 Total Services for young people | H173: 4662660 | I173: 249100 | J173: 4413560
A175: YOUTH JUSTICE
A177: 3.6.1 Youth justice | H177: 5743378 | I177: 3434566 | J177: 2308812
A179: 4.0.1 Capital Expenditure from Revenue (CERA) (Non-schools budget functions and Children's and young people services) | H179: 27400 | I179: 0 | J179: 27400
A181: 5.0.1 Total Schools Budget and Other education and community budget (excluding CERA) (lines 1.6.1 and 2.4.1) | H181: 449387393 | I181: 12738713 | J181: 436648680
A183: 5.0.2 Total Children and Young People's Services and Youth Justice Budget (excluding CERA)(lines 3.0.5 + 3.1.11 + 3.2.1 + 3.3.4 + 3.4.6 + 3.5.3 + 3.6.1) | H183: 85351620 | I183: 14767879 | J183: 70583741
A185: 6 Total Schools Budget, Other education and community budget, Children and Young People's Services and Youth Justice Budget (excluding CERA) (lines 5.0.1 + 5.0.2) | H185: 534739013 | I185: 27506592 | J185: 507232421
A187: 7 Capital Expenditure (excluding CERA) | B187: 576675 | C187: 4896017 | D187: 31120060 | E187: 0 | F187: 0 | H187: 36592752 | I187: 36592752 | J187: 0
A189: MEMORANDUM ITEMS
A191: 8 Services for young people
A193: 8a.1 Substance misuse services (Drugs, Alcohol and Volatile substances) (included in 3.5.1 and 3.5.2 above) | H193: 37733 | I193: 33000 | J193: 4733
A195: 8a.2 Teenage pregnancy services (included in 3.5.1 and 3.5.2 above) | H195: 0 | I195: 0 | J195: 0
